Workbook

Sheet INDEKS_SIDE (hidden)
A1: ="Slet til og med række "&A2&" og ned" -> Slet til og med række 110 og ned | I1: = Ingen
A2: 110 | I2: = Default
A3: =(+A2&":"&"500") -> 110:500
B4: INDEKS : | G4: SELSKAB | I4: Alias | L4: Entity (selskab)
B5: SETUP_POV
B6: SETUP_OPSLAG
A7: 1 | B7: OUT_FrontPage_PRINT | C7: =INDIRECT("'"&B7&"'!A3") -> 0 | D7: =INDIRECT("'"&B7&"'!a1") -> 0 | AF7: Sub SletRaekke()
A8: 2 | B8: OUT_TableOfContents_PRINT | C8: =INDIRECT("'"&B8&"'!A3") -> 0 | D8: =INDIRECT("'"&B8&"'!a1") -> 0 | AF8: For Each c In INDEKS_SIDE.Range("b:b").Cells | AJ8: Læser alle celler i kolonne B | AM8: en ad gangen
A9: 3 | B9: OUT_Rating_PRINT | C9: =INDIRECT("'"&B9&"'!A3") -> 0 | D9: =INDIRECT("'"&B9&"'!a1") -> 0 | AF9: If c.Value = "" Then Exit Sub | AJ9: Stopper makroen når kolonne b er tom
A10: 4 | B10: OUT_NHK_FrontPage_PRINT | C10: =INDIRECT("'"&B10&"'!A3") -> 0 | D10: =INDIRECT("'"&B10&"'!a1") -> 0 | AF10: If Right(sh.Name, 6) = "_PRINT" Then | AJ10: Et forsøg på at springe irrelevante ark over dvs dem uden _PRINT
A11: 5 | B11: OUT_CoreInc_NHK_PRINT | C11: =INDIRECT("'"&B11&"'!A3") -> 0 | D11: =INDIRECT("'"&B11&"'!a1") -> 0 | L11: FNK.NHK_FO | M11: Konc | N11: OK | AF11: a = c.Value | AJ11: Husker det der står i celle b | AM11: lægger den som "a" hvis den ikke er tom
A12: 6 | B12: OUT_Balance_NHK_PRINT | C12: =INDIRECT("'"&B12&"'!A3") -> 0 | D12: =INDIRECT("'"&B12&"'!a1") -> 0 | H12: Koncbud_PROD | I12: Default | J12: OK | L12: FNK.NHK | M12: Konc | N12: OK
A13: 7 | B13: OUT_CoreEarn_NHK_PRINT | C13: =INDIRECT("'"&B13&"'!A3") -> 0 | D13: =INDIRECT("'"&B13&"'!a1") -> 0 | L13: FNK.NHK_FO | M13: Konc | N13: OK | AF13: For Each x In Sheets(1).Range("a:a")
A14: 8 | B14: OUT_Breakdown_of_costs_PRINT | C14: =INDIRECT("'"&B14&"'!A3") -> 0 | D14: =INDIRECT("'"&B14&"'!a1") -> 0 | G14: FNK.NHK | H14: Koncbud_PROD | I14: Default | J14: OK | L14: FNK.NHK_FO | M14: Konc - Konch20 | N14: OK | AF14: If x.Value = a Then
A15: 9 | B15: OUT_BalanceSummary_PRINT | C15: =INDIRECT("'"&B15&"'!A3") -> 0 | D15: =INDIRECT("'"&B15&"'!a1") -> 0 | L15: diverse | M15: Konc - Konch20 | N15: OK | AF15: x.EntireRow.Delete shift:=xlip
A16: 10 | B16: OUT_LendingDeposit_PRINT | C16: =INDIRECT("'"&B16&"'!A3") -> 0 | D16: =INDIRECT("'"&B16&"'!a1") -> 0 | L16: NRK | M16: Konc | N16: OK | AF16: End If
A17: 11 | B17: OUT_KeyFig_PRINT | C17: =INDIRECT("'"&B17&"'!A3") -> 0 | D17: =INDIRECT("'"&B17&"'!a1") -> 0 | F17: FR_ift_gns_EK i Celle A147 rettet | G17: FNK.NHK | H17: Koncbud_PROD | I17: Default | J17: OK | AF17: Next x
B18: MANUEL_Regnskab | AF18: Next c
A19: 12 | B19: OUT_RatioAndKeyfigures1_PRINT | C19: =INDIRECT("'"&B19&"'!A3") -> 0 | D19: =INDIRECT("'"&B19&"'!a1") -> 0 | AF19: End Sub
A20: 13 | B20: OUT_RatioAndKeyfigures2_PRINT | C20: =INDIRECT("'"&B20&"'!A3") -> 0 | D20: =INDIRECT("'"&B20&"'!a1") -> 0
A21: 14 | B21: OUT_Supervisory Diamond_PRINT | C21: =INDIRECT("'"&B21&"'!A3") -> 0 | D21: =INDIRECT("'"&B21&"'!a1") -> 0
A22: 15 | B22: OUT_BusinessAreas_PRINT | C22: =INDIRECT("'"&B22&"'!A3") -> 0 | D22: =INDIRECT("'"&B22&"'!a1") -> 0
A23: 16 | B23: OUT_CoreIncBusArea_PRINT | C23: =INDIRECT("'"&B23&"'!A3") -> 0 | D23: =INDIRECT("'"&B23&"'!a1") -> 0 | L23: diverse | M23: Konc | N23: FEJL | AF23: Sub SletRaekke()
A24: 17 | B24: OUT_RetailPrivat_PRINT | C24: =INDIRECT("'"&B24&"'!A3") -> 0 | D24: =INDIRECT("'"&B24&"'!a1") -> 0 | F24: byttet rundt på sted og version | G24: Privat_FO | H24: Koncbud_PROD | I24: Default | J24: OK | L24: Privat_FO | M24: Konc | N24: OK | AF24: For Each c In Sheets(2).Range("a:a").Cells
A25: 18 | B25: OUT_RetailErhverv_PRINT | C25: =INDIRECT("'"&B25&"'!A3") -> 0 | D25: =INDIRECT("'"&B25&"'!a1") -> 0 | F25: byttet rundt på sted og version | G25: Erhverv_FO | H25: Koncbud_PROD | I25: Default | J25: OK | L25: Erhverv_FO | M25: Konc | N25: OK | AF25: If c.Value = "" Then Exit Sub
A26: 19 | B26: OUT_C&I_PRINT | C26: =INDIRECT("'"&B26&"'!A3") -> 0 | D26: =INDIRECT("'"&B26&"'!a1") -> 0 | F26: byttet rundt på sted og version | G26: C&I_FO | H26: Koncbud_PROD | I26: Default | J26: OK | L26: Erhverv_FO | M26: Konc | N26: OK | AF26: a = c.Value
A27: 20 | B27: OUT_TOTPartners_PRINT | C27: =INDIRECT("'"&B27&"'!A3") -> 0 | D27: =INDIRECT("'"&B27&"'!a1") -> 0 | F27: byttet rundt på sted og version | G27: Partnere_FO | H27: Koncbud_PROD | I27: Default | J27: OK | L27: Erhverv_FO | M27: Konc | N27: OK | AF27: For Each x In Sheets(1).Range("a:a")
A28: 21 | B28: OUT_WealthManagement_PRINT | C28: =INDIRECT("'"&B28&"'!A3") ->  | D28: =INDIRECT("'"&B28&"'!a1") ->  | F28: byttet rundt på sted og version + A117 findes ikke | G28: WM_FO | H28: Koncbud_PROD | I28: Default | J28: FEJL | L28: Erhverv_FO | M28: Konc | N28: OK | AF28: If x.Value = a Then
A29: 22 | B29: OUT_GroupItems_PRINT | C29: =INDIRECT("'"&B29&"'!A3") -> 0 | D29: =INDIRECT("'"&B29&"'!a1") -> 0 | L29: Koncernposter | M29: Konc | N29: OK | AF29: x.EntireRow.Delete shift:=xlip
A30: 23 | B30: OUT_NRK_FrontPage_PRINT | C30: =INDIRECT("'"&B30&"'!A3") -> 0 | D30: =INDIRECT("'"&B30&"'!a1") -> 0 | AF30: End If
A31: 24 | B31: OUT_CoreInc_NRK_PRINT | C31: =INDIRECT("'"&B31&"'!A3") -> 0 | D31: =INDIRECT("'"&B31&"'!a1") -> 0 | G31: Nykredit Koncernen | H31: Koncbud_PROD | I31: Default | J31: OK | L31: Nykredit Realkredit | M31: Konc | N31: OK | AF31: Next x
A32: 25 | B32: OUT_Balance_NRK_PRINT | C32: =INDIRECT("'"&B32&"'!A3") -> 0 | D32: =INDIRECT("'"&B32&"'!a1") -> 0 | L32: Balance | M32: Konc | N32: OK | AF32: Next c
A33: 26 | B33: OUT_NYB_FrontPage_PRINT | C33: =INDIRECT("'"&B33&"'!A3") -> 0 | D33: =INDIRECT("'"&B33&"'!a1") -> 0 | AF33: End Sub
A34: 27 | B34: OUT_CoreInc_Bank_PRINT | C34: =INDIRECT("'"&B34&"'!A3") -> 0 | D34: =INDIRECT("'"&B34&"'!a1") -> 0 | L34: Basis Behold | M34: Konc | N34: OK
A35: 28 | B35: OUT_Balance_Bank_PRINT | C35: =INDIRECT("'"&B35&"'!A3") -> 0 | D35: =INDIRECT("'"&B35&"'!a1") -> 0 | L35: Nykredit Bank Balance | M35: Konc | N35: OK
A36: 29 | B36: OUT_TK_FrontPage_PRINT | C36: =INDIRECT("'"&B36&"'!A3") -> 0 | D36: =INDIRECT("'"&B36&"'!a1") -> 0
A37: 30 | B37: OUT_CoreInc_TK_PRINT | C37: =INDIRECT("'"&B37&"'!A3") -> 0 | D37: =INDIRECT("'"&B37&"'!a1") -> 0 | L37: Totalkredit | M37: Konc | N37: OK
A38: 31 | B38: OUT_Balance_TK_PRINT | C38: =INDIRECT("'"&B38&"'!A3") -> 0 | D38: =INDIRECT("'"&B38&"'!a1") -> 0 | L38: Totalkredit Balance | M38: Konc | N38: OK | AF38: Sub OpdaterLinks()
A39: 32 | B39: OUT_BondPortfol_FrontPage_PRINT | C39: =INDIRECT("'"&B39&"'!A3") -> 0 | D39: =INDIRECT("'"&B39&"'!a1") -> 0 | AF39: '
A40: 33 | B40: OUT_BondPortfolio_PRINT | C40: =INDIRECT("'"&B40&"'!A3") -> 0 | D40: =INDIRECT("'"&B40&"'!a1") -> 0 | AF40: Dim x As Integer
A41: 34 | B41: OUT_Marketshare_FrontPage_PRINT | C41: =INDIRECT("'"&B41&"'!A3") -> 0 | D41: =INDIRECT("'"&B41&"'!a1") -> 0 | AF41: Dim AntalKæder As Integer
A42: 35 | B42: OUT_MarketShare_PRINT | C42: =INDIRECT("'"&B42&"'!A3") -> 0 | D42: =INDIRECT("'"&B42&"'!a1") -> 0 | F42: Jeg har ikke adgang til denne base | H42: M_MFI3 | AF42: Dim FilNavn As String
A43: 36 | B43: OUT_MortgageLen_FrontPage_PRINT | C43: =INDIRECT("'"&B43&"'!A3") -> 0 | D43: =INDIRECT("'"&B43&"'!a1") -> 0 | AF43: '
A44: 37 | B44: OUT_MortPropType2_PRINT | C44: =INDIRECT("'"&B44&"'!A3") -> 0 | D44: =INDIRECT("'"&B44&"'!a1") -> 0 | AF44: Calculate
B45: MANUEL_SOKO | AF45: Sheets("VALG").Select
B46: CALC_SOKO | AF46: AntalKæder = Range("Q10").Value
A47: 38 | B47: OUT_MortGeography_PRINT | C47: =INDIRECT("'"&B47&"'!A3") -> 0 | D47: =INDIRECT("'"&B47&"'!a1") -> 0 | AF47: For x = 1 To AntalKæder
A48: 39 | B48: OUT_MortLoantype1_PRINT | C48: =INDIRECT("'"&B48&"'!A3") -> 0 | D48: =INDIRECT("'"&B48&"'!a1") -> 0 | AF48: If Cells(11 - 1 + x, 17) = "Lukket" Then
A49: 40 | B49: OUT_MortLoantype2_PRINT | C49: =INDIRECT("'"&B49&"'!A3") -> 0 | D49: =INDIRECT("'"&B49&"'!a1") -> 0 | AF49: FilNavn = Range("G11").Value & Cells(11 - 1 + x, 16)
B50: MANUEL_Restancer | AF50: ActiveWorkbook.UpdateLink Name:=FilNavn, Type:=xlExcelLinks
B51: CALC_Restancer | AF51: End If
A52: 41 | B52: OUT_Arrears_PRINT | C52: =INDIRECT("'"&B52&"'!A3") -> 0 | D52: =INDIRECT("'"&B52&"'!a1") -> 0 | AF52: Next
A53: 42 | B53: OUT_ArrearsGeo_PRINT | C53: =INDIRECT("'"&B53&"'!A3") -> 0 | D53: =INDIRECT("'"&B53&"'!a1") -> 0 | AF53: 'Opdater81114
A54: 43 | B54: OUT_RepossForcedSales_PRINT | C54: =INDIRECT("'"&B54&"'!A3") -> 0 | D54: =INDIRECT("'"&B54&"'!a1") -> 0
B55: MANUEL_LTV | AF55: End Sub
B56: CALC_LTV
A57: 44 | B57: OUT_LTVContinous_PRINT | C57: =INDIRECT("'"&B57&"'!A3") -> 0 | D57: =INDIRECT("'"&B57&"'!a1") -> 0
A58: 45 | B58: OUT_LTVTopPart_PRINT | C58: =INDIRECT("'"&B58&"'!A3") -> 0 | D58: =INDIRECT("'"&B58&"'!a1") -> 0
A59: 46 | B59: OUT_AvgLTV_PRINT | C59: =INDIRECT("'"&B59&"'!A3") -> 0 | D59: =INDIRECT("'"&B59&"'!a1") -> Slet til og med række og ned
B60: MANUEL_Afdragsfrihed
B61: CALC_Afdragsfrihed
A62: 47 | B62: OUT_MortLenInterestOnly_PRINT | C62: =INDIRECT("'"&B62&"'!A3") ->  | D62: =INDIRECT("'"&B62&"'!a1") -> 
A63: 48 | B63: OUT_ImpairmentAndLoss1_PRINT | C63: =INDIRECT("'"&B63&"'!A3") -> 0 | D63: =INDIRECT("'"&B63&"'!a1") -> 0
A64: 49 | B64: OUT_ImpairmentAndLoss2_PRINT | C64: =INDIRECT("'"&B64&"'!A3") -> 0 | D64: =INDIRECT("'"&B64&"'!a1") -> 0 | L64: Diverse | M64: Konc | N64: OK
A65: 50 | B65: OUT_WriteOffGeo_PRINT | C65: =INDIRECT("'"&B65&"'!A3") -> 0 | D65: =INDIRECT("'"&B65&"'!a1") -> 0
A66: 51 | B66: OUT_WriteOff_PRINT | C66: =INDIRECT("'"&B66&"'!A3") -> 0 | D66: =INDIRECT("'"&B66&"'!a1") -> 0 | G66: Koncern Internt | I66: Default | J66: OK
B67: Manuel_Bank
B68: CALC_Bank
A69: 52 | B69: OUT_NPLRK_PRINT | C69: =INDIRECT("'"&B69&"'!A3") -> 0 | D69: =INDIRECT("'"&B69&"'!a1") -> 0
A70: 53 | B70: OUT_BankLending_FrontPage_PRINT | C70: =INDIRECT("'"&B70&"'!A3") -> 0 | D70: =INDIRECT("'"&B70&"'!a1") -> 0
A71: 54 | B71: OUT_BankLending_PRINT | C71: =INDIRECT("'"&B71&"'!A3") -> 0 | D71: =INDIRECT("'"&B71&"'!a1") -> 0
A72: 55 | B72: OUT_BankLendProvisions_PRINT | C72: =INDIRECT("'"&B72&"'!A3") -> 0 | D72: =INDIRECT("'"&B72&"'!a1") -> 0
A73: 56 | B73: OUT_NPLBank_PRINT | C73: =INDIRECT("'"&B73&"'!A3") -> 0 | D73: =INDIRECT("'"&B73&"'!a1") -> 0 | L73: Indlån Udlån | M73: Konc | N73: OK
A74: 57 | B74: OUT_DanishEcono_FrontPage_PRINT | C74: =INDIRECT("'"&B74&"'!A3") -> 0 | D74: =INDIRECT("'"&B74&"'!a1") -> 0
A75: 58 | B75: OUT_HousePrice_PRINT | C75: =INDIRECT("'"&B75&"'!A3") -> 0 | D75: =INDIRECT("'"&B75&"'!a1") -> 0
A76: 59 | B76: OUT_DanishEconomy_PRINT | C76: =INDIRECT("'"&B76&"'!A3") -> 0 | D76: =INDIRECT("'"&B76&"'!a1") -> 0
B77: MANUEL_Makro (bruges ikke)
A78: 60 | B78: OUT_Corona Appendix_PRINT | C78: =INDIRECT("'"&B78&"'!A3") -> 0 | D78: =INDIRECT("'"&B78&"'!a1") -> 0
A79: 61 | B79: OUT_MortComp_PRINT | C79: =INDIRECT("'"&B79&"'!A3") -> 0 | D79: =INDIRECT("'"&B79&"'!a1") -> 0
A80: 62 | B80: OUT_Related impairmen_PRINT | C80: =INDIRECT("'"&B80&"'!A3") -> 0 | D80: =INDIRECT("'"&B80&"'!a1") -> 0
B81: MANUEL_CoverPool
B82: CALC_CoverPool
A83: 63 | B83: OUT_Cover Pool_FP_PRINT | C83: =INDIRECT("'"&B83&"'!A3") -> 0 | D83: =INDIRECT("'"&B83&"'!a1") -> 0
A84: 64 | B84: OUT_CP_1_PRINT | C84: =INDIRECT("'"&B84&"'!A3") -> 0 | D84: =INDIRECT("'"&B84&"'!a1") -> 0
A85: 65 | B85: OUT_CP_2_PRINT | C85: =INDIRECT("'"&B85&"'!A3") ->  | D85: =INDIRECT("'"&B85&"'!a1") -> 
A86: 66 | B86: OUT_Concepts&Calculations_PRINT | C86: =INDIRECT("'"&B86&"'!A3") -> 0 | D86: =INDIRECT("'"&B86&"'!a1") -> 0
A87: 67 | B87: OUT_MortgageLending1_PRINT | C87: =INDIRECT("'"&B87&"'!A3") -> 0 | D87: =INDIRECT("'"&B87&"'!a1") -> 0
A88: 68 | B88: OUT_MortgageLending2_PRINT | C88: =INDIRECT("'"&B88&"'!A3") -> 0 | D88: =INDIRECT("'"&B88&"'!a1") -> 0
A89: 69 | B89: OUT_MortgageLending_D1_PRINT | C89: =INDIRECT("'"&B89&"'!A3") -> 0 | D89: =INDIRECT("'"&B89&"'!a1") -> 0
A90: 70 | B90: OUT_MortgageLending_D2_PRINT | C90: =INDIRECT("'"&B90&"'!A3") -> 0 | D90: =INDIRECT("'"&B90&"'!a1") -> 0
A91: 71 | B91: OUT_MortgageLending_E1_PRINT | C91: =INDIRECT("'"&B91&"'!A3") -> 0 | D91: =INDIRECT("'"&B91&"'!a1") -> 0
A92: 72 | B92: OUT_MortgageLending_E2_PRINT | C92: =INDIRECT("'"&B92&"'!A3") -> 0 | D92: =INDIRECT("'"&B92&"'!a1") -> 0
A93: 73 | B93: OUT_MortgageLending_G1_PRINT | C93: =INDIRECT("'"&B93&"'!A3") -> 0 | D93: =INDIRECT("'"&B93&"'!a1") -> 0
A94: 74 | B94: OUT_MortgageLending_G2_PRINT | C94: =INDIRECT("'"&B94&"'!A3") -> 0 | D94: =INDIRECT("'"&B94&"'!a1") -> 0
A95: 75 | B95: OUT_MortgageLending_H1_PRINT | C95: =INDIRECT("'"&B95&"'!A3") -> 0 | D95: =INDIRECT("'"&B95&"'!a1") -> 0
A96: 76 | B96: OUT_MortgageLending_H2_PRINT | C96: =INDIRECT("'"&B96&"'!A3") -> 0 | D96: =INDIRECT("'"&B96&"'!a1") -> 0
A97: 77 | B97: OUT_CurrentLTV1_PRINT | C97: =INDIRECT("'"&B97&"'!A3") -> 0 | D97: =INDIRECT("'"&B97&"'!a1") -> 0
A98: 78 | B98: OUT_CurrentLTV2_PRINT | C98: =INDIRECT("'"&B98&"'!A3") -> 0 | D98: =INDIRECT("'"&B98&"'!a1") -> 0
A99: 79 | B99: OUT_CurrentLTV3_PRINT | C99: =INDIRECT("'"&B99&"'!A3") -> 0 | D99: =INDIRECT("'"&B99&"'!a1") -> 0
A100: 80 | B100: OUT_LTVOOD1_PRINT | C100: =INDIRECT("'"&B100&"'!A3") -> 0 | D100: =INDIRECT("'"&B100&"'!a1") -> 0
A101: 81 | B101: OUT_LTVOOD2_PRINT | C101: =INDIRECT("'"&B101&"'!A3") -> 0 | D101: =INDIRECT("'"&B101&"'!a1") -> 0
A102: 82 | B102: OUT_Definitions_PRINT | C102: =INDIRECT("'"&B102&"'!A3") -> 0 | D102: =INDIRECT("'"&B102&"'!a1") -> 0
A103: 83 | B103: OUT_Groupchart_PRINT | C103: =INDIRECT("'"&B103&"'!A3") -> 0 | D103: =INDIRECT("'"&B103&"'!a1") -> 0
A104: 84 | B104: OUT_History_PRINT | C104: =INDIRECT("'"&B104&"'!A3") -> 0 | D104: =INDIRECT("'"&B104&"'!a1") -> 0
A105: 85 | B105: OUT_Contact_PRINT | C105: =INDIRECT("'"&B105&"'!A3") -> 0 | D105: =INDIRECT("'"&B105&"'!a1") -> 0
B106: Skabelon

Sheet SETUP_POV (hidden)
A1: INDEKS | F1: ="Factbook "&INPUT_AAR&" "&"Q"&LEFT(INPUT_KVT,1) -> Factbook 2026 Q1 | H1: \\deltedata\projekter\oekonomi-afd\REGNSKAB\17. Regnskabsrapporter\Nykredits fact book\FACT_BOOK.xlsm
B3: Opsætning af perioder - Koncbud | H3: Da dette ark indeholder mange elementer der kan genkendes i databaserne
H4: vil en "Opfrisk alle" - som selvfølgelig også medtager dette ark - give en SmartView fejl
B5: Valg af perioder til Retrieve_KoncBud og Out_KoncBud
B6: Kvartal | C6: 1 kvt
B7: År til dato | C7: =+VLOOKUP(C6,SETUP_OPSLAG!$B$40:$C$43,2,0) -> Y-T-D(Mar)
B8: Seneste måned | C8: =+VLOOKUP(C6,Kvt_til_mdr,2,0) -> Marts
B9: År | C9: 2026
B10: Seneste År i alt | C10: =+IF(C6="1 KVT",C9-1,C9) -> 2025 | D10: Har ændret fra 4 kvt til 1 kvt
B11: Forrige År i alt | C11: =C10 -> 2025
B12: To år tilbage (År i alt) | C12: =INPUT_AAR-2 -> 2024
B13: Budget- og prognoseår | C13: =+C9 -> 2026
B14: Prognose | C14: =+VLOOKUP(C6,SETUP_OPSLAG!$B$14:$C$36,2,FALSE) -> Q1 | H14: Det betyder ikke at alle øvrige ark ikke refreshes, men fejlen kan ikke undgås,
B15: Brug budget | C15: Nej | H15: med mindre man refresher alle ark enkeltvis
B17: Valg af periode medfører ændring af perioder i retriveark og outputtabeller. | H17: Søg efterfølgende efter fejl i filen ved følgende søgning :
B18: NB: Retriveark skal derfor opdateres efter periodeskifte for korrekte outputtabeller
B20: Valg af perioder til THOR, samt historik SOKO
B21: Kvartal | C21: 1 kvt
B22: År | C22: 2018
B23: Seneste År i alt | C23: =+IF(C21="4 KVT",C22,C22-1) -> 2017
R25: Forsøg med :
R26: Erstat alle "Forretningsomr_FO" | U26: med | V26: "Forretningsområder" | X26: i alt 45 stk
B27: Vis/skjul ark og print Fact book | R27: De steder hvor der nu er Konc rettes tilbage til Forretningsomr_FO
R28: Så KoncBud er på | T28: "Forretningsområder"
R29: Konc er på | T29: "Forretningsomr_FO"
C30: for at lave udkast trykker vi på "vis output" | H30: 1. | I30: Gemmer denne fil som nu | K30: FACT_BOOK
C31: Derefter "prinft fact book" | H31: 2. | I31: Markerer alle blå _PRINT ark | K31: Zoomer til 100% - Gemmer som værdier | R31: Der er problemer visse steder med KoncBud formlerne
H32: 3. | I32: Markerer alle IKKE blå _PRINT ark | K32: Sletter ark
H33: 4. | I33: Gemmer filen som | K33: FACT_BOOK dd-mm-yyyy Excel-version
H34: 5. | I34: Sletter række 1:3 samt celle A3 rækker i alle ark
H35: 6. | I35: Sætter printareal ???
H36: 7. | I36: Indsætter og tilpasser INDEKS siden
H37: 8. | I37: Gemmer endeligt Excel-versions filen
H43: PL | I43: 1
H44: ACCB | I44: 3
H45: ACCR | I45: HYP
H46: IFRS
H47: INVE
B54: CUBE | C54: 01_Koncern
B55: ENTITY | C55: NHK
B56: Parent
B57: Cons | C57: Local
B58: Scenario | C58: Actual
B59: TIME | C59: 2025Q3
B60: View | C60: Periodic | D60: Periodic
B61: ACCOUNT
B62: Flow | C62: Top
B63: Origin | C63: Top
B64: IC | C64: Top
B65: UD_1 | C65: Rapportering_Ekstern
B66: UD_2 | C66: TopUD2
B67: UD_3 | C67: TopUD3
B68: UD_4 | C68: TopUD4
B69: UD_5 | C69: TopUD5
B70: UD_6 | C70: None
B71: UD_7 | C71: None
B72: UD_8 | C72: None
B75: SKALERING | C75: 1000000

Sheet SETUP_OPSLAG (hidden)
A1: INDEKS
A3: Opslag til perioder
E4: Tekst til tabeller | H4: Oversat uden hjæp fra Sprog
E5: Dansk | F5: Engelsk | H5: Konvertering af kvt til THOR
E6: Administration | F6: Administration | H6: 1 kvt | I6: 1 | J6: 1.kvartal | K6: mar
E7: Aflønning af distribution | F7: Allocated income | H7: 2 kvt | I7: 2 | J7: 2.kvartal | K7: jun
E8: Afregnet vedr. rådgivningskunder | F8: Allocated regarding advisory services | H8: 3 kvt | I8: 3 | J8: 3.kvartal | K8: sep
E9: Afskrivninger på goodwill | F9: Goodwill resulting from the purchase of Totalkredit | H9: 4 kvt | I9: 4 | J9: 4.kvartal | K9: dec
E10: Aktivitetsindtægter | F10: Income from new lending
E11: Asset Management | F11: Asset Management | H11: Konvetering af kvt til LTV
E12: Bank i alt | F12: Total banking | H12: 1 kvt | I12: 1. Kvt.
B13: Headers | E13: Bankaktivitet | F13: Other banking activities | H13: 2 kvt | I13: 2. Kvt.
B14: Dansk | C14: Engelsk | E14: Bankprocent (%) | F14: Of which banking % | H14: 3 kvt | I14: 3. Kvt.
B15: Faktisk | C15: Actual | E15: Basisindtjening | F15: Core earnings from operations | H15: 4 kvt | I15: 4. Kvt.
B16: Budget | C16: Budget | E16: Basisindtjening fra drift | F16: Core earnings after impairment charges
B17: 1. prognose | C17: Est. | E17: Basisindtjening fra drift før nedskrivninger | F17: Core earnings before impairment charges | H17: Konvetering af kvt til headers
B18: 2. prognose | C18: Est. | E18: Basisindtjening før nedskrivninger | F18: Profit from core business before impairment charges | H18: 1 kvt | I18: Q1
B19: 3. prognose | C19: Est. | E19: Basisindtjening efter nedskrivninger | F19: Profit from core business | H19: 2 kvt | I19: Q2
B20: 1 kvt | C20: Q1 | E20: Basisindtjening før tab | F20: Core earnings before impairment charges | H20: 3 kvt | I20: Q3
B21: 2 kvt | C21: Q2 | E21: Basisindtægter af | F21: Core income from | H21: 4 kvt | I21: Q4
B22: 3 kvt | C22: Q3 | E22: Basisindtægter i alt | F22: Income from core business
B23: 4 kvt | C23: Q4 | E23: Basisindtægter fra drift | F23: Total core income
B24: 1. kvt. | C24: Q1 | E24: Basisindtægter fra fonds | F24: Core earnings from securities
B25: 2. kvt. | C25: Q2 | E25: Beholdningsindtjening | F25: Investment portfolio income
B26: 3. kvt. | C26: Q3 | E26: Beholdningsindtjening via drift | F26: Investment portfolio income through profit or loss
B27: 4. kvt. | C27: Q4 | E27: Beholdningsindtjening over egenkapital efter skat | F27: Investment portfolio income from strategic equities
B28: Y-T-D(Mar) | C28: Y-T-D(Mar) | E28: Bestandsudgifter | F28: Portfolio expenses
B29: Y-T-D(Jun) | C29: Y-T-D(Jun) | E29: Bidrag | F29: Portfolio income
B30: Y-T-D(Sep) | C30: Y-T-D(Sep) | E30: Centerkunder | F30: Customers, customer centres
B31: Y-T-D(Dec) | C31: Y-T-D(Dec) | E31: Retail Centre og CIB ekskl. Rådgivningskunder | F31: Retail Centers & CIB excl. advisory services
B32: År i alt | C32: FY | E32: CIB | F32: CIB
B33: Gns. 1 kvartal | C33: Avg. quarter | E33: Complex | F33: Complex
B34: Gns. halvår | C34: Avg. half-year | E34: Credit & Equity Products | F34: Credit & Equity Products
B35: Gns. 3 kvartaler | C35: Avg. 3 quarters | E35: Currency Products | F35: Currency Products
B36: =IF(INPUT_KVT="1 kvt","Q1 ",IF(INPUT_KVT="2 kvt","H1 ",IF(INPUT_KVT="3 kvt","Q3 ",""))) -> Q1 | C36: =IF(INPUT_KVT="1 kvt","Q1 ",IF(INPUT_KVT="2 kvt","H1 ",IF(INPUT_KVT="3 kvt","Q3 ",""))) -> Q1 | E36: Debt Capital Markets | F36: Debt Capital Markets
E37: Driftsomkostninger og afskrivninger mv. | F37: Operating costs and provisions etc.
E38: Fixed Income & derivatives | F38: Fixed Income & derivatives
B39: Konvertering til Y-T-D | E39: Forretningsafkast efter tab, % inkl. overgangsregel | F39: Return on business capital pa after losses (%)
B40: 1 kvt | C40: Y-T-D(Mar) | E40: Forretningsbasisindtægter | F40: Core income from business operations
B41: 2 kvt | C41: Y-T-D(Jun) | E41: Forretningsindtægter | F41: Core income from business operations
B42: 3 kvt | C42: Y-T-D(Sep) | E42: Forretningsindtægter af | F42: Core income from business operations from
B43: 4 kvt | C43: Y-T-D(Dec) | E43: Forretningsindtægter inkl. rådgivningskunder | F43: Core income incl. Advisory services
E44: Forretningskapital inkl. overgangsregel | F44: Economic business capital, DKK million
B45: Konvertering til måned | D45: +1 kvt | E45: Forretningsresultat | F45: Business results
B46: 1 kvt | C46: Marts | D46: Juni | E46: Forretningsresultat før merafkast | F46: Business results before excess return
B47: 2 kvt | C47: Juni | D47: September | E47: Forretningsresultat inkl. merafkast | F47: Business results incl. excess return
B48: 3 kvt | C48: September | D48: December | E48: Forsikring | F48: Insurance
B49: 4 kvt | C49: December | D49: Marts | E49: Forsikring, provision | F49: Insurance, commission
B50: År i alt | C50: December | E50: Gebyrer, provisioner mv. | F50: Fees and commissions
E51: Henvist fra Retail Centre og CIB | F51: Allocated income to Retail Centers and CIB
E52: Kapacitetsomkostninger | F52: Operating costs
E53: Kapacitetsomkostninger i alt | F53: Operating costs
E54: Koncernposter | F54: Group items
E55: Kursreguleringer, swaps mv. | F55: Value adjustments, swaps ect
B56: LTV | E56: Markets | F56: Markets
B57: 1 kvt | C57: 1. kvt. | E57: Markets og Asset Management før aflønning af distribution | F57: Markets & Asset Management before allocated income
B58: 2 kvt | C58: 2. kvt. | E58: Forvaltning inkl. Rådgivningskunder mv. | F58: Asset Management incl. advisory services
B59: 3 kvt | C59: 3. kvt. | E59: Marketskunder | F59: Customers, Nykredit Markets
B60: 4 kvt | C60: 4. kvt. | E60: Merafkast | F60: Excess return
E61: Mægler | F61: Estate agency business
B62: Opslag til slidetype | E62: Nedskrivninger på udlån mv. | F62: Impairment charges on lending
B63: 2 | C63: 2 | E63: Netto renteindtægter | F63: Net interest income
B64: 3 | C64: 30 | E64: Nykredit Asset Management Forvaltning | F64: Nykredit Asset Management
B65: 4 | C65: 13 | E65: Nykredit Asset Management for afregning | F65: Asset Management before allocation
B66: 5 | C66: 16 | E66: Nykredit Portefølje Administration A/S | F66: Nykredit Portefølje Administration A/S
B67: 6 | C67: 16 | E67: Nykredit Realkredit | F67: Nykredit Realkredit
B68: 7 | C68: 16 | E68: Nykredit Realkredit A/S | F68: Nykredit Realkredit A/S
B69: 8 | C69: 13 | E69: Omkostninger | F69: Costs
B70: 9 | C70: 13 | E70: Omkostninger afregnet til afsætningsenheder | F70: Cost allocated to sales units
B71: 10 | C71: 13 | E71: Omkostninger, Marketskunder | F71: Costs, Markets
B72: 11 | C72: 13 | E72: Omkostninger, Retail Centre, CIB | F72: Costs, Retail Center, CIB
B73: 12 | C73: 16 | E73: Omkostninger, Rådgivnings- og Centerkunder | F73: Costs, advisory services and customer centres
B74: 13 | C74: 16 | E74: Produktresultat Asset Management | F74: Product results, Asset Management
B75: 14 | C75: 13 | E75: Produktresultat Nykredit Markets | F75: Product results, Markets
B76: 15 | C76: 2 | E76: Provision, indskydergaranti og Dansk Pantebrevbørs | F76: Bank rescue packages/The Deposit Guarantee Fund etc,
B77: 16 | C77: 30 | E77: Realkredit i alt | F77: Total mortgage lending
B78: 17 | C78: 16 | E78: Realkreditaktivitet | F78: New mortgage lending
B79: 18 | C79: 13 | E79: Realkreditudlån | F79: Mortgage loan portfolio
B80: 19 | C80: 13 | E80: Rente til supplerende kapital | F80: Interest on supplementary capital
B81: 20 | C81: 13 | E81: Renteudgifter til JCB | F81: Junior Covered Bonds expenses
B82: 21 | C82: 19 | E82: Renter mv. hybrid kernekapital | F82: Net interest on subordinated debt
B83: 22 | C83: 13 | E83: Nettorente mv. af hybrid kernekapital | F83: Net interest on subordinated debt
B84: 23 | C84: 13 | E84: Resultat før skat | F84: Profit (loss) before tax
B85: 24 | C85: 16 | E85: Retail | F85: Retail
B86: 25 | C86: 13 | E86: Rådgivningskunder | F86: Customers, advisory services
B87: 26 | C87: 13 | E87: Administration | F87: Nykredit Portefølje Administration A/S
B88: 27 | C88: 6 | E88: Statsgarantiprovision | F88: Goverment guarantee
B89: 28 | C89: 13 | E89: Svenske aktiviteter | F89: Swedish activities
B90: 29 | C90: 16 | E90: Særlige værdireguleringer | F90: Value adjustments
B91: 30 | C91: 13 | E91: Total | F91: Total
B92: 31 | C92: 16 | E92: Totalkredit | F92: Totalkredit
B93: 32 | C93: 16 | E93: Treasury | F93: Treasury
B94: 33 | C94: 13 | E94: Øvrig salg | F94: Other sales
B95: 34 | C95: 16 | E95: Øvrige | F95: Other
B96: 35 | C96: 16 | E96: Øvrige indtægter | F96: Other income
B97: 36 | C97: 2 | E97: Øvrige Markets | F97: Other
B98: 37 | C98: 4 | E98: København | F98: Copenhagen
B99: 38 | C99: 16 | E99: Københavns omegn | F99: Outskirts of Copenhagen
B100: 39 | C100: 16 | E100: Øvrig Sjælland | F100: Remaining Sealand
B101: 40 | C101: 16 | E101: Færøerne og Grønland | F101: Faroe Islands and Greenland
B102: 41 | C102: 16 | E102: Østjylland | F102: Eastern Jutland
B103: 42 | C103: 2 | E103: Fyn | F103: Funen
B104: 43 | C104: 2 | E104: Nordjylland | F104: Northern Jutland
B105: 44 | C105: 2 | E105: Sydjylland | F105: Southern Jutland
E106: Vestjylland | F106: Western Jutland
E107: Udland | F107: Outside Denmark
B108: Liste til makro for døde Fact Book: | E108: Ejerbolig | F108: Owner-occupied dwellings
B109: 20 | E109: Erhverv | F109: Commercial
B110: =B109+1 -> 21 | E110: Landbrug | F110: Agriculture
B111: 22 | E111: Boligudlejning | F111: Rental housing
B112: 23 | E112: Erhverv u/boligudlejning | F112: Commercial excl. rental housing
B113: 24 | E113: Nedskrivninger i alt | F113: Total provisions
B114: 25 | E114: Konstaterede tab | F114: Write-offs
B115: 26 | E115: SE - erhvervsejendomme | F115: SE Commercial
B116: 27 | E116: GB - erhvervsejendomme | F116: GB Commercial
B117: =B116+1 -> 28 | E117: DE - erhvervsejendomme | F117: DE Commercial
B118: 29 | E118: NO - erhvervsejendomme | F118: NO Commercial
B119: 30 | E119: FIN - erhvervsejendomme | F119: FIN Commercial
B120: 31 | E120: DE - boligejendomme | F120: DE Owner-occ
B121: 32 | E121: PL - boligejendomme | F121: PL Owner-occ
B122: 33 | E122: FR - boligejendomme | F122: FR Owner-occ
B123: 34 | E123: ES - boligejendomme | F123: ES Owner-occ
B124: 35 | E124: Indenlandsk realkreditudlån | F124: Domestic
B125: 36 | E125: Fastforrentede lån | F125: Fixed-rate loans
B126: 37 | E126: Rentetilpasningslån | F126: Adjustable-rate mortgage loans (ARMs)
B127: 38 | E127: Pengemarkedsbaserede lån | F127: Money market-linked loans
B128: 39 | E128: Indekslån | F128: Index-linked loans
B129: 40 | E129: Pengemarkedsbaserede lån og indekslån | F129: Money market-linked loans and index-linked loans
B130: 41 | E130: Lån med afdrag | F130: Loans excl interest-only option
B131: 42 | E131: Lån med midlertidig afdragsfrihed | F131: Loans with interest-only option
B132: 43 | E132: Samlet | F132: Total
B133: 44 | E133: Fonds | F133: Securities
B134: 45 | E134: Forretningsdrift | F134: Business operations
B135: 46 | E135: Resultat før kapitalomkostninger | F135: Profit before cost of capital
B136: 47 | E136: Skat | F136: Tax
B137: 48 | E137: Årets resultat | F137: Total profit (loss)
B138: 49 | E138: Værdiregulering af derivater og erhvervsobligationer | F138: Value adjustments of interest rate swaps
B139: 50 | E139: Nedskrivning af goodwill og kunderelationer | F139: Impairment of goodwill and customer relationships
B140: 51 | E140: Driftsomkostninger og afskrivninger på driftsmidler | F140: Operating costs, depreciation and amortisation
B141: 52 | E141: Junior covered bonds | F141: Senior debt
B142: 53 | E142: Aktiver | F142: Assets
B143: 54 | E143: Tilgodehavender hos kreditinstitutter og centralbanker mv. | F143: Receivables from credit institutions and central banks
B144: 55 | E144: Realkreditudlån til dagsværdi | F144: Mortgage loans at fair value
B145: 56 | E145: Bankudlån - ekskl. Reverse forretninger | F145: Bank lending - excl. reverse transactions
B146: 57 | E146: Obligationer og aktier | F146: Bonds and equities
B147: 58 | E147: Øvrige aktiver | F147: Remaining assets
B148: 59 | E148: Aktiver i alt | F148: Total assets
B149: 60 | E149: Passiver | F149: Liabilities and equity
B150: 61 | E150: Gæld til kreditinstitutter og centralbanker | F150: Payables to credit institutions and central banks
B151: 62 | E151: Indlån | F151: Deposits
B152: 63 | E152: Udstedte obligationer til dagsværdi | F152: Bonds in issue at fair value
B153: 64 | E153: Efterstillede kapitalindskud | F153: Subordinated debt
B154: 65 | E154: Øvrige passiver | F154: Remaining liabilities
B155: 66 | E155: Egenkapital | F155: Equity
B156: 67 | E156: Passiver i alt | F156: Total liabilities and equity
B157: 68 | E157: Efterstillede kapitalindskud - hybrid kernekapital | F157: Subordinate capital investment - Hybrid Tier I Capital
B158: 69 | E158: Efterstillede kapitalindskud - supplerende kapital | F158: Subordinate capital investment - Tier 2 capital
B159: 70 | E159: Periodens resultat af gnsn. egenkapital p.a. (ROE) (%) | F159: Return on average equity, %
B160: 71 | E160: Basisindtjening før tab af gnsn. egenkapital p.a. (%) | F160: Core earnings before impairment charges as % of average equity
B161: 72 | E161: Basisindtjening efter tab af gnsn. egenkapital p.a. (%) | F161: Core earnings after impairment charges as % of average equity
B162: 73 | E162: Nedskrivninger på udlån og hensættelser på garantier (Mio. kr.)(Korrektivkonto) | F162: Total provisions for loan impairment and guarantees
B163: 74 | E163: Periodens nedskrivningsprocent (%) | F163: impairment charges for the period, %
B164: 75 | E164: Solvensprocent (%) | F164: Solvency ratio, %
B165: 76 | E165: ROA (%) | F165: Return on assets, p.a. %
B166: 77 | E166: Return on RWA (%) | F166: Return on REA, %
B167: 78 | E167: Net interest margin (%) | F167: Net interest margin, %
B168: 79 | E168: Gns. Antal heltidsansatte medarbejdere | F168: average number of full-time staff
B169: 80 | E169: Omkostningsprocent (%) | F169: Rate of cost, %
B170: 81 | E170: Kernekapitalprocent ex. Hybrid (%) | F170: Total capital ratio, %
B171: 82 | E171: Solvensbehov (%) | F171: Capital needs, %
B172: 83 | E172: Hybrid kapital | F172: Additional Tier I Capital (net)
B173: 84 | E173: Risikovægtede aktiver | F173: Risk-weighted assets (RWA)
B174: 85 | E174: Tilgodehavender hos kreditinstitutter | F174: Receivables from credit institutions and central banks
B175: 86 | E175: Realkreditudlån mv. til dagsværdi | F175: Mortgage loans at fair value
B176: 87 | E176: Øvrige udlån til dagsværdi | F176: Other loans at fair value
B177: 88 | E177: Bankudlån mv. til amortiseret kostpris | F177: Bank lending at amortised cost
B178: 89 | E178: Kassebeholdning og tilgodehavende hos centralbanker og kreditinstitutter | F178: Cash balance and receivables from credit institutions and central banks
B179: 90 | E179: Udlån og andre tilgodehavender til dagsværdi | F179: Loans, advances and other receivables at fair value
B180: 91 | E180: Udlån og andre tilgodehavender til amortiseret kostpris | F180: Loans, advances and other receivables at amortised cost
B181: =B180+1 -> 92 | E181: Obligationer til dagsværdi og aktier | F181: Bonds at fair value and equities
B182: 93 | E182: Andre aktivposter | F182: Remaining assets
B183: 94 | E183: Indlån og anden gæld | F183: Deposits and other payables
B184: 95 | E184: Udstedte obligationer til amortiseret kostpris | F184: Bonds in issue at amortised cost
B185: 96 | E185: Øvrige ikke-afledte finansielle forpligtelser til dagsværdi | F185: Other non-derivative financial liabilities at fair value
B186: 97 | E186: Øvrig gæld | F186: Remaining payables
B187: 98 | E187: Hensatte forpligtelser | F187: Provisions
B188: 99 | E188: Kapitalandele i associerede selskaber | F188: Investments in associates
B189: 100 | E189: Immaterielle og materielle aktiver | F189: Property, plant and equipment as well as intangible assets
B190: 101 | E190: Gæld til kreditinstitutter | F190: Payables to credit institutions
B191: 102 | E191: Udstedte obligationer | F191: Bonds in issue at fair value
B192: 103 | E192: Udlånsvækst (grænseværdi <20%) | F192: Lending growth (limit value <20%)
B193: 104 | E193: Store eksponeringer (grænseværdi <175%) | F193: Large exposures (limit value <175%)
B194: 105 | E194: Ejendomseksponering (grænseværdi <25%) | F194: Property exposure (limit value <25%)
B195: 106 | E195: Funding ratio (grænseværdi <1,0) | F195: Funding ratio (limit value < 1.0)
B196: 107 | E196: Likviditetsoverdækning (grænseværdi >50%) | F196: Liquidity benchmark (limit value >100%)
B197: 108 | E197: Kvartalets resultat | F197: Total profit (loss)
B198: 109 | E198: Privat udlejning | F198: Private rental
B199: 110 | E199: Industri og håndværk | F199: Industry and trades
E200: Kontor og forretning | F200: Office and retail
E201: Alment byggeri | F201: Public housing
... 164 more rows

Sheet OUT_FrontPage_PRINT
F16: Fact Book Q4 2022
F20: Nykredit Group
F21: Unaudited

Sheet OUT_TableOfContents_PRINT
E5: Table of contents
E7: Rating | F7: 3 | H7: Mortgage lending | I7: 36
E8: Nykredit Group | F8: 4 | H8: Mortgage lending by property type | I8: 37
E9: Results | F9: 5 | H9: Mortgage lending by geography | I9: 38
E10: Balance sheet summary and selected financial ratios | F10: 6 | H10: Mortgage lending by loan and interest type | I10: 39
E11: Breakdown of income | F11: 7 | H11: Arrears | I11: 41
E12: Net Interest Income | F12: 8 | H12: Geographical distribution of arrears | I12: 42
E13: Breakdown of costs | F13: 9 | H13: Repossessed properties and forced sales | I13: 43
E14: Lending and deposits | F14: 10 | H14: Risk relating to mortgage lending | I14: 44
E15: Key figures - Income and credit | F15: 12 | H15: LTV | I15: 46
E16: Risk weights and capital ratios - Nykredit Group | F16: 13 | H16: Expiry of interest-only period | I16: 47
E17: CET1, MDA and ADI | F17: 14 | H17: Impairment provisions and write-offs | I17: 48
E18: Supervisory Diamond | F18: 15 | H18: Impairment provisions and charges | I18: 49
E19: Business areas | F19: 16 | H19: Geographical distribution of write-offs | I19: 50
E20: Income – business areas | F20: 17 | H20: Write-offs | I20: 51
E21: Personal Banking | F21: 18 | H21: Weak customers and non-performing loans (NPL) | I21: 52
E22: Business Banking | F22: 19 | H22: Bank lending | I22: 53
E23: Corportates & Institutions | F23: 20 | H23: Loans, advances and guarantees | I23: 54
E24: Partners | F24: 21 | H24: Impairment provisions | I24: 55
E25: Group items | F25: 22 | H25: Non-performing loans (NPL) | I25: 56
E26: Nykredit Realkredit Group | F26: 23 | H26: The Danish economy | I26: 57
E27: Results | F27: 24 | H27: Regional housing prices | I27: 58
E28: Balance sheet summary | F28: 25 | H28: Key figures | I28: 59
E29: Nykredit Bank Group | F29: 26 | H29: Appendix: | I29: 60
E30: Results | F30: 27 | H30: Loan portfolio split by sectors | I30: 61
E31: Balance sheet summary | F31: 28 | H31: Macroeconomic assumptions, adverse scenario | I31: 62
E32: Totalkredit A/S | F32: 29 | H32: Covered Bond Investor Report - Nykredit Realkredit Group | I32: 63
E33: Results | F33: 30 | H33: Overview | I33: 64
E34: Balance sheet summary | F34: 31 | H34: Concepts and calculations | I34: 65
E35: Bond portfolio | F35: 32 | H35: Mortgage lending | I35: 67
E36: Market share | F36: 34 | H36: Current LTV | I36: 77
H37: LTV owner-occupied dwellings | I37: 80
H38: Definitions | I38: 82
H39: Group chart | I39: 83
H40: Nykredit Group history | I40: 84
H41: Contacts and other information | I41: 85

Sheet OUT_Rating_PRINT
E5: Rating (31.03.2026)
E6: Nykredit Realkredit A/S | G6: S&P Global Ratings | K6: Fitch Ratings
G7: Long-term | H7: Short-term | I7: Outlook | K7: Long-term | L7: Short-term | M7: Outlook
E8: Issuer credit rating | G8: A+ | H8: A-1 | I8: Stable | K8: A+ | L8: F1 | M8: Stable
E9: Resolution Counterparty Rating | G9: AA- | H9: A-1+
E10: Senior unsecured preferred debt | G10: A+ | H10: A-1 | K10: AA- | L10: F1+
E11: Senior unsecured non-preferred debt | G11: BBB+ | K11: A+
E12: Tier 2 subordinated debt | G12: BBB | K12: A-
E13: Additional Tier 1 capital | G13: BB+ | K13: BBB
E15: Covered bonds (SDO)1 | G15: AAA | I15: Stable
E16: Covered bonds (RO)2 | G16: AAA | I16: Stable
E17: Senior secured debt3 | G17: AA | I17: Stable
E18: 1. SDO = Særlig Dækkede Obligationer, issued out of capital centres E ad H
E19: 2. RO = Realkreditobligationer, issued out of capital centres D, G and I.
E20: 3. Also known as Junior Covered Bonds (JCB) or Section 15 bonds. Currently no publicly traded bonds
E21: Nykredit Bank A/S | G21: S&P Global Ratings | K21: Fitch Ratings
G22: Long-term | H22: Short-term | I22: Outlook | K22: Long-term | L22: Short-term | M22: Outlook
E23: Issuer credit rating | G23: A+ | H23: A-1 | I23: Stable | K23: A+ | L23: F1 | M23: Stable
E24: Resolution Counterparty Rating | G24: AA- | H24: A-1+
E25: Senior unsecured preferred debt | G25: A+ | H25: A-1 | L25: F1+
E26: Deposits | G26: A+ | H26: A-1 | K26: AA- | L26: F1+
E27: Totalkredit A/S | G27: S&P Global Ratings
G28: Long-term | H28: Short-term | I28: Outlook
E29: Covered bonds (RO)4 | G29: AAA | I29: Stable
E30: Spar Nord Bank A/S | G30: Moody’s Ratings
G31: Long-term | H31: Short-term | I31: Outlook
E32: Counterparty Risk Rating | G32: Aa3 | H32: P-1
E33: Issuer rating | G33: A1 | I33: Positive
E34: 4. RO = Realkreditobligationer, issued out of capital centre C
E35: ESG rating | G35: Nykredit | K35: Spar Nord
E36: MSCI | G36: AA | K36: BBB
E37: Sustainalytics | G37: Low risk | K37: Medium risk
E38: CDP | G38: B | K38: -

Sheet OUT_NHK_FrontPage_PRINT
F10: Nykredit Group

Sheet OUT_CoreInc_NHK_PRINT
D5: Results – Nykredit Group
I6: DKK million
D7: Nykredit Group | E7: Q1/2025 | F7: Q2/2025 | G7: Q3/2025 | H7: Q4/2025 | I7: Q1/2026
D8: Net interest income | E8: 3038.557151 | F8: 3352.553733 | G8: 3903.981209 | H8: 3936.593605 | I8: 3868.834214
D9: Net fee income | E9: 753.8548869 | F9: 728.9737911 | G9: 943.4321812 | H9: 1224.990735 | I9: 1000.895618
D10: Wealth management income | E10: 712.9272143 | F10: 686.3310988 | G10: 835.4244262 | H10: 832.3904517 | I10: 888.1240458
D11: Net interest from capitalisation | E11: 345.3675735 | F11: 177.4262164 | G11: 123.6223212 | H11: 114.7510966 | I11: 145.7213871
D12: Net income relating to customer benefits programmes1 | E12: -160.5687001 | F12: -162.4741665 | G12: -130.4331123 | H12: -135.5842646 | I12: -267.9717598
D13: Trading, investment portfolio and other income | E13: 743.5289382 | F13: 1760.904219 | G13: 885.58279 | H13: 729.6677233 | I13: 263.7255972
D14: - Thereof one-off income from the fair value adjustment of Spar Nord Bank shares | E14: 0 | F14: 1352 | G14: 0 | H14: 0 | I14: -
D15: Income | E15: 5433.667064 | F15: 6543.714892 | G15: 6561.609815 | H15: 6702.809347 | I15: 5899.329102
D16: Costs | E16: 1671.023538 | F16: 2643.711307 | G16: 2500.978356 | H16: 2948.048856 | I16: 2521.699204
D17: - Thereof transaction and integration costs related to Spar Nord Bank | E17: 2.33 | F17: 761.33 | G17: 107.33 | H17: 132 | I17: 31
D18: Profit before impairment charges and legacy derivatives | E18: 3762.643526 | F18: 3900.003585 | G18: 4060.631459 | H18: 3754.760491 | I18: 3377.629898
D19: Impairment charges on mortgage lending | E19: -117.0925216 | F19: -4.91424918 | G19: 111.0876702 | H19: 82.29061279 | I19: -110.8594671
D20: Impairment charges on bank lending | E20: 151.1343071 | F20: 252.8666924 | G20: -60.94015972 | H20: -148.4989236 | I20: 93.80333689
D21: Legacy derivatives | E21: 45.93404693 | F21: 5.60490006 | G21: 22.14831634 | H21: 37.60610437 | I21: 26.71052744
D22: Badwill
D23: Profit before tax | E23: 3774.535788 | F23: 3657.656041 | G23: 4032.632265 | H23: 3858.574906 | I23: 3421.396555
D24: Tax | E24: 774.9305587 | F24: 400.0014157 | G24: 896.9649217 | H24: 813.0155054 | I24: 727.6076505
D25: Profit for the period | E25: 2999.605229 | F25: 3257.654626 | G25: 3135.667343 | H25: 3045.5594 | I25: 2693.788905
D26: Profit for the period | E26: 0.97567687 | F26: -2.19981018 | G26: -1.81706189 | H26: 1.59425351 | I26: -4.6086003
D27: Profit for the period | E27: 3000.580906 | F27: 3255.454816 | G27: 3133.850281 | H27: 3047.153654 | I27: 2689.180305
D28: Profit for the period | E28: -38.05618473 | F28: -40.5829557 | G28: -45.49637601 | H28: -45.81114085 | I28: -63.94983511
D29: Other comprehensive income, remaining items | E29: 0.97567687 | F29: -2.19981018 | G29: -1.81706189 | H29: 1.59425351 | I29: -4.6086003
D30: Comprehensive income for the period | E30: 3000.580906 | F30: 3255.454816 | G30: 3133.850281 | H30: 3047.153654 | I30: 2689.180305
D31: Interest on Additional Tier 1 capital charged against equity | E31: -38.05618473 | F31: -40.5829557 | G31: -45.49637601 | H31: -45.81114085 | I31: -63.94983511
D32: Minority interests
D33: 1 "Net income relating to customer benefits programmes" comprising discounts etc, such as KundeKroner and other benefits granted to the Group's customeres. The amount includes contributions received.

Sheet OUT_Balance_NHK_PRINT
E5: Balance sheet summary and selected financial ratios – Nykredit Group
J6: DKK million
E7: Nykredit Group | F7: Q1/2025 | G7: Q2/2025 | H7: Q3/2025 | I7: Q4/2025 | J7: Q1/2026
E8: Assets
E9: Receivables from credit institutions and central banks | F9: 80902.08757 | G9: 71489.88538 | H9: 71623.58239 | I9: 84250.30867 | J9: 73789.01409
E10: Mortgage loans at fair value | F10: 1433785.995 | G10: 1452461.089 | H10: 1474983.828 | I10: 1485138.091 | J10: 1494017.442
E11: Bank lending - excl. reverse transactions | F11: 108846.9273 | G11: 177209.698 | H11: 176544.1288 | I11: 177057.8684 | J11: 176240.3008
E12: Bonds and equities | F12: 89811.86596 | G12: 112916.0377 | H12: 108506.5088 | I12: 113566.7485 | J12: 115678.9138
E13: Remaining assets | F13: 85076.64533 | G13: 135351.8131 | H13: 143167.8995 | I13: 146310.2775 | J13: 142132.1237
E14: Total assets | F14: 1798423.521 | G14: 1949428.523 | H14: 1974825.947 | I14: 2006323.294 | J14: 2001857.794
E16: Liabilities and equity
E17: Payables to credit institutions and central banks | F17: 14953.09055 | G17: 15326.97318 | H17: 17697.93844 | I17: 16656.15457 | J17: 18189.49867
E18: Deposits | F18: 125986.2318 | G18: 212382.6809 | H18: 215452.9532 | I18: 218821.5312 | J18: 216710.2763
E19: Bonds in issue at fair value | F19: 1406904.203 | G19: 1421622.362 | H19: 1439886.555 | I19: 1457437.264 | J19: 1456622.039
E20: Subordinated debt | F20: 16166.90497 | G20: 17846.0483 | H20: 17837.16279 | I20: 17831.2221 | J20: 20767.6086
E21: Remaining liabilities | F21: 126410.3663 | G21: 170047.1976 | H21: 169438.7232 | I21: 178039.3578 | J21: 173177.9032
E22: Equity | F22: 108002.7239 | G22: 112203.2618 | H22: 114512.6126 | I22: 117537.7647 | J22: 116390.4689
E23: Total liabilities and equity | F23: 1798423.521 | G23: 1949428.523 | H23: 1974825.946 | I23: 2006323.294 | J23: 2001857.794
E28: Financial ratios - Nykredit Group | F28: Q1/2025 | G28: Q2/2025 | H28: Q3/2025 | I28: Q4/2025 | J28: Q1/2026
E29: Return on average equity, after tax, p.a., % | F29: 0.1143493033 | G29: 0.1197149467 | H29: 0.1120902266 | I29: 0.1054747592 | J29: 0.09273737962
E30: Return from business profit on average equity, p.a., % | F30: 0.1457538714 | G30: 0.137 | H30: 0.1473 | I30: 0.1372 | J30: 0.122
E31: Return on assets, year-to-date p.a. % | F31: 0.007114125972 | G31: 0.007230448684 | H31: 0.00699572693 | I31: 0.006437306006 | J31: 0.006118005087
E32: Return on average allocated capital (RoAC), after tax p.a., % | F32: 0.1599152021 | G32: 0.1648730891 | H32: 0.1518540363 | I32: 0.1457413578 | J32: 0.126476983
E33: Return on REA, p.a. % | F33: 0.02541662114 | G33: 0.02524566283 | H33: 0.02434328648 | I33: 0.02331682995 | J33: 0.02074672135

Sheet OUT_CoreEarn_NHK_PRINT
E5: Breakdown of income – Nykredit Group
F47: Nykredit Koncernen - Basis- og beholdningsindtjening | G47: 2025Q1 | H47: 2025Q2 | I47: 2025Q3 | J47: 2025Q4 | K47: 2026Q1
G48: Q1 | H48: Q2 | I48: Q3 | J48: Q4 | K48: Q1
F49: Mio. kr. | G49: 2025 | H49: 2025 | I49: 2025 | J49: 2025 | K49: 2026
E50: Net interest income | F50: Net interest income | G50: 3038.557151 | H50: 3352.553733 | I50: 3903.981209 | J50: 3936.593605 | K50: 3868.834214
E51: Net fee income | F51: Net fee income | G51: 753.8548869 | H51: 728.9737911 | I51: 943.4321812 | J51: 1224.990735 | K51: 1000.895618
E52: Wealth management income | F52: Wealth management income | G52: 712.9272143 | H52: 686.3310988 | I52: 835.4244262 | J52: 832.3904517 | K52: 888.1240458
E53: Net interest from capitalisation | F53: Net interest from capitalisation | G53: 345.3675735 | H53: 177.4262164 | I53: 123.6223212 | J53: 114.7510966 | K53: 145.7213871
E54: Net income relating to customer benefits programmes | F54: Net income relating to customer benefits programmes | G54: -160.5687001 | H54: -162.4741665 | I54: -130.4331123 | J54: -135.5842646 | K54: -267.9717598
E55: Trading, investment portfolio and other income | F55: Trading, investment portfolio and other income | G55: 743.5289382 | H55: 408.9042187 | I55: 885.58279 | J55: 729.6677233 | K55: 263.7255972
E56: Trading, investment portfolio and other income Spar Nord | F56: Trading, investment portfolio and other income Spar Nord | H56: 1352
E57: Income | F57: Trading, investment portfolio and other income | G57: 5433.667064 | H57: 6543.714892 | I57: 6561.609815 | J57: 6702.809347 | K57: 5899.329102

Sheet OUT_NET_Interest_indcome_PRINT
D5: Net Interest Income development and sensitivity – Nykredit Group
E6: Net Interest Income – Nykredit Group

Sheet OUT_Breakdown_of_costs_PRINT
F5: Breakdown of costs – Nykredit Group
K7: DKK million
F8: Nykredit Group | G8: =IF(INPUT_KVT="1 kvt","Q1/",IF(INPUT_KVT="2 kvt","Q2/",IF(INPUT_KVT="3 kvt","Q3/",IF(INPUT_KVT="4 kvt","Q4/"))))&Forrige_Aar -> Q1/2025 | H8: =IF(INPUT_KVT="1 kvt","Q2/",IF(INPUT_KVT="2 kvt","Q3/",IF(INPUT_KVT="3 kvt","Q4/",IF(INPUT_KVT="4 kvt","Q1/"))))&IF(LEFT(I8,3)="Q1/",RIGHT(I8,4)-1,RIGHT(I8,4)) -> Q2/2025 | I8: =IF(INPUT_KVT="1 kvt","Q3/",IF(INPUT_KVT="2 kvt","Q4/",IF(INPUT_KVT="3 kvt","Q1/",IF(INPUT_KVT="4 kvt","Q2/"))))&IF(LEFT(J8,3)="Q1/",RIGHT(J8,4)-1,RIGHT(J8,4)) -> Q3/2025 | J8: =IF(INPUT_KVT="1 kvt","Q4/",IF(INPUT_KVT="2 kvt","Q1/",IF(INPUT_KVT="3 kvt","Q2/",IF(INPUT_KVT="4 kvt","Q3/"))))&IF(LEFT(K8,3)="Q1/",RIGHT(K8,4)-1,RIGHT(K8,4)) -> Q4/2025 | K8: =IF(INPUT_KVT="1 kvt","Q1/",IF(INPUT_KVT="2 kvt","Q2/",IF(INPUT_KVT="3 kvt","Q3/",IF(INPUT_KVT="4 kvt","Q4/"))))&INPUT_AAR -> Q1/2026
F9: Staff costs1, 2 | G9: =-G52 -> 1061.85906 | H9: =-H52 -> 1747.338359 | I9: =-I52 -> 1510.367115 | J9: =-J52 -> 1539.734221 | K9: =-K52 -> 1418.478349
F10: - Of which IT staff costs | G10: =+#REF! ->  | H10: =+#REF! ->  | I10: =+#REF! ->  | J10: =+#REF! ->  | K10: =+#REF! -> 
F11: IT costs | G11: =-G53 -> 378.2847627 | H11: 465.5921406 | I11: 609.0774022 | J11: 802.5212499 | K11: 703.8772823
F12: Facility costs | G12: =-G54 -> 83.24570064 | H12: 229.5583347 | I12: 108.1710043 | J12: 119.2023309 | K12: 118.7248735
F13: Provisions for restructuring | G13: =-G56 -> 0 | H13: 7.148722 | I13: 0 | J13: 0 | K13: =-K56 -> 0
F14: Bank levies and other expenses | G14: 147.634015 | H14: 201.222473 | I14: 273.3628353 | J14: 486.5910549 | K14: =-K57 -> 280.6186997
F15: Total costs | G15: =-G58+G74 -> 1671.023538 | H15: =-H58+H74 -> 2643.711307 | I15: =-I58+I74 -> 2500.978356 | J15: =-J58+J74 -> 2948.048856 | K15: =-K58+K74 -> 2521.699204
F16: 1 Staff costs incl. IT staff costs.
F17: 2 The increase in Q2 2025 is attributable to the inclusion of Spar Nord employees.
F37: Note: The increase in Q1 2026 is attributable to the migration of Spar Nord. | G37: Note: Operating costs, depreciation and amortisation, incl. mortgage business contribution to Resolution Fund and provisions for restructuring.
G38: Note: The increase in Q1 2026 is attributable to the migration of Spar Nord.
G41: Q1 | H41: Q1 | I41: Q1 | J41: Q1 | K41: Q1
F42: DKK million | G42: Q1 2022 | H42: Q1 2023 | I42: Q1 2024 | J42: Q1 2025 | K42: Q1 2026
F43: Average number of full-time employees | G43: 4076.291549 | H43: 3971.377435 | I43: 3864 | J43: 3931.272727 | K43: 5403
F44: Total costs (rhs) | G44: 1547.85069 | H44: 1638.38026 | I44: 1646.837925 | J44: 1671.023538 | K44: 2521.699204
F45: Cost:income ratio (lhs) | G45: 0.3157243539 | H45: 0.3157243539 | I45: 0.3157243539 | J45: 0.2739415521 | K45: 0.427
G48: =G50&IF(INPUT_KVT="1 kvt","Q1",IF(INPUT_KVT="2 kvt","Q2",IF(INPUT_KVT="3 kvt","Q3",IF(INPUT_KVT="4 kvt","Q4")))) -> 2025Q1 | H48: =H50&IF(INPUT_KVT="1 kvt","Q2",IF(INPUT_KVT="2 kvt","Q3",IF(INPUT_KVT="3 kvt","Q4",IF(INPUT_KVT="4 kvt","Q1")))) -> 2025Q2 | I48: =I50&IF(INPUT_KVT="1 kvt","Q3",IF(INPUT_KVT="2 kvt","Q4",IF(INPUT_KVT="3 kvt","Q1",IF(INPUT_KVT="4 kvt","Q2")))) -> 2025Q3 | J48: =J50&IF(INPUT_KVT="1 kvt","Q4",IF(INPUT_KVT="2 kvt","Q1",IF(INPUT_KVT="3 kvt","Q2",IF(INPUT_KVT="4 kvt","Q3")))) -> 2025Q4 | K48: =K50&IF(INPUT_KVT="1 kvt","Q1",IF(INPUT_KVT="2 kvt","Q2",IF(INPUT_KVT="3 kvt","Q3",IF(INPUT_KVT="4 kvt","Q4")))) -> 2026Q1
G49: =IF(INPUT_KVT="1 kvt","1 kvt",IF(INPUT_KVT="2 kvt","2 kvt",IF(INPUT_KVT="3 kvt","3 kvt",IF(INPUT_KVT="4 kvt","4 kvt")))) -> 1 kvt | H49: =IF(INPUT_KVT="1 kvt","2 kvt",IF(INPUT_KVT="2 kvt","3 kvt",IF(INPUT_KVT="3 kvt","4 kvt",IF(INPUT_KVT="4 kvt","1 kvt")))) -> 2 kvt | I49: =IF(INPUT_KVT="1 kvt","3 kvt",IF(INPUT_KVT="2 kvt","4 kvt",IF(INPUT_KVT="3 kvt","1 kvt",IF(INPUT_KVT="4 kvt","2 kvt")))) -> 3 kvt | J49: =IF(INPUT_KVT="1 kvt","4 kvt",IF(INPUT_KVT="2 kvt","1 kvt",IF(INPUT_KVT="3 kvt","2 kvt",IF(INPUT_KVT="4 kvt","3 kvt")))) -> 4 kvt | K49: =IF(INPUT_KVT="1 kvt","1 kvt",IF(INPUT_KVT="2 kvt","2 kvt",IF(INPUT_KVT="3 kvt","3 kvt",IF(INPUT_KVT="4 kvt","4 kvt")))) -> 1 kvt
F50: Secured homeowner loans | G50: 2025 | H50: =IF(I49="1 kvt",Forrige_Aar,I50) -> 2025 | I50: =IF(J49="1 kvt",Forrige_Aar,J50) -> 2025 | J50: =IF(K49="1 kvt",Forrige_Aar,K50) -> 2025 | K50: =INPUT_AAR -> 2026
F51: Mio. kr.
F52: Staff costs | G52: -1061.85906 | H52: -1747.338359 | I52: -1510.367115 | J52: -1539.734221 | K52: -1418.478349
F53: IT costs | G53: -378.2847627 | H53: -465.5921406 | I53: -609.0774022 | J53: -802.5212499 | K53: -703.8772823
F54: Facility costs | G54: -83.24570064 | H54: -229.5583347 | I54: -108.1710043 | J54: -119.2023309 | K54: -118.7248735
F55: Marketing costs | G55: -27.2889064 | H55: -32.95601653 | I55: -38.12363163 | J55: -113.9665582 | K55: -47.19439745
F56: Provisions for restructuring | G56: 0 | H56: -7.148722 | I56: 0 | J56: 0 | K56: 0
F57: Bank levies and other expenses | G57: -147.634015 | H57: -201.222473 | I57: -273.3628353 | J57: -486.5910549 | K57: -280.6186997
F58: Total costs | G58: -1671.023538 | H58: -2643.711307 | I58: -2500.978356 | J58: -2948.048856 | K58: -2521.699204
F64: Nykredit Koncernen - Basis- og beholdningsindtjening | G64: konch20
G65: Marts | H65: Marts | I65: Marts | J65: Marts | K65: Marts
G66: 2022Q1 | H66: 2023Q1 | I66: 2024Q1 | J66: 2025Q1 | K66: 2026Q1
F67: Mio. kr. | G67: 2022 | H67: 2023 | I67: 2024 | J67: 2025 | K67: 2026
F68: Indtægter | G68: 3959.15781 | H68: 5189.27425 | I68: 6011.639757 | J68: 5433.667064 | K68: 5899.329102
F69: Omkostninger | G69: 1547.85069 | H69: 1638.38026 | I69: 1646.837925 | J69: 1671.023538 | K69: 2521.699204
F70: Omkostningsprocent | G70: 0.3157243539 | H70: 0.3157243539 | I70: 0.2739415521 | J70: 0.3075314549 | K70: 0.427
F71: Gns. antal heltidsansatte medarbejdere | G71: 4076.291549 | H71: 3971.377435 | I71: 3864 | J71: 3931.272727 | K71: 5403

Sheet OUT_BalanceSummary_PRINT
G5: Lending and deposits – Nykredit Group
G46: Note: Mortgage lending based on fair value. Bank lending excludes reverse transactions.
B48: Nykredit Group - Total Lending | G48: Mortgage lending - Mortgage lending (Dagsværdi) | L48: Nykredit Group - Total bank lending and bank deposits
B49: DKKbn | C49: Total lending, fair value DKKm | G49: DKKbn | H49: Mortgage lending, fair value | K49: DKKbn | L49: Bank lending incl. secured homeowner loans | M49: Bank deposits | Q49: Assets under management | R49: Assets under administration
B50: FY/2022 | C50: 1378.853372 | G50: FY/2022 | H50: 1292.118621 | K50: FY/2022 | L50: 86.73475157 | M50: 107.3915788 | O50: 2022 | P50: FY/2022 | Q50: 406 | R50: 985
B51: FY/2023 | C51: 1449.362025 | G51: FY/2023 | H51: 1354.986591 | K51: FY/2023 | L51: 94.37543349 | M51: 114.2075238 | O51: 2023 | P51: FY/2023 | Q51: 455.7552088 | R51: 1080.552577
B52: FY/2024 | C52: 1528 | G52: FY/2024 | H52: 1424 | K52: FY/2024 | L52: 103 | M52: 121 | O52: 2024 | P52: FY/2024 | Q52: 499 | R52: 1128
B53: FY/2025 | C53: 1662.19596 | G53: FY/2025 | H53: 1485.138091 | K53: FY/2025 | L53: 177.0578684 | M53: 218.8215312 | O53: 2025 | P53: FY/2025 | Q53: 567.1200226 | R53: 1196.011168
B54: YTD/2026 | C54: 1670.257743 | G54: YTD/2026 | H54: 1494.017442 | K54: YTD/2026 | L54: 176.2403008 | M54: 216.7102763 | O54: 2026 | P54: YTD/2026 | Q54: 565.487065 | R54: 1160.850194

Sheet OUT_LendingDeposit_PRINT
C1: =IF(INPUT_KVT="1 kvt","Q2/",IF(INPUT_KVT="2 kvt","Q2/",IF(INPUT_KVT="3 kvt","Q4/",IF(INPUT_KVT="4 kvt","Q1/"))))&IF(LEFT(F1,3)="Q1/",RIGHT(F1,4)-1,RIGHT(F1,4)) -> Q2/2025 | D1: =IF(INPUT_KVT="1 kvt","Q2/",IF(INPUT_KVT="2 kvt","Q3/",IF(INPUT_KVT="3 kvt","Q4/",IF(INPUT_KVT="4 kvt","Q1/"))))&IF(LEFT(E1,3)="Q1/",RIGHT(E1,4)-1,RIGHT(E1,4)) -> Q2/2025 | E1: =IF(INPUT_KVT="1 kvt","Q3/",IF(INPUT_KVT="2 kvt","Q4/",IF(INPUT_KVT="3 kvt","Q1/",IF(INPUT_KVT="4 kvt","Q2/"))))&IF(LEFT(F1,3)="Q1/",RIGHT(F1,4)-1,RIGHT(F1,4)) -> Q3/2025 | F1: =IF(INPUT_KVT="1 kvt","Q4/",IF(INPUT_KVT="2 kvt","Q1/",IF(INPUT_KVT="3 kvt","Q2/",IF(INPUT_KVT="4 kvt","Q3/"))))&IF(LEFT(G1,3)="Q1/",RIGHT(G1,4)-1,RIGHT(G1,4)) -> Q4/2025 | G1: =IF(INPUT_KVT="1 kvt","Q1/",IF(INPUT_KVT="2 kvt","Q2/",IF(INPUT_KVT="3 kvt","Q3/",IF(INPUT_KVT="4 kvt","Q4/"))))&INPUT_AAR -> Q1/2026
C5: Lending and deposits – Nykredit Group
A45: Nominal Mortgage lending | H45: Bank lending
C46: Q2/2025 | D46: Q3/2025 | E46: Q4/2025 | F46: Q1/2026
A47: Personal | C47: 945.7647677 | D47: 959.4627951 | E47: 973.213413 | F47: 989.1489112 | K47: Q2/2025 | L47: Q2/2025 | M47: Q3/2025 | N47: Q4/2025 | O47: Q1/2026
A48: Business | C48: 570.441286 | D48: 575.7699165 | E48: 576.7819305 | F48: 580.5423827 | H48: Bank deposits | K48: 130.5864102 | L48: 220.1586295 | M48: 226.32607 | N48: 231.1512418 | O48: 228.6489158
A49: Total | C49: 1516.206054 | D49: 1535.232712 | E49: 1549.995344 | F49: 1569.691294 | H49: Bank lending incl. secured homeowner loans | K49: 108.8469273 | L49: 177.209698 | M49: 176.5441288 | N49: 177.0578684 | O49: 176.2403008
A51: Secured homeowner loans | H51: Total lending
B52: Q2/2025 | C52: Q2/2025 | D52: Q3/2025 | E52: Q4/2025 | F52: Q1/2026 | K52: Q2/2025 | L52: Q2/2025 | M52: Q3/2025 | N52: Q4/2025 | O52: Q1/2026
A53: Secured homeowner loans in bank lending | B53: 5.366685228 | C53: 15.08638586 | D53: 16.58168353 | E53: 16.10550033 | F53: 15.66094036 | H53: Secured homeowner loans | K53: 22.96469394 | L53: 33.11899198 | M53: 34.51339488 | N53: 36.80513263 | O53: 38.5094659
A54: Secured homeowner loans in mortgage lending | B54: 17.59800871 | C54: 18.03260612 | D54: 17.93171135 | E54: 20.6996323 | F54: 22.84852554 | H54: Bank lending excl. secured homeowner loans | K54: 103.4802421 | L54: 162.1233122 | M54: 159.9624453 | N54: 160.9523681 | O54: 160.5793604
A55: Secured homeowner loans | B55: 22.96469394 | C55: 33.11899198 | D55: 34.51339488 | E55: 36.80513263 | F55: 38.5094659 | H55: Mortgage lending excl. secured homeowner loans | K55: 1483.341421 | L55: 1498.173448 | M55: 1517.301 | N55: 1529.295711 | O55: 1546.842768

Sheet OUT_KeyFig_PRINT
F5: Key figures - Income and credit
F7: Key figures | G7: Q1/2025 | H7: Q2/2025 | I7: Q3/2025 | J7: Q4/2025 | K7: Q1/2026
F8: Net interest income as % of lending and deposits1
F9: Nykredit Group | G9: 0.007002145303 | H9: 0.007036488988 | I9: 0.008105140778 | J9: 0.008089761169 | K9: 0.007882542804
F10: Nykredit Bank Group | G10: 0.02382659336 | H10: 0.02349509196 | I10: 0.02348313095 | J10: 0.02252245479 | K10: 0.02283586038
F11: Spar Nord Bank A/S | H11: 0.01928863894 | I11: 0.02029944796 | J11: 0.01865076444 | K11: 0.02173942692
F12: Totalkredit A/S | G12: 0.004195231705 | H12: 0.004281660135 | I12: 0.004209040729 | J12: 0.004345127765 | K12: 0.004158139967
F13: Administration margin income2, %
F14: Nykredit Group | G14: 0.007710409429 | H14: 0.007721127169 | I14: 0.007710969725 | J14: 0.007709089542 | K14: 0.007644509156
F15: Nykredit Realkredit A/S | G15: 0.007342118144 | H15: 0.007244777894 | I15: 0.007228719413 | J15: 0.007190073796 | K15: 0.007087451467
F16: Totalkredit A/S | G16: 0.007953309021 | H16: 0.008017246217 | I16: 0.008008076467 | J16: 0.008024441663 | K16: 0.007978715852
F17: Impairment charges for the period as % of lending
F18: Mortgage lending | G18: 2.25845762e-05 | H18: 0.00014603156 | I18: 3.05665765e-05 | J18: -3.541823052e-05 | K18: -9.131960393e-06
F19: Banking3 | G19: 0.0008453988448 | H19: 0.001482518124 | I19: 0.00114871643 | J19: 0.000572349984 | K19: 0.0004100243435
F20: Write-offs, year to date, DKK million
F21: Mortgage lending | G21: 81 | H21: 143 | I21: 20 | J21: 292 | K21: 112
F22: Banking | G22: 13.76275426 | H22: 27.190827 | I22: 32.151111 | J22: 45.29031627 | K22: 5.219258418
F23: Swaps | G23: 0 | H23: 0 | I23: - | J23: 0 | K23: 2
F24: Total provisions for loan impairment, DKK million
F25: Mortgage lending | G25: 5112.268942 | H25: 5099.220416 | I25: 5432.317275 | J25: 5163.192268 | K25: 5037.182452
F26: Banking (including guarantees excluding financial institutions) | G26: 3519.775369 | H26: 3627.571621 | I26: 3565.220385 | J26: 3471.484309 | K26: 3567.651026
F27: Swaps | G27: 208.8697544 | H27: 211.956 | I27: 200.829 | J27: 152.60245 | K27: 193.7477396
F28: Non Performing Loans ratio, %
F29: Nykredit Group | G29: 0.01078293292 | H29: 0.01143820174 | I29: 0.01142717776 | J29: 0.01039157425 | K29: 0.009908688828
F30: Nykredit Realkredit Group (mortgage lending) | G30: 0.009162928045 | H30: 0.01002386156 | I30: 0.009904069893 | J30: 0.009483409653 | K30: 0.008795230424
F31: Nykredit Bank Group | G31: 0.02233729238 | H31: 0.01992196055 | I31: 0.02091004437 | J31: 0.01420519113 | K31: 0.01461179336
F32: Cover ratio, %
F33: Nykredit Group | G33: 0.4161612807 | H33: 0.3940080766 | I33: 0.388029817 | J33: 0.4201702367 | K33: 0.4153070472
F34: Nykredit Realkredit Group (mortgage lending) | G34: 0.371720275 | H34: 0.3363556117 | I34: 0.341466683 | J34: 0.3512535597 | K34: 0.3648599635
F35: Nykredit Bank Group | G35: 0.5856925262 | H35: 0.6491161507 | I35: 0.5844104005 | J35: 0.8128044966 | K35: 0.6576227142
F36: 1 Net interest income from income statement annualized as % of total loans and deposits.
F37: 2 Customer margin before costumer benefits programmes.
F38: 3 Excluding impairment charges from guarantees.

Sheet MANUEL_Regnskab (hidden)
B1: Input | AC1: Insert new columm every quarter
J3: =MANUEL_Regnskab!J6&VLOOKUP(J7,SETUP_OPSLAG!$B$46:$C$50,2,0) -> 2019Juni | K3: =MANUEL_Regnskab!K6&VLOOKUP(K7,SETUP_OPSLAG!$B$46:$C$50,2,0) -> 2019September | L3: =MANUEL_Regnskab!L6&VLOOKUP(L7,SETUP_OPSLAG!$B$46:$C$50,2,0) -> 2019December | M3: =MANUEL_Regnskab!M6&VLOOKUP(M7,SETUP_OPSLAG!$B$46:$C$50,2,0) -> 2020Marts | N3: =MANUEL_Regnskab!N6&VLOOKUP(N7,SETUP_OPSLAG!$B$46:$C$50,2,0) -> 2020Juni | O3: =MANUEL_Regnskab!O6&VLOOKUP(O7,SETUP_OPSLAG!$B$46:$C$50,2,0) -> 2020September | P3: =MANUEL_Regnskab!P6&VLOOKUP(P7,SETUP_OPSLAG!$B$46:$C$50,2,0) -> 2020December | Q3: =MANUEL_Regnskab!Q6&VLOOKUP(Q7,SETUP_OPSLAG!$B$46:$C$50,2,0) -> 2021Marts | R3: =MANUEL_Regnskab!R6&VLOOKUP(R7,SETUP_OPSLAG!$B$46:$C$50,2,0) -> 2021Juni | S3: =MANUEL_Regnskab!S6&VLOOKUP(S7,SETUP_OPSLAG!$B$46:$C$50,2,0) -> 2021September | T3: =MANUEL_Regnskab!T6&VLOOKUP(T7,SETUP_OPSLAG!$B$46:$C$50,2,0) -> 2021December | U3: =MANUEL_Regnskab!U6&VLOOKUP(U7,SETUP_OPSLAG!$B$46:$C$50,2,0) -> 2022Marts | V3: =MANUEL_Regnskab!V6&VLOOKUP(V7,SETUP_OPSLAG!$B$46:$C$50,2,0) -> 2022Juni | W3: =MANUEL_Regnskab!W6&VLOOKUP(W7,SETUP_OPSLAG!$B$46:$C$50,2,0) -> 2022September | X3: =MANUEL_Regnskab!X6&VLOOKUP(X7,SETUP_OPSLAG!$B$46:$C$50,2,0) -> 2022December | Y3: =MANUEL_Regnskab!Y6&VLOOKUP(Y7,SETUP_OPSLAG!$B$46:$C$50,2,0) -> 2023Marts | Z3: =MANUEL_Regnskab!Z6&VLOOKUP(Z7,SETUP_OPSLAG!$B$46:$C$50,2,0) -> 2023Juni | AA3: =MANUEL_Regnskab!AA6&VLOOKUP(AA7,SETUP_OPSLAG!$B$46:$C$50,2,0) -> 2023September | AB3: =MANUEL_Regnskab!AB6&VLOOKUP(AB7,SETUP_OPSLAG!$B$46:$C$50,2,0) -> 2023December | AC3: =MANUEL_Regnskab!AC6&VLOOKUP(AC7,SETUP_OPSLAG!$B$46:$C$50,2,0) -> 2024Marts | AD3: =MANUEL_Regnskab!AD6&VLOOKUP(AD7,SETUP_OPSLAG!$B$46:$C$50,2,0) -> 2024Juni | AE3: =MANUEL_Regnskab!AE6&VLOOKUP(AE7,SETUP_OPSLAG!$B$46:$C$50,2,0) -> 2024September | AF3: =MANUEL_Regnskab!AF6&VLOOKUP(AF7,SETUP_OPSLAG!$B$46:$C$50,2,0) -> 2024December | AG3: =MANUEL_Regnskab!AG6&VLOOKUP(AG7,SETUP_OPSLAG!$B$46:$C$50,2,0) -> 2025Marts | AH3: =MANUEL_Regnskab!AH6&VLOOKUP(AH7,SETUP_OPSLAG!$B$46:$C$50,2,0) -> 2025Juni | AI3: =MANUEL_Regnskab!AI6&VLOOKUP(AI7,SETUP_OPSLAG!$B$46:$C$50,2,0) -> 2025September | AJ3: =MANUEL_Regnskab!AJ6&VLOOKUP(AJ7,SETUP_OPSLAG!$B$46:$C$50,2,0) -> 2025December | AK3: =MANUEL_Regnskab!AK6&VLOOKUP(AK7,SETUP_OPSLAG!$B$46:$C$50,2,0) -> 2026Marts
J4: =+COLUMN(J3) -> 10 | K4: 11 | L4: 12 | M4: 13 | N4: 14 | O4: 15 | P4: 16 | Q4: 17 | R4: 18 | S4: =+COLUMN(S3) -> 19 | T4: 20 | U4: 21 | V4: 22 | W4: 23 | X4: 24 | Y4: 25 | Z4: 26 | AA4: 27 | AB4: 28 | AC4: 29 | AD4: =+COLUMN(AD3) -> 30 | AE4: 31 | AF4: 32 | AG4: 33 | AH4: 34 | AI4: 35 | AJ4: =+COLUMN(AJ3) -> 36 | AK4: 37
BA5: Q3 2024
J6: 2019 | K6: 2019 | L6: 2019 | M6: 2020 | N6: 2020 | O6: 2020 | P6: 2020 | Q6: 2021 | R6: 2021 | S6: 2021 | T6: 2021 | U6: 2022 | V6: 2022 | W6: 2022 | X6: 2022 | Y6: 2023 | Z6: 2023 | AA6: 2023 | AB6: 2023 | AC6: 2024 | AD6: 2024 | AE6: 2024 | AF6: 2024 | AG6: 2025 | AH6: 2025 | AI6: 2025 | AJ6: 2025 | AK6: 2026
D7: YEAR TO DATE | J7: 2 kvt | K7: 3 kvt | L7: 4 kvt | M7: 1 kvt | N7: 2 kvt | O7: 3 kvt | P7: 4 kvt | Q7: 1 kvt | R7: 2 kvt | S7: 3 kvt | T7: 4 kvt | U7: 1 kvt | V7: 2 kvt | W7: 3 kvt | X7: 4 kvt | Y7: 1 kvt | Z7: 2 kvt | AA7: 3 kvt | AB7: 4 kvt | AC7: 1 kvt | AD7: 2 kvt | AE7: 3 kvt | AF7: 4 kvt | AG7: 1 kvt | AH7: 2 kvt | AI7: 3 kvt | AJ7: 4 kvt | AK7: 1 kvt
AL8: skema 18, fra modtaget fra kredit, kl060, 070 | BA8: Q1 2023
A9: =+E9&D9&C9 -> Non-performing loansNYBIN_Regnskab | B9: =+ROW(A9) -> 9 | C9: IN_Regnskab | D9: NYB | E9: Non-performing loans | J9: 3346.683725 | K9: 3285.337574 | L9: 2993.936799 | M9: 3063.147514 | N9: 2714.290988 | O9: 2455.194365 | P9: 2522.923607 | Q9: 2207.003028 | R9: 2131 | S9: =2110765494.68/1000000 -> 2110.765495 | T9: 1790 | U9: 1837 | V9: 1888 | W9: =2232407254.34/1000000 -> 2232.407254 | X9: 2301 | Y9: 2178 | Z9: 2368 | AA9: 2386 | AB9: 2158.539553 | AC9: 2232 | AD9: 2969.15743 | AE9: 2925.726218 | AF9: 3040 | AG9: =3605218316.9/1000000 -> 3605.218317 | AH9: =3434857230.96/1000000 -> 3434.857231 | AI9: =3605218316.9/1000000 -> 3605.218317 | AJ9: =2580083.14/1000 -> 2580.08314 | AK9: =2874193764/1000000 -> 2874.193764 | AL9: --> Fra NPL-ratio fil | AM9: S:\oekonomi-afd\REGNSKAB\20. Finrep, QIS og søjle 3\1. Finrep\Indberetning af data\Q1 2025\Kredit\Modtaget fra Kredit - Fra filen "skema_18 YYYYQx", fanen "skema18_bk" række 070 kolonne 060 (celle J12). Sti til filen er nedenfor. Husk at rette kvartalet.
A10: =+E10&D10&C10 -> Formue under forvaltningNRKIN_Regnskab | B10: =+ROW(A10) -> 10 | C10: IN_Regnskab | D10: NRK | E10: Formue under forvaltning
A11: Nykredit portefølje adm.NRKIN_Regnskab | B11: 11 | C11: IN_Regnskab | D11: NRK | E11: Nykredit portefølje adm.
A12: Heraf nykredit-koncernens invest.foreningerNRKIN_Regnskab | B12: 12 | C12: IN_Regnskab | D12: NRK | E12: Heraf nykredit-koncernens invest.foreninger | J12: 78069000000 | K12: 157798000000 | L12: 162997000000 | M12: 142158000000 | N12: 153063000000 | O12: 157237000000 | P12: 168415000000 | Q12: 180280000000 | R12: 188508298000 | S12: 194985687000 | T12: 213731441000 | U12: 2.096549583e+11 | V12: =195170668.379424*1000 -> 1.951706684e+11 | W12: 1.915914161e+11 | X12: 1.955188134e+11 | Y12: =206607049.246007*1000 -> 2.066070492e+11 | AL12: --> Søren Trap (STRP) - der er ny skæring og er dermed lig nul
A13: Tab Realkredit inkl TOTNRKIN_Regnskab | B13: 13 | C13: IN_Regnskab | D13: NRK | E13: Tab Realkredit inkl TOT | J13: 569 | K13: 840 | L13: 1350 | M13: =183+72 -> 255 | N13: 373 | O13: 552 | P13: 640 | Q13: 247 | R13: 337 | S13: 436 | T13: 517 | U13: 88 | V13: 141 | W13: 274 | X13: 340 | Y13: =61+16 -> 77 | Z13: =165+59 -> 224 | AA13: 305 | AB13: =227+154 -> 381 | AC13: =175+19 -> 194 | AD13: =221+47 -> 268 | AE13: 328 | AF13: =268+100 -> 368 | AG13: =69+12 -> 81 | AH13: =100+43 -> 143 | AI13: =13+7 -> 20 | AJ13: 292 | AK13: =44+68 -> 112 | AL13: --> S:\oekonomi-afd\REGNSKAB\17. Regnskabsrapporter\Nykredit Realkredit-koncernen\2024\Q1(se billed ude til siden)
A14: Resultat af ophørende forsikringsvirksomhedNRKIN_Regnskab | B14: 14 | C14: IN_Regnskab | D14: NRK | E14: Resultat af ophørende forsikringsvirksomhed
A15: Leverage ratioNRKIN_Regnskab | B15: 15 | C15: IN_Regnskab | D15: NRK | E15: Leverage ratio | J15: 4.7 | K15: 4.3 | L15: 4.4 | M15: 4.7 | N15: 4.7 | O15: 4.5 | P15: 4.8 | Q15: 4.8 | R15: =0.051*100 -> 5.1 | S15: 4.9 | T15: 4.8 | U15: 4.9 | V15: 5.1 | W15: =5.1%*100 -> 5.1 | X15: 5 | Y15: =0.051*100 -> 5.1 | Z15: 5 | AA15: =0.052*100 -> 5.2 | AB15: 5.1 | AC15: 5.1 | AD15: 5.1 | AE15: 5 | AF15: 5.3 | AG15: 5.3 | AH15: 4.7 | AI15: 4.6 | AJ15: 4.6 | AK15: 4.6 | AL15: --> Fra MDA/ADI fil - F36
A16: =+E16&D16&C16 -> Egentlig kernekapitalprocentNRKIN_Regnskab | B16: 16 | C16: IN_Regnskab | D16: NRK | E16: Egentlig kernekapitalprocent | J16: 20.5 | K16: 19.4 | L16: 19.5 | M16: 20.2 | N16: 19.2 | O16: 19.3 | P16: 20.2 | Q16: 20 | R16: 20.1 | S16: 19.9 | T16: 20.6 | U16: 18.9 | V16: 19.8 | W16: 19.4 | X16: 19.5 | Y16: 20 | Z16: 19.7 | AA16: 20.1 | AB16: 20.4 | AC16: 20.5 | AD16: 19.9 | AE16: 19.9 | AF16: 20.5 | AG16: 20.7 | AH16: 17.3 | AI16: 17.4 | AJ16: 17.3 | AK16: 17.5 | AL16: -->LIBO - S:\oekonomi-afd\REGNSKAB\17. Regnskabsrapporter\Nykredit Realkredit-koncernen\2024\Q1 - note 4
A17: =+E17&D17&C17 -> KapitalprocentNRKIN_Regnskab | B17: 17 | C17: IN_Regnskab | D17: NRK | E17: Kapitalprocent | J17: 23.2 | K17: 22.2 | L17: 22.4 | M17: 23 | N17: 22 | O17: 21.6 | P17: 22.9 | Q17: 22.9 | R17: 22.8 | S17: 22.7 | T17: 23.4 | U17: 21.7 | V17: 22.5 | W17: 22.7 | X17: 22.5 | Y17: 23.1 | Z17: 22.8 | AA17: 23.2 | AB17: 23 | AC17: 21.1 | AD17: 20.7 | AE17: 20.7 | AF17: 23.4 | AG17: 25 | AH17: 21.5 | AI17: 21.6 | AJ17: 21.4 | AK17: 21.4 | AL17: -->LIBO - S:\oekonomi-afd\REGNSKAB\17. Regnskabsrapporter\Nykredit Realkredit-koncernen\2024\Q1 - note 4
A18: =+E18&D18&C18 -> Risikoeksponering i altNHKIN_Regnskab | B18: 18 | C18: IN_Regnskab | D18: NHK | E18: Risikoeksponering i alt
A19: =+E19&D19&C19 -> Bestand til nominel værdi - ultimoPartnere FOIN_Regnskab | B19: 19 | C19: IN_Regnskab | D19: Partnere FO | E19: Bestand til nominel værdi - ultimo
A21: Tilsynsdiamant, NYB
A22: =+E22&D22&C22 -> Udlånsvækst (grænseværdi <20%)NYBIN_Regnskab | B22: =+ROW(A22) -> 22 | C22: IN_Regnskab | D22: NYB | E22: Udlånsvækst (grænseværdi <20%) | J22: 9.2 | K22: 8.1 | L22: 8.1 | M22: 14.3 | N22: 5.5 | O22: 11.6 | P22: 8.7 | Q22: 1.2 | R22: 5.7 | S22: 1.030908409 | T22: 4.62266314 | U22: 13.81104134 | V22: 21.7 | W22: 22.5813204 | X22: 13.7 | Y22: 12.70555601 | Z22: 4.5 | AA22: 3.200031686 | AB22: 9 | AC22: 2.6 | AD22: 6 | AE22: 8.6 | AF22: 9.8 | AG22: 15.7 | AH22: 16.4 | AI22: 11.4 | AJ22: 9.6 | AK22: 8.5 | AL22: --> LLAR, se skabeloner samlet under manuel regnskab
A23: Store eksponeringer (grænseværdi <175%)NYBIN_Regnskab | B23: 23 | C23: IN_Regnskab | D23: NYB | E23: Store eksponeringer (grænseværdi <175%) | J23: 99.4 | K23: 106 | L23: 109.92 | M23: 124.4 | N23: 140.7 | O23: 143.2 | P23: 132.25 | Q23: 119.2 | R23: 114.9 | S23: 114.3332273 | T23: 109.6 | U23: 117.3 | V23: 112.6 | W23: 122.4551185 | X23: 115.7 | Y23: 114.2511365 | Z23: 115.1 | AA23: 114.8277881 | AB23: 108.3 | AC23: 111.1 | AD23: 109.1 | AE23: 109.1 | AF23: 120.6 | AG23: 122.9 | AH23: 117.9 | AI23: 117.3 | AJ23: 114.1 | AK23: 114.4 | AL23: --> LLAR, se skabeloner samlet under manuel regnskab
A24: Ejendomseksponering (grænseværdi <25%)NYBIN_Regnskab | B24: 24 | C24: IN_Regnskab | D24: NYB | E24: Ejendomseksponering (grænseværdi <25%) | J24: 10 | K24: 10.4 | L24: 10.2 | M24: 11.3 | N24: 11 | O24: 11.3 | P24: 12.6 | Q24: 12.1 | R24: 11.5 | S24: 10.9 | T24: 11.1 | U24: 10.2 | V24: 11.1 | W24: 11.4 | X24: 12.1 | Y24: =0.132080672727525*100 -> 13.20806727 | Z24: 13.1 | AA24: 11.65959288 | AB24: 11.2 | AC24: 11.3 | AD24: 11 | AE24: 10.3 | AF24: 10.1 | AG24: 8.5 | AH24: 9.2 | AI24: 8.2 | AJ24: 8.4 | AK24: 7.7 | AL24: --> LLAR, se skabeloner samlet under manuel regnskab | BJ24: =125+149 -> 274
A25: Funding ratio (grænseværdi <1,0)NYBIN_Regnskab | B25: 25 | C25: IN_Regnskab | D25: NYB | E25: Funding ratio (grænseværdi <1,0) | J25: 0.6 | K25: 0.57 | L25: 0.57 | M25: 0.63 | N25: 0.5801014011 | O25: 0.7 | P25: 0.6 | Q25: 0.6 | R25: 0.6 | S25: 0.572386276 | T25: 0.5793365686 | U25: 0.65 | V25: 0.65 | W25: 0.6232946312 | X25: 0.6 | Y25: 0.6147562277 | Z25: 0.61 | AA25: 0.6 | AB25: 0.61 | AC25: 0.6 | AD25: 0.62 | AE25: 0.64 | AF25: 0.55 | AG25: 0.59 | AH25: 0.6 | AI25: 0.6 | AJ25: 0.57 | AK25: 0.6 | AL25: --> LLAR, se skabeloner samlet under manuel regnskab
A26: Likviditetsoverdækning (grænseværdi >50%)NYBIN_Regnskab | B26: 26 | C26: IN_Regnskab | D26: NYB | E26: Likviditetsoverdækning (grænseværdi >50%) | J26: 172 | K26: 173.9 | L26: 194.9 | M26: 147.8 | N26: 178.2 | O26: 188.1 | P26: 150.7 | Q26: 219 | R26: 226.1 | S26: 191 | T26: 256.4 | U26: 256 | V26: 247 | W26: =2.3561*100 -> 235.61 | X26: 272 | Y26: 257.07 | Z26: 274.1 | AA26: 290.95 | AB26: 223.3 | AC26: 259.39 | AD26: 239.19 | AE26: 239.19 | AF26: 246.81 | AG26: 236.5 | AH26: 186.65 | AI26: 204.2 | AJ26: 194.5 | AK26: 193 | AL26: --> LLAR, se skabeloner samlet under manuel regnskab
A27: Tab BankNYBIN_Regnskab | B27: 27 | C27: IN_Regnskab | D27: NYB | E27: Tab Bank | J27: 160540 | K27: 249212 | L27: 549222.3032 | M27: 59124.02998 | N27: 69460.24654 | O27: 94059.24069 | P27: 104317.7462 | Q27: =85659558.4882647/1000 -> 85659.55849 | R27: 95562.91281 | S27: 126042.8428 | T27: 134436.5757 | U27: 14495.23522 | V27: 25086.21146 | W27: 101530.692 | X27: 115315.5797 | Y27: 10325.29272 | Z27: 33177.98493 | AA27: 134436.5757 | AB27: 66892.07147 | AC27: 95199.86093 | AD27: 107758.6279 | AE27: 116914.2635 | AF27: 137218.3968 | AG27: 13762.75426 | AH27: 27190.827 | AI27: 32151.111 | AJ27: 45290.31627 | AK27: 5219.258418 | AL27: --> LLAR, se skabeloner samlet under manuel regnskab
A28: Tab på SwapNYBIN_Regnskab | B28: 28 | C28: IN_Regnskab | D28: NYB | E28: Tab på Swap | J28: -1000 | K28: 7390.391 | L28: 14956.32121 | M28: -6313.77552 | N28: 7524.83427 | O28: 32788.71605 | P28: 56143.33295 | Q28: =1988315.84/1000 -> 1988.31584 | R28: 24197.75099 | S28: 20398.36391 | T28: 18687.61477 | U28: -2024.72481 | V28: -2054.72481 | W28: -2064.72481 | X28: 357.1 | Y28: 0 | Z28: 0 | AA28: 0 | AB28: 0 | AC28: 0 | AD28: 0 | AE28: 0 | AF28: 0 | AG28: 0 | AH28: 0 | AI28: 0 | AJ28: 0 | AK28: 2000 | AL28: --> LLAR, se skabeloner samlet under manuel regnskab
A29: Tab på Swap KorrektivNYBIN_Regnskab | B29: 29 | C29: IN_Regnskab | D29: NYB | E29: Tab på Swap Korrektiv | J29: 2866057.134 | K29: 3142060.108 | L29: 2567553.634 | M29: 2830720.926 | N29: 2582108.598 | O29: 2395585.332 | P29: 2143373.143 | Q29: =1847.26333814618*1000 -> 1847263.338 | R29: 1739236.087 | S29: 1690867.957 | T29: 1565065.476 | U29: 1186101.186 | V29: 754158.6416 | W29: 510960.1999 | X29: 439835.1506 | Y29: 414524.3768 | Z29: 368379.4826 | AA29: 270369.1618 | AB29: 322884.3869 | AC29: 273397.1356 | AD29: 226011.5135 | AE29: 242795.4856 | AF29: 239424.1553 | AG29: 208869.7544 | AH29: 211956 | AI29: 200829 | AJ29: 152602.45 | AK29: 193747.7396 | AL29: --> LLAR, se skabeloner samlet under manuel regnskab
A31: Tilsynsdiamant, NYK KONCERN
A32: =+E32&D32&C32 -> Udlånsvækst (grænseværdi <15%)NRKIN_RegnskabNRKIN_Regnskab | B32: =+ROW(A32) -> 32 | C32: IN_Regnskab | D32: NRK | E32: Udlånsvækst (grænseværdi <15%)NRKIN_Regnskab | J32: <5.2 | K32: <7.4 | L32: <7.4 | M32: <8.1 | N32: <7.4 | O32: <6.6 | P32: < 6.0 | Q32: < 6,2 | R32: < 6,8 | S32: <6,7 | T32: <6,3 | U32: <5,8 | V32: <4,4 | W32: <2,4 | X32: <0 | Y32: <0 | Z32: <0 | AA32: <0 | AB32: 7.99 | AC32: 8.93 | AD32: 0.64 | AE32: 1.66 | AF32: 2.7 | AL32: Product Reporting, pejlemærker i filen tab og nedskrivninger (ikke stå noget her mere)
A33: Renterisiko (grænseværdi <25%)NRKIN_RegnskabNRKIN_Regnskab | B33: 33 | C33: IN_Regnskab | D33: NRK | E33: Renterisiko (grænseværdi <25%)NRKIN_Regnskab | J33: 13.37420942 | K33: 12.90734342 | L33: 12.56480027 | M33: 11.41411338 | N33: 11.60991485 | O33: 11.19205219 | P33: 11.02823623 | Q33: 10.46223749 | R33: 10.28847577 | S33: =0.0991841412987638*100 -> 9.91841413 | T33: =0.0939313203533872*100 -> 9.393132035 | U33: 10.69805464 | V33: 11.62632574 | W33: =0.1268808487895*100 -> 12.68808488 | X33: 12.31593743 | Y33: =0.12468846462807*100 -> 12.46884646 | Z33: 13.43642223 | AA33: =0.1389*100 -> 13.89 | AB33: 14.04 | AC33: 14.03 | AD33: 13.88 | AE33: 13.63 | AF33: 13.22 | AG33: 16.21 | AH33: 13.5 | AI33: 17.76 | AJ33: 16.73 | AK33: 17.51 | AL33: Product Reporting, pejlemærker i filen tab og nedskrivninger | AQ33: tilsynsdiamanten_rapport_intern - Power BI
A34: Afdragsfrihed (grænseværdi <10%)NRKIN_RegnskabNRKIN_Regnskab | B34: 34 | C34: IN_Regnskab | D34: NRK | E34: Afdragsfrihed (grænseværdi <10%)NRKIN_Regnskab | J34: 8.220790646 | K34: 7.902366725 | L34: 7.670135466 | M34: 7.541025397 | N34: 7.394166282 | O34: 7.261311959 | P34: 7.18529247 | Q34: 7.03260706 | R34: 6.859793913 | S34: =0.066859780508939*100 -> 6.685978051 | T34: =0.0644707085265753*100 -> 6.447070853 | U34: 6.19028445 | V34: 5.8561482 | W34: =0.0547761786213719*100 -> 5.477617862 | X34: 5.2 | Y34: =0.0510759023370817*100 -> 5.107590234 | Z34: 5.337514739 | AA34: =0.0535*100 -> 5.35 | AB34: 5.09 | AC34: 4.97 | AD34: 4.86 | AE34: 4.76 | AF34: 4.66 | AG34: 2.32 | AH34: 4.5 | AI34: 2.29 | AJ34: 2.59 | AK34: 2.51 | AL34: Product Reporting, pejlemærker i filen tab og nedskrivninger
A35: Kort funding (år) (grænseværdi <25%)NRKIN_RegnskabNRKIN_Regnskab | B35: 35 | C35: IN_Regnskab | D35: NRK | E35: Kort funding (år) (grænseværdi <25%)NRKIN_Regnskab | J35: 11.92633494 | K35: 11.7740581 | L35: 12.51164 | M35: 10.71873791 | N35: 10.89937494 | O35: 10.13422848 | P35: 9.745547579 | Q35: 10.38883114 | R35: 9.787900582 | S35: =0.0934655628279815*100 -> 9.346556283 | T35: =0.100277756127204*100 -> 10.02777561 | U35: 10.27607546 | V35: 10.05405716 | W35: =0.107358003986794*100 -> 10.7358004 | X35: 10.14 | Y35: =0.112207442464245*100 -> 11.22074425 | Z35: 12.78028903 | AA35: =0.1319*100 -> 13.19 | AB35: 13.46 | AC35: 13.97 | AD35: 13.11 | AE35: 13.18 | AF35: 14.1 | AG35: 22.28 | AH35: 15.2 | AI35: 20.41 | AJ35: 20.53 | AK35: 20.37 | AL35: Product Reporting, pejlemærker i filen tab og nedskrivninger
A36: Kort funding (kvartal) (grænseværdi <12,5%)NRKIN_RegnskabNRKIN_Regnskab | B36: 36 | C36: IN_Regnskab | D36: NRK | E36: Kort funding (kvartal) (grænseværdi <12,5%)NRKIN_Regnskab | J36: 2.881969013 | K36: 3.641775774 | L36: 2.623195352 | M36: 1.92925364 | N36: 2.972159088 | O36: 2.693271129 | P36: 2.25071494 | Q36: 2.681992904 | R36: 2.355410264 | S36: =0.0254289874484822*100 -> 2.542898745 | T36: =0.0292010207689607*100 -> 2.920102077 | U36: 2.924588879 | V36: 1.822941206 | W36: =0.0314070968363224*100 -> 3.140709684 | X36: 2.29 | Y36: =0.0367088529100937*100 -> 3.670885291 | Z36: 3.451925611 | AA36: =0.0371*100 -> 3.71 | AB36: 2.75 | AC36: 4.15 | AD36: 2.64 | AE36: 3.79 | AF36: 3.74 | AG36: 9.22 | AH36: 3.5 | AI36: 7.9 | AJ36: 2.56 | AK36: 2.53 | AL36: Product Reporting, pejlemærker i filen tab og nedskrivninger
A37: Store engagementer (grænseværdi <100%)NRKIN_RegnskabNRKIN_Regnskab | B37: 37 | C37: IN_Regnskab | D37: NRK | E37: Store engagementer (grænseværdi <100%)NRKIN_Regnskab | J37: 35.9 | K37: 36.7 | L37: 37 | M37: 37.1 | N37: 39.35810363 | O37: 39.86074852 | P37: 39.74908619 | Q37: 37.34638836 | R37: =0.377265794290284*100 -> 37.72657943 | S37: 34.466014 | T37: 38.98561324 | U37: 41.6 | V37: 42.5 | W37: =0.438698744108857*100 -> 43.86987441 | X37: =0.49445421103761*100 -> 49.4454211 | Y37: =0.492076707034809*100 -> 49.2076707 | Z37: 50.1896317 | AA37: =0.497087817276526*100 -> 49.70878173 | AB37: 50.64740934 | AC37: 49.75267541 | AD37: 51.46215571 | AE37: 51.41164418 | AF37: 49.8 | AG37: 48.9 | AH37: 51 | AI37: 55 | AJ37: 51 | AK37: 51.9 | AL37: <-- Fås Simon Krog = NRK tilsynsdiamant - Summen af de 20 største eksponeringer i forhold til den egentlige kernekapital
A40: =+E40&D40&C40 -> CET1, fully loadedNykredit A/SIN_Regnskab | B40: =+ROW(A40) -> 40 | C40: IN_Regnskab | D40: Nykredit A/S | E40: CET1, fully loaded | J40: 74128.288 | K40: 72492.4 | L40: 74076.641 | M40: 76721.389 | N40: 77778.191 | O40: 77772.573 | P40: 80938 | Q40: 81102.109 | R40: 83160.924 | S40: 80501.017 | T40: 82656.997 | U40: 82742.304 | V40: 84650.966 | W40: 83010.727 | X40: 85534.948 | Y40: 86291.169 | Z40: 85239.683 | AA40: =87245119/1000 -> 87245.119 | AB40: =88397933/1000 -> 88397.933 | AC40: 89388.609 | AD40: 89254 | AE40: 90329 | AF40: 97355.444 | AG40: 98116 | AH40: 89626 | AI40: 90101 | AJ40: 90449 | AK40: 90911 | AL40: <-- Kan findes i "MDA- ADI-tal" fil
A41: =+E41&D41&C41 -> MDA, not fully loadedNykredit A/SIN_Regnskab | B41: 41 | C41: IN_Regnskab | D41: Nykredit A/S | E41: MDA, not fully loaded | J41: 35612.13978 | K41: 30828.53526 | L41: 31794.2227 | M41: 34416.82736 | N41: 32532.94503
A42: =+E42&D42&C42 -> MDA, fully loadedNykredit A/SIN_Regnskab | B42: 42 | C42: IN_Regnskab | D42: Nykredit A/S | E42: MDA, fully loaded | J42: 32004.40765 | K42: 27100.54092 | L42: 26315.97094 | M42: 36294.33833 | N42: 35221.10209
A43: =+E43&D43&C43 -> Distance to MDANykredit A/SIN_Regnskab | B43: 43 | C43: IN_Regnskab | D43: Nykredit A/S | E43: Distance to MDA | J43: =+J41 -> 35612.13978 | K43: =+K41 -> 30828.53526 | L43: =+L41 -> 31794.2227 | M43: =+M42 -> 36294.33833 | N43: =+N42 -> 35221.10209 | O43: 35316.52663 | P43: 38151.62 | Q43: 38226.42434 | R43: 34851.94561 | S43: 32926.85312 | T43: 31437.74329 | U43: 24884.99015 | V43: 28056.45747 | W43: 25123.81927 | X43: 26444.54439 | Y43: 28673.86402 | Z43: 27425.89415 | AA43: =29334762.9052/1000 -> 29334.76291 | AB43: 32380.86534 | AC43: 32964.69975 | AD43: 28274 | AE43: 27447 | AF43: 33359.15989 | AG43: 35331 | AH43: 20461 | AI43: 21574 | AJ43: 20961 | AK43: 21836 | AL43: <-- Kan findes i "MDA- ADI-tal" fil
A44: =+E44&D44&C44 -> ADINykredit A/SIN_Regnskab | B44: 44 | C44: IN_Regnskab | D44: Nykredit A/S | E44: ADI | J44: 47344.81949 | K44: 45248.09517 | L44: 43583.26286 | M44: 45466.94693 | N44: 45969.32838 | O44: 43563.63225 | P44: 47924.377 | Q44: 48777.84555 | R44: 48883.64663 | S44: 46643.07898 | T44: 49014.10896 | U44: 46388.0672 | V44: 48467.46646 | W44: 47307.07833 | X44: 48009.4469 | Y44: 50462.26956 | Z44: 49251.91152 | AA44: =51037615.82/1000 -> 51037.61582 | AB44: 53616.17496 | AC44: 53735.44999 | AD44: 54022 | AE44: 52532 | AF44: 58978.9979 | AG44: 63712 | AH44: 54700 | AI44: 56030 | AJ44: 54056 | AK44: 55880 | AL44: <-- Kan findes i "MDA- ADI-tal" fil
A45: Asset encumbranceNykredit A/SIN_Regnskab | B45: 45 | C45: IN_Regnskab | D45: Nykredit A/S | E45: Asset encumbrance
A46: =+E46&D46&C46 -> CET1, fully loadedNRKIN_Regnskab | B46: 46 | C46: IN_Regnskab | D46: NRK | E46: CET1, fully loaded | J46: 74432.647 | K46: 72623.939 | L46: 74343.817 | M46: 77041.398 | N46: 77979.556 | O46: 77915.486 | P46: 81257 | Q46: 81383.748 | R46: 83481.776 | S46: 80829.087 | T46: 82959.152 | U46: 83051.415 | V46: 84891.404 | W46: 83256.06 | X46: 85796.948 | Y46: 86526.072 | Z46: 85469.59 | AA46: =87482897/1000 -> 87482.897 | AB46: 88642.728 | AC46: 89575.033 | AD46: 89400 | AE46: 90456.458 | AF46: 97485.901 | AG46: 98251 | AH46: 89609 | AI46: 90085 | AJ46: 90449 | AK46: 90899.58016 | AL46: <-- Kan findes i "MDA- ADI-tal" fil
A47: =+E47&D47&C47 -> MDA, not fully loadedNRKIN_Regnskab | B47: =+ROW(A47) -> 47 | C47: IN_Regnskab | D47: NRK | E47: MDA, not fully loaded | J47: 35795.92884 | K47: 30833.63117 | L47: 31935.17283 | M47: 34610.5394 | N47: 32607.18583
A48: MDA, fully loadedNRKIN_Regnskab | B48: 48 | C48: IN_Regnskab | D48: NRK | E48: MDA, fully loaded | J48: 32176.90316 | K48: 27094.34092 | L48: 26440.56682 | M48: 36493.65553 | N48: 35302.89572
A49: =+E49&D49&C49 -> Distance to MDANRKIN_Regnskab | B49: =+ROW(A49) -> 49 | C49: IN_Regnskab | D49: NRK | E49: Distance to MDA | J49: =+J47 -> 35795.92884 | K49: =+K47 -> 30833.63117 | L49: =+L47 -> 31935.17283 | M49: =+M48 -> 36493.65553 | N49: =+N48 -> 35302.89572 | O49: 35340.04025 | P49: 38341.188 | Q49: 38378.75482 | R49: 35030.64781 | S49: 33108.26483 | T49: 31580.82197 | U49: 25026.03399 | V49: 28162.58806 | W49: 25468.98292 | X49: 26561.28389 | Y49: 28778.37412 | Z49: 27528.07885 | AA49: =29441247.3848/1000 -> 29441.24738 | AB49: 32497.35979 | AC49: 33068.98893 | AD49: 28336 | AE49: 27498.28403 | AF49: 33415.55224 | AG49: 35415 | AH49: 20445 | AI49: 21558 | AJ49: 20949 | AK49: 21823.89805 | AL49: <-- Kan findes i "MDA- ADI-tal" fil
A50: ADINRKIN_Regnskab | B50: 50 | C50: IN_Regnskab | D50: NRK | E50: ADI | J50: 53001.21963 | K50: 50166.39347 | L50: 48721.60623 | M50: 51586.1949 | N50: 50894.21556 | O50: 47090.88369 | P50: 53471.413 | Q50: 54472.23972 | R50: 54319.48867 | S50: 52021.95046 | T50: 54486.47513 | U50: 51076.1234 | V50: 53617.86241 | W50: 53847.70457 | X50: 51434.60322 | Y50: 53827.28339 | Z50: 52513.22469 | AA50: =54534203.68/1000 -> 54534.20368 | AB50: 57034.34039 | AC50: 57621.09008 | AD50: 57156 | AE50: 55701.64777 | AF50: 62023.7847 | AG50: 69548 | AH50: 58018 | AI50: 59515 | AJ50: 59158 | AK50: 59051 | AL50: <-- Kan findes i "MDA- ADI-tal" fil
A51: CET1, fully loadedNYRIN_Regnskab | B51: 51 | C51: IN_Regnskab | D51: NYR | E51: CET1, fully loaded | J51: 74339.464 | K51: 74496.669 | L51: 76259.461 | M51: 78949.684 | N51: 79912.893 | O51: 79899.897 | P51: 83181 | Q51: 83309.774 | R51: 85415.431 | S51: 82761.651 | T51: 84930.014 | U51: 84986.395 | V51: 86873.524 | W51: 85239.258 | X51: 87773.123 | Y51: 88554.31 | Z51: 87541.788 | AA51: =89614244/1000 -> 89614.244 | AB51: 90800.596 | AC51: 91776.477 | AD51: 91648 | AE51: 92738.679 | AF51: 99789.081 | AG51: 100917 | AH51: 92110 | AI51: 94354 | AJ51: 94461 | AK51: 95337 | AL51: <-- Kan findes i "MDA- ADI-tal" fil | AQ51: 100
A52: MDA, not fully loadedNYRIN_Regnskab | B52: 52 | C52: IN_Regnskab | D52: NYR | E52: MDA, not fully loaded | J52: 30562.2058 | K52: 26341.30211 | L52: 26205.47121 | M52: 29322.87761 | N52: 28726.99238
A53: MDA, fully loadedNYRIN_Regnskab | B53: 53 | C53: IN_Regnskab | D53: NYR | E53: MDA, fully loaded | J53: 26186.23037 | K53: 21756.82316 | L53: 19572.26922 | M53: 32195.41172 | N53: 31962.65861
A54: =+E54&D54&C54 -> Distance to MDANYRIN_Regnskab | B54: =+ROW(A54) -> 54 | C54: IN_Regnskab | D54: NYR | E54: Distance to MDA | J54: =+J52 -> 30562.2058 | K54: =+K52 -> 26341.30211 | L54: =+L52 -> 26205.47121 | M54: =+M53 -> 32195.41172 | N54: =+N53 -> 31962.65861 | O54: 31512.8529 | P54: 33041.858 | Q54: 32237.92812 | R54: 29752.09994 | S54: 25814.34038 | T54: 19833.00961 | U54: 16695.59305 | V54: 19306.29357 | W54: 17172.38631 | X54: 17441.94296 | Y54: 17936.52252 | Z54: 16463.87133 | AA54: =18322541.47628/1000 -> 18322.54148 | AB54: 22323.05175 | AC54: 22467.4283 | AD54: 15874 | AE54: 18375.60739 | AF54: 23850.61149 | AG54: 49919 | AH54: 42504 | AI54: 45248 | AJ54: 44126 | AK54: 44001 | AL54: <-- Kan findes i "MDA- ADI-tal" fil
A55: ADINYRIN_Regnskab | B55: 55 | C55: IN_Regnskab | D55: NYR | E55: ADI | J55: 49801.10767 | K55: 48275.80634 | L55: 45525.67833 | M55: 49211.75527 | N55: 49548.65565 | O55: 45446.73896 | P55: 50824.916 | Q55: 51244.10072 | R55: 53069.84142 | S55: 49021.50605 | T55: 48735.19146 | U55: 48273.18759 | V55: 50469.78953 | W55: 51920.60899 | X55: 48973.76665 | Y55: 49463.38614 | Z55: 48298.00839 | AA55: =50545108.728/1000 -> 50545.10873 | AB55: 55019.82758 | AC55: 55325.58201 | AD55: 53874 | AE55: 56023.44382 | AF55: 60564.98193 | AG55: 84536 | AH55: 76273 | AI55: 78880 | AJ55: 78100 | AK55: 77435 | AL55: <-- Kan findes i "MDA- ADI-tal" fil | AN55: 100
A56: =+E56&D56&C56 -> Asset encumbranceNRKIN_Regnskab | B56: =+ROW(A56) -> 56 | C56: IN_Regnskab | D56: NRK | E56: Asset encumbrance | J56: 0.8190173171 | K56: 0.819 | L56: 0.8215022932 | M56: 0.8197060132 | N56: 0.8274465013 | O56: 0.8219684541 | P56: 0.8116693881 | Q56: 0.7759 | R56: 0.8223709528 | S56: 0.8176245642 | T56: 0.8211 | U56: 0.8195101509 | V56: 0.8098785693 | W56: 0.7996132479 | X56: 0.7559946298 | Y56: 0.8052796369 | Z56: 0.8047756136 | AA56: 0.80503 | AB56: 0.8050329324 | AC56: 0.8037571488 | AD56: 0.8193821208 | AE56: 0.8095004705 | AF56: 0.8079 | AG56: 0.81571 | AH56: 0.79488 | AI56: 0.8036413102 | AJ56: 0.748691985 | AK56: 0.7948832946 | AL56: --> Kan hentes - følg stien - husk et kvartal bagud (Fane "F32.01) C24 - se de udregninger du skal lave i Excel fra sidste kvartal, hvis ikke du kan skrive i arket - så højreclik på fanen og fjern skrivebeskyttet- du skal selv regne dig frem til tallet - brug sidste kvartals udregning
E58: Eksponeringsvægtet gns. RW | H58: i pct. | AL58: 100
A59: =$E$58&E59&D59 -> Eksponeringsvægtet gns. RWRetail IRBNYR | B59: 52 | C59: IN_Regnskab | D59: NYR | E59: Retail IRB | J59: 12.28066486 | K59: 12.25290265 | L59: 11.93748318 | M59: 12.39115214 | N59: 11.72573349 | O59: 11.72382721 | P59: 11.73923931 | Q59: 11.633969 | R59: 11.31503353 | S59: 10.7 | T59: 9.9 | U59: 12.01400784 | V59: 11.3 | W59: 11.24487711 | X59: 11.38842014 | Y59: 11.76561195 | Z59: 12.45610846 | AA59: =0.1237103196588*100 -> 12.37103197 | AB59: 12.86213501 | AC59: 12.81 | AD59: 12.68 | AE59: 16.6 | AF59: 17.1 | AG59: 16.4 | AH59: 15.8 | AI59: 15.6 | AJ59: 16 | AK59: 15.9 | AL59: JVHA
A60: Eksponeringsvægtet gns. RWErhverv IRBNYR | B60: 53 | C60: IN_Regnskab | D60: NYR | E60: Erhverv IRB | J60: 24.72285178 | K60: 24.38424619 | L60: 25.05609474 | M60: 25.04173421 | N60: 21.42359719 | O60: 21.22499636 | P60: 20.68132705 | Q60: 20.5267668 | R60: 20.35315091 | S60: 20.3 | T60: 20.4 | U60: 20.50064901 | V60: 19.7 | W60: 19.1646173 | X60: 19.57435676 | Y60: 19.4822763 | Z60: 18.94122866 | AA60: 19.22377037 | AB60: 18.77136449 | AC60: 18.98 | AD60: 19.22 | AE60: 22.5 | AF60: 23.8 | AG60: 25.6 | AH60: 25.5 | AI60: 25.2 | AJ60: 25.1 | AK60: 26.1 | AL60: JVHA
A61: =$E$58&E61&D61 -> Eksponeringsvægtet gns. RWTotal MortgageNYR | B61: 54 | C61: IN_Regnskab | D61: NYR | E61: Total Mortgage | J61: 16.07935723 | K61: 16.07793406 | L61: 15.92980777 | M61: 16.40930983 | N61: 14.71327454 | O61: 14.62530064 | P61: 14.45992965 | Q61: 14.32176545 | R61: 13.95001433 | S61: 13.5 | T61: 13 | U61: 14.54720144 | V61: 13.9 | W61: 13.73629045 | X61: 14.00959753 | Y61: 14.2429003 | Z61: 14.68545532 | AA61: 14.65819502 | AB61: 14.86212177 | AC61: 14.9 | AD61: 14.92 | AE61: 18.7 | AF61: 19.4 | AG61: 19.3 | AH61: 18.7 | AI61: 18.4 | AJ61: 18.6 | AK61: 18.7 | AL61: JVHA
A62: Eksponeringsvægtet gns. RWRetail IRBNYB | B62: 54 | C62: IN_Regnskab | D62: NYB | E62: Retail IRB | J62: 41.41585476 | K62: 41.73719348 | L62: 41.94512688 | M62: 41.64919431 | N62: 39.52261356 | O62: 40.55900695 | P62: 40.41920086 | Q62: 40.17193927 | R62: 39.62675226 | S62: 40.2 | T62: 38.6 | U62: 38.15904739 | V62: 38.4 | W62: 39.35699945 | X62: 40.49074353 | Y62: 40.0751703 | Z62: 37.62853837 | AA62: 37.51300436 | AB62: 37.52419907 | AC62: 35.22 | AD62: 35.3 | AE62: 41.6 | AF62: 41.2 | AG62: 41.2 | AH62: 41.5 | AI62: 41.3 | AJ62: 45.8 | AK62: 42.1 | AL62: JVHA
A63: Eksponeringsvægtet gns. RWErhverv IRBNYB | B63: 55 | C63: IN_Regnskab | D63: NYB | E63: Erhverv IRB | J63: 55.14952768 | K63: 55.24646056 | L63: 54.4275776 | M63: 57.44150281 | N63: 54.51583141 | O63: 51.78292384 | P63: 51.92754416 | Q63: 52.67884192 | R63: 54.21788712 | S63: 49.5 | T63: 46.5 | U63: 44.94892121 | V63: 44.7 | W63: 44.47296747 | X63: 43.36579636 | Y63: 42.10643559 | Z63: 42.63039483 | AA63: 44.45884198 | AB63: 44.44226082 | AC63: 46.57 | AD63: 46.45 | AE63: 53.2 | AF63: 53 | AG63: 61.2 | AH63: 56.9 | AI63: 56.8 | AJ63: 55.5 | AK63: 53.1 | AL63: JVHA
A64: Eksponeringsvægtet gns. RWErhverv Reverse IRBNYB | B64: 55 | C64: IN_Regnskab | D64: NYB | E64: Reverse commercial banking | J64: 2.28874164 | K64: 1.954392489 | L64: 1 | M64: 1.423115394 | N64: 1.16405872 | O64: 2.533169739 | P64: 2.155597528 | Q64: 2.316881266 | R64: 2.33549701 | S64: 1.7 | T64: 1.5 | U64: 1.7 | V64: 0.7 | W64: 2.312456168 | X64: 1.6 | Y64: =0.00761523709452715*100 -> 0.7615237095 | Z64: 1.11 | AA64: 1.558715114 | AB64: 0.7 | AC64: 0.76 | AD64: 1.03 | AE64: 0.7079103206 | AF64: 0.87 | AG64: 33.3 | AH64: 24.4 | AI64: 25 | AJ64: 19.8 | AK64: 22.2 | AL64: JVHA
A65: Eksponeringsvægtet gns. RWRetail IRBNRK | B65: 56 | C65: IN_Regnskab | D65: NRK | E65: Retail IRB | J65: 13.27738855 | K65: 13.24484395 | L65: 12.92916994 | M65: 13.33493326 | N65: 12.64976495 | O65: 12.65599454 | P65: 12.6748076 | Q65: 12.57987676 | R65: 12.2510629 | S65: 11.7 | T65: 10.8 | U65: 12.86412931 | V65: 12.2 | W65: 12.19472137 | X65: 12.29727912 | Y65: 12.62908473 | Z65: 13.26107594 | AA65: 13.14906708 | AB65: 13.61476465 | AC65: 13.43 | AD65: 13.34 | AE65: 17.4 | AF65: 17.8 | AG65: 17.2 | AH65: 16.6 | AI65: 16.4 | AJ65: 17.1 | AK65: 16.9 | AL65: JVHA
A66: Eksponeringsvægtet gns. RWErhverv IRBNRK | B66: 57 | C66: IN_Regnskab | D66: NRK | E66: Erhverv IRB | J66: 32.66752565 | K66: 32.25787316 | L66: 32.83483987 | M66: 32.82732638 | N66: 29.55345502 | O66: 28.93443153 | P66: 28.65963278 | Q66: 28.58590631 | R66: 29.87580683 | S66: 28.5 | T66: 27.8 | U66: 27.46051801 | V66: 26.4 | W66: 26.19750196 | X66: 25.93765153 | Y66: 25.52229887 | Z66: 24.89059222 | AA66: 25.64587164 | AB66: 25.1599654 | AC66: 25.72 | AD66: 26.1 | AE66: 30.4 | AF66: 31 | AG66: 30.9 | AH66: 32.9 | AI66: 32.5 | AJ66: 31.8 | AK66: 32.1 | AL66: JVHA
E68: Mio. kr.
E69: Udvidede underposter til Nykredit Realkredit resultatopgørelse
A70: =E70&$E$69&D70 -> SolvensbehovUdvidede underposter til Nykredit Realkredit resultatopgørelseNRK | B70: =ROW() -> 70 | C70: IN_Regnskab | D70: NRK | E70: Solvensbehov | J70: 0.089 | K70: 0.089 | L70: 0.096 | M70: 0.096 | N70: 0.095 | O70: 0.095 | P70: 0.11 | Q70: 0.109 | R70: 0.11 | S70: 0.112 | T70: 0.112 | U70: 0.111 | V70: 0.112 | W70: 0.117 | X70: 0.116 | Y70: 0.114 | Z70: 0.114 | AA70: 0.114 | AB70: 0.106 | AC70: 0.106 | AD70: 0.104 | AE70: 0.108 | AF70: 0.104 | AG70: 0.103 | AH70: 0.103 | AI70: 0.101 | AJ70: 0.101 | AK70: 0.101 | AL70: <-- Kan findes i "MDA- ADI-tal" fil F34
E72: Udlånstype | T72: 129556 | U72: 133765 | V72: 130379 | W72: 132765 | X72: 135508 | Y72: 140520 | Z72: 137371 | AA72: 137786 | AB72: 143025.6743 | AC72: 137883 | AD72: 148423.5001 | AE72: 152786.5092 | AF72: 154023.0001 | AG72: 161399.0745 | AH72: =175776078783/1000000 -> 175776.0788 | AI72: =172415622550/1000000 -> 172415.6226 | AJ72: =181629597034.643/1000000 -> 181629.597 | AK72: =196703696342/1000000 -> 196703.6963 | AL72: gå til dette ark - S:\oekonomi-afd\REGNSKAB\17. Regnskabsrapporter\Nykredits fact book\Data\Datawarehouse\2025\Q1\Skabeloner\Q1 - NPL-ration skabelon opdater til dette kvartal
A73: =+E73&D73&C73 -> F1NRKIN_Regnskab | B73: =ROW() -> 73 | C73: IN_Regnskab | D73: NRK | E73: F1
A74: F2NRKIN_Regnskab | B74: =ROW() -> 74 | C74: IN_Regnskab | D74: NRK | E74: F2
A75: F3NRKIN_Regnskab | B75: =ROW() -> 75 | C75: IN_Regnskab | D75: NRK | E75: F3
A76: F4NRKIN_Regnskab | B76: =ROW() -> 76 | C76: IN_Regnskab | D76: NRK | E76: F4
A77: F5NRKIN_Regnskab | B77: =ROW() -> 77 | C77: IN_Regnskab | D77: NRK | E77: F5
A78: =+E78&D78&C78 -> F6+NRKIN_Regnskab | B78: =ROW() -> 78 | C78: IN_Regnskab | D78: NRK | E78: F6+
A79: =+E79&D79&C79 -> Fast RenteNRKIN_Regnskab | B79: =ROW() -> 79 | C79: IN_Regnskab | D79: NRK | E79: Fast Rente
A80: =+E80&D80&C80 -> RentemaxNRKIN_Regnskab | B80: =ROW() -> 80 | C80: IN_Regnskab | D80: NRK | E80: Rentemax
A81: =+E81&D81&C81 -> Variabel renteNRKIN_Regnskab | B81: =ROW() -> 81 | C81: IN_Regnskab | D81: NRK | E81: Variabel rente
A82: TotalNRKIN_Regnskab | B82: =ROW() -> 82 | C82: IN_Regnskab | D82: NRK | E82: Total
A84: =+E84&D84&C84 -> Gns. Antal heltidsansatte medarbejdereNRKIN_Regnskab | B84: =ROW() -> 84 | C84: IN_Regnskab | D84: NRK | E84: Gns. Antal heltidsansatte medarbejdere
A85: =+E85&D85&C85 -> ATP-medarbejderopgørelse (Y-T-D)NRKIN_Regnskab | B85: =ROW() -> 85 | C85: IN_Regnskab | D85: NRK | E85: ATP-medarbejderopgørelse (Y-T-D)

Sheet OUT_RatioAndKeyfigures1_PRINT
E5: Risk weights and capital ratios - Nykredit Group
E8: Exposure - weighted average risk weights (A-IRB method)
E9: % | F9: Q1/2025 | G9: Q2/2025 | H9: Q3/2025 | I9: Q4/2025 | J9: Q1/2026
E10: Retail - Mortgage | F10: 0.164 | G10: 0.158 | H10: 0.156 | I10: 0.16 | J10: 0.159
E11: Commercial - Mortgage | F11: 0.256 | G11: 0.255 | H11: 0.252 | I11: 0.251 | J11: 0.261
E12: Total Mortgage | F12: 0.193 | G12: 0.187 | H12: 0.184 | I12: 0.186 | J12: 0.187
E13: Retail - Banking | F13: 0.412 | G13: 0.415 | H13: 0.413 | I13: 0.458 | J13: 0.421
E14: Commercial - Banking excl. reverse transactions | F14: 0.612 | G14: 0.569 | H14: 0.568 | I14: 0.555 | J14: 0.531
E15: Reverse transactions | F15: 0.333 | G15: 0.244 | H15: 0.25 | I15: 0.198 | J15: 0.222
E16: Retail - Group | F16: 0.172 | G16: 0.166 | H16: 0.164 | I16: 0.171 | J16: 0.169
E17: Commercial - Group | F17: 0.309 | G17: 0.329 | H17: 0.325 | I17: 0.318 | J17: 0.321
E18: Note: The shown risk weights only relates to credit risk. Pillar II and operational risk is therefore not included. The risk weights per Q3/2024 and Q4/2024 are adjusted for capital reservations for the upcoming regulatory requirements applying to IRB model
E22: Capital ratios
E23: % | F23: Q1/2025 | G23: Q2/2025 | H23: Q3/2025 | I23: Q4/2025 | J23: Q1/2026
E24: Total capital ratio, % | F24: 0.25 | G24: 0.215 | H24: 0.216 | I24: 0.214 | J24: 0.214
E25: Common Equity Tier 1 (CET1) capital ratio, % | F25: 0.207 | G25: 0.173 | H25: 0.174 | I25: 0.173 | J25: 0.175
E26: Leverage ratio, % | F26: 0.053 | G26: 0.047 | H26: 0.046 | I26: 0.046 | J26: 0.046

Sheet OUT_RatioAndKeyfigures2_PRINT
E5: Key figures: CET1, MDA and ADI
E8: DKK million | F8: Q1/2025 | G8: Q2/2025 | H8: Q3/2025 | I8: Q4/2025 | J8: Q1/2026
E9: Nykredit Group
E10: CET1, fully loaded | F10: 98116 | G10: 89626 | H10: 90101 | I10: 90449 | J10: 90911
E11: Distance to MDA¹ | F11: 35331 | G11: 20461 | H11: 21574 | I11: 20961 | J11: 21836
E12: Available Distributable Items (ADI) | F12: 63712 | G12: 54700 | H12: 56030 | I12: 54056 | J12: 55880
E14: Nykredit Realkredit Group
E15: CET1, fully loaded | F15: 98251 | G15: 89609 | H15: 90085 | I15: 90449 | J15: 90899.58016
E16: Distance to MDA¹ | F16: 35415 | G16: 20445 | H16: 21558 | I16: 20949 | J16: 21823.89805
E17: Available Distributable Items (ADI) | F17: 69548 | G17: 58018 | H17: 59515 | I17: 59158 | J17: 59051
E18: Asset encumbrance2 | F18: 0.81571 | G18: 0.79488 | H18: 0.8036413102 | I18: 0.748691985 | J18: 0.7948832946
E20: Nykredit Realkredit A/S
E21: Internal capital adequacy requirement, % | F21: 0.103 | G21: 0.103 | H21: 0.101 | I21: 0.101 | J21: 0.101
E22: CET1, fully loaded | F22: 100917 | G22: 92110 | H22: 94354 | I22: 94461 | J22: 95337
E23: Distance to MDA¹ | F23: 49919 | G23: 42504 | H23: 45248 | I23: 44126 | J23: 44001
E24: Available Distributable Items (ADI) | F24: 84536 | G24: 76273 | H24: 78880 | I24: 78100 | J24: 77435
E25: ¹ Maximum Distributable Amount (MDA): Estimated MDA buffers calculated under the assumption that AT1 and T2 requirements are fully covered by relevant capital instruments and that the CET1 requirement is 13.3% for Nykredit Group, 13.3% for Nykredit Realkredit Group and 12.5% for Nykredit Realkredit A/S.
E27: 2 Values are published with a delay of 3 months
... 10 more rows

Sheet OUT_Supervisory Diamond_PRINT
E5: Supervisory Diamond
E8: Nykredit Realkredit Group | F8: Q1/2025 | G8: Q2/2025 | H8: Q3/2025 | I8: Q4/2025 | J8: Q1/2026
E9: Lending growth by segment (limit value <15%)
E10: Personal customers | F10: 4.2 | G10: 4.9 | H10: 5.34 | I10: 5.61 | J10: 5.87
E11: Commercial residential properties | F11: 7.63 | G11: 2 | H11: 2.29 | I11: 0.35 | J11: 0.62
E12: Agricultural properties | F12: 0.22 | G12: 0.1 | H12: 0.69 | I12: 0.35 | J12: 0.12
E13: Other commercial | F13: 1.87 | G13: 1.8 | H13: 2.24 | I13: 1.5 | J13: 1.79
E14: Borrower's interest rate risk (limit value <25%) | F14: 16.21 | G14: 13.5 | H14: 17.76 | I14: 16.73 | J14: 17.51
E15: Interest-only lending (limit value <10%) | F15: 2.32 | G15: 4.5 | H15: 2.29 | I15: 2.59 | J15: 2.51
E16: Short-term funding (year) (limit value <25%) | F16: 22.28 | G16: 15.2 | H16: 20.41 | I16: 20.53 | J16: 20.37
E17: Short-term funding (quarter) (limit value <12.5%) | F17: 9.22 | G17: 3.5 | H17: 7.9 | I17: 2.56 | J17: 2.53
E18: Large exposures (limit value <100%) | F18: 48.9 | G18: 51 | H18: 55 | I18: 51 | J18: 51.9
E20: Nykredit Bank A/S | F20: Q1/2025 | G20: Q2/2025 | H20: Q3/2025 | I20: Q4/2025 | J20: Q1/2026
E21: Lending growth (limit value <20%) | F21: 15.7 | G21: 16.4 | H21: 11.4 | I21: 9.6 | J21: 8.5
E22: Large exposures (limit value <175%) | F22: 122.9 | G22: 117.9 | H22: 117.3 | I22: 114.1 | J22: 114.4
E23: Property exposure (limit value <25%) | F23: 8.5 | G23: 9.2 | H23: 8.2 | I23: 8.4 | J23: 7.7
E24: Liquidity benchmark (limit value >100%) | F24: 236.5 | G24: 186.65 | H24: 204.2 | I24: 194.5 | J24: 193
E26: Spar Nord A/S | F26: Q1/2025 | G26: Q2/2025 | H26: Q3/2025 | I26: Q4/2025 | J26: Q1/2026
E27: Lending growth (limit value <20%) | F27: - | G27: 12.3 | H27: 10.3 | I27: 4.3 | J27: 0.5
E28: Large exposures (limit value <175%) | F28: - | G28: 62.1 | H28: 62.1 | I28: 47.2 | J28: 49.1
E29: Property exposure (limit value <25%) | F29: - | G29: 11.5 | H29: 11.7 | I29: 11.8 | J29: 14.6
E30: Liquidity benchmark (limit value >100%) | F30: - | G30: 492 | H30: 333 | I30: 371 | J30: 555
E32: Totalkredit A/S | F32: Q1/2025 | G32: Q2/2025 | H32: Q3/2025 | I32: Q4/2025 | J32: Q1/2026
E33: Lending growth by segment (limit value <15%)1
E34: Personal customers | F34: 4.7 | G34: 5.4 | H34: 5.85 | I34: 6.1 | J34: 6.35
E35: Commercial residential properties | F35: 11.8 | G35: 14.8 | H35: 17.84 | I35: 19.32 | J35: 18.19
E36: Agricultural properties | F36: 0 | G36: - | H36: 0 | I36: 0 | J36: 0
E37: Other commercial | F37: 7.12 | G37: 1.5 | H37: 9.5 | I37: 6.7 | J37: 6.32
E38: Borrower's interest rate risk (limit value <25%) | F38: 12.78 | G38: 13 | H38: 13.58 | I38: 13.96 | J38: 14.21
E39: Interest-only lending (limit value <10%) | F39: 4.65 | G39: 4.6 | H39: 4.47 | I39: 4.36 | J39: 4.31
E40: Short-term funding (year) (limit value <25%) | F40: 9.78 | G40: 11 | H40: 11.67 | I40: 10.52 | J40: 10.37
E41: Short-term funding (quarter) (limit value <12.5%) | F41: 1.6 | G41: 5 | H41: 0.93 | I41: 3.26 | J41: 3.19
E42: Large exposures (limit value <100%) | F42: 6.7 | G42: 7.7 | H42: 9.8 | I42: 7.7 | J42: 10.9
E43: 1 As Totalkredit's business lending is lower than Totalkredit's own funds, the segment is not subject to the 15% limit.

Sheet OUT_BusinessAreas_PRINT
E5: Business areas
E6: Nykredit Group
F8: Retail | G8: Personal and business banking. Mortgage lending and banking services tailored to Nykredit's personal customers and SMEs, including agricultural customers and residential rental customers.
F9: Corporates & Institutions | G9: Nykredit's corporate and institutional clients, the public housing segment, large housing cooperatives and mortgage lending to business customers for properties abroad.
F10: Partners | G10: Mortgage lending to personal and business customers arranged by local and regional banks.
F11: Group Items | G11: Income and costs not allocated to the business areas as well as core income from securities, investment portfolio income and net income relating to customer benefits programmes.
F13: Banking Partners
F14: Wealth Management

Sheet OUT_CoreIncBusArea_PRINT
H5: Business areas | M5: DKK million
H6: Income - Business areas | I6: Q1/2025 | J6: Q2/2025 | K6: Q3/2025 | L6: Q4/2025 | M6: Q1/2026
H7: Personal Banking | I7: 1306.949707 | J7: 1545.737249 | K7: 2264.374246 | L7: 2542.9171 | M7: 2337.40477
H8: Business Banking | I8: 1108.25111 | J8: 1137.712952 | K8: 1425.941098 | L8: 1418.795505 | M8: 1394.562163
H9: C&I | I9: 1251.300218 | J9: 1122.43241 | K9: 1148.92005 | L9: 1316.030342 | M9: 1264.675877
H10: Partners | I10: 1226.450189 | J10: 1217.943407 | K10: 1019.640611 | L10: 1142.398486 | M10: 1096.228187
H11: Group items | I11: 540.7158408 | J11: 1519.888874 | K11: 702.7338099 | L11: 282.6679136 | M11: -193.5418939
H12: Total income from business areas | I12: 5433.667064 | J12: 6543.714892 | K12: 6561.609815 | L12: 6702.809347 | M12: 5899.329102
H14: Lending and deposits - Business areas | I14: Q1/2025 | J14: Q2/2025 | K14: Q3/2025 | L14: Q4/2025 | M14: Q1/2026
H15: Mortgage lending (nominal)
H16: Personal Banking | I16: 184229.6322 | J16: 281825.037 | K16: 285120.4995 | L16: 289761.1896 | M16: 294091.412
H17: -of which Nykredit Realkredit | I17: 27228.01122 | J17: 26298.40982 | K17: 25560.8018 | L17: 24709.04214 | M17: 23990.79994
H18: -of which Totalkredit | I18: 157001.621 | J18: 255526.6271 | K18: 259559.6977 | L18: 265052.1474 | M18: 270100.612
H19: Business Banking | I19: 230353.2836 | J19: 233878.8322 | K19: 235063.3122 | L19: 234256.509 | M19: 236284.1841
H20: C&I | I20: 321510.18 | J20: 323746.3848 | K20: 327768.6671 | L20: 329391.9054 | M20: 330791.0085
H21: Partners | I21: 764846.334 | J21: 676755.7998 | K21: 687280.2329 | L21: 696585.7395 | M21: 708524.6894
H22: Total mortgage lending | I22: 1500939.43 | J22: 1516206.054 | K22: 1535232.712 | L22: 1549995.344 | M22: 1569691.294
H24: Bank lending
H25: Personal Banking | I25: 22633.93402 | J25: 51787.11209 | K25: 53944.68608 | L25: 54822.19987 | M25: 54010.9615
H26: Business Banking | I26: 38595.79005 | J26: 73829.05264 | K26: 72157.90673 | L26: 71061.73657 | M26: 71525.70976
H27: C&I | I27: 47216.96264 | J27: 51385.33168 | K27: 50659.3041 | L27: 51474.4285 | M27: 50711.89823
H28: Group Items | I28: 400.240607 | J28: 208.2016179 | K28: -217.7681116 | L28: -300.4965368 | M28: -8.268717074
H29: Total bank lending | I29: 108846.9273 | J29: 177209.698 | K29: 176544.1288 | L29: 177057.8684 | M29: 176240.3008
H31: Deposits
H32: Personal Banking | I32: 70827.06048 | J32: 130485.8188 | K32: 130892.6429 | L32: 134636.4 | M32: 133440.9481
H33: Business Banking | I33: 30143.14231 | J33: 54687.59443 | K33: 58780.03204 | L33: 60123.318 | M33: 59114.61957
H34: C&I | I34: 18414.97338 | J34: 16792.4451 | K34: 15514.12219 | L34: 15796.47013 | M34: 14585.89048
H35: Group items | I35: 6601.055584 | J35: 10416.82252 | K35: 10266.15607 | L35: 8265.343028 | M35: 9568.818137
H36: Total deposits | I36: 125986.2318 | J36: 212382.6809 | K36: 215452.9532 | L36: 218821.5312 | M36: 216710.2763

Sheet OUT_RetailPrivat_PRINT
F5: Personal Banking
K7: DKK million
F8: Results - Personal Banking | G8: Q1/2025 | H8: Q2/2025 | I8: Q3/2025 | J8: Q4/2025 | K8: Q1/2026
F9: Net interest income | G9: 701.5265411 | H9: 930.2288921 | I9: 1364.705711 | J9: 1363.204398 | K9: 1345.427368
F10: Net fee income | G10: 176.3256182 | H10: 181.9200807 | I10: 365.9595451 | J10: 624.4470454 | K10: 414.2544547
F11: Wealth Management income | G11: 348.6452805 | H11: 362.7933211 | I11: 442.3483969 | J11: 469.7910312 | K11: 499.957357
F12: Net interest from capitalisation | G12: 52.21016746 | H12: 48.6499717 | I12: 36.92793493 | J12: 42.00096911 | K12: 33.10525265
F13: Trading, investment portfolio and other income | G13: 28.2495999 | H13: 22.1474833 | I13: 54.42265847 | J13: 43.47365574 | K13: 44.6603377
F14: Income | G14: 1306.949707 | H14: 1545.737249 | I14: 2264.374246 | J14: 2542.9171 | K14: 2337.40477
F15: Costs | G15: 780.8741157 | H15: 981.9611112 | I15: 1290.490681 | J15: 1594.082545 | K15: 1361.061931
F16: Business profit before impairment charges | G16: 526.0755914 | H16: 563.7761378 | I16: 973.8835655 | J16: 948.8345551 | K16: 976.3428391
F17: Impairment charges on mortgage lending | G17: -44.44550874 | H17: -37.77656556 | I17: 52.80381609 | J17: -151.8989613 | K17: -60.1831686
F18: Impairment charges on bank lending | G18: 14.24717505 | H18: -2.595102494 | I18: 55.27395825 | J18: 38.589677 | K18: 7.378177853
F19: Legacy derivatives | G19: 0.7233567935 | H19: 0.2446377976 | I19: 0.516164746 | J19: 0.5689405682 | K19: 0.0905039073
F20: Business profit | G20: 556.9972819 | H20: 604.3924436 | I20: 866.321956 | J20: 1062.71278 | K20: 1029.238334
F23: Activity - Personal Banking | G23: Q1/2025 | H23: Q2/2025 | I23: Q3/2025 | J23: Q4/2025 | K23: Q1/2026
F24: Mortgage lending
F25: Gross new lending, year-to-date | G25: 7885.520166 | H25: 18872.04378 | I25: 32046.2956 | J25: 48569.12358 | K25: 12299.77884
F26: Portfolio at nominal value, end of period | G26: 175868.0488 | H26: 269245.5598 | I26: 273497.0129 | J26: 276756.2398 | K26: 279510.3957
F27: Impairment charges for the period as % of lending | G27: -0.0002041942482 | H27: -0.0002662155769 | I27: -6.965978058e-05 | J27: -0.000438993782 | K27: -0.0001634667385
F29: Total impairment provisions, stage 1-3, end of period | G29: 1908.025541 | H29: 2190.711069 | I29: 2300.424088 | J29: 2114.915927 | K29: 2109.218808
F30: Total impairment provisions as % of lending | G30: 0.01073274651 | H30: 0.00807081184 | I30: 0.008337395919 | J30: 0.0075838461 | K30: 0.007489601928
F32: Banking
F33: Lending, end of period | G33: 22633.93402 | H33: 51787.11209 | I33: 53944.68608 | J33: 54822.19987 | K33: 54010.9615
F34: Deposits, end of period | G34: 70827.06048 | H34: 130485.8188 | I34: 130892.6429 | J34: 134636.4 | K34: 133440.9481
F35: Impairment charges for the period as % of lending* | G35: 0.0003137447403 | H35: 0.0001319452999 | I35: 0.0007248314619 | J35: 0.0001421933897 | K35: 0.0003281643326
F37: Total impairment provisions, stage 1-3, end of period | G37: 434.0777208 | H37: 412.5221128 | I37: 414.891471 | J37: 711.0157544 | K37: 770.6993083
F38: Total impairment provisions as % of lending | G38: 0.01881730102 | H38: 0.007902777848 | I38: 0.007632352745 | J38: 0.01280343208 | K38: 0.01406856413
F40: Guarantees, end of period | G40: 5927.017767 | H40: 6392.82 | I40: 6709.647461 | J40: 6230.538811 | K40: 9585.41
F41: Provisions for guarantees, end of period | G41: 53.69745901 | H41: 67.00167929 | I41: 66.81792497 | J41: 71.42217745 | K41: 77.30381256
F42: *Excluding impairment charges from guarantees.

Sheet OUT_RetailErhverv_PRINT
F5: Business Banking
L7: DKK million
F8: Results - Business Banking | H8: Q1/2025 | I8: Q2/2025 | J8: Q3/2025 | K8: Q4/2025 | L8: Q1/2026
F9: Net interest income | H9: 782.0050373 | I9: 882.4256493 | J9: 1079.065627 | K9: 1063.506759 | L9: 1045.637268
F10: Net fee income | H10: 174.4314573 | I10: 121.8661633 | J10: 175.2439667 | K10: 160.7226443 | L10: 183.7812395
F11: Wealth Management income | H11: 40.53970617 | I11: 49.635866 | J11: 74.53110896 | K11: 85.93073773 | L11: 71.32096639
F12: Net interest from capitalisation | H12: 76.91233471 | I12: 57.00862982 | J12: 41.57607136 | K12: 51.59504232 | L12: 53.18498296
F13: Net income relating to customer benefits programmes | H13: 1.005 | I13: -1.13 | J13: 0.125 | K13: 0 | L13: 0
F14: Trading, investment portfolio and other income | H14: 33.35757416 | I14: 27.90664394 | J14: 55.399323 | K14: 57.04032222 | L14: 40.63770601
F15: Income | H15: 1108.25111 | I15: 1137.712952 | J15: 1425.941098 | K15: 1418.795505 | L15: 1394.562163
F16: Costs | H16: 330.3053299 | I16: 407.1497762 | J16: 530.5278434 | K16: 507.2969574 | L16: 524.8526402
F17: Business profit before impairment charges | H17: 777.9457798 | I17: 730.5631761 | J17: 895.4132541 | K17: 911.4985477 | L17: 869.7095224
F18: Impairment charges on mortgage lending | H18: -95.80346638 | I18: -238.2630646 | J18: -30.07885322 | K18: 0.5640196277 | L18: 94.00975852
F19: Impairment charges on bank lending | H19: 30.68673111 | I19: -19.34349618 | J19: -166.1508404 | K19: -64.39792781 | L19: -112.9772104
F20: Legacy derivatives | H20: 26.18991239 | I20: 9.434672547 | J20: 13.44133189 | K20: 20.16708174 | L20: -0.4131754101
F21: Business profit | H21: 869.2524274 | I21: 997.6044095 | J21: 1105.08428 | K21: 995.4995376 | L21: 888.2637989
F25: Activity - Business Banking | H25: Q1/2025 | I25: Q2/2025 | J25: Q3/2025 | K25: Q4/2025 | L25: Q1/2026
F26: Mortgage lending
F27: Gross new lending, year-to-date | H27: 9939.637729 | I27: 16423.81473 | J27: 22516.47543 | K27: 30070.06043 | L27: 8433.081
F28: Portfolio at nominal value, end of period | H28: 221886.2249 | I28: 225593.9527 | J28: 227313.7247 | K28: 225667.0062 | L28: 227311.4867
F29: Impairment charges for the period as % of lending | H29: -0.0001659877657 | I29: -0.0009553685879 | J29: -0.001518520159 | K29: -0.001761211264 | L29: 2.498524525e-05
F31: Total impairment provisions, stage 1-3, end of period | H31: 4297.481678 | I31: 4001.379964 | J31: 3832.958524 | K31: 3785.113089 | L31: 3746.540327
F32: Total impairment provisions as % of lending | H32: 0.01899996133 | I32: 0.01742796736 | J32: 0.01658236437 | K32: 0.01649630912 | L32: 0.01621471617
F34: Banking
F35: Lending, end of period | H35: 38595.79005 | I35: 73829.05264 | J35: 72157.90673 | K35: 71061.73657 | L35: 71525.70976
F36: Deposits, end of period | H36: 30143.14231 | I36: 54687.59443 | J36: 58780.03204 | K36: 60123.318 | L36: 59114.61957
F37: Impairment charges for the period as % of lending* | H37: 0.001201386571 | I37: -2.759529768e-05 | J37: -0.00304168827 | K37: -0.004401450269 | L37: -0.002690890319
F39: Total impairment provisions, stage 1-3, end of period | H39: 2144.415767 | I39: 2088.656647 | J39: 1976.472148 | K39: 2045.827326 | L39: 1969.828035
F40: Total impairment provisions as % of lending | H40: 0.05263635085 | I40: 0.02751211366 | J40: 0.02666066915 | K40: 0.02798379835 | L40: 0.02680200859
F42: Guarantees, end of period | H42: 2567.947385 | I42: 2629 | J42: 3806.765497 | K42: 3716.548061 | L42: 3755.02
F43: Provisions for guarantees, end of period | H43: 142.4557719 | I43: 142.8534813 | J43: 118.2063091 | K43: 125.8252888 | L43: 97.29008227
F44: *Excluding impairment charges from guarantees.

Sheet OUT_C&I_PRINT
F5: Corporates & Institutions
K7: DKK million
F8: Results - Corporates & Institutions | G8: Q1/2025 | H8: Q2/2025 | I8: Q3/2025 | J8: Q4/2025 | K8: Q1/2026
F9: Net interest income | G9: 747.0316041 | H9: 738.3795422 | I9: 734.6417475 | J9: 741.3055006 | K9: 746.6458094
F10: Net fee income | G10: 200.4488413 | H10: 168.7405605 | I10: 241.0021323 | J10: 185.285445 | K10: 213.1601699
F11: Wealth Management income | G11: 130.6127399 | H11: 124.6282733 | I11: 128.9157992 | J11: 129.9675919 | K11: 134.2629546
F12: Net interest from capitalisation | G12: 85.62576637 | H12: 44.33830212 | I12: 11.38636079 | J12: 18.25414966 | K12: 22.82247138
F13: Trading, investment portfolio and other income | G13: 87.58126624 | H13: 46.34573157 | I13: 32.97401053 | J13: 241.2176549 | K13: 147.7844713
F14: Income | G14: 1251.300218 | H14: 1122.43241 | I14: 1148.92005 | J14: 1316.030342 | K14: 1264.675877
F15: Costs | G15: 272.4132438 | H15: 259.8554044 | I15: 284.0559221 | J15: 301.8644711 | K15: 302.1815859
F16: Business profit before impairment charges | G16: 978.8869741 | H16: 862.5770053 | I16: 864.8641283 | J16: 1014.165871 | K16: 962.4942907
F17: Impairment charges on mortgage lending | G17: -24.80085369 | H17: 190.0905965 | I17: -30.62332644 | J17: 118.3800149 | K17: -121.7515453
F18: Impairment charges on bank lending | G18: 94.73228461 | H18: 189.9854542 | I18: 77.20566511 | J18: -46.96765138 | K18: 198.177596
F19: Legacy derivatives | G19: 19.02077774 | H19: -4.074410285 | I19: 8.190819696 | J19: 16.87008206 | K19: 27.03319894
F20: Business profit | G20: 927.9763209 | H20: 478.4265443 | I20: 826.4726093 | J20: 959.6235896 | K20: 913.1014389
F22: Activity - Corporates & Institutions | G22: Q1/2025 | H22: Q2/2025 | I22: Q3/2025 | J22: Q4/2025 | K22: Q1/2026
F23: Mortgage lending
F24: Gross new lending, year-to-date | G24: 6189.185584 | H24: 15536.26002 | I24: 27786.60032 | J24: 37516.90895 | K24: 8534.826515
F25: Portfolio at nominal value, end of period | G25: 310354.5422 | H25: 312622.9382 | I25: 316116.6563 | J25: 317240.6274 | K25: 316944.8524
F26: Impairment charges for the period as % of lending | G26: 0.0001940440258 | H26: 0.001244377811 | I26: 0.001374795506 | J26: 0.001579613146 | K26: 0.0002059926722
F28: Total impairment provisions, stage 1-3, end of period | G28: 1384.272542 | H28: 1767.875436 | I28: 1820.47027 | J28: 1788.097585 | K28: 1868.27456
F29: Total impairment provisions as % of lending | G29: 0.004440488245 | H29: 0.005623177775 | I29: 0.00572588137 | J29: 0.005604816886 | K29: 0.005860092957
F31: Banking
F32: Lending, end of period | G32: 47216.96264 | H32: 66241.95223 | I32: 65472.80399 | J32: 66255.86397 | K32: 50711.89823
F33: Deposits, end of period | G33: 18414.97338 | H33: 16792.4451 | I33: 15514.12219 | J33: 15796.47013 | K33: 14585.89048
F34: Impairment charges for the period as % of lending | G34: 0.001949883239 | H34: 0.005480381706 | I34: 0.007107811427 | J34: 0.006262203103 | K34: 0.003744252954
F36: Total impairment provisions, stage 1-3, end of period | G36: 639.5147369 | H36: 840.210751 | I36: 926.6847696 | J36: 891.3796791 | K36: 1095.636122
F37: Total impairment provisions as % of lending | G37: 0.01336318033 | H37: 0.01252509928 | I37: 0.01395620338 | J37: 0.01327500029 | K37: 0.02114820047
F39: Guarantees, end of period | G39: 3590.990429 | H39: 3286.78 | I39: 2751.449128 | J39: 2470.781494 | K39: 663.39
F40: Provisions for guarantees, end of period | G40: 85.77761964 | H40: 79.50401301 | I40: 74.28016831 | J40: 67.05948455 | K40: 67.1542282
F41: *Excluding impairment charges from guarantees.

Sheet OUT_TOTPartners_PRINT
F5: Partners
K7: DKK million
F8: Results - Partners | G8: Q1/2025 | H8: Q2/2025 | I8: Q3/2025 | J8: Q4/2025 | K8: Q1/2026
F9: Net interest income | G9: 805.0898444 | H9: 793.4923152 | I9: 715.3543989 | J9: 758.4232158 | K9: 728.5555541
F10: Net fee income | G10: 214.5292033 | H10: 264.0115223 | I10: 173.4050498 | J10: 250.3211163 | K10: 191.7817266
F11: Wealth Management income | G11: 174.7420709 | H11: 169.9981026 | I11: 178.2267377 | J11: 185.3255605 | K11: 188.6439578
F12: Net interest from capitalisation | G12: 29.6939584 | H12: 1.471854663 | I12: -45.69255891 | J12: -41.68467114 | K12: -13.19040748
F13: Net income relating to customer benefits programmes1 | G13: 0 | H13: 0 | I13: 0 | J13: 0 | K13: 0
F14: Trading, investment portfolio and other income | G14: 2.39511176 | H14: -11.03038783 | I14: -1.65301613 | J14: -9.9867353 | K14: 0.43735584
F15: Income | G15: 1226.450189 | H15: 1217.943407 | I15: 1019.640611 | J15: 1142.398486 | K15: 1096.228187
F16: Costs | G16: 252.0129144 | H16: 248.345907 | I16: 224.5927839 | J16: 226.0263066 | K16: 225.9751237
F17: Business profit before impairment charges | G17: 974.4372743 | H17: 969.5975 | I17: 795.0478275 | J17: 916.3721796 | K17: 870.2530631
F18: Impairment charges on mortgage lending | G18: 49.95730719 | H18: 83.03478451 | I18: 121.9860338 | J18: 119.2455395 | K18: -22.10861382
F19: Legacy derivatives | G19: 0 | H19: 0 | I19: 0 | J19: 0 | K19: 0
F20: Business profit | G20: 924.4799671 | H20: 886.5627155 | I20: 673.0617937 | J20: 797.12664 | K20: 892.361677
F24: Activity - Partners | G24: Q1/2025 | H24: Q2/2025 | I24: Q3/2025 | J24: Q4/2025 | K24: Q1/2026
F25: Mortgage lending
F26: Gross new lending, year-to-date | G26: 43223.152 | H26: 86202.67276 | I26: 126577.4857 | J26: 172982.5807 | K26: 39608.369
F27: Portfolio at nominal value, end of period | G27: 772876.2606 | H27: 689179.5697 | I27: 698772.0298 | J27: 709161.5284 | K27: 722912.3083
F28: Impairment charges for the period as % of lending | G28: 6.451983819e-05 | H28: 0.0001926015212 | I28: 0.0003641479057 | J28: 0.0005265671251 | K28: -3.051953123e-05
F30: Total impairment provisions, stage 1-3, end of period | G30: 1417.48521 | H30: 1324.279242 | I30: 1432.808645 | J30: 1524.055945 | K30: 1496.3876
F31: Total impairment provisions as % of lending | G31: 0.001830681467 | H31: 0.001917844837 | I31: 0.0020462707 | J31: 0.002144486928 | K31: 0.002065667638
F32: 1 "Net income relating to customer benefits programmes" comprising discounts etc, such as KundeKroner and other benefits granted to the Group's customeres. The amount includes contributions received.

Sheet OUT_WealthManagement_PRINTsk (hidden)
A1: ="Slet til og med række "&A2&" og ned" -> Slet til og med række 49 og ned
A2: 49
A3: =(+A2&":"&"500") -> 49:500
A4: INDEKS
F5: Wealth Management
K6: DKK million
F7: Results - Wealth Management | G7: =IF(INPUT_KVT="1 kvt","Q1/",IF(INPUT_KVT="2 kvt","Q2/",IF(INPUT_KVT="3 kvt","Q3/",IF(INPUT_KVT="4 kvt","Q4/"))))&Forrige_Aar -> Q1/2025 | H7: =IF(INPUT_KVT="1 kvt","Q2/",IF(INPUT_KVT="2 kvt","Q3/",IF(INPUT_KVT="3 kvt","Q4/",IF(INPUT_KVT="4 kvt","Q1/"))))&IF(LEFT(I7,3)="Q1/",RIGHT(I7,4)-1,RIGHT(I7,4)) -> Q2/2025 | I7: =IF(INPUT_KVT="1 kvt","Q3/",IF(INPUT_KVT="2 kvt","Q4/",IF(INPUT_KVT="3 kvt","Q1/",IF(INPUT_KVT="4 kvt","Q2/"))))&IF(LEFT(J7,3)="Q1/",RIGHT(J7,4)-1,RIGHT(J7,4)) -> Q3/2025 | J7: =IF(INPUT_KVT="1 kvt","Q4/",IF(INPUT_KVT="2 kvt","Q1/",IF(INPUT_KVT="3 kvt","Q2/",IF(INPUT_KVT="4 kvt","Q3/"))))&IF(LEFT(K7,3)="Q1/",RIGHT(K7,4)-1,RIGHT(K7,4)) -> Q4/2025 | K7: =IF(INPUT_KVT="1 kvt","Q1/",IF(INPUT_KVT="2 kvt","Q2/",IF(INPUT_KVT="3 kvt","Q3/",IF(INPUT_KVT="4 kvt","Q4/"))))&INPUT_AAR -> Q1/2026
F8: Net interest income | G8: =G61 -> 
F9: Net fee income
F10: Wealth Management income | G10: =G63 -> 
F11: Net interest from capitalisation
F12: Trading, investment portfolio and other income | G12: =G66 -> 
F13: Income | G13: =G67 -> 
F14: Costs
F15: Business profit before impairment charges | G15: =G69 -> 
F16: Impairment charges on mortgage lending | G16: =G71 ->  | N16: ok til koncrapport
F17: Impairment charges on bank lending | J17: =J72 -> 
F18: Legacy derivatives | J18: =J73 -> 
F19: Business profit | G19: =G74 ->  | H19: =H74 ->  | I19: =I74 ->  | J19: =J74 ->  | K19: =K74 -> 
F21: Activity - Wealth Management | G21: =IF(INPUT_KVT="1 kvt","Q1/",IF(INPUT_KVT="2 kvt","Q2/",IF(INPUT_KVT="3 kvt","Q3/",IF(INPUT_KVT="4 kvt","Q4/"))))&Forrige_Aar -> Q1/2025 | H21: =IF(INPUT_KVT="1 kvt","Q2/",IF(INPUT_KVT="2 kvt","Q3/",IF(INPUT_KVT="3 kvt","Q4/",IF(INPUT_KVT="4 kvt","Q1/"))))&IF(LEFT(I21,3)="Q1/",RIGHT(I21,4)-1,RIGHT(I21,4)) -> Q2/2025 | I21: =IF(INPUT_KVT="1 kvt","Q3/",IF(INPUT_KVT="2 kvt","Q4/",IF(INPUT_KVT="3 kvt","Q1/",IF(INPUT_KVT="4 kvt","Q2/"))))&IF(LEFT(J21,3)="Q1/",RIGHT(J21,4)-1,RIGHT(J21,4)) -> Q3/2025 | J21: =IF(INPUT_KVT="1 kvt","Q4/",IF(INPUT_KVT="2 kvt","Q1/",IF(INPUT_KVT="3 kvt","Q2/",IF(INPUT_KVT="4 kvt","Q3/"))))&IF(LEFT(K21,3)="Q1/",RIGHT(K21,4)-1,RIGHT(K21,4)) -> Q4/2025 | K21: =IF(INPUT_KVT="1 kvt","Q1/",IF(INPUT_KVT="2 kvt","Q2/",IF(INPUT_KVT="3 kvt","Q3/",IF(INPUT_KVT="4 kvt","Q4/"))))&INPUT_AAR -> Q1/2026
F22: Mortgage lending
F23: Gross new lending, year-to-date | G23: =G83 -> 
F24: Portfolio at nominal value, end of period
F25: Impairment charges for the period as % of lending | G25: =G102 ->  | H25: =H102 ->  | I25: =I102 ->  | J25: =J102 ->  | K25: =K102 -> 
F27: Total impairment provisions, stage 1-3, end of period | G27: =G85 -> 
F28: Total impairment provisions as % of lending
F30: Banking
F31: Lending, end of period | G31: =G89 -> 
F32: Deposits, end of period
F33: Impairment charges for the period as % of lending* | G33: =G103 ->  | H33: =H103 ->  | I33: =I103 ->  | J33: =J103 ->  | K33: =K103 -> 
F35: Total impairment provisions, stage 1-3, end of period | G35: =G91 -> 
F36: Total impairment provisions as % of lending
F38: Guarantees, end of period | G38: =G93 -> 990.5564975 | H38: 1335.39 | I38: 1115.247499 | J38: 1403.034759 | K38: 1154.38
F39: Provisions for guarantees, end of period
F41: Assets under management | G41: =G104 -> 
F42: of which the investment funds of the Nykredit Group | G42: =G105 -> 0 | H42: =H105 -> 0 | I42: =I105 -> 0 | J42: =J105 -> 0 | K42: =K105 -> 0
F43: Assets under administration in Nykredit Portefølje Administration A/S
F44: *Excluding impairment charges from guarantees.
F50: Kontroller | G50: =G7 -> Q1/2025 | H50: =H7 -> Q2/2025 | I50: =I7 -> Q3/2025 | J50: =J7 -> Q4/2025 | K50: =K7 -> Q1/2026
F51: Income from core business | G51: =ROUND(G13-SUM(G8:G12),0) ->  | H51: =ROUND(H13-SUM(H8:H12),0) ->  | I51: =ROUND(I13-SUM(I8:I12),0) ->  | J51: =ROUND(J13-SUM(J8:J12),0) ->  | K51: =ROUND(K13-SUM(K8:K12),0) -> 
F52: Profit from core business before impairment charges | G52: =ROUND(G13-G14-G15,0) ->  | H52: =ROUND(H13-H14-H15,0) ->  | I52: =ROUND(I13-I14-I15,0) ->  | J52: =ROUND(J13-J14-J15,0) ->  | K52: =ROUND(K13-K14-K15,0) -> 
F53: Profit from core business | G53: =ROUND(G15-G16-G17-G19,0) ->  | H53: =ROUND(H15-H16-H17-H19,0) ->  | I53: =ROUND(I15-I16-I17-I19,0) ->  | J53: =ROUND(J15-J16-J17-J19,0) ->  | K53: =ROUND(K15-K16-K17-K19,0) -> 
C58: Rapportering_intern | D58: NYR | F58: Resultat for Wealth Management | G58: =G60&IF(INPUT_KVT="1 kvt","Q1",IF(INPUT_KVT="2 kvt","Q2",IF(INPUT_KVT="3 kvt","Q3",IF(INPUT_KVT="4 kvt","Q4")))) -> 2025Q1 | H58: =H60&IF(INPUT_KVT="1 kvt","Q2",IF(INPUT_KVT="2 kvt","Q3",IF(INPUT_KVT="3 kvt","Q4",IF(INPUT_KVT="4 kvt","Q1")))) -> 2025Q2 | I58: =I60&IF(INPUT_KVT="1 kvt","Q3",IF(INPUT_KVT="2 kvt","Q4",IF(INPUT_KVT="3 kvt","Q1",IF(INPUT_KVT="4 kvt","Q2")))) -> 2025Q3 | J58: =J60&IF(INPUT_KVT="1 kvt","Q4",IF(INPUT_KVT="2 kvt","Q1",IF(INPUT_KVT="3 kvt","Q2",IF(INPUT_KVT="4 kvt","Q3")))) -> 2025Q4 | K58: =K60&IF(INPUT_KVT="1 kvt","Q1",IF(INPUT_KVT="2 kvt","Q2",IF(INPUT_KVT="3 kvt","Q3",IF(INPUT_KVT="4 kvt","Q4")))) -> 2026Q1
C59: FO_13000 | D59: TOT | G59: =IF(INPUT_KVT="1 kvt","1 kvt",IF(INPUT_KVT="2 kvt","2 kvt",IF(INPUT_KVT="3 kvt","3 kvt",IF(INPUT_KVT="4 kvt","4 kvt")))) -> 1 kvt | H59: =IF(INPUT_KVT="1 kvt","2 kvt",IF(INPUT_KVT="2 kvt","3 kvt",IF(INPUT_KVT="3 kvt","4 kvt",IF(INPUT_KVT="4 kvt","1 kvt")))) -> 2 kvt | I59: =IF(INPUT_KVT="1 kvt","3 kvt",IF(INPUT_KVT="2 kvt","4 kvt",IF(INPUT_KVT="3 kvt","1 kvt",IF(INPUT_KVT="4 kvt","2 kvt")))) -> 3 kvt | J59: =IF(INPUT_KVT="1 kvt","4 kvt",IF(INPUT_KVT="2 kvt","1 kvt",IF(INPUT_KVT="3 kvt","2 kvt",IF(INPUT_KVT="4 kvt","3 kvt")))) -> 4 kvt | K59: =IF(INPUT_KVT="1 kvt","1 kvt",IF(INPUT_KVT="2 kvt","2 kvt",IF(INPUT_KVT="3 kvt","3 kvt",IF(INPUT_KVT="4 kvt","4 kvt")))) -> 1 kvt
F60: Mio. kr. | G60: =IF(H59="1 kvt",Forrige_Aar,H60) -> 2025 | H60: =IF(I59="1 kvt",Forrige_Aar,I60) -> 2025 | I60: =IF(J59="1 kvt",Forrige_Aar,J60) -> 2025 | J60: =IF(K59="1 kvt",Forrige_Aar,K60) -> 2025 | K60: =INPUT_AAR -> 2026
D61: PL_11 | F61: Netto renteindtægter | G61: =_xll.OneStreamExcelAddIn.XFFunctions.XFGetCell(TRUE, CUBE, ENTITY,Parent, Cons, Scenario, G$58, View,$D61, Flow, Origin, IC, $C$58, $C$59, UD_3, UD_4, UD_5, UD_6, UD_7, UD_8)/SKALERING ->  | H61: =_xll.OneStreamExcelAddIn.XFFunctions.XFGetCell(TRUE, CUBE, ENTITY,Parent, Cons, Scenario, H$58, View,$D61, Flow, Origin, IC, $C$58, $C$59, UD_3, UD_4, UD_5, UD_6, UD_7, UD_8)/SKALERING ->  | I61: =_xll.OneStreamExcelAddIn.XFFunctions.XFGetCell(TRUE, CUBE, ENTITY,Parent, Cons, Scenario, I$58, View,$D61, Flow, Origin, IC, $C$58, $C$59, UD_3, UD_4, UD_5, UD_6, UD_7, UD_8)/SKALERING ->  | J61: =_xll.OneStreamExcelAddIn.XFFunctions.XFGetCell(TRUE, CUBE, ENTITY,Parent, Cons, Scenario, J$58, View,$D61, Flow, Origin, IC, $C$58, $C$59, UD_3, UD_4, UD_5, UD_6, UD_7, UD_8)/SKALERING ->  | K61: =_xll.OneStreamExcelAddIn.XFFunctions.XFGetCell(TRUE, CUBE, ENTITY,Parent, Cons, Scenario, K$58, View,$D61, Flow, Origin, IC, $C$58, $C$59, UD_3, UD_4, UD_5, UD_6, UD_7, UD_8)/SKALERING -> 
D62: PL_12 | F62: Netto gebyrindtægter | G62: =_xll.OneStreamExcelAddIn.XFFunctions.XFGetCell(TRUE, CUBE, ENTITY,Parent, Cons, Scenario, G$58, View,$D62, Flow, Origin, IC, $C$58, $C$59, UD_3, UD_4, UD_5, UD_6, UD_7, UD_8)/SKALERING ->  | H62: =_xll.OneStreamExcelAddIn.XFFunctions.XFGetCell(TRUE, CUBE, ENTITY,Parent, Cons, Scenario, H$58, View,$D62, Flow, Origin, IC, $C$58, $C$59, UD_3, UD_4, UD_5, UD_6, UD_7, UD_8)/SKALERING ->  | I62: =_xll.OneStreamExcelAddIn.XFFunctions.XFGetCell(TRUE, CUBE, ENTITY,Parent, Cons, Scenario, I$58, View,$D62, Flow, Origin, IC, $C$58, $C$59, UD_3, UD_4, UD_5, UD_6, UD_7, UD_8)/SKALERING ->  | J62: =_xll.OneStreamExcelAddIn.XFFunctions.XFGetCell(TRUE, CUBE, ENTITY,Parent, Cons, Scenario, J$58, View,$D62, Flow, Origin, IC, $C$58, $C$59, UD_3, UD_4, UD_5, UD_6, UD_7, UD_8)/SKALERING ->  | K62: =_xll.OneStreamExcelAddIn.XFFunctions.XFGetCell(TRUE, CUBE, ENTITY,Parent, Cons, Scenario, K$58, View,$D62, Flow, Origin, IC, $C$58, $C$59, UD_3, UD_4, UD_5, UD_6, UD_7, UD_8)/SKALERING -> 
D63: PL_13 | F63: Wealth Management indtægter | G63: =_xll.OneStreamExcelAddIn.XFFunctions.XFGetCell(TRUE, CUBE, ENTITY,Parent, Cons, Scenario, G$58, View,$D63, Flow, Origin, IC, $C$58, $C$59, UD_3, UD_4, UD_5, UD_6, UD_7, UD_8)/SKALERING ->  | H63: =_xll.OneStreamExcelAddIn.XFFunctions.XFGetCell(TRUE, CUBE, ENTITY,Parent, Cons, Scenario, H$58, View,$D63, Flow, Origin, IC, $C$58, $C$59, UD_3, UD_4, UD_5, UD_6, UD_7, UD_8)/SKALERING ->  | I63: =_xll.OneStreamExcelAddIn.XFFunctions.XFGetCell(TRUE, CUBE, ENTITY,Parent, Cons, Scenario, I$58, View,$D63, Flow, Origin, IC, $C$58, $C$59, UD_3, UD_4, UD_5, UD_6, UD_7, UD_8)/SKALERING ->  | J63: =_xll.OneStreamExcelAddIn.XFFunctions.XFGetCell(TRUE, CUBE, ENTITY,Parent, Cons, Scenario, J$58, View,$D63, Flow, Origin, IC, $C$58, $C$59, UD_3, UD_4, UD_5, UD_6, UD_7, UD_8)/SKALERING ->  | K63: =_xll.OneStreamExcelAddIn.XFFunctions.XFGetCell(TRUE, CUBE, ENTITY,Parent, Cons, Scenario, K$58, View,$D63, Flow, Origin, IC, $C$58, $C$59, UD_3, UD_4, UD_5, UD_6, UD_7, UD_8)/SKALERING -> 
D64: PL_14 | F64: Nettorente vedr. kapitalisering | G64: =_xll.OneStreamExcelAddIn.XFFunctions.XFGetCell(TRUE, CUBE, ENTITY,Parent, Cons, Scenario, G$58, View,$D64, Flow, Origin, IC, $C$58, $C$59, UD_3, UD_4, UD_5, UD_6, UD_7, UD_8)/SKALERING ->  | H64: =_xll.OneStreamExcelAddIn.XFFunctions.XFGetCell(TRUE, CUBE, ENTITY,Parent, Cons, Scenario, H$58, View,$D64, Flow, Origin, IC, $C$58, $C$59, UD_3, UD_4, UD_5, UD_6, UD_7, UD_8)/SKALERING ->  | I64: =_xll.OneStreamExcelAddIn.XFFunctions.XFGetCell(TRUE, CUBE, ENTITY,Parent, Cons, Scenario, I$58, View,$D64, Flow, Origin, IC, $C$58, $C$59, UD_3, UD_4, UD_5, UD_6, UD_7, UD_8)/SKALERING ->  | J64: =_xll.OneStreamExcelAddIn.XFFunctions.XFGetCell(TRUE, CUBE, ENTITY,Parent, Cons, Scenario, J$58, View,$D64, Flow, Origin, IC, $C$58, $C$59, UD_3, UD_4, UD_5, UD_6, UD_7, UD_8)/SKALERING ->  | K64: =_xll.OneStreamExcelAddIn.XFFunctions.XFGetCell(TRUE, CUBE, ENTITY,Parent, Cons, Scenario, K$58, View,$D64, Flow, Origin, IC, $C$58, $C$59, UD_3, UD_4, UD_5, UD_6, UD_7, UD_8)/SKALERING -> 
D65: PL_15 | F65: Nettoindtægter vedr. loyalitetsprogrammer | G65: =_xll.OneStreamExcelAddIn.XFFunctions.XFGetCell(TRUE, CUBE, ENTITY,Parent, Cons, Scenario, G$58, View,$D65, Flow, Origin, IC, $C$58, $C$59, UD_3, UD_4, UD_5, UD_6, UD_7, UD_8)/SKALERING ->  | H65: =_xll.OneStreamExcelAddIn.XFFunctions.XFGetCell(TRUE, CUBE, ENTITY,Parent, Cons, Scenario, H$58, View,$D65, Flow, Origin, IC, $C$58, $C$59, UD_3, UD_4, UD_5, UD_6, UD_7, UD_8)/SKALERING ->  | I65: =_xll.OneStreamExcelAddIn.XFFunctions.XFGetCell(TRUE, CUBE, ENTITY,Parent, Cons, Scenario, I$58, View,$D65, Flow, Origin, IC, $C$58, $C$59, UD_3, UD_4, UD_5, UD_6, UD_7, UD_8)/SKALERING ->  | J65: =_xll.OneStreamExcelAddIn.XFFunctions.XFGetCell(TRUE, CUBE, ENTITY,Parent, Cons, Scenario, J$58, View,$D65, Flow, Origin, IC, $C$58, $C$59, UD_3, UD_4, UD_5, UD_6, UD_7, UD_8)/SKALERING ->  | K65: =_xll.OneStreamExcelAddIn.XFFunctions.XFGetCell(TRUE, CUBE, ENTITY,Parent, Cons, Scenario, K$58, View,$D65, Flow, Origin, IC, $C$58, $C$59, UD_3, UD_4, UD_5, UD_6, UD_7, UD_8)/SKALERING -> 
D66: PL_16 | F66: Handels-, beholdnings- og øvrige indtægter | G66: =_xll.OneStreamExcelAddIn.XFFunctions.XFGetCell(TRUE, CUBE, ENTITY,Parent, Cons, Scenario, G$58, View,$D66, Flow, Origin, IC, $C$58, $C$59, UD_3, UD_4, UD_5, UD_6, UD_7, UD_8)/SKALERING ->  | H66: =_xll.OneStreamExcelAddIn.XFFunctions.XFGetCell(TRUE, CUBE, ENTITY,Parent, Cons, Scenario, H$58, View,$D66, Flow, Origin, IC, $C$58, $C$59, UD_3, UD_4, UD_5, UD_6, UD_7, UD_8)/SKALERING ->  | I66: =_xll.OneStreamExcelAddIn.XFFunctions.XFGetCell(TRUE, CUBE, ENTITY,Parent, Cons, Scenario, I$58, View,$D66, Flow, Origin, IC, $C$58, $C$59, UD_3, UD_4, UD_5, UD_6, UD_7, UD_8)/SKALERING ->  | J66: =_xll.OneStreamExcelAddIn.XFFunctions.XFGetCell(TRUE, CUBE, ENTITY,Parent, Cons, Scenario, J$58, View,$D66, Flow, Origin, IC, $C$58, $C$59, UD_3, UD_4, UD_5, UD_6, UD_7, UD_8)/SKALERING ->  | K66: =_xll.OneStreamExcelAddIn.XFFunctions.XFGetCell(TRUE, CUBE, ENTITY,Parent, Cons, Scenario, K$58, View,$D66, Flow, Origin, IC, $C$58, $C$59, UD_3, UD_4, UD_5, UD_6, UD_7, UD_8)/SKALERING -> 
D67: PL_10 | F67: Indtægter | G67: =_xll.OneStreamExcelAddIn.XFFunctions.XFGetCell(TRUE, CUBE, ENTITY,Parent, Cons, Scenario, G$58, View,$D67, Flow, Origin, IC, $C$58, $C$59, UD_3, UD_4, UD_5, UD_6, UD_7, UD_8)/SKALERING ->  | H67: =_xll.OneStreamExcelAddIn.XFFunctions.XFGetCell(TRUE, CUBE, ENTITY,Parent, Cons, Scenario, H$58, View,$D67, Flow, Origin, IC, $C$58, $C$59, UD_3, UD_4, UD_5, UD_6, UD_7, UD_8)/SKALERING ->  | I67: =_xll.OneStreamExcelAddIn.XFFunctions.XFGetCell(TRUE, CUBE, ENTITY,Parent, Cons, Scenario, I$58, View,$D67, Flow, Origin, IC, $C$58, $C$59, UD_3, UD_4, UD_5, UD_6, UD_7, UD_8)/SKALERING ->  | J67: =_xll.OneStreamExcelAddIn.XFFunctions.XFGetCell(TRUE, CUBE, ENTITY,Parent, Cons, Scenario, J$58, View,$D67, Flow, Origin, IC, $C$58, $C$59, UD_3, UD_4, UD_5, UD_6, UD_7, UD_8)/SKALERING ->  | K67: =_xll.OneStreamExcelAddIn.XFFunctions.XFGetCell(TRUE, CUBE, ENTITY,Parent, Cons, Scenario, K$58, View,$D67, Flow, Origin, IC, $C$58, $C$59, UD_3, UD_4, UD_5, UD_6, UD_7, UD_8)/SKALERING -> 
D68: PL_20 | F68: Omkostninger | G68: =-_xll.OneStreamExcelAddIn.XFFunctions.XFGetCell(TRUE, CUBE, ENTITY,Parent, Cons, Scenario, G$58, View,$D68, Flow, Origin, IC, $C$58, $C$59, UD_3, UD_4, UD_5, UD_6, UD_7, UD_8)/SKALERING ->  | H68: =-_xll.OneStreamExcelAddIn.XFFunctions.XFGetCell(TRUE, CUBE, ENTITY,Parent, Cons, Scenario, H$58, View,$D68, Flow, Origin, IC, $C$58, $C$59, UD_3, UD_4, UD_5, UD_6, UD_7, UD_8)/SKALERING ->  | I68: =-_xll.OneStreamExcelAddIn.XFFunctions.XFGetCell(TRUE, CUBE, ENTITY,Parent, Cons, Scenario, I$58, View,$D68, Flow, Origin, IC, $C$58, $C$59, UD_3, UD_4, UD_5, UD_6, UD_7, UD_8)/SKALERING ->  | J68: =-_xll.OneStreamExcelAddIn.XFFunctions.XFGetCell(TRUE, CUBE, ENTITY,Parent, Cons, Scenario, J$58, View,$D68, Flow, Origin, IC, $C$58, $C$59, UD_3, UD_4, UD_5, UD_6, UD_7, UD_8)/SKALERING ->  | K68: =-_xll.OneStreamExcelAddIn.XFFunctions.XFGetCell(TRUE, CUBE, ENTITY,Parent, Cons, Scenario, K$58, View,$D68, Flow, Origin, IC, $C$58, $C$59, UD_3, UD_4, UD_5, UD_6, UD_7, UD_8)/SKALERING -> 
D69: PL_6 | F69: Forretningsresultat før nedskrivninger | G69: =_xll.OneStreamExcelAddIn.XFFunctions.XFGetCell(TRUE, CUBE, ENTITY,Parent, Cons, Scenario, G$58, View,$D69, Flow, Origin, IC, $C$58, $C$59, UD_3, UD_4, UD_5, UD_6, UD_7, UD_8)/SKALERING ->  | H69: =_xll.OneStreamExcelAddIn.XFFunctions.XFGetCell(TRUE, CUBE, ENTITY,Parent, Cons, Scenario, H$58, View,$D69, Flow, Origin, IC, $C$58, $C$59, UD_3, UD_4, UD_5, UD_6, UD_7, UD_8)/SKALERING ->  | I69: =_xll.OneStreamExcelAddIn.XFFunctions.XFGetCell(TRUE, CUBE, ENTITY,Parent, Cons, Scenario, I$58, View,$D69, Flow, Origin, IC, $C$58, $C$59, UD_3, UD_4, UD_5, UD_6, UD_7, UD_8)/SKALERING ->  | J69: =_xll.OneStreamExcelAddIn.XFFunctions.XFGetCell(TRUE, CUBE, ENTITY,Parent, Cons, Scenario, J$58, View,$D69, Flow, Origin, IC, $C$58, $C$59, UD_3, UD_4, UD_5, UD_6, UD_7, UD_8)/SKALERING ->  | K69: =_xll.OneStreamExcelAddIn.XFFunctions.XFGetCell(TRUE, CUBE, ENTITY,Parent, Cons, Scenario, K$58, View,$D69, Flow, Origin, IC, $C$58, $C$59, UD_3, UD_4, UD_5, UD_6, UD_7, UD_8)/SKALERING -> 
D70: PL_30 | F70: Nedskrivninger på udlån | G70: =-_xll.OneStreamExcelAddIn.XFFunctions.XFGetCell(TRUE, CUBE, ENTITY,Parent, Cons, Scenario, G$58, View,$D70, Flow, Origin, IC, $C$58, $C$59, UD_3, UD_4, UD_5, UD_6, UD_7, UD_8)/SKALERING ->  | H70: =-_xll.OneStreamExcelAddIn.XFFunctions.XFGetCell(TRUE, CUBE, ENTITY,Parent, Cons, Scenario, H$58, View,$D70, Flow, Origin, IC, $C$58, $C$59, UD_3, UD_4, UD_5, UD_6, UD_7, UD_8)/SKALERING ->  | I70: =-_xll.OneStreamExcelAddIn.XFFunctions.XFGetCell(TRUE, CUBE, ENTITY,Parent, Cons, Scenario, I$58, View,$D70, Flow, Origin, IC, $C$58, $C$59, UD_3, UD_4, UD_5, UD_6, UD_7, UD_8)/SKALERING ->  | J70: =-_xll.OneStreamExcelAddIn.XFFunctions.XFGetCell(TRUE, CUBE, ENTITY,Parent, Cons, Scenario, J$58, View,$D70, Flow, Origin, IC, $C$58, $C$59, UD_3, UD_4, UD_5, UD_6, UD_7, UD_8)/SKALERING ->  | K70: =-_xll.OneStreamExcelAddIn.XFFunctions.XFGetCell(TRUE, CUBE, ENTITY,Parent, Cons, Scenario, K$58, View,$D70, Flow, Origin, IC, $C$58, $C$59, UD_3, UD_4, UD_5, UD_6, UD_7, UD_8)/SKALERING -> 
C71: PL_32_2 | D71: PL_31_2 | F71: Nedskrivninger på realkreditudlån | G71: =-_xll.OneStreamExcelAddIn.XFFunctions.XFGetCell(TRUE, CUBE, ENTITY,Parent, Cons, Scenario, G$58, View,$C71, Flow, Origin, IC, $C$58, $C$59, UD_3, UD_4, UD_5, UD_6, UD_7, UD_8)/SKALERING-_xll.OneStreamExcelAddIn.XFFunctions.XFGetCell(TRUE, CUBE, ENTITY,Parent, Cons, Scenario, G$58, View,$D71, Flow, Origin, IC, $C$58, $C$59, UD_3, UD_4, UD_5, UD_6, UD_7, UD_8)/SKALERING ->  | H71: =-_xll.OneStreamExcelAddIn.XFFunctions.XFGetCell(TRUE, CUBE, ENTITY,Parent, Cons, Scenario, H$58, View,$C71, Flow, Origin, IC, $C$58, $C$59, UD_3, UD_4, UD_5, UD_6, UD_7, UD_8)/SKALERING-_xll.OneStreamExcelAddIn.XFFunctions.XFGetCell(TRUE, CUBE, ENTITY,Parent, Cons, Scenario, H$58, View,$D71, Flow, Origin, IC, $C$58, $C$59, UD_3, UD_4, UD_5, UD_6, UD_7, UD_8)/SKALERING ->  | I71: =-_xll.OneStreamExcelAddIn.XFFunctions.XFGetCell(TRUE, CUBE, ENTITY,Parent, Cons, Scenario, I$58, View,$C71, Flow, Origin, IC, $C$58, $C$59, UD_3, UD_4, UD_5, UD_6, UD_7, UD_8)/SKALERING-_xll.OneStreamExcelAddIn.XFFunctions.XFGetCell(TRUE, CUBE, ENTITY,Parent, Cons, Scenario, I$58, View,$D71, Flow, Origin, IC, $C$58, $C$59, UD_3, UD_4, UD_5, UD_6, UD_7, UD_8)/SKALERING ->  | J71: =-_xll.OneStreamExcelAddIn.XFFunctions.XFGetCell(TRUE, CUBE, ENTITY,Parent, Cons, Scenario, J$58, View,$C71, Flow, Origin, IC, $C$58, $C$59, UD_3, UD_4, UD_5, UD_6, UD_7, UD_8)/SKALERING-_xll.OneStreamExcelAddIn.XFFunctions.XFGetCell(TRUE, CUBE, ENTITY,Parent, Cons, Scenario, J$58, View,$D71, Flow, Origin, IC, $C$58, $C$59, UD_3, UD_4, UD_5, UD_6, UD_7, UD_8)/SKALERING ->  | K71: =-_xll.OneStreamExcelAddIn.XFFunctions.XFGetCell(TRUE, CUBE, ENTITY,Parent, Cons, Scenario, K$58, View,$C71, Flow, Origin, IC, $C$58, $C$59, UD_3, UD_4, UD_5, UD_6, UD_7, UD_8)/SKALERING-_xll.OneStreamExcelAddIn.XFFunctions.XFGetCell(TRUE, CUBE, ENTITY,Parent, Cons, Scenario, K$58, View,$D71, Flow, Origin, IC, $C$58, $C$59, UD_3, UD_4, UD_5, UD_6, UD_7, UD_8)/SKALERING -> 
C72: PL_32_1 | D72: PL_31_1 | F72: Nedskrivninger på bankudlån | G72: =-_xll.OneStreamExcelAddIn.XFFunctions.XFGetCell(TRUE, CUBE, ENTITY,Parent, Cons, Scenario, G$58, View,$C72, Flow, Origin, IC, $C$58, $C$59, UD_3, UD_4, UD_5, UD_6, UD_7, UD_8)/SKALERING-_xll.OneStreamExcelAddIn.XFFunctions.XFGetCell(TRUE, CUBE, ENTITY,Parent, Cons, Scenario, G$58, View,$D72, Flow, Origin, IC, $C$58, $C$59, UD_3, UD_4, UD_5, UD_6, UD_7, UD_8)/SKALERING ->  | H72: =-_xll.OneStreamExcelAddIn.XFFunctions.XFGetCell(TRUE, CUBE, ENTITY,Parent, Cons, Scenario, H$58, View,$C72, Flow, Origin, IC, $C$58, $C$59, UD_3, UD_4, UD_5, UD_6, UD_7, UD_8)/SKALERING-_xll.OneStreamExcelAddIn.XFFunctions.XFGetCell(TRUE, CUBE, ENTITY,Parent, Cons, Scenario, H$58, View,$D72, Flow, Origin, IC, $C$58, $C$59, UD_3, UD_4, UD_5, UD_6, UD_7, UD_8)/SKALERING ->  | I72: =-_xll.OneStreamExcelAddIn.XFFunctions.XFGetCell(TRUE, CUBE, ENTITY,Parent, Cons, Scenario, I$58, View,$C72, Flow, Origin, IC, $C$58, $C$59, UD_3, UD_4, UD_5, UD_6, UD_7, UD_8)/SKALERING-_xll.OneStreamExcelAddIn.XFFunctions.XFGetCell(TRUE, CUBE, ENTITY,Parent, Cons, Scenario, I$58, View,$D72, Flow, Origin, IC, $C$58, $C$59, UD_3, UD_4, UD_5, UD_6, UD_7, UD_8)/SKALERING ->  | J72: =-_xll.OneStreamExcelAddIn.XFFunctions.XFGetCell(TRUE, CUBE, ENTITY,Parent, Cons, Scenario, J$58, View,$C72, Flow, Origin, IC, $C$58, $C$59, UD_3, UD_4, UD_5, UD_6, UD_7, UD_8)/SKALERING-_xll.OneStreamExcelAddIn.XFFunctions.XFGetCell(TRUE, CUBE, ENTITY,Parent, Cons, Scenario, J$58, View,$D72, Flow, Origin, IC, $C$58, $C$59, UD_3, UD_4, UD_5, UD_6, UD_7, UD_8)/SKALERING ->  | K72: =-_xll.OneStreamExcelAddIn.XFFunctions.XFGetCell(TRUE, CUBE, ENTITY,Parent, Cons, Scenario, K$58, View,$C72, Flow, Origin, IC, $C$58, $C$59, UD_3, UD_4, UD_5, UD_6, UD_7, UD_8)/SKALERING-_xll.OneStreamExcelAddIn.XFFunctions.XFGetCell(TRUE, CUBE, ENTITY,Parent, Cons, Scenario, K$58, View,$D72, Flow, Origin, IC, $C$58, $C$59, UD_3, UD_4, UD_5, UD_6, UD_7, UD_8)/SKALERING -> 
D73: PL_40 | F73: Legacy derivatives | G73: =_xll.OneStreamExcelAddIn.XFFunctions.XFGetCell(TRUE, CUBE, ENTITY,Parent, Cons, Scenario, G$58, View,$D73, Flow, Origin, IC, $C$58, $C59, UD_3, UD_4, UD_5, UD_6, UD_7, UD_8)/SKALERING ->  | H73: =_xll.OneStreamExcelAddIn.XFFunctions.XFGetCell(TRUE, CUBE, ENTITY,Parent, Cons, Scenario, H$58, View,$D73, Flow, Origin, IC, $C$58, $C59, UD_3, UD_4, UD_5, UD_6, UD_7, UD_8)/SKALERING ->  | I73: =_xll.OneStreamExcelAddIn.XFFunctions.XFGetCell(TRUE, CUBE, ENTITY,Parent, Cons, Scenario, I$58, View,$D73, Flow, Origin, IC, $C$58, $C59, UD_3, UD_4, UD_5, UD_6, UD_7, UD_8)/SKALERING ->  | J73: =_xll.OneStreamExcelAddIn.XFFunctions.XFGetCell(TRUE, CUBE, ENTITY,Parent, Cons, Scenario, J$58, View,$D73, Flow, Origin, IC, $C$58, $C59, UD_3, UD_4, UD_5, UD_6, UD_7, UD_8)/SKALERING ->  | K73: =_xll.OneStreamExcelAddIn.XFFunctions.XFGetCell(TRUE, CUBE, ENTITY,Parent, Cons, Scenario, K$58, View,$D73, Flow, Origin, IC, $C$58, $C59, UD_3, UD_4, UD_5, UD_6, UD_7, UD_8)/SKALERING -> 
D74: PL_4 | F74: Forretningsresultat | G74: =_xll.OneStreamExcelAddIn.XFFunctions.XFGetCell(TRUE, CUBE, ENTITY,Parent, Cons, Scenario, G$58, View,$D74, Flow, Origin, IC, $C$58, $C$59, UD_3, UD_4, UD_5, UD_6, UD_7, UD_8)/SKALERING ->  | H74: =_xll.OneStreamExcelAddIn.XFFunctions.XFGetCell(TRUE, CUBE, ENTITY,Parent, Cons, Scenario, H$58, View,$D74, Flow, Origin, IC, $C$58, $C$59, UD_3, UD_4, UD_5, UD_6, UD_7, UD_8)/SKALERING ->  | I74: =_xll.OneStreamExcelAddIn.XFFunctions.XFGetCell(TRUE, CUBE, ENTITY,Parent, Cons, Scenario, I$58, View,$D74, Flow, Origin, IC, $C$58, $C$59, UD_3, UD_4, UD_5, UD_6, UD_7, UD_8)/SKALERING ->  | J74: =_xll.OneStreamExcelAddIn.XFFunctions.XFGetCell(TRUE, CUBE, ENTITY,Parent, Cons, Scenario, J$58, View,$D74, Flow, Origin, IC, $C$58, $C$59, UD_3, UD_4, UD_5, UD_6, UD_7, UD_8)/SKALERING ->  | K74: =_xll.OneStreamExcelAddIn.XFFunctions.XFGetCell(TRUE, CUBE, ENTITY,Parent, Cons, Scenario, K$58, View,$D74, Flow, Origin, IC, $C$58, $C$59, UD_3, UD_4, UD_5, UD_6, UD_7, UD_8)/SKALERING -> 
G78: =IF(INPUT_KVT="1 kvt","Q1/",IF(INPUT_KVT="2 kvt","Q2/",IF(INPUT_KVT="3 kvt","Q3/",IF(INPUT_KVT="4 kvt","Q4/"))))&Forrige_Aar -> Q1/2025 | H78: =IF(INPUT_KVT="1 kvt","Q2/",IF(INPUT_KVT="2 kvt","Q3/",IF(INPUT_KVT="3 kvt","Q4/",IF(INPUT_KVT="4 kvt","Q1/"))))&IF(LEFT(I78,3)="Q1/",RIGHT(I78,4)-1,RIGHT(I78,4)) -> Q2/2025 | I78: =IF(INPUT_KVT="1 kvt","Q3/",IF(INPUT_KVT="2 kvt","Q4/",IF(INPUT_KVT="3 kvt","Q1/",IF(INPUT_KVT="4 kvt","Q2/"))))&IF(LEFT(J78,3)="Q1/",RIGHT(J78,4)-1,RIGHT(J78,4)) -> Q3/2025 | J78: =IF(INPUT_KVT="1 kvt","Q4/",IF(INPUT_KVT="2 kvt","Q1/",IF(INPUT_KVT="3 kvt","Q2/",IF(INPUT_KVT="4 kvt","Q3/"))))&IF(LEFT(K78,3)="Q1/",RIGHT(K78,4)-1,RIGHT(K78,4)) -> Q4/2025 | K78: =IF(INPUT_KVT="1 kvt","Q1/",IF(INPUT_KVT="2 kvt","Q2/",IF(INPUT_KVT="3 kvt","Q3/",IF(INPUT_KVT="4 kvt","Q4/"))))&INPUT_AAR -> Q1/2026
G79: =IF(LEFT(G78,2)="Q1","marts",IF(LEFT(G78,2)="Q2","juni",IF(LEFT(G78,2)="Q3","september",IF(LEFT(G78,2)="Q4","december","fejl")))) -> marts | H79: =IF(LEFT(H78,2)="Q1","marts",IF(LEFT(H78,2)="Q2","juni",IF(LEFT(H78,2)="Q3","september",IF(LEFT(H78,2)="Q4","december","fejl")))) -> juni | I79: =IF(LEFT(I78,2)="Q1","marts",IF(LEFT(I78,2)="Q2","juni",IF(LEFT(I78,2)="Q3","september",IF(LEFT(I78,2)="Q4","december","fejl")))) -> september | J79: =IF(LEFT(J78,2)="Q1","marts",IF(LEFT(J78,2)="Q2","juni",IF(LEFT(J78,2)="Q3","september",IF(LEFT(J78,2)="Q4","december","fejl")))) -> december | K79: =IF(LEFT(K78,2)="Q1","marts",IF(LEFT(K78,2)="Q2","juni",IF(LEFT(K78,2)="Q3","september",IF(LEFT(K78,2)="Q4","december","fejl")))) -> marts
F80: Nykredit Group - Nominal Mortgage lending | G80: =IF(H79="marts",Forrige_Aar,H80) -> 2025 | H80: =IF(I79="marts",Forrige_Aar,I80) -> 2025 | I80: =IF(J79="marts",Forrige_Aar,J80) -> 2025 | J80: =IF(K79="marts",Forrige_Aar,K80) -> 2025 | K80: =INPUT_AAR -> 2026
C81: YTD | F81: Mio. kr.
F82: Udlån realkredit
C83: BRK_01001 | D83: PRD_030000 | E83: F2014T | F83: Bruttonyudlån | G83: =_xll.OneStreamExcelAddIn.XFFunctions.XFGetCell(TRUE, CUBE, ENTITY,Parent, Cons, Scenario, G$58, View,$C83,$E83, Origin, IC, $C$58, $C$59, UD_3,$D$83, UD_5, UD_6, UD_7, UD_8)/SKALERING ->  | H83: =_xll.OneStreamExcelAddIn.XFFunctions.XFGetCell(TRUE, CUBE, ENTITY,Parent, Cons, Scenario, H$58, View,$C83,$E83, Origin, IC, $C$58, $C$59, UD_3,$D$83, UD_5, UD_6, UD_7, UD_8)/SKALERING ->  | I83: =_xll.OneStreamExcelAddIn.XFFunctions.XFGetCell(TRUE, CUBE, ENTITY,Parent, Cons, Scenario, I$58, View,$C83,$E83, Origin, IC, $C$58, $C$59, UD_3,$D$83, UD_5, UD_6, UD_7, UD_8)/SKALERING ->  | J83: =_xll.OneStreamExcelAddIn.XFFunctions.XFGetCell(TRUE, CUBE, ENTITY,Parent, Cons, Scenario, J$58, View,$C83,$E83, Origin, IC, $C$58, $C$59, UD_3,$D$83, UD_5, UD_6, UD_7, UD_8)/SKALERING ->  | K83: =_xll.OneStreamExcelAddIn.XFFunctions.XFGetCell(TRUE, CUBE, ENTITY,Parent, Cons, Scenario, K$58, View,$C83,$E83, Origin, IC, $C$58, $C$59, UD_3,$D$83, UD_5, UD_6, UD_7, UD_8)/SKALERING -> 
C84: 1101010 | F84: Bestand til nominel værdi - ultimo | G84: =_xll.OneStreamExcelAddIn.XFFunctions.XFGetCell(TRUE, CUBE, ENTITY,Parent, Cons, Scenario, G$58, View,$C84, Flow, Origin, IC, $C$58, $C$59, UD_3, UD_4, UD_5, UD_6, UD_7, UD_8)/SKALERING ->  | H84: =_xll.OneStreamExcelAddIn.XFFunctions.XFGetCell(TRUE, CUBE, ENTITY,Parent, Cons, Scenario, H$58, View,$C84, Flow, Origin, IC, $C$58, $C$59, UD_3, UD_4, UD_5, UD_6, UD_7, UD_8)/SKALERING ->  | I84: =_xll.OneStreamExcelAddIn.XFFunctions.XFGetCell(TRUE, CUBE, ENTITY,Parent, Cons, Scenario, I$58, View,$C84, Flow, Origin, IC, $C$58, $C$59, UD_3, UD_4, UD_5, UD_6, UD_7, UD_8)/SKALERING ->  | J84: =_xll.OneStreamExcelAddIn.XFFunctions.XFGetCell(TRUE, CUBE, ENTITY,Parent, Cons, Scenario, J$58, View,$C84, Flow, Origin, IC, $C$58, $C$59, UD_3, UD_4, UD_5, UD_6, UD_7, UD_8)/SKALERING ->  | K84: =_xll.OneStreamExcelAddIn.XFFunctions.XFGetCell(TRUE, CUBE, ENTITY,Parent, Cons, Scenario, K$58, View,$C84, Flow, Origin, IC, $C$58, $C$59, UD_3, UD_4, UD_5, UD_6, UD_7, UD_8)/SKALERING -> 
C85: KOR_10000 | D85: FO_13000 | F85: Nedskrivninger i alt, realkredit | G85: =-_xll.OneStreamExcelAddIn.XFFunctions.XFGetCell(TRUE, CUBE,$D$58, Parent, Cons, Scenario, G$58, View,$C85, Flow, Origin, IC, $C$58, $C$59, UD_3, UD_4, UD_5, UD_6, UD_7, UD_8)/SKALERING-_xll.OneStreamExcelAddIn.XFFunctions.XFGetCell(TRUE, CUBE,$D$59, Parent, Cons, Scenario, G$58, View,$C85, Flow, Origin, IC, $C$58, $C$59, UD_3, UD_4, UD_5, UD_6, UD_7, UD_8)/SKALERING ->  | H85: =-_xll.OneStreamExcelAddIn.XFFunctions.XFGetCell(TRUE, CUBE,$D$58, Parent, Cons, Scenario, H$58, View,$C85, Flow, Origin, IC, $C$58, $C$59, UD_3, UD_4, UD_5, UD_6, UD_7, UD_8)/SKALERING-_xll.OneStreamExcelAddIn.XFFunctions.XFGetCell(TRUE, CUBE,$D$59, Parent, Cons, Scenario, H$58, View,$C85, Flow, Origin, IC, $C$58, $C$59, UD_3, UD_4, UD_5, UD_6, UD_7, UD_8)/SKALERING ->  | I85: =-_xll.OneStreamExcelAddIn.XFFunctions.XFGetCell(TRUE, CUBE,$D$58, Parent, Cons, Scenario, I$58, View,$C85, Flow, Origin, IC, $C$58, $C$59, UD_3, UD_4, UD_5, UD_6, UD_7, UD_8)/SKALERING-_xll.OneStreamExcelAddIn.XFFunctions.XFGetCell(TRUE, CUBE,$D$59, Parent, Cons, Scenario, I$58, View,$C85, Flow, Origin, IC, $C$58, $C$59, UD_3, UD_4, UD_5, UD_6, UD_7, UD_8)/SKALERING ->  | J85: =-_xll.OneStreamExcelAddIn.XFFunctions.XFGetCell(TRUE, CUBE,$D$58, Parent, Cons, Scenario, J$58, View,$C85, Flow, Origin, IC, $C$58, $C$59, UD_3, UD_4, UD_5, UD_6, UD_7, UD_8)/SKALERING-_xll.OneStreamExcelAddIn.XFFunctions.XFGetCell(TRUE, CUBE,$D$59, Parent, Cons, Scenario, J$58, View,$C85, Flow, Origin, IC, $C$58, $C$59, UD_3, UD_4, UD_5, UD_6, UD_7, UD_8)/SKALERING ->  | K85: =-_xll.OneStreamExcelAddIn.XFFunctions.XFGetCell(TRUE, CUBE,$D$58, Parent, Cons, Scenario, K$58, View,$C85, Flow, Origin, IC, $C$58, $C$59, UD_3, UD_4, UD_5, UD_6, UD_7, UD_8)/SKALERING-_xll.OneStreamExcelAddIn.XFFunctions.XFGetCell(TRUE, CUBE,$D$59, Parent, Cons, Scenario, K$58, View,$C85, Flow, Origin, IC, $C$58, $C$59, UD_3, UD_4, UD_5, UD_6, UD_7, UD_8)/SKALERING -> 
F86: Nedskrivninger (korrektivkonto) i procent af udlån | G86: =G85/(G84+G85) ->  | H86: =H85/(H84+H85) ->  | I86: =I85/(I84+I85) ->  | J86: =J85/(J84+J85) ->  | K86: =K85/(K84+K85) -> 
F88: Udlån bank
C89: 120 | F89: Udlån | G89: =_xll.OneStreamExcelAddIn.XFFunctions.XFGetCell(TRUE, CUBE, ENTITY,Parent, Cons, Scenario, G$58, View,$C89, Flow, Origin, IC, $C$58, $C$59, UD_3, UD_4, UD_5, UD_6, UD_7, UD_8)/SKALERING ->  | H89: =_xll.OneStreamExcelAddIn.XFFunctions.XFGetCell(TRUE, CUBE, ENTITY,Parent, Cons, Scenario, H$58, View,$C89, Flow, Origin, IC, $C$58, $C$59, UD_3, UD_4, UD_5, UD_6, UD_7, UD_8)/SKALERING ->  | I89: =_xll.OneStreamExcelAddIn.XFFunctions.XFGetCell(TRUE, CUBE, ENTITY,Parent, Cons, Scenario, I$58, View,$C89, Flow, Origin, IC, $C$58, $C$59, UD_3, UD_4, UD_5, UD_6, UD_7, UD_8)/SKALERING ->  | J89: =_xll.OneStreamExcelAddIn.XFFunctions.XFGetCell(TRUE, CUBE, ENTITY,Parent, Cons, Scenario, J$58, View,$C89, Flow, Origin, IC, $C$58, $C$59, UD_3, UD_4, UD_5, UD_6, UD_7, UD_8)/SKALERING ->  | K89: =_xll.OneStreamExcelAddIn.XFFunctions.XFGetCell(TRUE, CUBE, ENTITY,Parent, Cons, Scenario, K$58, View,$C89, Flow, Origin, IC, $C$58, $C$59, UD_3, UD_4, UD_5, UD_6, UD_7, UD_8)/SKALERING -> 
C90: 205 | F90: Indlån | G90: =_xll.OneStreamExcelAddIn.XFFunctions.XFGetCell(TRUE, CUBE, ENTITY,Parent, Cons, Scenario, G$58, View,$C90, Flow, Origin, IC, $C$58, $C$59, UD_3, UD_4, UD_5, UD_6, UD_7, UD_8)/SKALERING ->  | H90: =_xll.OneStreamExcelAddIn.XFFunctions.XFGetCell(TRUE, CUBE, ENTITY,Parent, Cons, Scenario, H$58, View,$C90, Flow, Origin, IC, $C$58, $C$59, UD_3, UD_4, UD_5, UD_6, UD_7, UD_8)/SKALERING ->  | I90: =_xll.OneStreamExcelAddIn.XFFunctions.XFGetCell(TRUE, CUBE, ENTITY,Parent, Cons, Scenario, I$58, View,$C90, Flow, Origin, IC, $C$58, $C$59, UD_3, UD_4, UD_5, UD_6, UD_7, UD_8)/SKALERING ->  | J90: =_xll.OneStreamExcelAddIn.XFFunctions.XFGetCell(TRUE, CUBE, ENTITY,Parent, Cons, Scenario, J$58, View,$C90, Flow, Origin, IC, $C$58, $C$59, UD_3, UD_4, UD_5, UD_6, UD_7, UD_8)/SKALERING ->  | K90: =_xll.OneStreamExcelAddIn.XFFunctions.XFGetCell(TRUE, CUBE, ENTITY,Parent, Cons, Scenario, K$58, View,$C90, Flow, Origin, IC, $C$58, $C$59, UD_3, UD_4, UD_5, UD_6, UD_7, UD_8)/SKALERING -> 
C91: 12015 | D91: 12016 | F91: Nedskrivninger i alt, bank | G91: =-_xll.OneStreamExcelAddIn.XFFunctions.XFGetCell(TRUE, CUBE, ENTITY,Parent, Cons, Scenario, G$58, View,$C91, Flow, Origin, IC, $C$58, $C$59, UD_3, UD_4, UD_5, UD_6, UD_7, UD_8)/SKALERING-_xll.OneStreamExcelAddIn.XFFunctions.XFGetCell(TRUE, CUBE, ENTITY,Parent, Cons, Scenario, G$58, View,$D91, Flow, Origin, IC, $C$58, $C$59, UD_3, UD_4, UD_5, UD_6, UD_7, UD_8)/SKALERING ->  | H91: =-_xll.OneStreamExcelAddIn.XFFunctions.XFGetCell(TRUE, CUBE, ENTITY,Parent, Cons, Scenario, H$58, View,$C91, Flow, Origin, IC, $C$58, $C$59, UD_3, UD_4, UD_5, UD_6, UD_7, UD_8)/SKALERING-_xll.OneStreamExcelAddIn.XFFunctions.XFGetCell(TRUE, CUBE, ENTITY,Parent, Cons, Scenario, H$58, View,$D91, Flow, Origin, IC, $C$58, $C$59, UD_3, UD_4, UD_5, UD_6, UD_7, UD_8)/SKALERING ->  | I91: =-_xll.OneStreamExcelAddIn.XFFunctions.XFGetCell(TRUE, CUBE, ENTITY,Parent, Cons, Scenario, I$58, View,$C91, Flow, Origin, IC, $C$58, $C$59, UD_3, UD_4, UD_5, UD_6, UD_7, UD_8)/SKALERING-_xll.OneStreamExcelAddIn.XFFunctions.XFGetCell(TRUE, CUBE, ENTITY,Parent, Cons, Scenario, I$58, View,$D91, Flow, Origin, IC, $C$58, $C$59, UD_3, UD_4, UD_5, UD_6, UD_7, UD_8)/SKALERING ->  | J91: =-_xll.OneStreamExcelAddIn.XFFunctions.XFGetCell(TRUE, CUBE, ENTITY,Parent, Cons, Scenario, J$58, View,$C91, Flow, Origin, IC, $C$58, $C$59, UD_3, UD_4, UD_5, UD_6, UD_7, UD_8)/SKALERING-_xll.OneStreamExcelAddIn.XFFunctions.XFGetCell(TRUE, CUBE, ENTITY,Parent, Cons, Scenario, J$58, View,$D91, Flow, Origin, IC, $C$58, $C$59, UD_3, UD_4, UD_5, UD_6, UD_7, UD_8)/SKALERING ->  | K91: =-_xll.OneStreamExcelAddIn.XFFunctions.XFGetCell(TRUE, CUBE, ENTITY,Parent, Cons, Scenario, K$58, View,$C91, Flow, Origin, IC, $C$58, $C$59, UD_3, UD_4, UD_5, UD_6, UD_7, UD_8)/SKALERING-_xll.OneStreamExcelAddIn.XFFunctions.XFGetCell(TRUE, CUBE, ENTITY,Parent, Cons, Scenario, K$58, View,$D91, Flow, Origin, IC, $C$58, $C$59, UD_3, UD_4, UD_5, UD_6, UD_7, UD_8)/SKALERING -> 
F92: Nedskrivninger (korrektivkonto) i procent af udlån | G92: =G91/(G89+G91) ->  | H92: =H91/(H89+H91) ->  | I92: =I91/(I89+I91) ->  | J92: =J91/(J89+J91) ->  | K92: =K91/(K89+K91) -> 
C93: NOT_104113 | D93: FO_13000 | F93: Garantier mv. - ultimo | G93: 990.5564975 | H93: 1335.39 | I93: 1115.247499 | J93: 1403.034759 | K93: 1154.38
C94: 24550 | F94: Hensættelser på garantier mv. ultimo | G94: =_xll.OneStreamExcelAddIn.XFFunctions.XFGetCell(TRUE, CUBE, ENTITY,Parent, Cons, Scenario, G$58, View,$C94, Flow, Origin, IC, $C$58, $C$59, UD_3, UD_4, UD_5, UD_6, UD_7, UD_8)/SKALERING ->  | H94: =_xll.OneStreamExcelAddIn.XFFunctions.XFGetCell(TRUE, CUBE, ENTITY,Parent, Cons, Scenario, H$58, View,$C94, Flow, Origin, IC, $C$58, $C$59, UD_3, UD_4, UD_5, UD_6, UD_7, UD_8)/SKALERING ->  | I94: =_xll.OneStreamExcelAddIn.XFFunctions.XFGetCell(TRUE, CUBE, ENTITY,Parent, Cons, Scenario, I$58, View,$C94, Flow, Origin, IC, $C$58, $C$59, UD_3, UD_4, UD_5, UD_6, UD_7, UD_8)/SKALERING ->  | J94: =_xll.OneStreamExcelAddIn.XFFunctions.XFGetCell(TRUE, CUBE, ENTITY,Parent, Cons, Scenario, J$58, View,$C94, Flow, Origin, IC, $C$58, $C$59, UD_3, UD_4, UD_5, UD_6, UD_7, UD_8)/SKALERING ->  | K94: =_xll.OneStreamExcelAddIn.XFFunctions.XFGetCell(TRUE, CUBE, ENTITY,Parent, Cons, Scenario, K$58, View,$C94, Flow, Origin, IC, $C$58, $C$59, UD_3, UD_4, UD_5, UD_6, UD_7, UD_8)/SKALERING -> 
F97: Koncbud udtræk: | G97: =IF(INPUT_KVT="1 kvt","1 kvt",IF(INPUT_KVT="2 kvt","2 kvt",IF(INPUT_KVT="3 kvt","3 kvt",IF(INPUT_KVT="4 kvt","4 kvt")))) -> 1 kvt | H97: =IF(INPUT_KVT="1 kvt","2 kvt",IF(INPUT_KVT="2 kvt","3 kvt",IF(INPUT_KVT="3 kvt","4 kvt",IF(INPUT_KVT="4 kvt","1 kvt")))) -> 2 kvt | I97: =IF(INPUT_KVT="1 kvt","3 kvt",IF(INPUT_KVT="2 kvt","4 kvt",IF(INPUT_KVT="3 kvt","1 kvt",IF(INPUT_KVT="4 kvt","2 kvt")))) -> 3 kvt | J97: =IF(INPUT_KVT="1 kvt","4 kvt",IF(INPUT_KVT="2 kvt","1 kvt",IF(INPUT_KVT="3 kvt","2 kvt",IF(INPUT_KVT="4 kvt","3 kvt")))) -> 4 kvt | K97: =IF(INPUT_KVT="1 kvt","1 kvt",IF(INPUT_KVT="2 kvt","2 kvt",IF(INPUT_KVT="3 kvt","3 kvt",IF(INPUT_KVT="4 kvt","4 kvt")))) -> 1 kvt
G98: =IF(INPUT_KVT="1 kvt","y-t-d(mar)",IF(INPUT_KVT="2 kvt","y-t-d(jun)",IF(INPUT_KVT="3 kvt","y-t-d(sep)",IF(INPUT_KVT="4 kvt","y-t-d(dec)")))) -> y-t-d(mar) | H98: =IF(INPUT_KVT="1 kvt","y-t-d(jun)",IF(INPUT_KVT="2 kvt","y-t-d(sep)",IF(INPUT_KVT="3 kvt","y-t-d(dec)",IF(INPUT_KVT="4 kvt","y-t-d(mar)")))) -> y-t-d(jun) | I98: =IF(INPUT_KVT="1 kvt","y-t-d(sep)",IF(INPUT_KVT="2 kvt","y-t-d(dec)",IF(INPUT_KVT="3 kvt","y-t-d(mar)",IF(INPUT_KVT="4 kvt","y-t-d(jun)")))) -> y-t-d(sep) | J98: =IF(INPUT_KVT="1 kvt","y-t-d(dec)",IF(INPUT_KVT="2 kvt","y-t-d(mar)",IF(INPUT_KVT="3 kvt","y-t-d(jun)",IF(INPUT_KVT="4 kvt","y-t-d(sep)")))) -> y-t-d(dec) | K98: =IF(INPUT_KVT="1 kvt","y-t-d(mar)",IF(INPUT_KVT="2 kvt","y-t-d(jun)",IF(INPUT_KVT="3 kvt","y-t-d(sep)",IF(INPUT_KVT="4 kvt","y-t-d(dec)")))) -> y-t-d(mar)
G99: =+HLOOKUP(G80&G79,MANUEL_Regnskab!$3:$4,2,0) -> 33 | H99: =+HLOOKUP(H80&H79,MANUEL_Regnskab!$3:$4,2,0) -> 34 | I99: =+HLOOKUP(I80&I79,MANUEL_Regnskab!$3:$4,2,0) -> 35 | J99: =+HLOOKUP(J80&J79,MANUEL_Regnskab!$3:$4,2,0) -> 36 | K99: =+HLOOKUP(K80&K79,MANUEL_Regnskab!$3:$4,2,0) -> 37
F100: Secured homeowner loans | G100: =IF(H98="y-t-d(mar)",Forrige_Aar,H100) -> 2025 | H100: =IF(I98="y-t-d(mar)",Forrige_Aar,I100) -> 2025 | I100: =IF(J98="y-t-d(mar)",Forrige_Aar,J100) -> 2025 | J100: =IF(K98="y-t-d(mar)",Forrige_Aar,K100) -> 2025 | K100: =INPUT_AAR -> 2026
F101: Mio. kr.
C102: NON_00001 | D102: NRK | F102: Periodens nedskrivninger i procent af udlån | G102: =_xll.OneStreamExcelAddIn.XFFunctions.XFGetCell(TRUE, CUBE,$D102, Parent, Cons, Scenario, G$58, C81,$C102, Flow, Origin, IC, $C$58, $C$59, UD_3, UD_4, UD_5, UD_6, UD_7, UD_8)/100 ->  | H102: =_xll.OneStreamExcelAddIn.XFFunctions.XFGetCell(TRUE, CUBE,$D102, Parent, Cons, Scenario, H$58, C81,$C102, Flow, Origin, IC, $C$58, $C$59, UD_3, UD_4, UD_5, UD_6, UD_7, UD_8)/100 ->  | I102: =_xll.OneStreamExcelAddIn.XFFunctions.XFGetCell(TRUE, CUBE,$D102, Parent, Cons, Scenario, I$58, C81,$C102, Flow, Origin, IC, $C$58, $C$59, UD_3, UD_4, UD_5, UD_6, UD_7, UD_8)/100 ->  | J102: =_xll.OneStreamExcelAddIn.XFFunctions.XFGetCell(TRUE, CUBE,$D102, Parent, Cons, Scenario, J$58, C81,$C102, Flow, Origin, IC, $C$58, $C$59, UD_3, UD_4, UD_5, UD_6, UD_7, UD_8)/100 ->  | K102: =_xll.OneStreamExcelAddIn.XFFunctions.XFGetCell(TRUE, CUBE,$D102, Parent, Cons, Scenario, K$58, View,$C102, Flow, Origin, IC, $C$58, $C$59, UD_3, UD_4, UD_5, UD_6, UD_7, UD_8)/100 -> 
C103: NON_00001 | D103: NBK | F103: Periodens nedskrivninger i procent af udlån | G103: =_xll.OneStreamExcelAddIn.XFFunctions.XFGetCell(TRUE, CUBE,$D103, Parent, Cons, Scenario, G$58, $C$81,$C103, Flow, Origin, IC, $C$58, $C$59, UD_3, UD_4, UD_5, UD_6, UD_7, UD_8)/100 ->  | H103: =_xll.OneStreamExcelAddIn.XFFunctions.XFGetCell(TRUE, CUBE,$D103, Parent, Cons, Scenario, H$58, $C$81,$C103, Flow, Origin, IC, $C$58, $C$59, UD_3, UD_4, UD_5, UD_6, UD_7, UD_8)/100-0.0004 ->  | I103: =_xll.OneStreamExcelAddIn.XFFunctions.XFGetCell(TRUE, CUBE,$D103, Parent, Cons, Scenario, I$58, $C$81,$C103, Flow, Origin, IC, $C$58, $C$59, UD_3, UD_4, UD_5, UD_6, UD_7, UD_8)/100 ->  | J103: =_xll.OneStreamExcelAddIn.XFFunctions.XFGetCell(TRUE, CUBE,$D103, Parent, Cons, Scenario, J$58, $C$81,$C103, Flow, Origin, IC, $C$58, $C$59, UD_3, UD_4, UD_5, UD_6, UD_7, UD_8)/100 ->  | K103: =_xll.OneStreamExcelAddIn.XFFunctions.XFGetCell(TRUE, CUBE,$D103, Parent, Cons, Scenario, K$58, View,$C103, Flow, Origin, IC, $C$58, $C$59, UD_3, UD_4, UD_5, UD_6, UD_7, UD_8)/100 -> 
D104: BFO_11000 | F104: Formue under forvaltning | G104: =_xll.OneStreamExcelAddIn.XFFunctions.XFGetCell(TRUE, CUBE, ENTITY,Parent, Cons, Scenario, G$58, $C$81,$D104, Flow, Origin, IC, $C$58, $C$59, UD_3, UD_4, UD_5, UD_6, UD_7, UD_8)/SKALERING ->  | H104: =_xll.OneStreamExcelAddIn.XFFunctions.XFGetCell(TRUE, CUBE, ENTITY,Parent, Cons, Scenario, H$58, $C$81,$D104, Flow, Origin, IC, $C$58, $C$59, UD_3, UD_4, UD_5, UD_6, UD_7, UD_8)/SKALERING ->  | I104: =_xll.OneStreamExcelAddIn.XFFunctions.XFGetCell(TRUE, CUBE, ENTITY,Parent, Cons, Scenario, I$58, $C$81,$D104, Flow, Origin, IC, $C$58, $C$59, UD_3, UD_4, UD_5, UD_6, UD_7, UD_8)/SKALERING ->  | J104: =_xll.OneStreamExcelAddIn.XFFunctions.XFGetCell(TRUE, CUBE, ENTITY,Parent, Cons, Scenario, J$58, $C$81,$D104, Flow, Origin, IC, $C$58, $C$59, UD_3, UD_4, UD_5, UD_6, UD_7, UD_8)/SKALERING ->  | K104: =_xll.OneStreamExcelAddIn.XFFunctions.XFGetCell(TRUE, CUBE, ENTITY,Parent, Cons, Scenario, K$58, View,$D104, Flow, Origin, IC, $C$58, $C$59, UD_3, UD_4, UD_5, UD_6, UD_7, UD_8)/SKALERING -> 
F105: heraf Nykredit-koncernens investeringsforeninger | G105: =+INDEX(MANUEL_Regnskab!$1:$1048576,$C105,G$99)/1000000 -> 0 | H105: =+INDEX(MANUEL_Regnskab!$1:$1048576,$C105,H$99)/1000000 -> 0 | I105: =+INDEX(MANUEL_Regnskab!$1:$1048576,$C105,I$99)/1000000 -> 0 | J105: =+INDEX(MANUEL_Regnskab!$1:$1048576,$C105,J$99)/1000000 -> 0 | K105: =+INDEX(MANUEL_Regnskab!$1:$1048576,$C105,K$99)/1000000 -> 0 | L105: <----- Bemærk: Indsat fra "Manuel_Regnskab" fanen
D106: BFO_12000 | F106: Formue under administration, Nykredit Portefølje Administration A/S | G106: =_xll.OneStreamExcelAddIn.XFFunctions.XFGetCell(TRUE, CUBE, ENTITY,Parent, Cons, Scenario, G$58, View,$D106, Flow, Origin, IC, $C$58, $C$59, UD_3, UD_4, UD_5, UD_6, UD_7, UD_8)/SKALERING ->  | H106: =_xll.OneStreamExcelAddIn.XFFunctions.XFGetCell(TRUE, CUBE, ENTITY,Parent, Cons, Scenario, H$58, View,$D106, Flow, Origin, IC, $C$58, $C$59, UD_3, UD_4, UD_5, UD_6, UD_7, UD_8)/SKALERING ->  | I106: =_xll.OneStreamExcelAddIn.XFFunctions.XFGetCell(TRUE, CUBE, ENTITY,Parent, Cons, Scenario, I$58, View,$D106, Flow, Origin, IC, $C$58, $C$59, UD_3, UD_4, UD_5, UD_6, UD_7, UD_8)/SKALERING ->  | J106: =_xll.OneStreamExcelAddIn.XFFunctions.XFGetCell(TRUE, CUBE, ENTITY,Parent, Cons, Scenario, J$58, View,$D106, Flow, Origin, IC, $C$58, $C$59, UD_3, UD_4, UD_5, UD_6, UD_7, UD_8)/SKALERING ->  | K106: =_xll.OneStreamExcelAddIn.XFFunctions.XFGetCell(TRUE, CUBE, ENTITY,Parent, Cons, Scenario, K$58, View,$D106, Flow, Origin, IC, $C$58, $C$59, UD_3, UD_4, UD_5, UD_6, UD_7, UD_8)/SKALERING -> 
A112: konto findes ikke

Sheet OUT_GroupItems_PRINT
G5: Group Items
L7: DKK million
G8: Results - Group Items | H8: Q1/2025 | I8: Q2/2025 | J8: Q3/2025 | K8: Q4/2025 | L8: Q1/2026
G9: Net interest income | H9: 2.90412451 | I9: 8.027334514 | J9: 10.21372426 | K9: 10.15373176 | L9: 2.568214764
G10: Net fee income | H10: -11.88023318 | I10: -7.56453563 | J10: -12.17851269 | K10: 4.21448363 | L10: -2.081972869
G11: Wealth Management income | H11: 18.38741684 | I11: -20.7244643 | J11: 11.40238349 | K11: -38.62446962 | L11: -6.06118997
G12: Net interest from capitalisation | H12: 100.9253466 | I12: 25.95745813 | J12: 79.42451298 | K12: 44.58560665 | L12: 49.79908755
G13: Net income relating to customer benefits programmes1 | H13: -161.5662001 | I13: -161.3416665 | J13: -130.5681123 | K13: -135.5842646 | L13: -267.9717598
G14: Trading, investment portfolio and other income | H14: 591.9453862 | I14: 1675.534748 | J14: 744.4398142 | K14: 397.9228258 | L14: 30.20572638
G15: Income | H15: 540.7158408 | I15: 1519.888874 | J15: 702.7338099 | K15: 282.6679136 | L15: -193.5418939
G16: Costs | H16: 35.41793411 | I16: 746.3991086 | J16: 171.3111261 | K16: 318.7785763 | L16: 107.6279237
G17: Business profit before impairment charges | H17: 505.2979067 | I17: 773.4897653 | J17: 531.4226838 | K17: -36.11066271 | L17: -301.1698176
G18: Impairment charges on mortgage lending | H18: -2 | I18: -2 | J18: -3 | K18: -4 | L18: -0.82589792
G19: Impairment charges on bank lending | H19: 9.468116313 | I19: 82.81983685 | J19: -30.26894271 | K19: -79.72302145 | L19: 0.3988755503
G20: Legacy derivatives | H20: 0 | I20: 0 | J20: 0 | K20: 0 | L20: 0
G21: Business profit | H21: 495.8297904 | I21: 690.6699285 | J21: 561.6916265 | K21: 43.61235874 | L21: -301.5686931

Sheet OUT_NRK_FrontPage_PRINT
E8: Nykredit Realkredit Group

Sheet OUT_CoreInc_NRK_PRINT
F5: Results – Nykredit Realkredit Group
K7: DKK million
F8: Nykredit Realkredit Group | G8: Q1/2025 | H8: Q2/2025 | I8: Q3/2025 | J8: Q4/2025 | K8: Q1/2026
F9: Net interest income | G9: 3038.557151 | H9: 3352.553733 | I9: 3903.981209 | J9: 3936.593605 | K9: 3868.834214
F10: Net fee income | G10: 753.8548869 | H10: 728.9737911 | I10: 943.4321812 | J10: 1224.990735 | K10: 1000.895618
F11: Wealth management income | G11: 712.9272143 | H11: 686.3310988 | I11: 835.4244262 | J11: 832.3904517 | K11: 888.1240458
F12: Net interest from capitalisation | G12: 345.3675735 | H12: 177.4262164 | I12: 123.6223212 | J12: 114.7510966 | K12: 145.7213871
F13: Net income relating to customer benefits programmes1 | G13: -160.5687001 | H13: -162.4741665 | I13: -130.4331123 | J13: -135.5842646 | K13: -267.9717598
F14: Trading, investment portfolio and other income | G14: 743.8070922 | H14: 1761.182373 | I14: 885.87933 | J14: 729.8806614 | K14: 264.0246342
F15: Income | G15: 5433.945218 | H15: 6543.993046 | I15: 6561.906355 | J15: 6703.022285 | K15: 5899.628139
F16: Costs | G16: 1669.267895 | H16: 2642.467738 | I16: 2499.425808 | J16: 2946.356898 | K16: 2520.17109
F17: Business profit before impairment charges | G17: 3764.677323 | H17: 3901.525308 | I17: 4062.480548 | J17: 3756.665387 | K17: 3379.457049
F18: Impairment charges on mortgage lending | G18: -117.0925216 | H18: -4.91424918 | I18: 111.0876702 | J18: 82.29061279 | K18: -110.8594671
F19: Impairment charges on bank lending | G19: 151.1343071 | H19: 252.8666924 | I19: -60.94015972 | J19: -148.4989236 | K19: 93.80333689
F20: Legacy derivatives | G20: 45.93404693 | H20: 5.60490006 | I20: 22.14831634 | J20: 37.60610437 | K20: 26.71052744
F21: Badwill | G21: 2971.192692 | H21: 3198.564161 | I21: 3081.65234 | J21: 2977.51005 | K21: 2618.171602
F22: Profit before tax | G22: 3776.569584 | H22: 3659.177765 | I22: 4034.481354 | J22: 3860.479802 | K22: 3423.223706
F23: Tax | G23: 775.2343017 | H23: 400.3361947 | I23: 897.1970547 | J23: 813.4345834 | K23: 728.0096125
F24: Profit for the period | G24: 3001.335283 | H24: 3258.841571 | I24: 3137.284299 | J24: 3047.045219 | K24: 2695.214094
F25: Investment portfolio income through equity after tax | H25: 0.97567687 | I25: -2.19981018 | J25: -1.81706189 | K25: -4.6086003
F26: Interest on subordinated debt through equity after tax | H26: 0 | I26: 0 | J26: 0 | K26: 0
F27: Comprehensive income of Nykredit shareholders | H27: 0 | I27: 0 | J27: 0 | K27: 0
F28: Other comprehensive income, remaining items | G28: 0.97567687 | H28: -2.19981018 | I28: -1.81706189 | J28: 1.59425351 | K28: -4.6086003
F29: Comprehensive income for the period | G29: 3002.31096 | H29: 3256.64176 | I29: 3135.467237 | J29: 3048.639472 | K29: 2690.605494
F30: Interest on Additional Tier 1 capital charged against equity | H30: -38.64792239 | I30: -40.5829557 | J30: -45.49637601 | K30: -63.94983511
F31: Minority interests
F39: 1 "Net income relating to customer benefits programmes" comprising discounts etc, such as KundeKroner and other benefits granted to the Group's customeres. The amount includes contributions received.

Sheet OUT_Balance_NRK_PRINT
E5: Balance sheet summary – Nykredit Realkredit Group
J7: DKK million
E8: Nykredit Realkredit Group | F8: Q1/2025 | G8: Q2/2025 | H8: Q3/2025 | I8: Q4/2025 | J8: Q1/2026
E9: Assets
E10: Receivables from credit institutions and central banks | F10: 80902.08757 | G10: 71489.88538 | H10: 71623.58239 | I10: 84250.30867 | J10: 73789.01409
E11: Mortgage loans at fair value | F11: 1433785.995 | G11: 1452461.089 | H11: 1474983.828 | I11: 1485138.091 | J11: 1494017.442
E12: Bank lending - excl. reverse transactions | F12: 108846.9273 | G12: 177209.698 | H12: 176544.1288 | I12: 177057.8684 | J12: 176240.3008
E13: Bonds and equities | F13: 89811.86596 | G13: 112916.0377 | H13: 108506.5088 | I13: 113566.7485 | J13: 115678.9138
E14: Remaining assets | F14: 85073.22878 | G14: 135347.8575 | H14: 143163.5743 | I14: 146307.0726 | J14: 142130.5958
E15: Total assets | F15: 1798420.104 | G15: 1949424.568 | H15: 1974821.622 | I15: 2006320.089 | J15: 2001856.266
E17: Liabilities and equity
E18: Payables to credit institutions and central banks | F18: 14953.09055 | G18: 15326.97318 | H18: 17698.33317 | I18: 16656.30769 | J18: 18189.49869
E19: Deposits | F19: 126000.0448 | G19: 212394.7963 | H19: 215462.6741 | I19: 218831.1629 | J19: 216745.1669
E20: Bonds in issue at fair value | F20: 1406904.203 | G20: 1421622.362 | H20: 1439886.555 | I20: 1457437.264 | J20: 1456622.039
E21: Subordinated debt | F21: 16166.90497 | G21: 17846.0483 | H21: 17837.16279 | I21: 17831.2221 | J21: 20767.6086
E22: Remaining liabilities | F22: 126602.8331 | G22: 170678.99 | H22: 169663.7794 | I22: 178333.9144 | J22: 173524.6484
E23: Equity | F23: 107793.0275 | G23: 111555.3985 | H23: 114273.1156 | I23: 117230.2183 | J23: 116007.3052
E24: Total liabilities and equity | F24: 1798420.104 | G24: 1949424.568 | H24: 1974821.621 | I24: 2006320.089 | J24: 2001856.266
E29: Supervisory Diamond (calculated at parent level)
E30: Nykredit Realkredit Group | F30: =IF(INPUT_KVT="1 kvt","Q1/",IF(INPUT_KVT="2 kvt","Q2/",IF(INPUT_KVT="3 kvt","Q3/",IF(INPUT_KVT="4 kvt","Q4/"))))&Forrige_Aar -> Q1/2025 | G30: =IF(INPUT_KVT="1 kvt","Q2/",IF(INPUT_KVT="2 kvt","Q3/",IF(INPUT_KVT="3 kvt","Q4/",IF(INPUT_KVT="4 kvt","Q1/"))))&IF(LEFT(H30,3)="Q1/",RIGHT(H30,4)-1,RIGHT(H30,4)) -> Q2/2025 | H30: =IF(INPUT_KVT="1 kvt","Q3/",IF(INPUT_KVT="2 kvt","Q4/",IF(INPUT_KVT="3 kvt","Q1/",IF(INPUT_KVT="4 kvt","Q2/"))))&IF(LEFT(I30,3)="Q1/",RIGHT(I30,4)-1,RIGHT(I30,4)) -> Q3/2025 | I30: =IF(INPUT_KVT="1 kvt","Q4/",IF(INPUT_KVT="2 kvt","Q1/",IF(INPUT_KVT="3 kvt","Q2/",IF(INPUT_KVT="4 kvt","Q3/"))))&IF(LEFT(J30,3)="Q1/",RIGHT(J30,4)-1,RIGHT(J30,4)) -> Q4/2025 | J30: =IF(INPUT_KVT="1 kvt","Q1/",IF(INPUT_KVT="2 kvt","Q2/",IF(INPUT_KVT="3 kvt","Q3/",IF(INPUT_KVT="4 kvt","Q4/"))))&INPUT_AAR -> Q1/2026
E31: Lending growth (limit value <15%)1 | F31: =F46 -> 0 | G31: =G46 -> 0 | H31: 0 | I31: 0 | J31: 0
E32: =VLOOKUP(E47,Eng_opslag,2,0) ->  | F32: 0 | G32: 0 | H32: 0 | I32: 0 | J32: 0
E33: =VLOOKUP(E48,Eng_opslag,2,0) ->  | F33: 0 | G33: 0 | H33: 0 | I33: 0 | J33: 0
E34: =VLOOKUP(E49,Eng_opslag,2,0) ->  | F34: 0 | G34: =G49 -> 0 | H34: 0 | I34: 0 | J34: 0
E35: =VLOOKUP(E50,Eng_opslag,2,0) ->  | F35: 0 | G35: 0 | H35: 0 | I35: 0 | J35: 0
E36: =VLOOKUP(E51,Eng_opslag,2,0) ->  | F36: 0 | G36: =G51 -> 0 | H36: =H51 -> 0 | I36: =I51 -> 0 | J36: =IFERROR(J51," ") -> 0
E37: 1 Lending growth (limit value<15%) indicates the segment with the highest lending growth. For a segment breakdown, please see latest Financial Statements.
E38: Note: LR Realkredit has been included in the Supervisory Diamond Model for the Nykredit Realkredit Group from and including Q4/2019.

Sheet OUT_NYB_FrontPage_PRINT
E8: Nykredit Bank Group

Sheet OUT_CoreInc_Bank_PRINT
E5: Results – Nykredit Bank Group
J7: DKK million
E8: Nykredit Bank Group | F8: Q1/2025 | G8: Q2/2025 | H8: Q3/2025 | I8: Q4/2025 | J8: Q1/2026
E9: Net interest income | F9: 1400.967891 | G9: 1425.97116 | H9: 1428.59942 | I9: 1395.990989 | J9: 1409.884709
E10: Net fee income | F10: 254.2441319 | G10: 241.8485558 | H10: 294.9638512 | I10: 189.6072911 | J10: 306.2753064
E11: Wealth management income | F11: 712.9272143 | G11: 640.4293736 | H11: 695.5969434 | I11: 746.5403334 | J11: 753.1955065
E12: Net interest from capitalisation | F12: 174.1513818 | G12: 146.9119026 | H12: 139.9929242 | I12: 133.1877099 | J12: 161.1190637
E13: Net income relating to customer benefits programmes1 | F13: -10.02322534 | G13: -20.41255871 | H13: -5.207897078 | I13: -0.7102792179 | J13: -83.83457988
E14: Trading, investment portfolio and other income | F14: 64.95296029 | G14: 22.85942278 | H14: 292.4218158 | I14: 283.2916144 | J14: 221.9613111
E15: Income | F15: 2597.220354 | G15: 2457.607856 | H15: 2846.367058 | I15: 2747.907658 | J15: 2768.601317
E16: Costs | F16: 1384.189677 | G16: 1744.017158 | H16: 1455.783829 | I16: 1354.42742 | J16: 1624.347692
E17: Business profit before impairment charges | F17: 1213.030676 | G17: 713.5906982 | H17: 1390.583228 | I17: 1393.480238 | J17: 1144.253625
E18: Impairment charges on bank lending | F18: 151.1343071 | G18: 123.8773087 | H18: -60.32688077 | I18: -103.9828579 | J18: 84.468521
E19: Legacy derivatives | F19: 45.93404693 | G19: 5.60490006 | H19: 22.14831634 | I19: 37.60610437 | J19: 26.71052744
E20: Profit before tax | F20: 1107.830416 | G20: 595.3182895 | H20: 1473.058425 | I20: 1535.0692 | J20: 1086.495631
E21: Tax | F21: 268.0978847 | G21: 134.4727201 | H21: 405.5000846 | I21: 342.8137465 | J21: 268.8554187
E22: Profit for the period | F22: 839.7325316 | G22: 460.8455695 | H22: 1067.558341 | I22: 1192.255454 | J22: 817.6402124
E23: Other comprehensive income, remaining items | F23: 0 | G23: 0 | H23: 0 | I23: 0 | J23: 0
E24: Comprehensive income for the period | F24: 839.7325316 | G24: 460.8455695 | H24: 1067.558341 | I24: 1192.255454 | J24: 817.6402124
E25: Interest on Additional Tier 1 capital charged against equity | F25: 0 | G25: 0 | H25: 0 | I25: 0 | J25: 0
E26: Minority interests | F26: 0 | G26: 0 | H26: 0 | I26: 0 | J26: 0
E27: ¹ "Net income relating to customer benefits programmes" comprising bonuses etc such as savings discounts paid to customers. The amount includes contributions received from Forenet Kredit.

Sheet OUT_Balance_Bank_PRINT
E5: Balance sheet summary – Nykredit Bank Group
J7: DKK million
E8: Nykredit Bank Group | F8: Q1/2025 | G8: Q2/2025 | H8: Q3/2025 | I8: Q4/2025 | J8: Q1/2026
E9: Assets
E10: Cash balance and receivables from credit institutions and central banks | F10: 38004.09482 | G10: 29039.23909 | H10: 36194.32682 | I10: 39108.78863 | J10: 27629.2133
E11: Reverse repurchase lending* | F11: 47335.06682 | G11: 47259.60133 | H11: 53033.8777 | I11: 54655.1448 | J11: 65925.8069
E12: Loans, advances and other receivables at amortised cost | F12: 108846.9273 | G12: 112807.8363 | H12: 110866.6834 | I12: 112824.4481 | J12: 113678.7945
E13: Bonds at fair value and equities | F13: 36291.55533 | G13: 36745.81858 | H13: 34958.25305 | I13: 32654.61758 | J13: 36209.15097
E14: Remaining assets | F14: 21686.96977 | G14: 21814.60308 | H14: 21931.58632 | I14: 22267.13855 | J14: 23811.58744
E15: Total assets | F15: 252164.6141 | G15: 247667.0984 | H15: 256984.7273 | I15: 261510.1377 | J15: 267254.5531
E17: Liabilities and equity
E18: Payables to credit institutions and central banks | F18: 45446.58156 | G18: 33063.8379 | H18: 34201.70503 | I18: 33907.01893 | J18: 43983.68718
E19: Deposits and other payables | F19: 126347.0628 | G19: 129961.362 | H19: 132473.853 | I19: 135104.297 | J19: 133280.9759
E20: Bonds in issue at amortised cost | F20: 7136.494118 | G20: 6315.310807 | H20: 8190.732975 | I20: 5876.217026 | J20: 3746.162728
E21: Repo deposits* | F21: 4586.365359 | G21: 7733.808832 | H21: 10863.3959 | I21: 12320.07885 | J21: 11903.74886
E22: Other non-derivative financial liabilities at fair value | F22: 8004.553956 | G22: 9338.228163 | H22: 8102.062751 | I22: 9773.863479 | J22: 7085.520742
E23: Remaining payables | F23: 18919.39334 | G23: 18537.50297 | H23: 19413.48819 | I23: 19935.27933 | J23: 22134.29553
E24: Provisions | F24: 824.4732547 | G24: 1200.741785 | H24: 1203.52407 | I24: 934.6973374 | J24: 720.8761258
E25: Subordinated debt | F25: 0 | G25: 0 | H25: 0 | I25: 0 | J25: 0
E26: Equity | F26: 40899.68968 | G26: 41516.306 | H26: 42535.96541 | I26: 43658.68569 | J26: 44399.28594
E27: Total liabilities and equity | F27: 252164.6141 | G27: 247667.0984 | H27: 256984.7273 | I27: 261510.1377 | J27: 267254.5531
E28: * Reverse repurchase transactions and repo deposits are measured at amortised cost.
E32: Supervisory Diamond (calculated at parent level)
E33: Nykredit Bank A/S | F33: =IF(INPUT_KVT="1 kvt","Q1/",IF(INPUT_KVT="2 kvt","Q2/",IF(INPUT_KVT="3 kvt","Q3/",IF(INPUT_KVT="4 kvt","Q4/"))))&Forrige_Aar -> Q1/2025 | G33: =IF(INPUT_KVT="1 kvt","Q2/",IF(INPUT_KVT="2 kvt","Q3/",IF(INPUT_KVT="3 kvt","Q4/",IF(INPUT_KVT="4 kvt","Q1/"))))&IF(LEFT(H33,3)="Q1/",RIGHT(H33,4)-1,RIGHT(H33,4)) -> Q2/2025 | H33: =IF(INPUT_KVT="1 kvt","Q3/",IF(INPUT_KVT="2 kvt","Q4/",IF(INPUT_KVT="3 kvt","Q1/",IF(INPUT_KVT="4 kvt","Q2/"))))&IF(LEFT(I33,3)="Q1/",RIGHT(I33,4)-1,RIGHT(I33,4)) -> Q3/2025 | I33: =IF(INPUT_KVT="1 kvt","Q4/",IF(INPUT_KVT="2 kvt","Q1/",IF(INPUT_KVT="3 kvt","Q2/",IF(INPUT_KVT="4 kvt","Q3/"))))&IF(LEFT(J33,3)="Q1/",RIGHT(J33,4)-1,RIGHT(J33,4)) -> Q4/2025 | J33: =IF(INPUT_KVT="1 kvt","Q1/",IF(INPUT_KVT="2 kvt","Q2/",IF(INPUT_KVT="3 kvt","Q3/",IF(INPUT_KVT="4 kvt","Q4/"))))&INPUT_AAR -> Q1/2026
E34: Lending growth (limit value <20%) | F34: =F61 -> 0 | G34: =G61 -> 0 | H34: =H61 -> 0 | I34: =I61 -> 0 | J34: =J61 -> 0
E35: Large exposures (limit value <175%) | F35: =F62 -> 0 | G35: =G62 -> 0 | H35: 0 | I35: 0 | J35: =J62 -> 0
E36: Property exposure (limit value <25%) | F36: =F63 -> 0 | G36: 0 | H36: 0 | I36: 0 | J36: 0
E37: Funding ratio (limit value < 1.0) | F37: =F64 -> 0 | G37: 0 | H37: 0 | I37: 0 | J37: 0
E38: Liquidity benchmark (limit value >100%) | F38: =F65 -> 0 | G38: 0 | H38: 0 | I38: 0 | J38: 0
F110: Kig Q3 tilbage og ret

Sheet OUT_TK_FrontPage_PRINT
F8: Totalkredit A/S

Sheet OUT_CoreInc_TK_PRINT
E5: Results – Totalkredit A/S
J7: DKK million
E8: Totalkredit A/S | F8: Q1/2025 | G8: Q2/2025 | H8: Q3/2025 | I8: Q4/2025 | J8: Q1/2026
E9: Net interest income | F9: 966.8414428 | G9: 1000.818342 | H9: 999.2450978 | I9: 1047.746952 | J9: 1020.242153
E10: Net fee income | F10: 216.8903575 | G10: 283.912497 | H10: 183.5427594 | I10: 268.4061622 | J10: 209.7994099
E11: Wealth management income | F11: 0 | G11: 0 | H11: 0 | I11: 0 | J11: 0
E12: Net interest from capitalisation | F12: 146.8045225 | G12: 107.0216494 | H12: 95.6570798 | I12: 89.51142535 | J12: 110.2990289
E13: Net income relating to customer benefits programmes1 | F13: -138.7350695 | G13: -147.6026236 | H13: -154.7679079 | I13: -163.8349395 | J13: -142.7498579
E14: Trading, investment portfolio and other income | F14: 87.13681707 | G14: 4.4794328 | H14: 147.9140037 | I14: 58.94162122 | J14: 98.0288412
E15: Income | F15: 1278.93807 | G15: 1248.629297 | H15: 1271.591033 | I15: 1300.771221 | J15: 1295.619575
E16: Costs | F16: 236.0142932 | G16: 234.0166262 | H16: 241.7089903 | I16: 243.00821 | J16: 241.8338236
E17: Business profit before impairment charges | F17: 1042.923777 | G17: 1014.612671 | H17: 1029.882043 | I17: 1057.763011 | J17: 1053.785752
E18: Impairment charges on mortgage lending | F18: 55.4388797 | G18: 85.61781381 | H18: 182.3435597 | I18: 44.76125527 | J18: 42.02926755
E19: Business profit
E20: Legacy derivatives | F20: 0 | G20: 0 | H20: 0 | I20: 0 | J20: 0
E21: Profit before tax | F21: 987.4848976 | G21: 928.9948572 | H21: 847.5384829 | I21: 1013.001756 | J21: 1011.756484
E22: Tax | F22: 146.247993 | G22: 131.042851 | H22: 109.878842 | I22: 154.275824 | J22: 144.433952
E23: Profit for the period | F23: 841.2369046 | G23: 797.9520062 | H23: 737.6596409 | I23: 858.7259319 | J23: 867.3225321
E24: ¹ "Net income relating to customer benefits programmes" awarding mortgage customers a cash discount on their loan administration margin. The amount includes contributions received from Forenet Kredit..

Sheet OUT_Balance_TK_PRINT
E5: Balance sheet summary – Totalkredit A/S
J7: DKK million
E8: Totalkredit A/S | F8: Q1/2025 | G8: Q2/2025 | H8: Q3/2025 | I8: Q4/2025 | J8: Q1/2026
E10: Assets
E11: Receivables from credit institutions | F11: 27138.81359 | G11: 31832.2971 | H11: 22158.77602 | I11: 29948.66294 | J11: 22020.94663
E12: Mortgage loans at fair value | F12: 878071.4691 | G12: 894157.989 | H12: 912159.1267 | I12: 922891.9151 | J12: 931765.939
E13: Bonds and equities | F13: 73437.14245 | G13: 105533.1457 | H13: 72899.86887 | I13: 106351.2521 | J13: 81686.29838
E14: Remaining assets | F14: 2600.179935 | G14: 2507.027262 | H14: 2999.159493 | I14: 3752.611589 | J14: 2958.174986
E15: Total assets | F15: 981247.6051 | G15: 1034030.459 | H15: 1010216.931 | I15: 1062944.442 | J15: 1038431.359
E17: Liabilities and equity
E18: Payables to credit institutions | F18: 923169.6877 | G18: 975201.3061 | H18: 950111.6107 | I18: 1001015.457 | J18: 976902.8515
E19: Bonds in issue at fair value | F19: 2000.679362 | G19: 1911.12256 | H19: 1825.021526 | I19: 1735.650941 | J19: 1640.959792
E20: Remaining liabilities | F20: 9659.555974 | G20: 9759.860677 | H20: 10437.72179 | I20: 11545.41733 | J20: 10425.83001
E21: Subordinated debt | F21: 2000 | G21: 2000 | H21: 2000 | I21: 2000 | J21: 2000
E22: Equity | F22: 44417.68211 | G22: 45158.16963 | H22: 45842.57709 | I22: 46647.91635 | J22: 47461.71774
E23: Total liabilities and equity | F23: 981247.6051 | G23: 1034030.459 | H23: 1010216.931 | I23: 1062944.442 | J23: 1038431.359
E24: * Reverse repurchase transactions and repo deposits are measured at amortised cost.

Sheet OUT_BondPortfol_FrontPage_PRINT
F8: Bond Portfolio

Sheet OUT_BondPortfolio_PRINT
D5: Bond Portfolio
D7: Bond portfolio by type and country | I7: DKK million
D8: Nykredit Group | E8: Government or government guaranteed bonds | F8: Covered bonds | G8: Credit bonds (excl. subordinated capital) | H8: Subordinated capital | I8: Total
D10: Q1/2026
D11: EU Institutions | E11: 4590.877116 | F11: 0 | G11: 0 | H11: 0 | I11: 4590.877116
D12: Denmark | E12: 2417.110783 | F12: 70936.51823 | G12: 321.4204798 | H12: 151.7563537 | I12: 73826.80585
D13: Sweden | E13: 154.6204888 | F13: 558.8672267 | G13: 173.367202 | H13: 10.02513152 | I13: 896.880049
D14: Norway | E14: 0 | F14: 3762.626768 | G14: 1.32021739 | H14: 21.36536882 | I14: 3785.312354
D15: Finland | E15: 261.4207242 | F15: 2910.43072 | G15: 109.0126028 | H15: 67.2553018 | I15: 3348.119349
D16: Germany | E16: 4260.383095 | F16: 4694.964132 | G16: 9.08578527 | H16: 181.5932896 | I16: 9146.026303
D17: Netherlands | E17: 0 | F17: 1292.339956 | G17: 22.19664931 | H17: 201.9535445 | I17: 1516.49015
D18: France | E18: 1879.910221 | F18: 5373.540201 | G18: 0 | H18: 145.5067294 | I18: 7398.957152
D19: Belgium | E19: 0 | F19: 0 | G19: 0 | H19: 44.23844049 | I19: 44.23844049
D20: Luxembourg | E20: 820.427898 | F20: 0 | G20: 0 | H20: 6.32150189 | I20: 826.7493999
D21: United Kingdom | E21: 0 | F21: 277.2914679 | G21: 1.48594835 | H21: 27.93691031 | I21: 306.7143266
D22: Spain | E22: 0 | F22: 785.1362803 | G22: 0 | H22: 16.31302564 | I22: 801.4493059
D23: Italy | E23: 0 | F23: 73.84790399 | G23: 14.50812779 | H23: 111.7407379 | I23: 200.0967696
D24: United States | E24: 6.82628853 | F24: 0 | G24: 1.8091671 | H24: 0 | I24: 8.63545563
D25: Austria | E25: 0 | F25: 1015.665017 | G25: 103.2678287 | H25: 43.16757362 | I25: 1162.100419
D26: Canada | E26: 0 | F26: 446.5427479 | G26: 0 | H26: 0 | I26: 446.5427479
D27: Portugal | E27: 0 | F27: 105.0325148 | G27: 0 | H27: 0 | I27: 105.0325148
D28: Other | E28: 0 | F28: 0 | G28: 1.9979964 | H28: 0 | I28: 1.9979964
D29: Total | E29: 14391.57662 | F29: 92232.80317 | G29: 759.4720049 | H29: 1029.173909 | I29: 108413.0257
D31: Bond portfolio by type and external rating category | I31: DKK million
D32: Nykredit Group | E32: Government or government guaranteed bonds | F32: Covered bonds | G32: Credit bonds (excl. subordinated capital) | H32: Subordinated capital | I32: Total
D34: Q1/2026
D35: Aaa/AAA | E35: 6180.689081 | F35: 90958.12655 | G35: 0 | H35: 0 | I35: 97138.81563
D36: Aa1/AA+ - Aa3/AA- | E36: 4533.937771 | F36: 732.7102094 | G36: 37.83165293 | H36: 0 | I36: 5304.479633
D37: A1/A+ - Baa3/BBB- | E37: 2112.296415 | F37: 0.0268819 | G37: 389.8993811 | H37: 413.3875914 | I37: 2915.610269
D38: Ba1/BB+ or below | E38: 0 | F38: 0 | G38: 127.6370076 | H38: 585.5858968 | I38: 713.2229044
D39: Not rated | E39: 1564.653348 | F39: 541.9395256 | G39: 204.1039632 | H39: 30.2004209 | I39: 2340.897258
D40: Total | E40: 14391.57662 | F40: 92232.80317 | G40: 759.4720049 | H40: 1029.173909 | I40: 108413.0257
D42: Note: Calculation of market risk covers both the trading and the banking book. As some of the mortgage activities have been classified as belonging to the banking book, interest rate risk outside the trading book and interest rate risk from mortgage activities overlap. Above figures are market values, and includes bond forwards and unsettled trade. The statement does not include own issues.
A47: EU
A48: Danmark
A49: Sverige
A50: Norge
A51: Finland
A52: Tyskland
A53: Holland
A54: Frankrig
A55: Belgien
A56: Luxembourg
A57: Storbritanien
A58: Schweiz
A59: Spanien
A60: Italien
A61: USA
A62: Østrig
A63: New Zealand
A64: Irland
A65: Andre
A66: I alt_OblLand
A71: Rating Aaa/AAA
A72: Rating Aa1/AA+ – Aa3/AA-
A73: Rating A1/A+ – Baaa3/BBB-
A74: Rating på Ba1/BB+ og derunder
A75: Ikke ratede
A76: I alt_OblRating

Sheet OUT_Marketshare_FrontPage_PRINT
F8: Market share

Sheet OUT_MarketShare_PRINT
E5: Market share – lending
E7: Market share1 | J7: %
F8: Q1/2025 | G8: Q2/2025 | H8: Q3/2025 | I8: Q4/2025 | J8: Q1/2026
E9: Bank lending | F9: 0.085 | G9: 0.14 | H9: 0.14 | I9: 0.137 | J9: 0.138
E10: Mortgage lending | F10: 0.456 | G10: 0.457 | H10: 0.46 | I10: 0.461 | J10: 0.463
E11: Total | F11: 0.356 | G11: 0.37 | H11: 0.372 | I11: 0.371 | J11: 0.373
E12: 1 MFI statistics – lending and distribution of market share in Denmark. Bank lending excl. reverse transactions. Mortgage lending at fair value excl. monetary and financial institutions.
F35: Markedsandel | G35: 1.kvartal | H35: 2.kvartal | I35: 3.kvartal | J35: 4.kvartal | K35: 1.kvartal
F36: Udlån, mia. kr. | G36: 2025 | H36: 2025 | I36: 2025 | J36: 2025 | K36: 2026
F37: Markedsandele
F38: Bankudlån | G38: 0.085 | H38: 0.14 | I38: 0.14 | J38: 0.137 | K38: 0.138
F39: Realkreditudlån | G39: 0.456 | H39: 0.457 | I39: 0.46 | J39: 0.461 | K39: 0.463
F40: Total | G40: 0.356 | H40: 0.37 | I40: 0.372 | J40: 0.371 | K40: 0.373
E43: X-akse: | G43: Mortgage lending (lhs) | H43: Total (lhs) | I43: Bank lending (rhs)
E44: Year
E45: FY/2014 | G45: 0.4321394591 | H45: 0.3111119779 | I45: 0.05721545767
E46: FY/2015 | G46: 0.43116088 | H46: 0.3178273055 | I46: 0.0429049402
E47: FY/2016 | G47: 0.4265402112 | H47: 0.3164197213 | I47: 0.04650298915
E48: FY/2017 | G48: 0.4181304762 | H48: 0.3124667814 | I48: 0.04487699715
E49: FY/2018 | G49: 0.4120541588 | H49: 0.311498258 | I49: 0.05303361396
E50: FY/2019 | G50: 0.4108810905 | H50: 0.3126120529 | I50: 0.05492269068
E51: FY/2020 | G51: 0.4133180131 | H51: 0.3145887916 | I51: 0.05608132879
E52: FY/2021 | G52: 0.4198827172 | H52: 0.3228572839 | I52: 0.05834884203
E53: FY/2022 | G53: 0.428 | H53: 0.329 | I53: 0.058
E54: FY/2023 | G54: 0.436 | H54: 0.342 | I54: 0.067
E55: FY/2024 | G55: 0.453 | H55: 0.353 | I55: 0.081
E56: FY/2025 | G56: 0.461 | H56: 0.371 | I56: 0.137
E57: YTD/2026 | G57: 0.463 | H57: 0.373 | I57: 0.138

Sheet OUT_MortgageLen_FrontPage_PRINT
F14: Mortgage lending

Sheet OUT_MortPropType2_PRINT
E5: Mortgage lending
E7: Mortgage lending – by property type | M7: DKK billion
E8: Nominal value | G8: Q1/2025 | H8: Q2/2025 | I8: Q3/2025 | J8: Q4/2025 | K8: Q1/2026 | L8: Average impairment charges Q2/2025-Q1/2026 | M8: Average write-offs Q2/2025-Q1/2026
F9: Owner-occupied dwellings | G9: 928.7890774 | H9: 940.169506 | I9: 953.8050448 | J9: 967.6872312 | K9: 983.6311786 | L9: 4.633653311e-05 | M9: 7.655467031e-05
F10: Office and retail | G10: 158.5329665 | H10: 161.500675 | I10: 163.9668174 | J10: 164.8913885 | K10: 165.3884565 | L10: 0.0005424155961 | M10: 1.810539475e-05
F11: Private rental | G11: 167.7449122 | H11: 168.8159941 | I11: 172.0390939 | J11: 173.525134 | K11: 175.4422064 | L11: -1.292576455e-06 | M11: 7.882812397e-06
F12: Agriculture | G12: 83.67152111 | H12: 83.47493904 | I12: 83.61120438 | J12: 82.92092631 | K12: 83.2653282 | L12: -0.001134130473 | M12: 3.04114141e-06
F13: Public housing | G13: 86.21886146 | H13: 86.45865067 | I13: 86.56539848 | J13: 86.39478841 | K13: 87.55948172 | L13: 4.073074118e-07 | M13: 0
F14: Cooperative housing | G14: 35.69415099 | H14: 35.53394249 | I14: 35.59137952 | J14: 35.66718768 | K14: 35.84587229 | L14: -2.296002859e-05 | M14: 1.806688329e-06
F15: Industry and trades | G15: 23.84144182 | H15: 23.91771871 | I15: 23.40244623 | J15: 22.82891083 | K15: 22.60031051 | L15: -2.135382341e-06 | M15: 5.690572425e-07
F16: Other | G16: 16.44649888 | H16: 16.41048874 | I16: 16.25132702 | J16: 16.08926678 | K16: 15.95845973 | L16: 3.232850269e-05 | M16: -2.411228615e-05
F17: Total | G17: 1500.93943 | H17: 1516.281915 | I17: 1535.232712 | J17: 1550.004834 | K17: 1569.691294 | L17: -3.839776617e-05 | M17: 6.813347469e-06
... 10 more rows

Sheet MANUEL_SOKO (hidden)
D1: Input - SOKO
H2: =+H5&H4 -> År i alt1994 | I2: År i alt1995 | J2: År i alt1996 | K2: År i alt1997 | L2: År i alt1998 | M2: År i alt1999 | N2: År i alt2000 | O2: År i alt2001 | P2: År i alt2002 | Q2: År i alt2003 | R2: År i alt2004 | S2: År i alt2005 | T2: År i alt2006 | U2: År i alt2007 | V2: =+V5&V4 -> År i alt2008 | W2: =+W5&W4 -> År i alt2009 | X2: År i alt2010 | Y2: År i alt2011 | Z2: År i alt2012 | AA2: År i alt2013 | AB2: 1 kvt2014 | AC2: 2 kvt2014 | AD2: 3 kvt2014 | AE2: År i alt2014 | AF2: 1 kvt2015 | AG2: 2 kvt2015 | AH2: 3 kvt2015 | AI2: År i alt2015 | AJ2: 1 kvt2016 | AK2: 2 kvt2016 | AL2: 3 kvt2016 | AM2: År i alt2016 | AN2: 1 kvt2017 | AO2: 2 kvt2017 | AP2: 3 kvt2017 | AQ2: År i alt2017 | AR2: 1 kvt2018 | AS2: 2 kvt2018 | AT2: 3 kvt2018 | AU2: År i alt2018 | AV2: 1 kvt2019 | AW2: 2 kvt2019 | AX2: 3 kvt2019 | AY2: År i alt2019 | AZ2: 1 kvt2020 | BA2: 2 kvt2020 | BB2: 3 kvt2020 | BC2: =+BC5&BC4 -> År i alt2020 | BD2: 1 kvt2021 | BE2: 2 kvt2021 | BF2: 3 kvt2021 | BG2: År i alt2021 | BH2: 1 kvt2022 | BI2: =+BI5&BI4 -> 2 kvt2022 | BJ2: 3 kvt2022 | BK2: År i alt2022 | BL2: 1 kvt2023 | BM2: 2 kvt2023 | BN2: 3 kvt2023 | BO2: År i alt2023 | BP2: 1 kvt2024 | BQ2: =+BQ5&BQ4 -> 2 kvt2024 | BR2: 3 kvt2024 | BS2: År i alt2024 | BT2: 1 kvt2025 | BU2: 2 kvt2025 | BV2: 3 kvt2025 | BW2: =+BW5&BW4 -> År i alt2025 | BX2: 1 kvt2026
H3: =+COLUMN(H4) -> 8 | I3: 9 | J3: 10 | K3: 11 | L3: 12 | M3: 13 | N3: 14 | O3: 15 | P3: 16 | Q3: 17 | R3: 18 | S3: 19 | T3: 20 | U3: 21 | V3: 22 | W3: 23 | X3: 24 | Y3: 25 | Z3: 26 | AA3: 27 | AB3: 28 | AC3: 29 | AD3: 30 | AE3: 31 | AF3: 32 | AG3: 33 | AH3: 34 | AI3: 35 | AJ3: 36 | AK3: 37 | AL3: 38 | AM3: 39 | AN3: 40 | AO3: 41 | AP3: 42 | AQ3: 43 | AR3: 44 | AS3: 45 | AT3: 46 | AU3: 47 | AV3: 48 | AW3: 49 | AX3: 50 | AY3: 51 | AZ3: 52 | BA3: 53 | BB3: 54 | BC3: 55 | BD3: 56 | BE3: 57 | BF3: 58 | BG3: 59 | BH3: 60 | BI3: 61 | BJ3: 62 | BK3: 63 | BL3: 64 | BM3: 65 | BN3: 66 | BO3: 67 | BP3: 68 | BQ3: 69 | BR3: 70 | BS3: 71 | BT3: 72 | BU3: 73 | BV3: 74 | BW3: 75 | BX3: 76
H4: 1994 | I4: 1995 | J4: 1996 | K4: 1997 | L4: 1998 | M4: 1999 | N4: 2000 | O4: 2001 | P4: 2002 | Q4: 2003 | R4: 2004 | S4: 2005 | T4: 2006 | U4: 2007 | V4: 2008 | W4: 2009 | X4: 2010 | Y4: 2011 | Z4: 2012 | AA4: 2013 | AB4: 2014 | AC4: 2014 | AD4: 2014 | AE4: 2014 | AF4: 2015 | AG4: 2015 | AH4: 2015 | AI4: 2015 | AJ4: 2016 | AK4: 2016 | AL4: 2016 | AM4: 2016 | AN4: 2017 | AO4: 2017 | AP4: 2017 | AQ4: 2017 | AR4: 2018 | AS4: 2018 | AT4: 2018 | AU4: 2018 | AV4: 2019 | AW4: 2019 | AX4: 2019 | AY4: 2019 | AZ4: 2020 | BA4: 2020 | BB4: 2020 | BC4: 2020 | BD4: 2021 | BE4: 2021 | BF4: 2021 | BG4: 2021 | BH4: 2022 | BI4: 2022 | BJ4: 2022 | BK4: 2022 | BL4: 2023 | BM4: 2023 | BN4: 2023 | BO4: 2023 | BP4: 2024 | BQ4: 2024 | BR4: 2024 | BS4: 2024 | BT4: 2025 | BU4: 2025 | BV4: 2025 | BW4: 2025 | BX4: 2026
H5: År i alt | I5: År i alt | J5: År i alt | K5: År i alt | L5: År i alt | M5: År i alt | N5: År i alt | O5: År i alt | P5: År i alt | Q5: År i alt | R5: År i alt | S5: År i alt | T5: År i alt | U5: År i alt | V5: År i alt | W5: År i alt | X5: År i alt | Y5: År i alt | Z5: År i alt | AA5: År i alt | AB5: =IF(AA5="År i alt","1 kvt",IF(AA5="3 kvt","År i alt",LEFT(AA5,1)+1&" kvt")) -> 1 kvt | AC5: 2 kvt | AD5: 3 kvt | AE5: År i alt | AF5: 1 kvt | AG5: 2 kvt | AH5: 3 kvt | AI5: År i alt | AJ5: 1 kvt | AK5: 2 kvt | AL5: 3 kvt | AM5: År i alt | AN5: 1 kvt | AO5: 2 kvt | AP5: 3 kvt | AQ5: År i alt | AR5: =IF(AQ5="År i alt","1 kvt",IF(AQ5="3 kvt","År i alt",LEFT(AQ5,1)+1&" kvt")) -> 1 kvt | AS5: 2 kvt | AT5: 3 kvt | AU5: År i alt | AV5: 1 kvt | AW5: 2 kvt | AX5: 3 kvt | AY5: År i alt | AZ5: 1 kvt | BA5: 2 kvt | BB5: 3 kvt | BC5: År i alt | BD5: 1 kvt | BE5: 2 kvt | BF5: 3 kvt | BG5: År i alt | BH5: 1 kvt | BI5: 2 kvt | BJ5: 3 kvt | BK5: År i alt | BL5: 1 kvt | BM5: 2 kvt | BN5: 3 kvt | BO5: År i alt | BP5: 1 kvt | BQ5: 2 kvt | BR5: 3 kvt | BS5: År i alt | BT5: 1 kvt | BU5: 2 kvt | BV5: 3 kvt | BW5: År i alt | BX5: 1 kvt
F6: Mortgage debt outstanding by country, DKK million
A7: =+F7 -> SE - erhvervsejendomme | B7: =+ROW(A7) -> 7 | F7: SE - erhvervsejendomme | V7: 12381.87326 | W7: 13113.63937 | X7: 13556.44734 | Y7: 16566.89966 | Z7: 21945.06614 | AA7: 21744.51565 | AB7: 22247.21324 | AC7: 21968.64631 | AD7: 21562.14263 | AE7: 21468.09174 | AF7: 21944.33511 | AG7: 22156.30977 | AH7: 20799.82164 | AI7: 23528.80776 | AJ7: 23309.99655 | AK7: 22066.35908 | AL7: 22158.95891 | AM7: 22315.07936 | AN7: 24583.32345 | AO7: 26152.12241 | AP7: 26991.65599 | AQ7: 29619 | AR7: 29626.32378 | AS7: 29735.91041 | AT7: 31024.64318 | AU7: 30937.15658 | AV7: 32489.49284 | AW7: 31540.87287 | AX7: 33826.51214 | AY7: 34594.14697 | AZ7: 32846.02099 | BA7: 36097.27126 | BB7: 36344.30903 | BC7: 38533.71686 | BD7: 37409.67008 | BE7: 38841.41483 | BF7: 38903.47071 | BG7: 40690.83123 | BH7: 41139.84541 | BI7: 42822.37054 | BJ7: 42594.37667 | BK7: 41015 | BL7: 41164 | BM7: 39689 | BN7: 40583 | BO7: 42014 | BP7: 40364 | BQ7: 40800
A8: GB - erhvervsejendomme | B8: =+ROW(A8) -> 8 | F8: GB - erhvervsejendomme | V8: 3791.763852 | W8: 3770.988641 | X8: 3859.649265 | Y8: 4030.155368 | Z8: 5643.137733 | AA8: 5255.868512 | AB8: 3992.587027 | AC8: 4089.865561 | AD8: 4112.470107 | AE8: 4111.55282 | AF8: 3435.705402 | AG8: 3439.623797 | AH8: 2824.532476 | AI8: 2413.167328 | AJ8: 3026.476263 | AK8: 2984.977471 | AL8: 2985.648336 | AM8: 2987.570253 | AN8: 1705.514823 | AO8: 1705.51926 | AP8: 1707.15979 | AQ8: 1708 | AR8: 1706.140437 | AS8: 1699.180767 | AT8: 1698.618907 | AU8: 1698.544513 | AV8: 1700.459715 | AW8: 1696.020892 | AX8: 1699.170303 | AY8: 1701.843328 | AZ8: 1698.125201 | BA8: 1699.423519 | BB8: 1698.034325 | BC8: 1697.436294 | BD8: 1694.818972 | BE8: 1695.102202 | BF8: 1691.884681 | BG8: 1697.004565 | BH8: 1692.944383 | BI8: 1692.097143 | BJ8: 1692.352597 | BK8: 2858 | BL8: 2855 | BM8: 2855 | BN8: 2956 | BO8: 2954 | BP8: 3468 | BQ8: 3974
A9: DE - erhvervsejendomme | B9: 9 | F9: DE - erhvervsejendomme | V9: 7103.577164 | W9: 9105.675982 | X9: 9773.311534 | Y9: 12026.2992 | Z9: 14199.94242 | AA9: 15030.16125 | AB9: 16082.06322 | AC9: 16007.3733 | AD9: 15987.51201 | AE9: 15880.3889 | AF9: 16725.02953 | AG9: 15638.53913 | AH9: 17390.94262 | AI9: 17230.53141 | AJ9: 14155.65818 | AK9: 12546.58295 | AL9: 11842.62754 | AM9: 12698.56097 | AN9: 12927.51561 | AO9: 13411.18674 | AP9: 13145.98575 | AQ9: 13033 | AR9: 12977.01381 | AS9: 13215.68392 | AT9: 11576.64467 | AU9: 12022.69487 | AV9: 12344.20394 | AW9: 12498.76553 | AX9: 12535.19376 | AY9: 14514.78905 | AZ9: 13719.14694 | BA9: 14375.52936 | BB9: 14188.79061 | BC9: 15868.50625 | BD9: 15814.00646 | BE9: 16206.41989 | BF9: 16118.02798 | BG9: 16127.47876 | BH9: 16129.25158 | BI9: 15639.97992 | BJ9: 15480.68889 | BK9: 15067 | BL9: 15832 | BM9: 16037 | BN9: 16212 | BO9: 16159 | BP9: 15766 | BQ9: 16214
A10: NO - erhvervsejendomme | B10: 10 | F10: NO - erhvervsejendomme | V10: 1765.92833 | W10: 1630.644687 | X10: 1732.74255 | Y10: 1804.503754 | Z10: 1174.265823 | AA10: 352.3899299 | AB10: 359.9448651 | AC10: 352.9363173 | AD10: 364.9649642 | AE10: 317.2446089 | AF10: 331.2570194 | AG10: 327.4259499 | AH10: 302.3064639 | AI10: 299.0444749 | AJ10: 305.1098812 | AK10: 308.3352583 | AL10: 319.6294489 | AM10: 315.4274704 | AN10: 312.9782114 | AO10: 299.6957807 | AP10: 304.8741478 | AQ10: 0 | AS10: 0 | AT10: 0 | AU10: 0 | AV10: 0 | AZ10: 0 | BA10: 0 | BB10: 0 | BC10: 0 | BD10: 0 | BE10: 0 | BF10: 0 | BG10: 0 | BH10: 0 | BI10: 0 | BJ10: 0 | BK10: 0 | BL10: 0 | BM10: 0 | BN10: - | BO10: 0 | BP10: 0 | BQ10: 0
A11: FIN - erhvervsejendomme | B11: 11 | F11: FIN - erhvervsejendomme | V11: 0 | W11: 1671.614026 | X11: 1633.249385 | Y11: 2414.200369 | Z11: 2988.35265 | AA11: 3223.599968 | AB11: 3600.123968 | AC11: 3587.461821 | AD11: 3578.803123 | AE11: 3590.954612 | AF11: 3461.41625 | AG11: 3235.060505 | AH11: 3236.027206 | AI11: 3231.563313 | AJ11: 3228.061497 | AK11: 2409.59148 | AL11: 2251.697071 | AM11: 2247.740904 | AN11: 2382.979107 | AO11: 2492.671987 | AP11: 2402.142391 | AQ11: 2550 | AR11: 2278.251272 | AS11: 2279.491854 | AT11: 2800.074263 | AU11: 3101.963179 | AV11: 3180.44322 | AW11: 3170.261515 | AX11: 3381.279309 | AY11: 3383.877076 | AZ11: 3374.676159 | BA11: 3368.644652 | BB11: 3546.434432 | BC11: 3541.430254 | BD11: 3568.416838 | BE11: 3568.252392 | BF11: 3563.353168 | BG11: 3565.62039 | BH11: 3420.481328 | BI11: 3626.486402 | BJ11: 3927.327981 | BK11: 4743 | BL11: 4465 | BM11: 4466 | BN11: 4474 | BO11: 4413 | BP11: 4412 | BQ11: 4432
A12: DE - boligejendomme | B12: 12 | F12: DE - boligejendomme | V12: 51.08837096 | W12: 69.05256454 | X12: 82.18882861 | Y12: 108.9120321 | Z12: 120.9359541 | AA12: 121.0144539 | AB12: 117.9707843 | AC12: 111.2242775 | AD12: 109.9813819 | AE12: 106.8985965 | AF12: 104.2641207 | AG12: 100.7051086 | AH12: 99.32391833 | AI12: 97.92462859 | AJ12: 94.76449054 | AK12: 92.04778293 | AL12: 89.50707299 | AM12: 87.22912971 | AN12: 83.3077161 | AO12: 81.01897621 | AP12: 80.75580852 | AQ12: 78 | AR12: 75.33686229 | AS12: 74.22849569 | AT12: 71.77069104 | AU12: 70.03262139 | AV12: 67.75181906 | AW12: 61.82098201 | AX12: 59.94828527 | AY12: 57.5706206 | AZ12: 56.50883316 | BA12: 55.9029281 | BB12: 53.03683698 | BC12: 52.16129909 | BD12: 46.47252146 | BE12: 45.96342095 | BF12: 43.62045629 | BG12: 42.84429108 | BH12: 40.35432551 | BI12: 38.99557482 | BJ12: 37.96566946 | BK12: 31 | BL12: 31 | BM12: 26 | BN12: 25 | BO12: 24 | BP12: 23 | BQ12: 23
A13: PL - boligejendomme | B13: 13 | F13: PL - boligejendomme | V13: 1878.342317 | W13: 1591.845497 | X13: 1536.345957 | Y13: 1240.190215 | Z13: 1188.950021 | AA13: 1099.249822 | AB13: 1071.933462 | AC13: 1050.776829 | AD13: 1013.630449 | AE13: 964.5379837 | AF13: 985.5804479 | AG13: 936.5050388 | AH13: 901.5166691 | AI13: 880.6246045 | AJ13: 853.606998 | AK13: 805.3802473 | AL13: 804.8733056 | AM13: 771.7177076 | AN13: 778.1471593 | AO13: 730.753 | AP13: 698.426 | AQ13: 699 | AR13: 674.598 | AS13: 0 | AT13: 0 | AU13: 0 | AV13: 0 | AZ13: 0 | BA13: 0 | BB13: 0 | BC13: 0 | BD13: 0 | BE13: 0 | BF13: 0 | BG13: 0 | BH13: 0 | BI13: 0 | BJ13: 0 | BK13: 0 | BL13: 0 | BM13: 0 | BN13: - | BO13: 0 | BP13: 0 | BQ13: 0
A14: FR - boligejendomme | B14: 14 | F14: FR - boligejendomme | V14: 2335.417632 | W14: 2781.079106 | X14: 3362.105316 | Y14: 3744.12476 | Z14: 4133.825728 | AA14: 4463.469036 | AB14: 4522.799997 | AC14: 4487.562204 | AD14: 4510.999222 | AE14: 4545.179761 | AF14: 4632.691993 | AG14: 4629.473965 | AH14: 4715.865924 | AI14: 4691.670683 | AJ14: 4695.030134 | AK14: 4719.393153 | AL14: 4789.264119 | AM14: 4687.013616 | AN14: 4794.618774 | AO14: 4786.532428 | AP14: 4818.79395 | AQ14: 4834 | AR14: 4820.368958 | AS14: 4819.862993 | AT14: 4825.36673 | AU14: 4778.489788 | AV14: 4733.812415 | AW14: 4667.649394 | AX14: 4678.514466 | AY14: 4796.050565 | AZ14: 4792.065223 | BA14: 4740.993517 | BB14: 4703.72827 | BC14: 4561.185685 | BD14: 4431.294264 | BE14: 4317.10199 | BF14: 4244.466295 | BG14: 4191.642081 | BH14: 4116.874647 | BI14: 4072.090785 | BJ14: 3965.373087 | BK14: 3843 | BL14: 3779 | BM14: 3666 | BN14: 3613 | BO14: 3461 | BP14: 3347 | BQ14: 3273
A15: ES - boligejendomme | B15: 15 | F15: ES - boligejendomme | V15: 1801.833036 | W15: 2271.414262 | X15: 2754.864186 | Y15: 3515.111601 | Z15: 4009.679173 | AA15: 4681.352359 | AB15: 4854.233825 | AC15: 4923.370961 | AD15: 4989.212079 | AE15: 5111.687179 | AF15: 5215.555952 | AG15: 5279.572085 | AH15: 5374.109514 | AI15: 5457.626388 | AJ15: 5513.083842 | AK15: 5583.32059 | AL15: 5642.088707 | AM15: 5687.52705 | AN15: 5756.229943 | AO15: 5820.856043 | AP15: 5864.891439 | AQ15: 5861 | AR15: 5897.562704 | AS15: 5914.134084 | AT15: 5910.261511 | AU15: 5947.193914 | AV15: 5949.906144 | AW15: 5926.974059 | AX15: 5940.696143 | AY15: 5930.383715 | AZ15: 5897.968411 | BA15: 5899.680387 | BB15: 5874.754259 | BC15: 5841.336373 | BD15: 5786.855122 | BE15: 5703.624906 | BF15: 5609.571299 | BG15: 5523.845274 | BH15: 5783.867615 | BI15: 5704.544863 | BJ15: 5596.834082 | BK15: 5664 | BL15: 5498 | BM15: 5394 | BN15: 5236 | BO15: 5041 | BP15: 4875 | BQ15: 4722
A16: Internationalt realkreditudlån i alt | B16: 16 | F16: Internationalt realkreditudlån i alt | V16: 31109.82397 | W16: 36005.95413 | X16: 38290.90436 | Y16: 45450.39697 | Z16: 55404.15564 | AA16: 55971.62098 | AB16: 56848.87039 | AC16: 56579.21758 | AD16: 56229.71596 | AE16: 56096.5362 | AF16: 56835.83582 | AG16: 55743.21534 | AH16: 55644.44643 | AI16: 57830.96059 | AJ16: 55181.78785 | AK16: 51515.98802 | AL16: 50884.29451 | AM16: 51797.86646 | AN16: 53324.6148 | AO16: 55480.35663 | AP16: 56014.68527 | AQ16: 58382 | AR16: 58055.59583 | AS16: 57738.49253 | AT16: 57907.37995 | AU16: 58556.07546 | AV16: 60466.0701 | AW16: 59562.36525 | AX16: 62121.31441 | AY16: 64978.66132 | AZ16: 62384.51175 | BA16: 66237.44562 | BB16: 66409.08776 | BC16: 70095.77302 | BD16: 68751.53425 | BE16: 70377.87963 | BF16: 70174.39458 | BG16: 71839.26659 | BH16: 72323.61929 | BI16: 73596.56523 | BJ16: 73294.91898 | BK16: 73222 | BL16: 73625 | BM16: 72133 | BN16: 73099 | BO16: 74067 | BP16: 72254 | BQ16: 73437
A17: Indenlandsk realkreditudlån | B17: 17 | F17: Indenlandsk realkreditudlån | V17: 886619.816 | W17: 949210.1298 | X17: 991926.4915 | Y17: 1023389.662 | Z17: 1054844.178 | AA17: 1065185.357 | AB17: 1061745.644 | AC17: 1060156.124 | AD17: 1058580.377 | AE17: 1055647.638 | AF17: 1053614.29 | AG17: 1056675.447 | AH17: 1056459.469 | AI17: 1056490.345 | AJ17: 1054530.259 | AK17: 1056869.066 | AL17: 1053357.428 | AM17: 1055337.055 | AN17: 1059858.597 | AO17: 1064924.951 | AP17: 1072433.659 | AQ17: 1079727 | AR17: 1086003.541 | AS17: 1095561.611 | AT17: 1102527.361 | AU17: 1112892.455 | AV17: 1122409.299 | AW17: 1137101.937 | AX17: 1159289.281 | AY17: 1175832.609 | AZ17: 1194114.173 | BA17: 1204989.434 | BB17: 1221019.625 | BC17: 1231152.908 | BD17: 1270793.263 | BE17: 1287473.23 | BF17: 1305324.403 | BG17: 1319237.112 | BH17: 1339876.959 | BI17: 1348715.089 | BJ17: 1348148.531 | BK17: 1356669 | BL17: 1357191 | BM17: 1359367 | BN17: 1363334 | BO17: 1366195 | BP17: 1369366 | BQ17: 1379781
A18: Realkreditudlån i alt | B18: 18 | F18: Realkreditudlån i alt | V18: 917729.64 | W18: 985216.084 | X18: 1030217.396 | Y18: 1068840.059 | Z18: 1110248.334 | AA18: 1121156.978 | AB18: 1118594.515 | AC18: 1116735.341 | AD18: 1114810.093 | AE18: 1111744.174 | AF18: 1110450.126 | AG18: 1112418.662 | AH18: 1167748.361 | AI18: 1172152.267 | AJ18: 1164893.835 | AK18: 1159901.042 | AL18: 1155126.018 | AM18: 1158932.787 | AN18: 1166507.827 | AO18: 1120405.308 | AP18: 1128448.344 | AQ18: 1138109 | AR18: 1144059.137 | AS18: 1153300.103 | AT18: 1160434.741 | AU18: 1171448.53 | AV18: 1182875.369 | AW18: 1196664.302 | AX18: 1221410.595 | AY18: 1240811.27 | AZ18: 1256498.685 | BA18: 1271226.879 | BB18: 1287428.713 | BC18: 1301248.681 | BD18: 1339544.797 | BE18: 1357851.11 | BF18: 1375498.798 | BG18: 1391076.378 | BH18: 1412200.578 | BI18: 1422311.654 | BJ18: 1421443.45 | BK18: 1429891 | BL18: 1430816 | BM18: 1431500 | BN18: 1436433 | BO18: 1440262 | BP18: 1441620 | BQ18: 1453218
F19: Mortgage debt outstanding by segment, DKK million
A20: =+G20&F20 -> Restgæld - ultimoPrivat: | B20: =+ROW(A20) -> 20 | F20: Privat: | G20: Restgæld - ultimo | H20: 152000 | I20: 151000 | J20: 158000 | K20: 165000 | L20: 172000 | M20: 172000 | N20: 169000 | O20: 174000 | P20: 175000 | Q20: 176000 | R20: 361000 | S20: 424000 | T20: 478000 | U20: 533000 | V20: 576352.2799 | W20: 611762.0279 | X20: 639071.6972 | Y20: 660764.7238 | Z20: 682858.5581 | AA20: 688985.6032 | AB20: 684135.8173 | AC20: 681923.1507 | AD20: 678612.8472 | AE20: 674888.7443 | AF20: 674904.982 | AG20: 679054.292 | AH20: 680003.082 | AI20: 680336.1859 | AJ20: 680726.0292 | AK20: 683321.5803 | AL20: 682541.0398 | AM20: 684280.0347 | AN20: 686485.9187 | AO20: 693310.8303 | AP20: 702531.0333 | AQ20: 709119 | AR20: 715779.1656 | AS20: 723871.3423 | AT20: 731351.1009 | AU20: 739734.3491 | AV20: 748419.0817 | AW20: 762944.1934 | AX20: 781229.9953 | AY20: 796676.874 | AZ20: 812099.1303 | BA20: 820876.3546 | BB20: 834396.0181 | BC20: 843970.6088 | BD20: 861752.5792 | BE20: 877641.8956 | BF20: 890370.4489 | BG20: 900514.099 | BH20: 917043.1235 | BI20: 919859.1822 | BJ20: 917364.9485 | BK20: 894910 | BL20: 891202 | BM20: 890326 | BN20: 890428 | BO20: 891158 | BP20: 891057 | BQ20: 896273
A21: =+G21&F21 -> Restgæld - ultimoErhverv u/Boligudlejning : | B21: =+ROW(A21) -> 21 | F21: Erhverv u/Boligudlejning : | G21: Restgæld - ultimo | H21: 51000 | I21: 51000 | J21: 51000 | K21: 51000 | L21: 49000 | M21: 50000 | N21: 54000 | O21: 56000 | P21: 61000 | Q21: 63000 | R21: 65000 | S21: 67000 | T21: 75000 | U21: 83000 | V21: 99207.61629 | W21: 108470.9639 | X21: 115082.3067 | Y21: 123625.9669 | Z21: 132505.7447 | AA21: 132467.5439 | AB21: 132852.8995 | AC21: 133524.5424 | AD21: 133609.9923 | AE21: 131459.0976 | AF21: 129910.591 | AG21: 129538.1467 | AH21: 129194.8081 | AI21: 129992.0745 | AJ21: 127724.5338 | AK21: 127872.16 | AL21: 125667.4524 | AM21: 126354.8016 | AN21: 128330.6489 | AO21: 128553.7223 | AP21: 128170.2172 | AQ21: 130607 | AR21: 129961.1024 | AS21: 130538.0848 | AT21: 130203.7875 | AU21: 130891.5471 | AV21: 132799.9174 | AW21: 133198.3674 | AX21: 134917.928 | AY21: 136012.9037 | AZ21: 135721.8527 | BA21: 139936.3038 | BB21: 140412.6592 | BC21: 141445.0213 | BD21: 141256.5045 | BE21: 142315.7725 | BF21: 145399.0545 | BG21: 146171.4164 | BH21: 147743.3342 | BI21: 150423.4838 | BJ21: 151733.708 | BK21: 171675 | BL21: 174424 | BM21: 174842 | BN21: 177323 | BO21: 177900 | BP21: 178091 | BQ21: 181163
A22: =+G22&F22 -> Restgæld - ultimoLandbrug | B22: =+ROW(A22) -> 22 | F22: Landbrug | G22: Restgæld - ultimo | H22: 56000 | I22: 56000 | J22: 55000 | K22: 57000 | L22: 52000 | M22: 52000 | N22: 61000 | O22: 68000 | P22: 71000 | Q22: 73000 | R22: 76000 | S22: 76000 | T22: 78000 | U22: 84000 | V22: 84927.80735 | W22: 94675.17581 | X22: 96937.94824 | Y22: 97250.95381 | Z22: 97688.43564 | AA22: 97203.34075 | AB22: 96907.82578 | AC22: 96519.55098 | AD22: 96059.06485 | AE22: 95981.91064 | AF22: 95858.18163 | AG22: 95536.42785 | AH22: 95233.96 | AI22: 94437.70246 | AJ22: 93980.34759 | AK22: 93624.46459 | AL22: 93413.54674 | AM22: 92975.97024 | AN22: 92462.45271 | AO22: 92074.53802 | AP22: 91685.03733 | AQ22: 91037 | AR22: 90310.07401 | AS22: 90124.51128 | AT22: 90046.66044 | AU22: 89575.36711 | AV22: 88952.98043 | AW22: 88714.31456 | AX22: 88846.53519 | AY22: 88864.26685 | AZ22: 89030.58196 | BA22: 88732.8409 | BB22: 88419.15113 | BC22: 87933.84096 | BD22: 87604.83309 | BE22: 87395.1236 | BF22: 87090.21844 | BG22: 86618.18924 | BH22: 86380.37686 | BI22: 85653.4263 | BJ22: 84838.40498 | BK22: 84040 | BL22: 84098 | BM22: 84062 | BN22: 84268 | BO22: 83954 | BP22: 83685 | BQ22: 83733
A23: =+G23&F23 -> Restgæld - ultimoBoligudlejning : | B23: =+ROW(A23) -> 23 | F23: Boligudlejning : | G23: Restgæld - ultimo | H23: 73000 | I23: 76000 | J23: 82000 | K23: 85000 | L23: 90000 | M23: 93000 | N23: 97000 | O23: 101000 | P23: 105000 | Q23: 110000 | R23: 121000 | S23: 128000 | T23: 136000 | U23: 148000 | V23: 157241.9364 | W23: 170307.9163 | X23: 179125.4436 | Y23: 187198.4149 | Z23: 197195.5951 | AA23: 202500.4901 | AB23: 204697.9719 | AC23: 204768.0974 | AD23: 206528.1889 | AE23: 209414.4218 | AF23: 209776.3714 | AG23: 208289.7954 | AH23: 207672.0649 | AI23: 209555.3432 | AJ23: 207281.1364 | AK23: 203566.8489 | AL23: 202619.684 | AM23: 203524.1144 | AN23: 205904.1917 | AO23: 206466.2173 | AP23: 206062.0562 | AQ23: 207346 | AR23: 208008.7949 | AS23: 208776.0186 | AT23: 208841.6972 | AU23: 211247.2668 | AV23: 212703.3895 | AW23: 211807.4266 | AX23: 216416.1365 | AY23: 219257.2254 | AZ23: 219647.1199 | BA23: 221681.3799 | BB23: 224200.8844 | BC23: 227899.2101 | BD23: 248930.88 | BE23: 250498.318 | BF23: 252639.0759 | BG23: 257772.6736 | BH23: 261033.7438 | BI23: 266375.562 | BJ23: 267506.3884 | BK23: 279266 | BL23: 281092 | BM23: 282271 | BN23: 284414 | BO23: 287250 | BP23: 288786 | BQ23: 292049
A24: =+G24&F24 -> Restgæld - ultimoEjendomskategori | B24: =+ROW(A24) -> 24 | F24: Ejendomskategori | G24: Restgæld - ultimo | H24: 332000 | I24: 334000 | J24: 346000 | K24: 358000 | L24: 363000 | M24: 367000 | N24: 381000 | O24: 399000 | P24: 412000 | Q24: 421000 | R24: 623000 | S24: 695000 | T24: 766000 | U24: 849000 | V24: 917729.64 | W24: 985216.084 | X24: 1030217.396 | Y24: 1068840.059 | Z24: 1110248.334 | AA24: 1121156.978 | AB24: 1118594.515 | AC24: 1116735.341 | AD24: 1114810.093 | AE24: 1111744.174 | AF24: 1110450.126 | AG24: 1112418.662 | AH24: 1112103.915 | AI24: 1114321.306 | AJ24: 1109712.047 | AK24: 1108385.054 | AL24: 1104241.723 | AM24: 1107134.921 | AN24: 1113183.212 | AO24: 1120405.308 | AP24: 1128448.344 | AQ24: 1138109 | AR24: 1144059.137 | AS24: 1153309.957 | AT24: 1160443.246 | AU24: 1171448.53 | AV24: 1182875.369 | AW24: 1196664.302 | AX24: 1221410.595 | AY24: 1240811.27 | AZ24: 1256498.685 | BA24: 1271226.879 | BB24: 1287428.713 | BC24: 1301248.681 | BD24: 1339544.797 | BE24: 1357851.11 | BF24: 1375498.798 | BG24: 1391076.378 | BH24: 1412200.578 | BI24: 1422311.654 | BJ24: 1421443.45 | BK24: 1429891 | BL24: 1430816 | BM24: 1431501 | BN24: 1436433 | BO24: 1440262 | BP24: 1441620 | BQ24: 1453218 | BR24: 1465453.837 | BS24: 1483845.587 | BT24: 1500939.43 | BU24: 1516281.915 | BV24: 1535232.712 | BW24: 1550004.834 | BX24: 1569691.294
F25: Distribution of mortgage lending by size of loans, DKK million
A26: =+F26 -> [ 0.0 - 0.2 mio.] | B26: =+ROW(A26) -> 26 | F26: [ 0.0 - 0.2 mio.] | V26: 7721.014411 | W26: 7825.913802 | X26: 7657.367384 | Y26: 7560.845647 | Z26: 7824.831594 | AA26: 9160.684586 | AB26: 9385.736462 | AC26: 9532.669634 | AD26: 9384.578227 | AE26: 9128.903161 | AF26: 8683.119826 | AG26: 8358.213556 | AH26: 8248.687333 | AI26: 8091.776804 | AJ26: 8047.837096 | AK26: 8067.456925 | AL26: 7822.179507 | AM26: 7666.898993 | AN26: 7538.162025 | AO26: 7386.78674 | AP26: 7279.131927 | AQ26: 7111 | AR26: 6963.814549 | AS26: 6768.776012 | AT26: 6697.796064 | AU26: 6621.288545 | AV26: 6470.151491 | AW26: 6416.524774 | AX26: 6164.119349 | AY26: 5971.880875 | AZ26: 5849.016923 | BA26: 5767.694064 | BB26: 5638.872665 | BC26: 5492.268108 | BD26: 5506.915407 | BE26: 5240.253269 | BF26: 5164.365954 | BG26: 5043.21058 | BH26: 5008.600013 | BI26: 5079.096639 | BJ26: 5053.935384 | BK26: 4820 | BL26: 4882 | BM26: 4829 | BN26: 4791 | BO26: 4684 | BP26: 4673 | BQ26: 4498
A27: ] 0.2 - 0.5 mio.] | B27: 27 | F27: ] 0.2 - 0.5 mio.] | V27: 56675.39132 | W27: 58281.86858 | X27: 57180.24797 | Y27: 56532.83347 | Z27: 57885.67502 | AA27: 64559.74558 | AB27: 65533.14941 | AC27: 65955.81846 | AD27: 65156.03618 | AE27: 62337.86606 | AF27: 59396.55581 | AG27: 57239.8117 | AH27: 56365.29961 | AI27: 55386.3575 | AJ27: 54788.79969 | AK27: 54962.19173 | AL27: 53761.11719 | AM27: 52976.67766 | AN27: 52234.6407 | AO27: 51743.22804 | AP27: 51718.82168 | AQ27: 51194 | AR27: 50605.16697 | AS27: 50017.12446 | AT27: 49809.98669 | AU27: 49357.09755 | AV27: 48888.38737 | AW27: 48107.20088 | AX27: 47532.47013 | AY27: 46610.26926 | AZ27: 46046.04199 | BA27: 45761.79957 | BB27: 45309.44889 | BC27: 44651.564 | BD27: 44729.1503 | BE27: 43530.30822 | BF27: 43264.78357 | BG27: 42822.97593 | BH27: 42555.12133 | BI27: 42697.91938 | BJ27: 42373.18504 | BK27: 41301 | BL27: 41599 | BM27: 41215 | BN27: 41046 | BO27: 40631 | BP27: 40414 | BQ27: 39544
A28: ] 0.5 - 1.0 mio.] | B28: 28 | F28: ] 0.5 - 1.0 mio.] | V28: 177020.7139 | W28: 180360.3066 | X28: 181377.5488 | Y28: 182684.1697 | Z28: 186295.0449 | AA28: 192244.2746 | AB28: 192247.767 | AC28: 192383.7976 | AD28: 191330.4657 | AE28: 186398.5929 | AF28: 182832.5394 | AG28: 180107.4864 | AH28: 178618.2639 | AI28: 176848.559 | AJ28: 175553.4314 | AK28: 175663.3621 | AL28: 173854.6399 | AM28: 172319.6108 | AN28: 171573.6738 | AO28: 171124.2251 | AP28: 171137.5497 | AQ28: 170486 | AR28: 169670.6898 | AS28: 169093.4515 | AT28: 168611.4875 | AU28: 167946.8059 | AV28: 167468.1648 | AW28: 165568.106 | AX28: 165043.8406 | AY28: 163066.794 | AZ28: 162269.7791 | BA28: 162204.2287 | BB28: 161746.3384 | BC28: 160633.4642 | BD28: 160418.4768 | BE28: 159045.6452 | BF28: 158343.537 | BG28: 157571.9008 | BH28: 157243.0533 | BI28: 156639.7554 | BJ28: 156577.7024 | BK28: 155826 | BL28: 156296 | BM28: 155279 | BN28: 154810 | BO28: 153313 | BP28: 152584 | BQ28: 150942
A29: ] 1.0 - 1.5 mio.] | B29: 29 | F29: ] 1.0 - 1.5 mio.] | V29: 168160.4584 | W29: 176590.51 | X29: 184847.0626 | Y29: 191089.8563 | Z29: 197147.2303 | AA29: 197435.56 | AB29: 195728.8618 | AC29: 194512.5969 | AD29: 193452.0057 | AE29: 192572.6884 | AF29: 192276.0685 | AG29: 192747.0704 | AH29: 192168.7158 | AI29: 191441.3464 | AJ29: 190779.6894 | AK29: 190019.6956 | AL29: 189408.5713 | AM29: 188585.8546 | AN29: 187949.6306 | AO29: 188956.5414 | AP29: 190203.2851 | AQ29: 190541 | AR29: 190662.1939 | AS29: 191275.857 | AT29: 191839.103 | AU29: 192502.3271 | AV29: 193261.5845 | AW29: 193790.2643 | AX29: 195016.8083 | AY29: 195834.2364 | AZ29: 196607.4579 | BA29: 197245.0286 | BB29: 198381.4427 | BC29: 198267.4289 | BD29: 198912.4546 | BE29: 199691.8731 | BF29: 200233.3457 | BG29: 199918.7068 | BH29: 200820.2121 | BI29: 199233.8164 | BJ29: 198917.8867 | BK29: 197418 | BL29: 196208 | BM29: 195106 | BN29: 193997 | BO29: 192289 | BP29: 191246 | BQ29: 191330
A30: ] 1.5 - 2.0 mio.] | B30: 30 | F30: ] 1.5 - 2.0 mio.] | V30: 106577.4121 | W30: 116567.7356 | X30: 125238.2023 | Y30: 131000.8728 | Z30: 136247.673 | AA30: 134082.1263 | AB30: 132702.8213 | AC30: 132210.1251 | AD30: 132178.4867 | AE30: 132427.0676 | AF30: 133428.4837 | AG30: 134887.7465 | AH30: 135338.5751 | AI30: 135746.3874 | AJ30: 135875.2629 | AK30: 136160.2832 | AL30: 136320.0058 | AM30: 136961.1377 | AN30: 136943.2871 | AO30: 138595.5685 | AP30: 140036.3364 | AQ30: 141349 | AR30: 142538.7482 | AS30: 143714.0381 | AT30: 144656.1962 | AU30: 145954.1167 | AV30: 147638.074 | AW30: 149770.3905 | AX30: 152249.0927 | AY30: 154785.2997 | AZ30: 157546.8197 | BA30: 159350.5403 | BB30: 161112.8781 | BC30: 161998.0006 | BD30: 165193.3479 | BE30: 167630.9281 | BF30: 168832.4586 | BG30: 169733.3019 | BH30: 172019.2197 | BI30: 171880.5936 | BJ30: 171480.3426 | BK30: 169502 | BL30: 168479 | BM30: 167928 | BN30: 167237 | BO30: 166182 | BP30: 165762 | BQ30: 165917
A31: ] 2.0 - 3.0 mio.] | B31: 31 | F31: ] 2.0 - 3.0 mio.] | V31: 103088.3905 | W31: 113865.9286 | X31: 123056.1353 | Y31: 129720.1403 | Z31: 134120.2085 | AA31: 130512.9119 | AB31: 128544.2949 | AC31: 127676.7314 | AD31: 127325.0311 | AE31: 129201.6272 | AF31: 132121.5616 | AG31: 136087.3801 | AH31: 137855.6202 | AI31: 139214.0166 | AJ31: 140270.414 | AK31: 141387.704 | AL31: 142789.2965 | AM31: 144827.8731 | AN31: 145683.8711 | AO31: 149452.2404 | AP31: 152558.9124 | AQ31: 155470 | AR31: 158353.7771 | AS31: 161798.323 | AT31: 164676.8035 | AU31: 168239.4441 | AV31: 171656.4475 | AW31: 178234.6956 | AX31: 185038.7649 | AY31: 190638.29 | AZ31: 196745.6577 | BA31: 199595.3567 | BB31: 204718.1046 | BC31: 208310.2555 | BD31: 214028.7496 | BE31: 220232.8732 | BF31: 224108.379 | BG31: 227540.3287 | BH31: 232612.5854 | BI31: 233222.3182 | BJ31: 232119.6376 | BK31: 228481 | BL31: 226680 | BM31: 226571 | BN31: 226971 | BO31: 227152 | BP31: 226962 | BQ31: 228984
A32: ] 3.0 - 4.0 mio.] | B32: 32 | F32: ] 3.0 - 4.0 mio.] | V32: 40032.88735 | W32: 44257.42522 | X32: 47027.80872 | Y32: 49936.92074 | Z32: 51514.42102 | AA32: 50549.28134 | AB32: 49890.2524 | AC32: 49683.63856 | AD32: 49885.54045 | AE32: 51214.60372 | AF32: 52554.19862 | AG32: 54256.67916 | AH32: 55407.30963 | AI32: 56236.68962 | AJ32: 56683.8292 | AK32: 57532.33328 | AL32: 58115.4419 | AM32: 58973.94766 | AN32: 59310.40277 | AO32: 60927.25497 | AP32: 62274.69784 | AQ32: 63567 | AR32: 65084.784 | AS32: 67124.46808 | AT32: 68475.50434 | AU32: 70180.93034 | AV32: 71817.8388 | AW32: 75361.81058 | AX32: 79325.34159 | AY32: 83639.99897 | AZ32: 86868.69065 | BA32: 88732.14586 | BB32: 91543.88709 | BC32: 94366.71311 | BD32: 98712.04582 | BE32: 102665.6102 | BF32: 105703.7308 | BG32: 108322.4315 | BH32: 111621.1908 | BI32: 112498.7638 | BJ32: 111549.5997 | BK32: 110270 | BL32: 109660 | BM32: 110068 | BN32: 110375 | BO32: 112116 | BP32: 112617 | BQ32: 114955
A33: ] 4.0 - 5.0 mio.] | B33: 33 | F33: ] 4.0 - 5.0 mio.] | V33: 23880.19319 | W33: 26493.76465 | X33: 28381.60475 | Y33: 29522.85286 | Z33: 30744.41292 | AA33: 30423.19538 | AB33: 30367.15532 | AC33: 30259.12981 | AD33: 30277.42809 | AE33: 30519.48262 | AF33: 31339.68564 | AG33: 32035.70974 | AH33: 32202.6654 | AI33: 32557.68449 | AJ33: 32832.27837 | AK33: 32813.33979 | AL33: 32939.27242 | AM33: 33304.28571 | AN33: 33622.24227 | AO33: 34347.65274 | AP33: 34798.09432 | AQ33: 35624 | AR33: 36062.78984 | AS33: 36640.06769 | AT33: 37523.72678 | AU33: 38393.1767 | AV33: 38884.46868 | AW33: 40435.36073 | AX33: 41978.20092 | AY33: 43268.80712 | AZ33: 44690.92299 | BA33: 45290.05102 | BB33: 46509.77177 | BC33: 47697.85367 | BD33: 50134.67289 | BE33: 51907.07714 | BF33: 53895.51151 | BG33: 55404.07739 | BH33: 57581.10756 | BI33: 58063.6383 | BJ33: 57729.30197 | BK33: 56879 | BL33: 56738 | BM33: 57157 | BN33: 57750 | BO33: 58748 | BP33: 59180 | BQ33: 60314
A34: ] 5.0 - 10.0 mio.] | B34: 34 | F34: ] 5.0 - 10.0 mio.] | V34: 66136.49441 | W34: 72380.39252 | X34: 76917.60647 | Y34: 79582.80122 | Z34: 81784.15122 | AA34: 82814.23458 | AB34: 82589.76034 | AC34: 82313.49849 | AD34: 82207.26893 | AE34: 83718.39927 | AF34: 84231.40234 | AG34: 84931.98647 | AH34: 85353.35541 | AI34: 85601.76896 | AJ34: 85713.06546 | AK34: 85854.24191 | AL34: 85443.75602 | AM34: 86348.90686 | AN34: 87419.67989 | AO34: 86903.87403 | AP34: 87378.02595 | AQ34: 87965 | AR34: 88248.91772 | AS34: 88837.76948 | AT34: 88917.29944 | AU34: 89455.89341 | AV34: 89629.92659 | AW34: 91037.94697 | AX34: 92835.08656 | AY34: 94633.46207 | AZ34: 96200.45038 | BA34: 96630.77495 | BB34: 97852.34004 | BC34: 98974.14391 | BD34: 104241.8921 | BE34: 106435.0577 | BF34: 108022.4199 | BG34: 109496.7065 | BH34: 111647.9101 | BI34: 112354.3687 | BJ34: 111787.6819 | BK34: 111999 | BL34: 112111 | BM34: 112623 | BN34: 113035 | BO34: 114386 | BP34: 114912 | BQ34: 116268
A35: ] 10.0 - 20.0 mio.] | B35: 35 | F35: ] 10.0 - 20.0 mio.] | V35: 54793.5902 | W35: 60941.1281 | X35: 63077.22086 | Y35: 64792.18174 | Z35: 66258.91241 | AA35: 67264.60039 | AB35: 67288.50971 | AC35: 66931.46528 | AD35: 67172.7173 | AE35: 67716.46195 | AF35: 67937.26038 | AG35: 67947.37324 | AH35: 67977.8206 | AI35: 68678.48682 | AJ35: 68330.88241 | AK35: 67744.16318 | AL35: 67620.28705 | AM35: 67818.4773 | AN35: 68882.99738 | AO35: 67722.09592 | AP35: 67370.09992 | AQ35: 67267 | AR35: 67058.66812 | AS35: 67434.02211 | AT35: 67815.73426 | AU35: 67784.79754 | AV35: 67896.39995 | AW35: 67587.21992 | AX35: 68378.98164 | AY35: 69288.70112 | AZ35: 69779.47326 | BA35: 69896.8562 | BB35: 69896.07759 | BC35: 70402.79141 | BD35: 74097.08865 | BE35: 74337.06831 | BF35: 75214.60634 | BG35: 75929.71337 | BH35: 76835.94601 | BI35: 77368.37303 | BJ35: 77300.25146 | BK35: 77597 | BL35: 78158 | BM35: 79221 | BN35: 79600 | BO35: 80074 | BP35: 80975 | BQ35: 82116
A36: ] 20.0 - 50.0 mio.] | B36: 36 | F36: ] 20.0 - 50.0 mio.] | V36: 47256.86132 | W36: 51977.53938 | X36: 55457.7212 | Y36: 56967.30915 | Z36: 59050.43106 | AA36: 60415.85913 | AB36: 60297.51392 | AC36: 60180.00727 | AD36: 60437.93521 | AE36: 60195.10234 | AF36: 60278.49101 | AG36: 60238.76324 | AH36: 59993.85166 | AI36: 60911.22019 | AJ36: 60143.79799 | AK36: 59877.86132 | AL36: 59713.94024 | AM36: 60157.20483 | AN36: 60877.27021 | AO36: 60523.28725 | AP36: 59945.90615 | AQ36: 60071 | AR36: 60509.31254 | AS36: 60673.41155 | AT36: 60581.95966 | AU36: 61357.46349 | AV36: 61302.47175 | AW36: 61466.2279 | AX36: 62288.86806 | AY36: 62946.2035 | AZ36: 63768.63307 | BA36: 64614.83402 | BB36: 65738.75347 | BC36: 65600.55834 | BD36: 70258.51328 | BE36: 70119.82412 | BF36: 71090.68555 | BG36: 73060.99838 | BH36: 74113.58305 | BI36: 75894.30948 | BJ36: 76393.02557 | BK36: 78333 | BL36: 79129 | BM36: 80094 | BN36: 81187 | BO36: 81730 | BP36: 82906 | BQ36: 83561
A37: ] 50.0 - 100.0 mio.] | B37: 37 | F37: ] 50.0 - 100.0 mio.] | V37: 17949.95747 | W37: 21078.13989 | X37: 21733.0387 | Y37: 22844.70247 | Z37: 25029.15837 | AA37: 25691.20298 | AB37: 26289.83188 | AC37: 26885.76862 | AD37: 27555.88209 | AE37: 28090.56249 | AF37: 27689.13196 | AG37: 27145.44921 | AH37: 27051.62115 | AI37: 26769.68667 | AJ37: 26208.89161 | AK37: 26951.32332 | AL37: 27071.11585 | AM37: 28318.33968 | AN37: 28667.01298 | AO37: 28868.20597 | AP37: 29888.46707 | AQ37: 29421 | AR37: 30069.61948 | AS37: 31312.97264 | AT37: 31730.62102 | AU37: 32469.54663 | AV37: 33469.7031 | AW37: 34012.62743 | AX37: 35400.91582 | AY37: 36774.42167 | AZ37: 37232.44082 | BA37: 38365.51823 | BB37: 39509.57686 | BC37: 40071.51695 | BD37: 44915.2314 | BE37: 44088.92333 | BF37: 44703.88823 | BG37: 45086.27012 | BH37: 46686.78318 | BI37: 48147.14436 | BJ37: 48213.76305 | BK37: 50662 | BL37: 51890 | BM37: 52215 | BN37: 53112 | BO37: 54497 | BP37: 54968 | BQ37: 56671
A38: ]100.0 - ..... mio.] | B38: 38 | F38: ]100.0 - ..... mio.] | V38: 48436.27547 | W38: 54595.43107 | X38: 58265.83084 | Y38: 66604.57306 | Z38: 76346.18317 | AA38: 76003.30125 | AB38: 77728.85999 | AC38: 78210.09425 | AD38: 78446.71754 | AE38: 78222.83073 | AF38: 77681.62717 | AG38: 76434.99229 | AH38: 75522.12916 | AI38: 76837.32541 | AJ38: 74483.86847 | AK38: 71351.09753 | AL38: 69382.09935 | AM38: 68875.70611 | AN38: 72480.34114 | AO38: 73854.34699 | AP38: 73859.0156 | AQ38: 78043 | AR38: 78230.65473 | AS38: 78619.67543 | AT38: 79107.02761 | AU38: 81185.64195 | AV38: 84491.75653 | AW38: 84875.92638 | AX38: 90158.1045 | AY38: 93352.90537 | AZ38: 92893.30048 | BA38: 97772.05102 | BB38: 99471.22054 | BC38: 104782.1225 | BD38: 108396.258 | BE38: 112925.6678 | BF38: 116921.0857 | BG38: 121145.7562 | BH38: 123455.2659 | BI38: 129231.5571 | BJ38: 131947.1366 | BK38: 146803 | BL38: 148986 | BM38: 149193 | BN38: 152521 | BO38: 154460 | BP38: 154421 | BQ38: 158117
A39: Hovedtotal | B39: 39 | F39: Hovedtotal | V39: 917729.64 | W39: 985216.084 | X39: 1030217.396 | Y39: 1068840.059 | Z39: 1110248.334 | AA39: 1121156.978 | AB39: 1118594.515 | AC39: 1116735.341 | AD39: 1114810.093 | AE39: 1111744.188 | AF39: 1110450.126 | AG39: 1112418.662 | AH39: 1112103.915 | AI39: 1114321.306 | AJ39: 1109712.048 | AK39: 1108385.054 | AL39: 1104241.723 | AM39: 1107134.921 | AN39: 1113183.212 | AO39: 1120405.308 | AP39: 1128448.344 | AQ39: 1138109 | AR39: 1144059.137 | AS39: 1153309.957 | AT39: 1160443.246 | AU39: 1171448.53 | AV39: 1182875.375 | AW39: 1196664.302 | AX39: 1221410.595 | AY39: 1240811.27 | AZ39: 1256498.685 | BA39: 1271226.879 | BB39: 1287428.713 | BC39: 1301248.681 | BD39: 1339544.797 | BE39: 1357851.11 | BF39: 1375498.798 | BG39: 1391076.378 | BH39: 1412200.579 | BI39: 1422311.654 | BJ39: 1421443.45 | BK39: 1429891 | BL39: 1430816 | BM39: 1431499 | BN39: 1436432 | BO39: 1440262 | BP39: 1441620 | BQ39: 1453217
F40: Mortgage debt outstading by segment / Geographic distribution of Mortgage Loan portfolio, DKK million
A41: =+G41&F41 -> LandbrugKøbenhavn | B41: =+ROW(A41) -> 41 | F41: København | G41: Landbrug | V41: 0 | W41: 0 | X41: 0 | Y41: 0 | Z41: 0 | AA41: 0 | AB41: 0 | AC41: 0 | AD41: 0 | AE41: 0 | AF41: 0 | AG41: 0 | AH41: 0 | AI41: 0 | AO41: 0 | AV41: 0 | AZ41: 0 | BA41: 0 | BB41: 0 | BC41: 0 | BD41: 0 | BE41: 0 | BF41: 0 | BG41: 0 | BH41: 0 | BI41: 0 | BJ41: 0 | BK41: 0 | BL41: 0 | BM41: 0 | BN41: 0 | BO41: 0 | BP41: 0 | BQ41: 0
A42: Kontor og forretningKøbenhavn | B42: 42 | F42: København | G42: Kontor og forretning | V42: 11789.91452 | W42: 13834.54793 | X42: 14856.80635 | Y42: 15595.2013 | Z42: 16424.28055 | AA42: 16175.20172 | AB42: 15487.32173 | AC42: 16044.84725 | AD42: 16225.68812 | AE42: 16080.20399 | AF42: 15528.19046 | AG42: 15792.54372 | AH42: 15569.33818 | AI42: 15481.13052 | AJ42: 15342.13729 | AK42: 15351.6695 | AL42: 14965.58406 | AM42: 16159.22402 | AN42: 16763.32558 | AO42: 16765.93922 | AP42: 16141.87317 | AQ42: 16710 | AR42: 16571.70159 | AS42: 17054.61368 | AT42: 17448.77399 | AU42: 17944.4135 | AV42: 18419.41859 | AW42: 18689.80492 | AX42: 19577.11049 | AY42: 19458.88177 | AZ42: 19900.53503 | BA42: 20346.25344 | BB42: 20771.00684 | BC42: 21352.33989 | BD42: 21861.04259 | BE42: 22839.96482 | BF42: 26465.80684 | BG42: 26684.27583 | BH42: 26803.14167 | BI42: 27673.24272 | BJ42: 28294.29664 | BK42: 30718 | BL42: 32861 | BM42: 32962 | BN42: 33345 | BO42: 32529 | BP42: 33345 | BQ42: 33786
A43: IndustriKøbenhavn | B43: 43 | F43: København | G43: Industri | V43: 232.0217917 | W43: 234.6862552 | X43: 88.33434752 | Y43: 91.6210303 | Z43: 125.2152615 | AA43: 141.8445609 | AB43: 118.0862093 | AC43: 115.57341 | AD43: 116.3546719 | AE43: 120.2500746 | AF43: 88.50646372 | AG43: 87.33241135 | AH43: 94.66419929 | AI43: 79.87164406 | AJ43: 79.0577953 | AK43: 73.94576382 | AL43: 72.61034996 | AM43: 78.47298007 | AN43: 79.54786375 | AO43: 78.34810601 | AP43: 83.30825754 | AQ43: 80 | AR43: 78.63767298 | AS43: 77.0407222 | AT43: 58.18507093 | AU43: 57.46421814 | AV43: 55.17008741 | AW43: 49.82378835 | AX43: 61.08827303 | AY43: 60.22676485 | AZ43: 59.33707768 | BA43: 55.86646414 | BB43: 54.93326017 | BC43: 54.24941797 | BD43: 53.34090947 | BE43: 48.52950454 | BF43: 71.98333172 | BG43: 65.48056399 | BH43: 64.37692697 | BI43: 57.35911605 | BJ43: 54.26051281 | BK43: 53 | BL43: 53 | BM43: 52 | BN43: 50 | BO43: 55 | BP43: 54 | BQ43: 53
A44: Socialt og kultureltKøbenhavn | B44: 44 | F44: København | G44: Socialt og kulturelt | V44: 1941.992897 | W44: 1868.087043 | X44: 2066.266206 | Y44: 2097.749354 | Z44: 2381.724765 | AA44: 2687.784822 | AB44: 2738.115632 | AC44: 2723.162485 | AD44: 2766.113805 | AE44: 2857.443121 | AF44: 2733.047601 | AG44: 2639.352174 | AH44: 2554.077904 | AI44: 2536.660845 | AJ44: 2504.731193 | AK44: 2496.734469 | AL44: 2471.865103 | AM44: 2419.164521 | AN44: 2401.884591 | AO44: 2403.709053 | AP44: 2354.798501 | AQ44: 2344 | AR44: 2477.923988 | AS44: 2469.451477 | AT44: 2442.753134 | AU44: 2485.090789 | AV44: 2448.028542 | AW44: 2216.026448 | AX44: 2213.186565 | AY44: 2186.766111 | AZ44: 2175.911301 | BA44: 2269.424687 | BB44: 2765.42814 | BC44: 2760.951891 | BD44: 2941.074086 | BE44: 3041.553112 | BF44: 3029.17265 | BG44: 3039.636381 | BH44: 3030.849417 | BI44: 3004.123101 | BJ44: 2992.572296 | BK44: 2975 | BL44: 2954 | BM44: 2934 | BN44: 2913 | BO44: 2909 | BP44: 2433 | BQ44: 2413
A45: EjerboligKøbenhavn | B45: 45 | F45: København | G45: Ejerbolig | V45: 33023.57264 | W45: 34363.47034 | X45: 35407.58361 | Y45: 36959.54216 | Z45: 38876.96473 | AA45: 40064.26104 | AB45: 39881 | AC45: 39900.0546 | AD45: 39927.22033 | AE45: 40174.45679 | AF45: 40529.78887 | AG45: 41789.06683 | AH45: 42685.41831 | AI45: 43337.11976 | AJ45: 44025.35895 | AK45: 44401.69028 | AL45: 44715.45153 | AM45: 45298.77979 | AN45: 46369.87028 | AO45: 47198.85725 | AP45: 48521.02619 | AQ45: 49690 | AR45: 50637.89022 | AS45: 51698.70431 | AT45: 52844.058 | AU45: 54075.46964 | AV45: 55247.83825 | AW45: 56990.07398 | AX45: 59139.99754 | AY45: 60895.62386 | AZ45: 62872.57194 | BA45: 63990.98633 | BB45: 65803.99362 | BC45: 67503.13724 | BD45: 70194.69065 | BE45: 72425.7692 | BF45: 74847.03342 | BG45: 76177.41067 | BH45: 78204.90631 | BI45: 79216.87801 | BJ45: 79118.87778 | BK45: 76353 | BL45: 76108 | BM45: 76247 | BN45: 76484 | BO45: 77579 | BP45: 77252 | BQ45: 78007
A46: BoligudlejningKøbenhavn | B46: 46 | F46: København | G46: Boligudlejning | V46: 23034.2898 | W46: 24310.93542 | X46: 26541.04999 | Y46: 27270.92876 | Z46: 28558.40904 | AA46: 29554.45018 | AB46: 29668.72592 | AC46: 30042.44291 | AD46: 30563.33574 | AE46: 31081.14681 | AF46: 30712.00591 | AG46: 30581.00054 | AH46: 30052.12182 | AI46: 30181.89023 | AJ46: 29654.34596 | AK46: 29822.85302 | AL46: 29428.06457 | AM46: 29619.64994 | AN46: 29802.10509 | AO46: 30002.4304 | AP46: 29766.59078 | AQ46: 30103 | AR46: 31302.93126 | AS46: 31903.98352 | AT46: 31805.45962 | AU46: 33594.74668 | AV46: 33826.93734 | AW46: 34229.19037 | AX46: 36121.94753 | AY46: 36519.14136 | AZ46: 37641.80685 | BA46: 37994.6838 | BB46: 38220.84015 | BC46: 38379.76152 | BD46: 38926.74277 | BE46: 38948.40609 | BF46: 39800.19498 | BG46: 40406.32469 | BH46: 40744.32759 | BI46: 43393.61445 | BJ46: 43388.65453 | BK46: 47960 | BL46: 47113 | BM46: 48162 | BN46: 48315 | BO46: 49184 | BP46: 49441 | BQ46: 50302
A47: Støttet boligbyggeriKøbenhavn | B47: 47 | F47: København | G47: Støttet boligbyggeri | V47: 9588.491533 | W47: 9495.913596 | X47: 9127.804255 | Y47: 9256.997687 | Z47: 9447.940217 | AA47: 9356.602176 | AB47: 9309.999634 | AC47: 9122.618547 | AD47: 9078.079805 | AE47: 9124.411871 | AF47: 9072.868566 | AG47: 9127.612773 | AH47: 9168.732049 | AI47: 9228.504835 | AJ47: 9252.902704 | AK47: 9290.593037 | AL47: 9234.943061 | AM47: 9334.075518 | AN47: 9520.907377 | AO47: 9332.274095 | AP47: 9328.381114 | AQ47: 9377 | AR47: 9339.299218 | AS47: 9186.155398 | AT47: 9301.231803 | AU47: 9151.180053 | AV47: 9078.163902 | AW47: 9141.353953 | AX47: 8847.88271 | AY47: 9155.096196 | AZ47: 9193.769604 | BA47: 9409.801052 | BB47: 9423.873574 | BC47: 9544.7145 | BD47: 10974.39086 | BE47: 11254.78718 | BF47: 11304.67143 | BG47: 11550.71945 | BH47: 11655.94637 | BI47: 11796.47366 | BJ47: 11758.46858 | BK47: 12089 | BL47: 12440 | BM47: 12571 | BN47: 12431 | BO47: 12306 | BP47: 12303 | BQ47: 12175
A48: I altKøbenhavn | B48: 48 | F48: København | G48: I alt | V48: 79610.28319 | W48: 84107.64057 | X48: 88087.84476 | Y48: 91272.04029 | Z48: 95814.53456 | AA48: 97980.1445 | AB48: 97203.24912 | AC48: 97948.69919 | AD48: 98676.79247 | AE48: 99437.91266 | AF48: 98664.40787 | AG48: 100016.9085 | AH48: 100124.3525 | AI48: 100845.1778 | AJ48: 100858.5339 | AK48: 101437.4861 | AL48: 100888.5187 | AM48: 102909.3668 | AN48: 104937.6408 | AO48: 105781.5581 | AP48: 106195.978 | AQ48: 108305 | AR48: 110408.3839 | AS48: 112389.9491 | AT48: 113900.4616 | AU48: 117308.3649 | AV48: 119075.5567 | AW48: 121316.2735 | AX48: 125961.2131 | AY48: 128275.7361 | AZ48: 131843.9318 | BA48: 134067.0158 | BB48: 137040.0756 | BC48: 139595.1545 | BD48: 144951.2819 | BE48: 148559.0099 | BF48: 155518.8626 | BG48: 157923.8476 | BH48: 160503.5483 | BI48: 165141.6911 | BJ48: 165607.1303 | BK48: 170148 | BL48: 171529 | BM48: 172928 | BN48: 173539 | BO48: 174562 | BP48: 174828 | BQ48: 176737 | BR48: 178383.3862 | BS48: 179712.542 | BT48: 182440.2887 | BU48: 187764.9722 | BV48: 191372.874 | BW48: 194518.5204 | BX48: 198454.9745
A49: LandbrugØstjylland | B49: 49 | F49: Østjylland | G49: Landbrug | V49: 17049.82009 | W49: 18628.1967 | X49: 18740.69694 | Y49: 18869.57756 | Z49: 18891.41048 | AA49: 18675.36522 | AB49: 18558.46221 | AC49: 18531.84411 | AD49: 18301.70741 | AE49: 18083.83305 | AF49: 18011.64653 | AG49: 17981.10549 | AH49: 17845.76718 | AI49: 17824.99117 | AJ49: 17646.8798 | AK49: 17653.7017 | AL49: 17660.06147 | AM49: 17555.46916 | AN49: 17552.61341 | AO49: 17565.12285 | AP49: 17537.319 | AQ49: 17657 | AR49: 17560.98483 | AS49: 17772.95746 | AT49: 17876.6447 | AU49: 17867.39726 | AV49: 17815.40477 | AW49: 17834.02998 | AX49: 17980.88168 | AY49: 17991.30548 | AZ49: 17871.82728 | BA49: 17907.88079 | BB49: 17984.64045 | BC49: 17922.81255 | BD49: 17612.02525 | BE49: 17652.23264 | BF49: 17621.14213 | BG49: 17549.30587 | BH49: 17420.27797 | BI49: 17243.49605 | BJ49: 17179.36379 | BK49: 17180 | BL49: 17088 | BM49: 17016 | BN49: 17076 | BO49: 17006 | BP49: 16910 | BQ49: 16805
A50: Kontor og forretningØstjylland | B50: 50 | F50: Østjylland | G50: Kontor og forretning | V50: 14017.27164 | W50: 15976.05275 | X50: 17615.58249 | Y50: 18580.49937 | Z50: 18659.13445 | AA50: 18744.96699 | AB50: 19094.59875 | AC50: 18235.6345 | AD50: 18154.26253 | AE50: 18086.01826 | AF50: 17835.88556 | AG50: 17968.24773 | AH50: 18026.29914 | AI50: 17944.88925 | AJ50: 17737.95644 | AK50: 18553.00179 | AL50: 18369.95053 | AM50: 18216.14328 | AN50: 18488.33983 | AO50: 18443.06095 | AP50: 18976.95928 | AQ50: 18708 | AR50: 18033.28916 | AS50: 18473.18849 | AT50: 18985.3471 | AU50: 19188.79613 | AV50: 19500.35287 | AW50: 19535.06468 | AX50: 19416.13199 | AY50: 19271.92164 | AZ50: 19431.83933 | BA50: 19532.04732 | BB50: 19811.70818 | BC50: 19655.14806 | BD50: 19720.46572 | BE50: 19753.9955 | BF50: 19841.26024 | BG50: 19744.54784 | BH50: 19930.97071 | BI50: 20859.06882 | BJ50: 20762.24629 | BK50: 23802 | BL50: 23929 | BM50: 24390 | BN50: 24828 | BO50: 24916 | BP50: 25243 | BQ50: 25780
A51: IndustriØstjylland | B51: 51 | F51: Østjylland | G51: Industri | V51: 5754.65018 | W51: 5981.048776 | X51: 5547.338065 | Y51: 5454.229569 | Z51: 5262.169194 | AA51: 5102.860738 | AB51: 5006.883354 | AC51: 4936.11617 | AD51: 4928.854671 | AE51: 4837.805718 | AF51: 4844.845918 | AG51: 4877.389816 | AH51: 4859.90032 | AI51: 4764.707905 | AJ51: 4549.011328 | AK51: 4883.330016 | AL51: 4748.969959 | AM51: 4412.584018 | AN51: 4095.691902 | AO51: 4027.965301 | AP51: 3923.146983 | AQ51: 3919 | AR51: 4216.224727 | AS51: 4152.499532 | AT51: 4093.242331 | AU51: 4061.913461 | AV51: 3992.637728 | AW51: 3882.341715 | AX51: 4027.140794 | AY51: 3963.677329 | AZ51: 3923.992856 | BA51: 3824.886298 | BB51: 3851.596071 | BC51: 3747.90207 | BD51: 3699.897729 | BE51: 3754.448953 | BF51: 3722.611484 | BG51: 3698.539474 | BH51: 3650.133571 | BI51: 3619.263314 | BJ51: 3557.803518 | BK51: 3859 | BL51: 3844 | BM51: 3783 | BN51: 3770 | BO51: 3802 | BP51: 3759 | BQ51: 3736
A52: Socialt og kultureltØstjylland | B52: 52 | F52: Østjylland | G52: Socialt og kulturelt | V52: 2113.376915 | W52: 2237.730097 | X52: 2759.273939 | Y52: 2836.390246 | Z52: 3521.585434 | AA52: 3576.335802 | AB52: 3652.413832 | AC52: 3829.347128 | AD52: 3787.313032 | AE52: 3833.99114 | AF52: 3961.380819 | AG52: 3980.471091 | AH52: 3788.197006 | AI52: 3825.005901 | AJ52: 3795.664031 | AK52: 3756.426915 | AL52: 3701.695798 | AM52: 3480.172825 | AN52: 3458.09335 | AO52: 3395.330925 | AP52: 3125.9046 | AQ52: 3052 | AR52: 3011.869655 | AS52: 3030.511225 | AT52: 2976.939055 | AU52: 2966.206262 | AV52: 3057.782731 | AW52: 3066.372372 | AX52: 3156.130969 | AY52: 3292.369467 | AZ52: 3279.121639 | BA52: 3121.09546 | BB52: 3078.485556 | BC52: 3125.242586 | BD52: 4724.533725 | BE52: 4614.747889 | BF52: 4521.22702 | BG52: 4430.182048 | BH52: 4396.437349 | BI52: 4364.556246 | BJ52: 4302.364787 | BK52: 4290 | BL52: 4255 | BM52: 4220 | BN52: 4042 | BO52: 4081 | BP52: 4031 | BQ52: 4015
A53: EjerboligØstjylland | B53: 53 | F53: Østjylland | G53: Ejerbolig | V53: 121921.5223 | W53: 130744.9243 | X53: 137920.8246 | Y53: 143936.4602 | Z53: 149811.1603 | AA53: 151694.5903 | AB53: 150516.0405 | AC53: 149914.8593 | AD53: 148495.8027 | AE53: 147442.625 | AF53: 146851.6965 | AG53: 147696.4046 | AH53: 147442.5057 | AI53: 147580.3277 | AJ53: 147466.7693 | AK53: 148136.1005 | AL53: 147824.6605 | AM53: 148501.4181 | AN53: 148862.8434 | AO53: 151069.6567 | AP53: 153541.4239 | AQ53: 155311 | AR53: 157148.9277 | AS53: 159443.1649 | AT53: 161178.787 | AU53: 163477.2147 | AV53: 165940.8377 | AW53: 169615.3717 | AX53: 173970.4236 | AY53: 177464.2471 | AZ53: 180963.9996 | BA53: 182960.6476 | BB53: 185971.6302 | BC53: 188035.4499 | BD53: 191986.8923 | BE53: 195654.0799 | BF53: 198540.3566 | BG53: 200934.5159 | BH53: 205199.7576 | BI53: 205687.633 | BJ53: 205169.7478 | BK53: 199240 | BL53: 198362 | BM53: 197918 | BN53: 197715 | BO53: 197402 | BP53: 197611 | BQ53: 198791
A54: BoligudlejningØstjylland | B54: 54 | F54: Østjylland | G54: Boligudlejning | V54: 13370.90646 | W54: 15960.79074 | X54: 17672.7532 | Y54: 18408.10844 | Z54: 19769.97789 | AA54: 20553.76095 | AB54: 20655.01142 | AC54: 20797.28757 | AD54: 21543.4364 | AE54: 22093.86956 | AF54: 22063.9922 | AG54: 22228.32697 | AH54: 22041.56522 | AI54: 22523.50426 | AJ54: 22563.79122 | AK54: 22338.9572 | AL54: 22237.97335 | AM54: 22728.14901 | AN54: 23079.18688 | AO54: 23091.12495 | AP54: 22767.03907 | AQ54: 23044 | AR54: 23069.59344 | AS54: 23481.04287 | AT54: 23432.92519 | AU54: 23777.18929 | AV54: 24053.29031 | AW54: 24175.98625 | AX54: 24797.44924 | AY54: 25161.06055 | AZ54: 25350.33048 | BA54: 25627.68015 | BB54: 25935.90347 | BC54: 26133.4408 | BD54: 27526.0662 | BE54: 27660.14892 | BF54: 28358.01011 | BG54: 29329.13097 | BH54: 29871.01218 | BI54: 30312.7659 | BJ54: 30569.23613 | BK54: 33056 | BL54: 33196 | BM54: 33895 | BN54: 34497 | BO54: 34930 | BP54: 35523 | BQ54: 36056
A55: Støttet boligbyggeriØstjylland | B55: 55 | F55: Østjylland | G55: Støttet boligbyggeri | V55: 10043.19336 | W55: 10134.7788 | X55: 9916.820452 | Y55: 10067.00196 | Z55: 10295.23405 | AA55: 10797.00004 | AB55: 10896.78272 | AC55: 10777.54648 | AD55: 10935.37597 | AE55: 10901.33551 | AF55: 10916.48112 | AG55: 10901.65807 | AH55: 10992.72467 | AI55: 10873.9659 | AJ55: 10906.22282 | AK55: 10910.44098 | AL55: 10858.56104 | AM55: 10925.58007 | AN55: 11061.70465 | AO55: 11027.7072 | AP55: 10983.46182 | AQ55: 10863 | AR55: 10916.60477 | AS55: 10770.61958 | AT55: 10673.9723 | AU55: 10547.04789 | AV55: 10449.84894 | AW55: 10239.33683 | AX55: 10254.93613 | AY55: 10165.57142 | AZ55: 10289.22202 | BA55: 10198.22314 | BB55: 10142.60988 | BC55: 10526.66762 | BD55: 13703.60334 | BE55: 13743.70063 | BF55: 14169.33823 | BG55: 14217.26075 | BH55: 14506.7574 | BI55: 14430.91934 | BJ55: 15017.07253 | BK55: 15295 | BL55: 15814 | BM55: 15968 | BN55: 16155 | BO55: 16093 | BP55: 16264 | BQ55: 16249
A56: I altØstjylland | B56: 56 | F56: Østjylland | G56: I alt | V56: 184270.741 | W56: 199663.5222 | X56: 210173.2897 | Y56: 218152.2673 | Z56: 226210.6718 | AA56: 229144.88 | AB56: 228380.1928 | AC56: 227022.6352 | AD56: 226146.7527 | AE56: 225279.4783 | AF56: 224485.9286 | AG56: 225633.6038 | AH56: 224996.9592 | AI56: 225337.3921 | AJ56: 224666.2949 | AK56: 226231.9591 | AL56: 225401.8726 | AM56: 225819.5164 | AN56: 226598.4735 | AO56: 228619.9689 | AP56: 230855.2546 | AQ56: 232554 | AR56: 233957.4943 | AS56: 237123.9841 | AT56: 239217.8576 | AU56: 241885.765 | AV56: 244810.155 | AW56: 248348.5035 | AX56: 253603.0944 | AY56: 257310.153 | AZ56: 261110.3332 | BA56: 263172.4608 | BB56: 266776.5738 | BC56: 269146.6636 | BD56: 278973.4843 | BE56: 282833.3544 | BF56: 286773.9458 | BG56: 289903.4829 | BH56: 294975.3468 | BI56: 296517.7027 | BJ56: 296557.8348 | BK56: 296722 | BL56: 296488 | BM56: 297189 | BN56: 298082 | BO56: 298229 | BP56: 299340 | BQ56: 301433 | BR56: 304786.3746 | BS56: 308887.1404 | BT56: 313581.2034 | BU56: 317291.8564 | BV56: 320522.2939 | BW56: 323226.9671 | BX56: 327479.7387
A57: LandbrugFærøerne og Grønland | B57: 57 | F57: Færøerne og Grønland | G57: Landbrug | V57: 0 | W57: 0 | X57: 0 | Y57: 0 | Z57: 0 | AA57: 0 | AB57: 0 | AC57: 0 | AD57: 0 | AE57: 0 | AF57: 0 | AG57: 0 | AH57: 0 | AI57: 0 | AL57: 0 | AO57: 0 | AP57: 0 | AR57: 0 | AS57: 0 | AU57: 0 | AV57: 0 | AZ57: 0 | BA57: 0 | BB57: 0 | BC57: 0 | BD57: 0 | BE57: 0 | BF57: 0 | BG57: 0 | BH57: 0 | BI57: 0 | BJ57: 0 | BK57: 0 | BL57: 0 | BM57: 0 | BN57: 0 | BO57: 0 | BP57: 0 | BQ57: 0
A58: Kontor og forretningFærøerne og Grønland | B58: 58 | F58: Færøerne og Grønland | G58: Kontor og forretning | V58: 119.5720488 | W58: 102.7048318 | X58: 95.07114182 | Y58: 99.48419444 | Z58: 166.2673981 | AA58: 170.4363601 | AB58: 167.6759844 | AC58: 164.7815771 | AD58: 162.1067521 | AE58: 175.3495067 | AF58: 163.4836687 | AG58: 161.2666336 | AH58: 141.0133996 | AI58: 138.8475903 | AJ58: 136.7678539 | AK58: 134.4158798 | AL58: 132.7095694 | AM58: 119.4145618 | AN58: 117.8199324 | AO58: 108.8287073 | AP58: 123.0166474 | AQ58: 121 | AR58: 120.7591367 | AS58: 118.837044 | AT58: 116.4955853 | AU58: 114.6037358 | AV58: 117.4985442 | AW58: 115.2407383 | AX58: 114.8355512 | AY58: 112.9289355 | AZ58: 128.7630366 | BA58: 126.0836349 | BB58: 121.4639106 | BC58: 119.328176 | BD58: 117.0654983 | BE58: 114.9989294 | BF58: 40.13484121 | BG58: 39.11237547 | BH58: 37.96617707 | BI58: 36.89179861 | BJ58: 32.32291619 | BK58: 33 | BL58: 32 | BM58: 294 | BN58: 291 | BO58: 305 | BP58: 303 | BQ58: 172
A59: IndustriFærøerne og Grønland | B59: 59 | F59: Færøerne og Grønland | G59: Industri | V59: 2.40168607 | W59: 1.75478607 | X59: 1.21287019 | Y59: 1.01672882 | Z59: 0.80649292 | AA59: 0 | AB59: 0 | AC59: 0 | AD59: 0 | AE59: 0 | AF59: 0 | AG59: 0 | AH59: 0 | AI59: 0 | AR59: 0 | AS59: 0 | AU59: 0 | AV59: 0 | AZ59: 0 | BA59: 0 | BB59: 0 | BC59: 0 | BD59: 0 | BE59: 0 | BF59: 0 | BG59: 0 | BH59: 0 | BI59: 0 | BJ59: 0 | BK59: 0 | BL59: 0 | BM59: 0 | BN59: 0 | BO59: 0 | BP59: 0 | BQ59: 0
A60: Socialt og kultureltFærøerne og Grønland | B60: 60 | F60: Færøerne og Grønland | G60: Socialt og kulturelt | V60: 4.8214134 | W60: 4.0177523 | X60: 3.18636835 | Y60: 2.36526667 | Z60: 1.99856843 | AA60: 1.617712788 | AB60: 1.51984492 | AC60: 1.420374249 | AD60: 1.321535694 | AE60: 1.219622191 | AF60: 1.119652303 | AG60: 1.01634088 | AH60: 0.9127758901 | AI60: 0.8063797864 | AJ60: 0.7008266218 | AK60: 0.5943664362 | AL60: 0.4863531763 | AM60: 0.3773282566 | AN60: 0.2666283899 | AO60: 0.2455025991 | AP60: 0.2263644914 | AQ60: 0 | AR60: 0.1868804715 | AS60: 0.1669859215 | AT60: 0.1467942107 | AU60: 0.1263880818 | AV60: 0.105984585 | AW60: 0.08500335965 | AX60: 0.06420253036 | AY60: 0.04305302986 | AZ60: 0.02158903844 | BA60: 0 | BB60: 0 | BC60: 0 | BD60: 0 | BE60: 0 | BF60: 0 | BG60: 0 | BH60: 0 | BI60: 0 | BJ60: 0 | BK60: 0 | BL60: 0 | BM60: 0 | BN60: 0 | BO60: 0 | BP60: 0 | BQ60: 128
A61: EjerboligFærøerne og Grønland | B61: 61 | F61: Færøerne og Grønland | G61: Ejerbolig | V61: 1492.410151 | W61: 1845.580106 | X61: 2000.456317 | Y61: 2068.704065 | Z61: 2058.08354 | AA61: 2119.059258 | AB61: 2125.368393 | AC61: 2120.767855 | AD61: 2121.18935 | AE61: 2127.629446 | AF61: 2129.970721 | AG61: 2111.832689 | AH61: 2102.664492 | AI61: 2081.737254 | AJ61: 2085.122025 | AK61: 2086.231137 | AL61: 2064.653321 | AM61: 2051.926658 | AN61: 2023.510497 | AO61: 2030.501767 | AP61: 2027.380471 | AQ61: 2026 | AR61: 1997.662729 | AS61: 1995.907831 | AT61: 2014.328376 | AU61: 2057.765414 | AV61: 2061.774965 | AW61: 2086.703696 | AX61: 2123.244672 | AY61: 2178.382817 | AZ61: 2179.458894 | BA61: 2156.330026 | BB61: 2156.417503 | BC61: 2155.155955 | BD61: 2160.368071 | BE61: 2167.122646 | BF61: 2175.715646 | BG61: 2156.461094 | BH61: 2120.994036 | BI61: 2085.932951 | BJ61: 2034.987041 | BK61: 2000 | BL61: 1955 | BM61: 1916 | BN61: 1886 | BO61: 1847 | BP61: 1844 | BQ61: 1831
A62: BoligudlejningFærøerne og Grønland | B62: 62 | F62: Færøerne og Grønland | G62: Boligudlejning | V62: 244.8412579 | W62: 243.0025648 | X62: 270.5346481 | Y62: 304.7471859 | Z62: 300.8148393 | AA62: 344.457551 | AB62: 339.7337084 | AC62: 335.0052669 | AD62: 330.4750016 | AE62: 332.983723 | AF62: 283.6665808 | AG62: 272.0914631 | AH62: 276.7417557 | AI62: 270.9576807 | AJ62: 264.5840904 | AK62: 261.5684238 | AL62: 258.466197 | AM62: 240.7969652 | AN62: 234.7139055 | AO62: 229.8892249 | AP62: 225.1157281 | AQ62: 220 | AR62: 257.6373059 | AS62: 238.5626754 | AT62: 249.5243121 | AU62: 243.4531733 | AV62: 237.9518269 | AW62: 230.9383761 | AX62: 233.6398812 | AY62: 228.2426408 | AZ62: 222.2638599 | BA62: 216.763927 | BB62: 589.885401 | BC62: 580.9924985 | BD62: 649.5791687 | BE62: 639.9365892 | BF62: 628.2536631 | BG62: 617.8932994 | BH62: 607.2846196 | BI62: 600.1274032 | BJ62: 582.3348478 | BK62: 571 | BL62: 561 | BM62: 269 | BN62: 267 | BO62: 261 | BP62: 253 | BQ62: 250
A63: Støttet boligbyggeriFærøerne og Grønland | B63: 63 | F63: Færøerne og Grønland | G63: Støttet boligbyggeri | V63: 0 | W63: 0 | X63: 0 | Y63: 0 | Z63: 0 | AA63: 0 | AB63: 0 | AC63: 0 | AD63: 0 | AE63: 0 | AF63: 0 | AG63: 0 | AH63: 0 | AI63: 0 | AK63: 0 | AL63: 0 | AO63: 0 | AP63: 0 | AR63: 0 | AS63: 0 | AU63: 0 | AV63: 0 | AZ63: 0 | BA63: 0 | BB63: 0 | BC63: 0 | BD63: 0 | BE63: 0 | BF63: 0 | BG63: 0 | BH63: 0 | BI63: 0 | BJ63: 0 | BK63: 0 | BL63: 0 | BM63: 0 | BN63: 0 | BO63: 0 | BP63: 0 | BQ63: 0
A64: I altFærøerne og Grønland | B64: 64 | F64: Færøerne og Grønland | G64: I alt | V64: 1864.046557 | W64: 2197.060041 | X64: 2370.461345 | Y64: 2476.317441 | Z64: 2527.970839 | AA64: 2635.570881 | AB64: 2634.297931 | AC64: 2621.975074 | AD64: 2615.09264 | AE64: 2637.182298 | AF64: 2578.240623 | AG64: 2546.207127 | AH64: 2521.332423 | AI64: 2492.348905 | AJ64: 2487.174796 | AK64: 2482.809807 | AL64: 2456.315441 | AM64: 2412.515513 | AN64: 2376.310963 | AO64: 2369.465202 | AP64: 2375.739211 | AQ64: 2367 | AR64: 2376.246052 | AS64: 2353.474536 | AT64: 2380.495068 | AU64: 2415.948712 | AV64: 2417.331321 | AW64: 2432.967814 | AX64: 2471.784307 | AY64: 2519.597447 | AZ64: 2530.50738 | BA64: 2499.177588 | BB64: 2867.766815 | BC64: 2855.47663 | BD64: 2927.012738 | BE64: 2922.058165 | BF64: 2844.104151 | BG64: 2813.466769 | BH64: 2766.244833 | BI64: 2722.952153 | BJ64: 2649.644805 | BK64: 2604 | BL64: 2547 | BM64: 2480 | BN64: 2445 | BO64: 2413 | BP64: 2400 | BQ64: 2380 | BR64: 2345.693406 | BS64: 2520.268791 | BT64: 2486.426684 | BU64: 2449.131267 | BV64: 2258.868428 | BW64: 2201.90454 | BX64: 2549.047755
A65: LandbrugFinland | B65: 65 | F65: Finland | G65: Landbrug | V65: 0 | W65: 0 | X65: 0 | Y65: 0 | Z65: 0 | AA65: 0 | AB65: 0 | AC65: 0 | AD65: 0 | AE65: 0 | AF65: 0 | AG65: 0 | AH65: 0 | AI65: 0 | AK65: 0 | AL65: 0 | AO65: 0 | AP65: 0 | AR65: 0 | AS65: 0 | AU65: 0 | AV65: 0 | AZ65: 0 | BA65: 0 | BB65: 0 | BC65: 0 | BD65: 0 | BE65: 0 | BF65: 0 | BG65: 0 | BH65: 0 | BI65: 0 | BJ65: 0 | BK65: 0 | BL65: 0 | BM65: 0 | BN65: 0 | BO65: 0 | BP65: 0 | BQ65: 0
A66: Kontor og forretningFinland | B66: 66 | F66: Finland | G66: Kontor og forretning | V66: 0 | W66: 1671.614026 | X66: 1633.249385 | Y66: 2414.200369 | Z66: 2988.35265 | AA66: 3223.599968 | AB66: 3154.06651 | AC66: 3148.302767 | AD66: 3145.166739 | AE66: 3162.754961 | AF66: 3180.519126 | AG66: 2954.62065 | AH66: 2955.503549 | AI66: 2951.426621 | AJ66: 2948.228369 | AK66: 2129.970152 | AL66: 1971.562962 | AM66: 1968.098983 | AN66: 2103.536699 | AO66: 2213.270462 | AP66: 2122.260267 | AQ66: 2274 | AR66: 1885.899993 | AS66: 1886.926927 | AT66: 1912.547533 | AU66: 2212.245752 | AV66: 2289.807064 | AW66: 2281.950651 | AX66: 2490.795412 | AY66: 2492.218172 | AZ66: 2484.951642 | BA66: 2480.018631 | BB66: 2474.127775 | BC66: 2470.066508 | BD66: 2498.450237 | BE66: 2497.766728 | BF66: 2493.769791 | BG66: 2494.788536 | BH66: 2351.630321 | BI66: 2407.878812 | BJ66: 2676.971859 | BK66: 3213 | BL66: 3215 | BM66: 3216 | BN66: 3220 | BO66: 3167 | BP66: 3165 | BQ66: 3162
A67: IndustriFinland | B67: 67 | F67: Finland | G67: Industri | V67: 0 | W67: 0 | X67: 0 | Y67: 0 | Z67: 0 | AA67: 0 | AB67: 446.0574581 | AC67: 439.1590543 | AD67: 433.636384 | AE67: 428.1996506 | AF67: 280.8971238 | AG67: 280.4398557 | AH67: 280.5236567 | AI67: 280.1366923 | AJ67: 279.833128 | AK67: 279.6213284 | AL67: 280.1341088 | AM67: 279.6419213 | AN67: 279.4424088 | AO67: 279.4015251 | AP67: 279.8821246 | AQ67: 276 | AR67: 276.0833795 | AS67: 276.233716 | AT67: 276.3118762 | AU67: 276.5892599 | AV67: 276.8821129 | AW67: 276.1664489 | AX67: 276.8552233 | AY67: 277.2446166 | AZ67: 276.6664652 | BA67: 276.3427466 | BB67: 275.9158895 | BC67: 275.7064674 | BD67: 275.3873555 | BE67: 275.5607857 | BF67: 275.368307 | BG67: 275.7302952 | BH67: 275.2676769 | BI67: 275.3042186 | BJ67: 275.3269539 | BK67: 275 | BL67: 275 | BM67: 276 | BN67: 276 | BO67: 276 | BP67: 276 | BQ67: 276
A68: Socialt og kultureltFinland | B68: 68 | F68: Finland | G68: Socialt og kulturelt | V68: 0 | W68: 0 | X68: 0 | Y68: 0 | Z68: 0 | AA68: 0 | AB68: 0 | AC68: 0 | AD68: 0 | AE68: 0 | AF68: 0 | AG68: 0 | AH68: 0 | AI68: 0 | AR68: 0 | AS68: 0 | AU68: 0 | AV68: 0 | AZ68: 0 | BA68: 0 | BB68: 0 | BC68: 0 | BD68: 0 | BE68: 0 | BF68: 0 | BG68: 0 | BH68: 0 | BI68: 0 | BJ68: 0 | BK68: 0 | BL68: 0 | BM68: 0 | BN68: 0 | BO68: 0 | BP68: 0 | BQ68: 0
A69: EjerboligFinland | B69: 69 | F69: Finland | G69: Ejerbolig | V69: 0 | W69: 0 | X69: 0 | Y69: 0 | Z69: 0 | AA69: 0 | AB69: 0 | AC69: 0 | AD69: 0 | AE69: 0 | AF69: 0 | AG69: 0 | AH69: 0 | AI69: 0 | AR69: 0 | AS69: 0 | AU69: 0 | AV69: 0 | AZ69: 0 | BA69: 0 | BB69: 0 | BC69: 0 | BD69: 0 | BE69: 0 | BF69: 0 | BG69: 0 | BH69: 0 | BI69: 0 | BJ69: 0 | BK69: 0 | BL69: 0 | BM69: 0 | BN69: 0 | BO69: 0 | BP69: 0 | BQ69: 0
A70: BoligudlejningFinland | B70: 70 | F70: Finland | G70: Boligudlejning | V70: 0 | W70: 0 | X70: 0 | Y70: 0 | Z70: 0 | AA70: 0 | AB70: 0 | AC70: 0 | AD70: 0 | AE70: 0 | AF70: 0 | AG70: 0 | AH70: 0 | AI70: 0 | AR70: 116.2678997 | AS70: 116.3312114 | AT70: 611.2148538 | AU70: 613.1281671 | AV70: 613.754043 | AW70: 612.1444157 | AX70: 613.6286737 | AY70: 614.4142866 | AZ70: 613.0580513 | BA70: 612.2832738 | BB70: 796.3907673 | BC70: 795.6572786 | BD70: 794.5792458 | BE70: 794.9248787 | BF70: 794.2150707 | BG70: 795.1015587 | BH70: 793.5833308 | BI70: 943.3033712 | BJ70: 975.0291675 | BK70: 1255 | BL70: 974 | BM70: 975 | BN70: 977 | BO70: 970 | BP70: 970 | BQ70: 994
A71: Støttet boligbyggeriFinland | B71: 71 | F71: Finland | G71: Støttet boligbyggeri | V71: 0 | W71: 0 | X71: 0 | Y71: 0 | Z71: 0 | AA71: 0 | AB71: 0 | AC71: 0 | AD71: 0 | AE71: 0 | AF71: 0 | AG71: 0 | AH71: 0 | AI71: 0 | AR71: 0 | AS71: 0 | AU71: 0 | AV71: 0 | AZ71: 0 | BA71: 0 | BB71: 0 | BC71: 0 | BD71: 0 | BE71: 0 | BF71: 0 | BG71: 0 | BH71: 0 | BI71: 0 | BJ71: 0 | BK71: 0 | BL71: 0 | BM71: 0 | BN71: 0 | BO71: 0 | BP71: 0 | BQ71: 0
A72: I altFinland | B72: 72 | F72: Finland | G72: I alt | V72: 0 | W72: 1671.614026 | X72: 1633.249385 | Y72: 2414.200369 | Z72: 2988.35265 | AA72: 3223.599968 | AB72: 3600.123968 | AC72: 3587.461821 | AD72: 3578.803123 | AE72: 3590.954612 | AF72: 3461.41625 | AG72: 3235.060505 | AH72: 3236.027206 | AI72: 3231.563313 | AJ72: 3228.061497 | AK72: 2409.59148 | AL72: 2251.697071 | AM72: 2247.740904 | AN72: 2382.979107 | AO72: 2492.671987 | AP72: 2402.142391 | AQ72: 2550 | AR72: 2278.251272 | AS72: 2279.491854 | AT72: 2800.074263 | AU72: 3101.963179 | AV72: 3180.44322 | AW72: 3170.261515 | AX72: 3381.279309 | AY72: 3383.877076 | AZ72: 3374.676159 | BA72: 3368.644652 | BB72: 3546.434432 | BC72: 3541.430254 | BD72: 3568.416838 | BE72: 3568.252392 | BF72: 3563.353168 | BG72: 3565.62039 | BH72: 3420.481328 | BI72: 3626.486402 | BJ72: 3927.327981 | BK72: 4743 | BL72: 4465 | BM72: 4466 | BN72: 4474 | BO72: 4413 | BP72: 4412 | BQ72: 4432 | BR72: 4427.578889 | BS72: 4369.303417 | BT72: 4366.543134 | BU72: 4360.07776 | BV72: 4372.483219 | BW72: 4320.642599 | BX72: 4319.552929
A73: LandbrugFrankrig | B73: 73 | F73: Frankrig | G73: Landbrug | V73: 0 | W73: 0 | X73: 0 | Y73: 0 | Z73: 0 | AA73: 0 | AB73: 0 | AC73: 0 | AD73: 0 | AE73: 0 | AF73: 0 | AG73: 0 | AH73: 0 | AI73: 0 | AR73: 0 | AS73: 0 | AU73: 0 | AV73: 0 | AZ73: 0 | BA73: 0 | BB73: 0 | BC73: 0 | BD73: 0 | BE73: 0 | BF73: 0 | BG73: 0 | BH73: 0 | BI73: 0 | BJ73: 0 | BK73: 0 | BL73: 0 | BM73: 0 | BN73: 0 | BO73: 0 | BP73: 0 | BQ73: 0
A74: Kontor og forretningFrankrig | B74: 74 | F74: Frankrig | G74: Kontor og forretning | V74: 0 | W74: 0 | X74: 0 | Y74: 0 | Z74: 0 | AA74: 0 | AB74: 0 | AC74: 0 | AD74: 0 | AE74: 0 | AF74: 0 | AG74: 0 | AH74: 0 | AI74: 0 | AR74: 0 | AS74: 0 | AU74: 0 | AV74: 0 | AZ74: 0 | BA74: 0 | BB74: 0 | BC74: 0 | BD74: 0 | BE74: 0 | BF74: 0 | BG74: 0 | BH74: 0 | BI74: 0 | BJ74: 0 | BK74: 0 | BL74: 0 | BM74: 0 | BN74: 0 | BO74: 0 | BP74: 0 | BQ74: 0
A75: IndustriFrankrig | B75: 75 | F75: Frankrig | G75: Industri | V75: 0 | W75: 0 | X75: 0 | Y75: 0 | Z75: 0 | AA75: 0 | AB75: 0 | AC75: 0 | AD75: 0 | AE75: 0 | AF75: 0 | AG75: 0 | AH75: 0 | AI75: 0 | AR75: 0 | AS75: 0 | AU75: 0 | AV75: 0 | AZ75: 0 | BA75: 0 | BB75: 0 | BC75: 0 | BD75: 0 | BE75: 0 | BF75: 0 | BG75: 0 | BH75: 0 | BI75: 0 | BJ75: 0 | BK75: 0 | BL75: 0 | BM75: 0 | BN75: 0 | BO75: 0 | BP75: 0 | BQ75: 0
A76: Socialt og kultureltFrankrig | B76: 76 | F76: Frankrig | G76: Socialt og kulturelt | V76: 0 | W76: 0 | X76: 0 | Y76: 0 | Z76: 0 | AA76: 0 | AB76: 0 | AC76: 0 | AD76: 0 | AE76: 0 | AF76: 0 | AG76: 0 | AH76: 0 | AI76: 0 | AR76: 0 | AS76: 0 | AU76: 0 | AV76: 0 | AZ76: 0 | BA76: 0 | BB76: 0 | BC76: 0 | BD76: 0 | BE76: 0 | BF76: 0 | BG76: 0 | BH76: 0 | BI76: 0 | BJ76: 0 | BK76: 0 | BL76: 0 | BM76: 0 | BN76: 0 | BO76: 0 | BP76: 0 | BQ76: 0
A77: EjerboligFrankrig | B77: 77 | F77: Frankrig | G77: Ejerbolig | V77: 2335.417632 | W77: 2781.079106 | X77: 3362.105316 | Y77: 3744.12476 | Z77: 4133.825728 | AA77: 4463.469036 | AB77: 4522.799997 | AC77: 4487.562204 | AD77: 4510.999222 | AE77: 4545.179761 | AF77: 4632.691993 | AG77: 4629.473965 | AH77: 4715.865924 | AI77: 4691.670683 | AJ77: 4695.030134 | AK77: 4719.393153 | AL77: 4789.264119 | AM77: 4687.013616 | AN77: 4794.618774 | AO77: 4786.532428 | AP77: 4818.79395 | AQ77: 4834 | AR77: 4820.368958 | AS77: 4819.862993 | AT77: 4825.36673 | AU77: 4778.489788 | AV77: 4733.812415 | AW77: 4667.649394 | AX77: 4678.514466 | AY77: 4796.050565 | AZ77: 4792.065223 | BA77: 4740.993517 | BB77: 4703.72827 | BC77: 4561.185685 | BD77: 4431.294264 | BE77: 4317.10199 | BF77: 4244.466295 | BG77: 4191.642081 | BH77: 4116.874647 | BI77: 4072.090785 | BJ77: 3965.373087 | BK77: 3843 | BL77: 3779 | BM77: 3666 | BN77: 3613 | BO77: 3461 | BP77: 3347 | BQ77: 3273
A78: BoligudlejningFrankrig | B78: 78 | F78: Frankrig | G78: Boligudlejning | V78: 0 | W78: 0 | X78: 0 | Y78: 0 | Z78: 0 | AA78: 0 | AB78: 0 | AC78: 0 | AD78: 0 | AE78: 0 | AF78: 0 | AG78: 0 | AH78: 0 | AI78: 0 | AR78: 0 | AS78: 0 | AU78: 0 | AV78: 0 | AZ78: 0 | BA78: 0 | BB78: 0 | BC78: 0 | BD78: 0 | BE78: 0 | BF78: 0 | BG78: 0 | BH78: 0 | BI78: 0 | BJ78: 0 | BK78: 0 | BL78: 0 | BM78: 0 | BN78: 0 | BO78: 0 | BP78: 0 | BQ78: 0
A79: Støttet boligbyggeriFrankrig | B79: 79 | F79: Frankrig | G79: Støttet boligbyggeri | V79: 0 | W79: 0 | X79: 0 | Y79: 0 | Z79: 0 | AA79: 0 | AB79: 0 | AC79: 0 | AD79: 0 | AE79: 0 | AF79: 0 | AG79: 0 | AH79: 0 | AI79: 0 | AR79: 0 | AS79: 0 | AU79: 0 | AV79: 0 | AZ79: 0 | BA79: 0 | BB79: 0 | BC79: 0 | BD79: 0 | BE79: 0 | BF79: 0 | BG79: 0 | BH79: 0 | BI79: 0 | BJ79: 0 | BK79: 0 | BL79: 0 | BM79: 0 | BN79: 0 | BO79: 0 | BP79: 0 | BQ79: 0
A80: I altFrankrig | B80: 80 | F80: Frankrig | G80: I alt | V80: 2335.417632 | W80: 2781.079106 | X80: 3362.105316 | Y80: 3744.12476 | Z80: 4133.825728 | AA80: 4463.469036 | AB80: 4522.799997 | AC80: 4487.562204 | AD80: 4510.999222 | AE80: 4545.179761 | AF80: 4632.691993 | AG80: 4629.473965 | AH80: 4715.865924 | AI80: 4691.670683 | AJ80: 4695.030134 | AK80: 4719.393153 | AL80: 4789.264119 | AM80: 4687.013616 | AN80: 4794.618774 | AO80: 4786.532428 | AP80: 4818.79395 | AQ80: 4834 | AR80: 4820.368958 | AS80: 4819.862993 | AT80: 4825.36673 | AU80: 4778.489788 | AV80: 4733.812415 | AW80: 4667.649394 | AX80: 4678.514466 | AY80: 4796.050565 | AZ80: 4792.065223 | BA80: 4740.993517 | BB80: 4703.72827 | BC80: 4561.185685 | BD80: 4431.294264 | BE80: 4317.10199 | BF80: 4244.466295 | BG80: 4191.642081 | BH80: 4116.874647 | BI80: 4072.090785 | BJ80: 3965.373087 | BK80: 3843 | BL80: 3779 | BM80: 3666 | BN80: 3613 | BO80: 3461 | BP80: 3347 | BQ80: 3273 | BR80: 3184.758195 | BS80: 3141.894067 | BT80: 3068.590103 | BU80: 2959.306605 | BV80: 2872.14196 | BW80: 2796.2517 | BX80: 2729.070935
A81: LandbrugFyn | B81: 81 | F81: Fyn | G81: Landbrug | V81: 8247.294354 | W81: 8904.072577 | X81: 9052.95552 | Y81: 8932.647321 | Z81: 8923.400485 | AA81: 8842.752849 | AB81: 8819.822757 | AC81: 8800.02863 | AD81: 8700.653352 | AE81: 8576.194467 | AF81: 8592.138205 | AG81: 8502.675993 | AH81: 8445.205767 | AI81: 8384.510388 | AJ81: 8349.956219 | AK81: 8307.462341 | AL81: 8307.70657 | AM81: 8231.076669 | AN81: 8212.422814 | AO81: 8205.214399 | AP81: 8082.927452 | AQ81: 7917 | AR81: 7883.38186 | AS81: 7839.357531 | AT81: 7812.280561 | AU81: 7837.366422 | AV81: 7692.733193 | AW81: 7626.781519 | AX81: 7621.555107 | AY81: 7639.035813 | AZ81: 7605.761597 | BA81: 7660.691316 | BB81: 7677.340615 | BC81: 7644.125172 | BD81: 7708.165113 | BE81: 7660.014143 | BF81: 7755.585891 | BG81: 7704.632252 | BH81: 7698.784355 | BI81: 7540.065467 | BJ81: 7844.036918 | BK81: 7801 | BL81: 7752 | BM81: 7969 | BN81: 7977 | BO81: 7805 | BP81: 7760 | BQ81: 7799
A82: Kontor og forretningFyn | B82: 82 | F82: Fyn | G82: Kontor og forretning | V82: 4917.621428 | W82: 4965.918667 | X82: 5033.136828 | Y82: 5173.4138 | Z82: 5090.612837 | AA82: 4109.61349 | AB82: 3981.99533 | AC82: 3947.213223 | AD82: 3921.858386 | AE82: 3929.02923 | AF82: 3843.570781 | AG82: 3995.709394 | AH82: 3985.455014 | AI82: 3955.123658 | AJ82: 6314.482277 | AK82: 3959.989383 | AL82: 3963.396086 | AM82: 3960.947967 | AN82: 3867.766819 | AO82: 3797.809511 | AP82: 3753.609699 | AQ82: 3735 | AR82: 3685.378785 | AS82: 3569.172744 | AT82: 3507.129253 | AU82: 3482.260087 | AV82: 3530.599274 | AW82: 3443.00285 | AX82: 3358.506627 | AY82: 3236.883478 | AZ82: 3175.53499 | BA82: 3210.836746 | BB82: 3254.383862 | BC82: 3581.128053 | BD82: 3406.768483 | BE82: 3493.536142 | BF82: 3678.253255 | BG82: 3676.796663 | BH82: 3790.792575 | BI82: 3782.84872 | BJ82: 3692.300198 | BK82: 4491 | BL82: 4533 | BM82: 4561 | BN82: 4679 | BO82: 4850 | BP82: 4841 | BQ82: 4769
A83: IndustriFyn | B83: 83 | F83: Fyn | G83: Industri | V83: 886.2233474 | W83: 883.7817782 | X83: 1030.081384 | Y83: 1048.204863 | Z83: 915.5612198 | AA83: 901.9284971 | AB83: 882.3654567 | AC83: 851.4761351 | AD83: 1158.891334 | AE83: 1182.386105 | AF83: 1201.435062 | AG83: 1162.869511 | AH83: 1157.061561 | AI83: 1114.326767 | AJ83: 1071.812339 | AK83: 1064.157959 | AL83: 1051.26513 | AM83: 1047.890343 | AN83: 1054.796915 | AO83: 1039.957394 | AP83: 1028.10642 | AQ83: 996 | AR83: 990.4422281 | AS83: 1002.174526 | AT83: 983.3878177 | AU83: 1019.718999 | AV83: 990.3218066 | AW83: 976.1968089 | AX83: 966.567947 | AY83: 660.6585562 | AZ83: 641.8059534 | BA83: 639.4630607 | BB83: 765.0119403 | BC83: 664.9527036 | BD83: 677.8554941 | BE83: 664.2493378 | BF83: 520.2560521 | BG83: 642.671431 | BH83: 624.8972965 | BI83: 617.0528022 | BJ83: 621.6233905 | BK83: 686 | BL83: 707 | BM83: 696 | BN83: 707 | BO83: 698 | BP83: 710 | BQ83: 692
A84: Socialt og kultureltFyn | B84: 84 | F84: Fyn | G84: Socialt og kulturelt | V84: 1225.808656 | W84: 1210.022868 | X84: 1286.203811 | Y84: 1287.963392 | Z84: 1222.130316 | AA84: 1175.196203 | AB84: 1159.066143 | AC84: 1125.71179 | AD84: 1111.03562 | AE84: 1081.122768 | AF84: 1076.711076 | AG84: 1031.01159 | AH84: 987.3011352 | AI84: 994.8554282 | AJ84: 926.8920454 | AK84: 936.1520708 | AL84: 908.7290092 | AM84: 872.8893552 | AN84: 836.1721139 | AO84: 814.8227576 | AP84: 790.7007103 | AQ84: 783 | AR84: 777.6884711 | AS84: 747.970972 | AT84: 689.9679903 | AU84: 627.2089264 | AV84: 618.6395754 | AW84: 586.4838179 | AX84: 610.4995652 | AY84: 593.0263403 | AZ84: 629.2803334 | BA84: 623.7697941 | BB84: 627.0689416 | BC84: 603.5779964 | BD84: 1089.787475 | BE84: 1096.87029 | BF84: 1078.324981 | BG84: 1100.030732 | BH84: 1061.887892 | BI84: 1053.824745 | BJ84: 1032.752013 | BK84: 990 | BL84: 995 | BM84: 982 | BN84: 968 | BO84: 992 | BP84: 982 | BQ84: 981
A85: EjerboligFyn | B85: 85 | F85: Fyn | G85: Ejerbolig | V85: 51292.74608 | W85: 54757.36445 | X85: 56781.88002 | Y85: 57957.9333 | Z85: 58728.04868 | AA85: 58526.2448 | AB85: 58209.3174 | AC85: 58072.39664 | AD85: 57917.38452 | AE85: 57698.02533 | AF85: 57803.41087 | AG85: 57966.15674 | AH85: 57925.67289 | AI85: 57970.10639 | AJ85: 58021.4345 | AK85: 58379.14997 | AL85: 58465.01477 | AM85: 58479.83143 | AN85: 58577.99144 | AO85: 59107.1358 | AP85: 59876.37902 | AQ85: 60434 | AR85: 60765.72927 | AS85: 61303.37553 | AT85: 61980.06293 | AU85: 62555.52453 | AV85: 63188.87983 | AW85: 64290.38733 | AX85: 65695.75736 | AY85: 66900.83645 | AZ85: 67954.73858 | BA85: 68552.20787 | BB85: 69494.87633 | BC85: 70156.00445 | BD85: 71349.77559 | BE85: 72536.60812 | BF85: 73314.34969 | BG85: 73943.35187 | BH85: 75082.57433 | BI85: 75331.53847 | BJ85: 75255.90967 | BK85: 73295 | BL85: 72862 | BM85: 72691 | BN85: 72616 | BO85: 72438 | BP85: 72394 | BQ85: 72739
A86: BoligudlejningFyn | B86: 86 | F86: Fyn | G86: Boligudlejning | V86: 5854.97331 | W86: 6836.725353 | X86: 7112.42983 | Y86: 7294.406531 | Z86: 7509.70156 | AA86: 7463.453025 | AB86: 7536.346745 | AC86: 7581.150249 | AD86: 7552.358541 | AE86: 7624.655822 | AF86: 7590.689269 | AG86: 7520.054027 | AH86: 7536.185258 | AI86: 7612.20009 | AJ86: 7542.675277 | AK86: 7487.346888 | AL86: 7375.729567 | AM86: 7468.990777 | AN86: 7553.320757 | AO86: 7414.229927 | AP86: 7335.081087 | AQ86: 7422 | AR86: 7523.860956 | AS86: 7523.065297 | AT86: 7623.855804 | AU86: 7757.234542 | AV86: 7820.869999 | AW86: 7888.014486 | AX86: 8037.760665 | AY86: 8383.997846 | AZ86: 8432.691586 | BA86: 8683.126907 | BB86: 9130.957492 | BC86: 9214.192362 | BD86: 9648.70913 | BE86: 9701.364059 | BF86: 9765.376412 | BG86: 10226.70216 | BH86: 10245.36911 | BI86: 10570.54924 | BJ86: 10541.74152 | BK86: 11162 | BL86: 11463 | BM86: 11706 | BN86: 11694 | BO86: 11726 | BP86: 11982 | BQ86: 12078
A87: Støttet boligbyggeriFyn | B87: 87 | F87: Fyn | G87: Støttet boligbyggeri | V87: 6060.362553 | W87: 6093.749476 | X87: 5931.759085 | Y87: 5832.802224 | Z87: 5568.450224 | AA87: 5672.510884 | AB87: 5669.413176 | AC87: 5558.47709 | AD87: 5574.184239 | AE87: 5594.663832 | AF87: 5552.893412 | AG87: 5440.337766 | AH87: 5537.686028 | AI87: 5490.14891 | AJ87: 5442.856172 | AK87: 5397.543433 | AL87: 5482.442675 | AM87: 5409.840841 | AN87: 5357.724571 | AO87: 5248.161666 | AP87: 5234.464917 | AQ87: 5172 | AR87: 5114.677452 | AS87: 5050.853705 | AT87: 5022.790377 | AU87: 4926.784753 | AV87: 4845.389039 | AW87: 4711.942805 | AX87: 4793.781378 | AY87: 4738.684649 | AZ87: 4665.182678 | BA87: 4789.875481 | BB87: 4757.388691 | BC87: 4766.575614 | BD87: 5605.906956 | BE87: 5495.5576 | BF87: 5489.855894 | BG87: 5519.086547 | BH87: 5504.121378 | BI87: 5673.975799 | BJ87: 5612.36571 | BK87: 5768 | BL87: 5841 | BM87: 5775 | BN87: 5797 | BO87: 5730 | BP87: 5664 | BQ87: 5549
A88: I altFyn | B88: 88 | F88: Fyn | G88: I alt | V88: 78485.02973 | W88: 83651.63517 | X88: 86228.44648 | Y88: 87527.37143 | Z88: 87957.90532 | AA88: 86691.69975 | AB88: 86258.32701 | AC88: 85936.45376 | AD88: 85936.36599 | AE88: 85686.07756 | AF88: 85660.84868 | AG88: 85618.81502 | AH88: 85574.56765 | AI88: 85521.27163 | AJ88: 87670.10883 | AK88: 85531.80205 | AL88: 85554.28381 | AM88: 85471.46738 | AN88: 85460.19543 | AO88: 85627.33146 | AP88: 86101.2693 | AQ88: 86458 | AR88: 86741.15902 | AS88: 87035.97031 | AT88: 87619.47473 | AU88: 88206.09826 | AV88: 88687.43272 | AW88: 89522.80962 | AX88: 91084.42865 | AY88: 92153.12313 | AZ88: 93104.99572 | BA88: 94159.97117 | BB88: 95707.02787 | BC88: 96630.55636 | BD88: 99486.96824 | BE88: 100648.1997 | BF88: 101602.0022 | BG88: 102813.2717 | BH88: 104008.4269 | BI88: 104569.8552 | BJ88: 104600.7294 | BK88: 104192 | BL88: 104154 | BM88: 104381 | BN88: 104438 | BO88: 104240 | BP88: 104333 | BQ88: 104607 | BR88: 105406.4987 | BS88: 106994.3777 | BT88: 108453.2102 | BU88: 109295.9888 | BV88: 110514.1745 | BW88: 111296.1065 | BX88: 112744.4161
A89: LandbrugTyskland | B89: 89 | F89: Tyskland | G89: Landbrug | V89: 0 | W89: 0 | X89: 0 | Y89: 0 | Z89: 0 | AA89: 0 | AB89: 0 | AC89: 0 | AD89: 0 | AE89: 0 | AF89: 0 | AG89: 0 | AH89: 0 | AI89: 0 | AL89: 0 | AO89: 0 | AP89: 0 | AR89: 0 | AS89: 0 | AU89: 0 | AV89: 0 | AZ89: 0 | BA89: 0 | BB89: 0 | BC89: 0 | BD89: 0 | BE89: 0 | BF89: 0 | BG89: 0 | BH89: 0 | BI89: 0 | BJ89: 0 | BK89: 0 | BL89: 0 | BM89: 0 | BN89: 0 | BO89: 0 | BP89: 0 | BQ89: 0
A90: Kontor og forretningTyskland | B90: 90 | F90: Tyskland | G90: Kontor og forretning | V90: 1938.30001 | W90: 2058.724169 | X90: 2407.311881 | Y90: 2757.909267 | Z90: 3191.854554 | AA90: 3702.719065 | AB90: 3611.582476 | AC90: 3569.806645 | AD90: 3553.041698 | AE90: 2231.643914 | AF90: 2215.842968 | AG90: 2209.091318 | AH90: 3956.306258 | AI90: 3968.115264 | AJ90: 3188.274691 | AK90: 3198.892364 | AL90: 2678.064103 | AM90: 2662.005851 | AN90: 2654.016256 | AO90: 2637.480629 | AP90: 2366.250112 | AQ90: 2386 | AR90: 2215.866028 | AS90: 2201.955649 | AT90: 516.5881561 | AU90: 858.2237181 | AV90: 884.5125822 | AW90: 1039.366931 | AX90: 1040.856667 | AY90: 1188.184809 | AZ90: 1184.757419 | BA90: 1172.150831 | BB90: 1169.397394 | BC90: 600.2258381 | BD90: 599.3761231 | BE90: 599.6012672 | BF90: 599.030318 | BG90: 599.7788516 | BH90: 598.5860552 | BI90: 598.554282 | BJ90: 518.1858085 | BK90: 577 | BL90: 577 | BM90: 575 | BN90: 573 | BO90: 571 | BP90: 645 | BQ90: 642
A91: IndustriTyskland | B91: 91 | F91: Tyskland | G91: Industri | V91: 988.8119454 | W91: 1452.716429 | X91: 1398.92522 | Y91: 1298.096624 | Z91: 1213.271929 | AA91: 1439.456275 | AB91: 1418.447693 | AC91: 1395.932792 | AD91: 1374.836558 | AE91: 1352.468969 | AF91: 1334.253333 | AG91: 1311.454894 | AH91: 1290.291105 | AI91: 1267.927033 | AJ91: 1246.067541 | AK91: 1224.665678 | AL91: 1060.734563 | AM91: 1182.698207 | AN91: 1090.392271 | AO91: 1072.127322 | AP91: 1055.245979 | AQ91: 937 | AR91: 1203.606983 | AS91: 1186.914542 | AT91: 1169.656947 | AU91: 1150.01333 | AV91: 1135.905161 | AW91: 1115.975512 | AX91: 1098.80249 | AY91: 2275.067446 | AZ91: 2253.933929 | BA91: 2923.886917 | BB91: 2902.451568 | BC91: 2882.196288 | BD91: 2861.862985 | BE91: 2845.601912 | BF91: 2825.468963 | BG91: 2810.093906 | BH91: 2786.902708 | BI91: 2769.366847 | BJ91: 2753.249217 | BK91: 2740 | BL91: 2727 | BM91: 2714 | BN91: 2702 | BO91: 2694 | BP91: 2299 | BQ91: 2667
A92: Socialt og kultureltTyskland | B92: 92 | F92: Tyskland | G92: Socialt og kulturelt | V92: 0 | W92: 0 | X92: 0 | Y92: 0 | Z92: 0 | AA92: 0 | AB92: 0 | AC92: 0 | AD92: 0 | AE92: 0 | AF92: 336.1290026 | AG92: 335.5818233 | AH92: 335.6821018 | AI92: 335.2190499 | AJ92: 334.8557967 | AK92: 334.6023517 | AL92: 335.2159585 | AM92: 334.6269937 | AN92: 334.3882517 | AO92: 334.3393291 | AP92: 334.9144274 | AQ92: 335 | AR92: 335.0428007 | AS92: 335.2252425 | AT92: 335.3200943 | AU92: 0 | AV92: 0 | AZ92: 0 | BA92: 0 | BB92: 0 | BC92: 0 | BD92: 0 | BE92: 0 | BF92: 0 | BG92: 0 | BH92: 0 | BI92: 0 | BJ92: 0 | BK92: 0 | BL92: 0 | BM92: 0 | BN92: 0 | BO92: 0 | BP92: 0 | BQ92: 0
A93: EjerboligTyskland | B93: 93 | F93: Tyskland | G93: Ejerbolig | V93: 51.08837096 | W93: 69.05256454 | X93: 82.18882861 | Y93: 108.9120321 | Z93: 120.9359541 | AA93: 121.0144539 | AB93: 117.9707843 | AC93: 111.2242775 | AD93: 109.9813819 | AE93: 106.8985965 | AF93: 104.2641207 | AG93: 100.7051086 | AH93: 99.32391833 | AI93: 97.92462859 | AJ93: 94.76449054 | AK93: 92.04778293 | AL93: 89.50707299 | AM93: 87.22912971 | AN93: 83.3077161 | AO93: 81.01897621 | AP93: 80.75580852 | AQ93: 78 | AR93: 75.33686229 | AS93: 74.22849569 | AT93: 71.77069104 | AU93: 70.03262139 | AV93: 67.75181906 | AW93: 61.82098201 | AX93: 59.94828527 | AY93: 57.5706206 | AZ93: 56.50883316 | BA93: 55.9029281 | BB93: 53.03683698 | BC93: 52.16129909 | BD93: 46.47252146 | BE93: 45.96342095 | BF93: 43.62045629 | BG93: 42.84429108 | BH93: 40.35432551 | BI93: 38.99557482 | BJ93: 37.96566946 | BK93: 31 | BL93: 31 | BM93: 26 | BN93: 25 | BO93: 24 | BP93: 23 | BQ93: 23
A94: BoligudlejningTyskland | B94: 94 | F94: Tyskland | G94: Boligudlejning | V94: 4176.465209 | W94: 5594.235384 | X94: 5967.074432 | Y94: 7970.293312 | Z94: 9794.815934 | AA94: 9887.98591 | AB94: 11052.03305 | AC94: 11041.63387 | AD94: 11059.63375 | AE94: 12296.27602 | AF94: 12838.80422 | AG94: 11782.41109 | AH94: 11808.66316 | AI94: 11659.27006 | AJ94: 9386.460157 | AK94: 7788.422558 | AL94: 7768.612919 | AM94: 8519.229917 | AN94: 8848.718833 | AO94: 9367.239456 | AP94: 9389.575231 | AQ94: 9375 | AR94: 9222.498003 | AS94: 9491.588491 | AT94: 9555.079471 | AU94: 10014.45783 | AV94: 10323.7862 | AW94: 10343.42309 | AX94: 10395.5346 | AY94: 11051.5368 | AZ94: 10280.45559 | BA94: 10279.49161 | BB94: 10116.94164 | BC94: 12386.08413 | BD94: 12352.76735 | BE94: 12761.21671 | BF94: 12693.52869 | BG94: 12717.606 | BH94: 12743.76282 | BI94: 12272.05879 | BJ94: 12209.25386 | BK94: 11750 | BL94: 12529 | BM94: 12748 | BN94: 12937 | BO94: 12894 | BP94: 12822 | BQ94: 12905
A95: Støttet boligbyggeriTyskland | B95: 95 | F95: Tyskland | G95: Støttet boligbyggeri | V95: 0 | W95: 0 | X95: 0 | Y95: 0 | Z95: 0 | AA95: 0 | AB95: 0 | AC95: 0 | AD95: 0 | AE95: 0 | AF95: 0 | AG95: 0 | AH95: 0 | AI95: 0 | AL95: 0 | AO95: 0 | AP95: 0 | AR95: 0 | AS95: 0 | AU95: 0 | AV95: 0 | AZ95: 0 | BA95: 0 | BB95: 0 | BC95: 0 | BD95: 0 | BE95: 0 | BF95: 0 | BG95: 0 | BH95: 0 | BI95: 0 | BJ95: 0 | BK95: 0 | BL95: 0 | BM95: 0 | BN95: 0 | BO95: 0 | BP95: 0 | BQ95: 0
A96: I altTyskland | B96: 96 | F96: Tyskland | G96: I alt | V96: 7154.665535 | W96: 9174.728546 | X96: 9855.500362 | Y96: 12135.21123 | Z96: 14320.87837 | AA96: 15151.1757 | AB96: 16200.03401 | AC96: 16118.59758 | AD96: 16097.49339 | AE96: 15987.2875 | AF96: 16829.29365 | AG96: 15739.24423 | AH96: 17490.26654 | AI96: 17328.45604 | AJ96: 14250.42268 | AK96: 12638.63073 | AL96: 11932.13462 | AM96: 12785.7901 | AN96: 13010.82333 | AO96: 13492.20571 | AP96: 13226.74156 | AQ96: 13111 | AR96: 13052.35068 | AS96: 13289.91242 | AT96: 11648.41536 | AU96: 12092.72749 | AV96: 12411.95576 | AW96: 12560.58651 | AX96: 12595.14204 | AY96: 14572.35967 | AZ96: 13775.65577 | BA96: 14431.43229 | BB96: 14241.82744 | BC96: 15920.66755 | BD96: 15860.47898 | BE96: 16252.38331 | BF96: 16161.64843 | BG96: 16170.32305 | BH96: 16169.60591 | BI96: 15678.9755 | BJ96: 15518.65456 | BK96: 15098 | BL96: 15864 | BM96: 16064 | BN96: 16237 | BO96: 16184 | BP96: 15789 | BQ96: 16237 | BR96: 16276.12164 | BS96: 16195.89926 | BT96: 16179.73819 | BU96: 16231.7026 | BV96: 15936.14776 | BW96: 16591.66247 | BX96: 16407.36604
A97: LandbrugNordjylland | B97: 97 | F97: Nordjylland | G97: Landbrug | V97: 25589.13956 | W97: 29076.06182 | X97: 30106.63033 | Y97: 30509.56444 | Z97: 30783.77163 | AA97: 30857.0362 | AB97: 30857.11186 | AC97: 30721.69089 | AD97: 30742.91288 | AE97: 30753.17838 | AF97: 30791.11268 | AG97: 30705.79483 | AH97: 30625.39713 | AI97: 30435.62058 | AJ97: 30255.99361 | AK97: 29968.47249 | AL97: 29904.15021 | AM97: 29573.70976 | AN97: 29316.73193 | AO97: 29233.67104 | AP97: 29035.8326 | AQ97: 28940 | AR97: 28706.99635 | AS97: 28688.22602 | AT97: 28646.84547 | AU97: 28556.02437 | AV97: 28259.59404 | AW97: 28140.7397 | AX97: 27930.97204 | AY97: 27774.6728 | AZ97: 27646.33804 | BA97: 27525.85178 | BB97: 27285.87026 | BC97: 27266.04341 | BD97: 27206.62992 | BE97: 27016.50066 | BF97: 26828.62453 | BG97: 26689.52098 | BH97: 26695.79073 | BI97: 26258.27117 | BJ97: 25821.21389 | BK97: 25460 | BL97: 25287 | BM97: 25356 | BN97: 25251 | BO97: 25174 | BP97: 25257 | BQ97: 25312
A98: Kontor og forretningNordjylland | B98: 98 | F98: Nordjylland | G98: Kontor og forretning | V98: 9070.388649 | W98: 9917.110835 | X98: 11490.17914 | Y98: 12029.55097 | Z98: 12144.90143 | AA98: 12056.57469 | AB98: 12192.55958 | AC98: 12618.1517 | AD98: 12662.67172 | AE98: 12657.25442 | AF98: 12460.53435 | AG98: 12372.36798 | AH98: 12308.30129 | AI98: 12050.61234 | AJ98: 11877.0128 | AK98: 11704.81269 | AL98: 11590.88426 | AM98: 11605.70493 | AN98: 11717.4154 | AO98: 11549.29584 | AP98: 11472.54747 | AQ98: 11317 | AR98: 11517.71903 | AS98: 11477.33054 | AT98: 11232.38112 | AU98: 11104.01798 | AV98: 10993.26656 | AW98: 10860.87684 | AX98: 10300.44063 | AY98: 10184.61243 | AZ98: 10125.93361 | BA98: 9862.087287 | BB98: 9979.55742 | BC98: 9756.656795 | BD98: 9721.139353 | BE98: 9807.028691 | BF98: 9806.281621 | BG98: 9864.780349 | BH98: 9683.177584 | BI98: 9428.439778 | BJ98: 9287.578187 | BK98: 13497 | BL98: 13700 | BM98: 13755 | BN98: 14114 | BO98: 14136 | BP98: 14147 | BQ98: 14211
A99: IndustriNordjylland | B99: 99 | F99: Nordjylland | G99: Industri | V99: 5760.283235 | W99: 5813.712059 | X99: 5478.919881 | Y99: 4596.680794 | Z99: 4685.761999 | AA99: 5647.732962 | AB99: 5575.346081 | AC99: 5527.812172 | AD99: 5519.760135 | AE99: 5450.002853 | AF99: 5088.196934 | AG99: 5034.40575 | AH99: 4990.551658 | AI99: 4905.92164 | AJ99: 4910.633234 | AK99: 4850.921554 | AL99: 4847.452597 | AM99: 3957.245828 | AN99: 3872.537264 | AO99: 3828.820887 | AP99: 3733.837993 | AQ99: 3247 | AR99: 3225.270552 | AS99: 3142.760111 | AT99: 3055.455622 | AU99: 3300.417175 | AV99: 3207.629965 | AW99: 3147.885617 | AX99: 3052.277577 | AY99: 2904.180723 | AZ99: 2901.87769 | BA99: 2854.512602 | BB99: 2973.845927 | BC99: 2860.21813 | BD99: 2797.147023 | BE99: 2707.407503 | BF99: 2618.613094 | BG99: 2404.007628 | BH99: 2291.999727 | BI99: 2204.618358 | BJ99: 2566.299118 | BK99: 2632 | BL99: 2611 | BM99: 2686 | BN99: 2675 | BO99: 2889 | BP99: 2802 | BQ99: 2781
A100: Socialt og kultureltNordjylland | B100: 100 | F100: Nordjylland | G100: Socialt og kulturelt | V100: 2014.097113 | W100: 2094.889644 | X100: 2232.740205 | Y100: 2183.667898 | Z100: 2191.778805 | AA100: 2262.551038 | AB100: 2207.974033 | AC100: 2263.797531 | AD100: 2232.160833 | AE100: 2142.689751 | AF100: 2158.047933 | AG100: 2196.649144 | AH100: 2145.016117 | AI100: 2104.648516 | AJ100: 2051.738355 | AK100: 2020.324307 | AL100: 1999.815842 | AM100: 1996.759001 | AN100: 1942.511642 | AO100: 1830.342084 | AP100: 1791.852958 | AQ100: 1749 | AR100: 1725.103466 | AS100: 1678.628635 | AT100: 1656.563673 | AU100: 1634.576575 | AV100: 1611.222386 | AW100: 1432.393175 | AX100: 1569.284173 | AY100: 1492.770534 | AZ100: 1639.320713 | BA100: 1629.248113 | BB100: 1597.345298 | BC100: 1592.289577 | BD100: 2638.321515 | BE100: 2510.882154 | BF100: 2506.003666 | BG100: 2489.534597 | BH100: 2414.669519 | BI100: 2370.092883 | BJ100: 2336.756622 | BK100: 2332 | BL100: 2295 | BM100: 2239 | BN100: 2217 | BO100: 2194 | BP100: 2147 | BQ100: 2119
A101: EjerboligNordjylland | B101: 101 | F101: Nordjylland | G101: Ejerbolig | V101: 88291.84883 | W101: 95804.88929 | X101: 102854.3602 | Y101: 107201.3906 | Z101: 112009.6266 | AA101: 113623.6152 | AB101: 112909.1463 | AC101: 112791.1709 | AD101: 112888.5071 | AE101: 112639.4306 | AF101: 113262.6621 | AG101: 114145.8392 | AH101: 114417.0174 | AI101: 114642.3445 | AJ101: 114770.9367 | AK101: 115058.1054 | AL101: 115319.702 | AM101: 115733.9901 | AN101: 115781.5987 | AO101: 116754.216 | AP101: 117661.4651 | AQ101: 118345 | AR101: 119139.8912 | AS101: 120314.7632 | AT101: 121229.568 | AU101: 122076.4488 | AV101: 123037.1001 | AW101: 124730.1198 | AX101: 126665.3012 | AY101: 127807.0057 | AZ101: 129306.9144 | BA101: 129885.0587 | BB101: 131100.4656 | BC101: 131529.9504 | BD101: 133012.0548 | BE101: 134207.3669 | BF101: 135227.6609 | BG101: 135732.5843 | BH101: 136762.254 | BI101: 135901.2772 | BJ101: 135431.58 | BK101: 132912 | BL101: 132177 | BM101: 131680 | BN101: 131262 | BO101: 130458 | BP101: 130013 | BQ101: 130092
A102: BoligudlejningNordjylland | B102: 102 | F102: Nordjylland | G102: Boligudlejning | V102: 9828.276546 | W102: 12204.01446 | X102: 13591.18016 | Y102: 14498.39034 | Z102: 15331.60243 | AA102: 16005.07339 | AB102: 16048.07772 | AC102: 16163.60653 | AD102: 16291.38514 | AE102: 16365.71727 | AF102: 16485.40926 | AG102: 16720.25603 | AH102: 16750.22477 | AI102: 16853.02356 | AJ102: 16912.26102 | AK102: 16823.76278 | AL102: 16665.44608 | AM102: 16569.73041 | AN102: 16552.71181 | AO102: 16691.51414 | AP102: 16709.36706 | AQ102: 16654 | AR102: 16579.1609 | AS102: 16524.16572 | AT102: 16564.09913 | AU102: 16758.70405 | AV102: 16726.50062 | AW102: 16661.12594 | AX102: 16659.39163 | AY102: 16368.25742 | AZ102: 16368.99265 | BA102: 16461.55787 | BB102: 16460.73867 | BC102: 16656.53997 | BD102: 16716.00456 | BE102: 16705.7875 | BF102: 16657.14281 | BG102: 16751.89531 | BH102: 16781.06876 | BI102: 16583.83173 | BJ102: 16957.07254 | BK102: 16916 | BL102: 17079 | BM102: 17084 | BN102: 16952 | BO102: 17021 | BP102: 17057 | BQ102: 17147
A103: Støttet boligbyggeriNordjylland | B103: 103 | F103: Nordjylland | G103: Støttet boligbyggeri | V103: 8062.489282 | W103: 8124.729145 | X103: 7923.102852 | Y103: 8026.202487 | Z103: 8398.193367 | AA103: 9011.99171 | AB103: 9175.298655 | AC103: 9079.150325 | AD103: 9146.685148 | AE103: 9124.697712 | AF103: 9167.354481 | AG103: 9122.917926 | AH103: 9154.66344 | AI103: 9318.282157 | AJ103: 9694.164237 | AK103: 9785.63853 | AL103: 10119.1596 | AM103: 10062.22747 | AN103: 10116.73997 | AO103: 10014.54505 | AP103: 10069.00693 | AQ103: 10189 | AR103: 10236.76834 | AS103: 10176.80994 | AT103: 10044.92454 | AU103: 10173.69968 | AV103: 10145.51251 | AW103: 10076.57982 | AX103: 9841.220124 | AY103: 9941.412708 | AZ103: 9952.502483 | BA103: 9897.390123 | BB103: 10167.46843 | BC103: 10289.54307 | BD103: 12274.59782 | BE103: 12249.84795 | BF103: 12709.40417 | BG103: 12764.58636 | BH103: 12999.65025 | BI103: 12993.84206 | BJ103: 13011.4671 | BK103: 13482 | BL103: 13632 | BM103: 13564 | BN103: 13656 | BO103: 13793 | BP103: 13889 | BQ103: 13722
A104: I altNordjylland | B104: 104 | F104: Nordjylland | G104: I alt | V104: 148616.5232 | W104: 163035.4073 | X104: 173677.1128 | Y104: 179045.4475 | Z104: 185545.6362 | AA104: 189464.5752 | AB104: 188965.5142 | AC104: 189165.38 | AD104: 189484.083 | AE104: 189132.971 | AF104: 189413.3177 | AG104: 190298.2309 | AH104: 190391.1718 | AI104: 190310.4533 | AJ104: 190472.74 | AK104: 190212.0378 | AL104: 190446.6106 | AM104: 189499.3675 | AN104: 189300.2467 | AO104: 189902.4051 | AP104: 190473.9101 | AQ104: 190441 | AR104: 191130.9098 | AS104: 192002.6842 | AT104: 192429.8375 | AU104: 193603.8886 | AV104: 193980.8261 | AW104: 195049.7209 | AX104: 196018.8874 | AY104: 196472.9123 | AZ104: 197941.8795 | BA104: 198115.7065 | BB104: 199565.2916 | BC104: 199951.2413 | BD104: 204365.895 | BE104: 205204.8214 | BF104: 206353.7308 | BG104: 206696.9095 | BH104: 207628.6106 | BI104: 205740.3732 | BJ104: 205411.9675 | BK104: 207232 | BL104: 206781 | BM104: 206364 | BN104: 206128 | BO104: 205665 | BP104: 205314 | BQ104: 205384 | BR104: 205637.032 | BS104: 207255.3334 | BT104: 208718.2627 | BU104: 209307.4939 | BV104: 210064.3568 | BW104: 210750.5242 | BX104: 211617.1685
A105: =+G105&F105 -> LandbrugNorge | B105: =+ROW(A105) -> 105 | F105: Norge | G105: Landbrug | V105: 0 | W105: 0 | X105: 0 | Y105: 0 | Z105: 0 | AA105: 0 | AB105: 0 | AC105: 0 | AD105: 0 | AE105: 0 | AF105: 0 | AG105: 0 | AH105: 0 | AI105: 0 | AR105: 0 | AS105: 0 | AU105: 0 | AV105: 0 | AZ105: 0 | BA105: 0 | BB105: 0 | BC105: 0 | BD105: 0 | BE105: 0 | BF105: 0 | BG105: 0 | BH105: 0 | BI105: 0 | BJ105: 0 | BK105: 0 | BL105: 0 | BM105: 0 | BN105: 0 | BO105: 0 | BP105: 0 | BQ105: 0
A106: Kontor og forretningNorge | B106: 106 | F106: Norge | G106: Kontor og forretning | V106: 1765.92833 | W106: 1630.644687 | X106: 1732.74255 | Y106: 1804.503754 | Z106: 1174.265823 | AA106: 352.3899299 | AB106: 359.9448651 | AC106: 352.9363173 | AD106: 364.9649642 | AE106: 317.2446089 | AF106: 331.2570194 | AG106: 327.4259499 | AH106: 302.3064639 | AI106: 299.0444749 | AJ106: 305.1098812 | AK106: 308.3352583 | AL106: 319.6294489 | AM106: 315.4274704 | AN106: 312.9782114 | AO106: 299.6957807 | AP106: 304.8741478 | AQ106: 0 | AR106: 0 | AS106: 0 | AU106: 0 | AV106: 0 | AZ106: 0 | BA106: 0 | BB106: 0 | BC106: 0 | BD106: 0 | BE106: 0 | BF106: 0 | BG106: 0 | BH106: 0 | BI106: 0 | BJ106: 0 | BK106: 0 | BL106: 0 | BM106: 0 | BN106: 0 | BO106: 0 | BP106: 0 | BQ106: 0
A107: IndustriNorge | B107: 107 | F107: Norge | G107: Industri | V107: 0 | W107: 0 | X107: 0 | Y107: 0 | Z107: 0 | AA107: 0 | AB107: 0 | AC107: 0 | AD107: 0 | AE107: 0 | AF107: 0 | AG107: 0 | AH107: 0 | AI107: 0 | AR107: 0 | AS107: 0 | AU107: 0 | AV107: 0 | AZ107: 0 | BA107: 0 | BB107: 0 | BC107: 0 | BD107: 0 | BE107: 0 | BF107: 0 | BG107: 0 | BH107: 0 | BI107: 0 | BJ107: 0 | BK107: 0 | BL107: 0 | BM107: 0 | BN107: 0 | BO107: 0 | BP107: 0 | BQ107: 0
A108: Socialt og kultureltNorge | B108: 108 | F108: Norge | G108: Socialt og kulturelt | V108: 0 | W108: 0 | X108: 0 | Y108: 0 | Z108: 0 | AA108: 0 | AB108: 0 | AC108: 0 | AD108: 0 | AE108: 0 | AF108: 0 | AG108: 0 | AH108: 0 | AI108: 0 | AR108: 0 | AS108: 0 | AU108: 0 | AV108: 0 | AZ108: 0 | BA108: 0 | BB108: 0 | BC108: 0 | BD108: 0 | BE108: 0 | BF108: 0 | BG108: 0 | BH108: 0 | BI108: 0 | BJ108: 0 | BK108: 0 | BL108: 0 | BM108: 0 | BN108: 0 | BO108: 0 | BP108: 0 | BQ108: 0
A109: EjerboligNorge | B109: 109 | F109: Norge | G109: Ejerbolig | V109: 0 | W109: 0 | X109: 0 | Y109: 0 | Z109: 0 | AA109: 0 | AB109: 0 | AC109: 0 | AD109: 0 | AE109: 0 | AF109: 0 | AG109: 0 | AH109: 0 | AI109: 0 | AR109: 0 | AS109: 0 | AU109: 0 | AV109: 0 | AZ109: 0 | BA109: 0 | BB109: 0 | BC109: 0 | BD109: 0 | BE109: 0 | BF109: 0 | BG109: 0 | BH109: 0 | BI109: 0 | BJ109: 0 | BK109: 0 | BL109: 0 | BM109: 0 | BN109: 0 | BO109: 0 | BP109: 0 | BQ109: 0
A110: BoligudlejningNorge | B110: 110 | F110: Norge | G110: Boligudlejning | V110: 0 | W110: 0 | X110: 0 | Y110: 0 | Z110: 0 | AA110: 0 | AB110: 0 | AC110: 0 | AD110: 0 | AE110: 0 | AF110: 0 | AG110: 0 | AH110: 0 | AI110: 0 | AR110: 0 | AS110: 0 | AU110: 0 | AV110: 0 | AZ110: 0 | BA110: 0 | BB110: 0 | BC110: 0 | BD110: 0 | BE110: 0 | BF110: 0 | BG110: 0 | BH110: 0 | BI110: 0 | BJ110: 0 | BK110: 0 | BL110: 0 | BM110: 0 | BN110: 0 | BO110: 0 | BP110: 0 | BQ110: 0
A111: Støttet boligbyggeriNorge | B111: 111 | F111: Norge | G111: Støttet boligbyggeri | V111: 0 | W111: 0 | X111: 0 | Y111: 0 | Z111: 0 | AA111: 0 | AB111: 0 | AC111: 0 | AD111: 0 | AE111: 0 | AF111: 0 | AG111: 0 | AH111: 0 | AI111: 0 | AR111: 0 | AS111: 0 | AU111: 0 | AV111: 0 | AZ111: 0 | BA111: 0 | BB111: 0 | BC111: 0 | BD111: 0 | BE111: 0 | BF111: 0 | BG111: 0 | BH111: 0 | BI111: 0 | BJ111: 0 | BK111: 0 | BL111: 0 | BM111: 0 | BN111: 0 | BO111: 0 | BP111: 0 | BQ111: 0
A112: I altNorge | B112: 112 | F112: Norge | G112: I alt | V112: 1765.92833 | W112: 1630.644687 | X112: 1732.74255 | Y112: 1804.503754 | Z112: 1174.265823 | AA112: 352.3899299 | AB112: 359.9448651 | AC112: 352.9363173 | AD112: 364.9649642 | AE112: 317.2446089 | AF112: 331.2570194 | AG112: 327.4259499 | AH112: 302.3064639 | AI112: 299.0444749 | AJ112: 305.1098812 | AK112: 308.3352583 | AL112: 319.6294489 | AM112: 315.4274704 | AN112: 312.9782114 | AO112: 299.6957807 | AP112: 304.8741478 | AQ112: 0 | AR112: 0 | AS112: 0 | AU112: 0 | AV112: 0 | AZ112: 0 | BA112: 0 | BB112: 0 | BC112: 0 | BD112: 0 | BE112: 0 | BF112: 0 | BG112: 0 | BH112: 0 | BI112: 0 | BJ112: 0 | BK112: 0 | BL112: 0 | BM112: 0 | BN112: 0 | BO112: 0 | BP112: 0 | BQ112: 0 | BR112: 0 | BS112: 0 | BT112: 0 | BU112: 0 | BV112: 0 | BW112: 0 | BX112: 0
A113: LandbrugKøbenhavns omegn | B113: 113 | F113: Københavns omegn | G113: Landbrug | V113: 2926.252961 | W113: 3177.132185 | X113: 3209.179919 | Y113: 3242.911993 | Z113: 3256.613045 | AA113: 3271.209172 | AB113: 3257.302298 | AC113: 3246.084195 | AD113: 3239.550081 | AE113: 3251.215548 | AF113: 3291.290814 | AG113: 3324.639681 | AH113: 3350.10064 | AI113: 3337.676344 | AJ113: 3358.239376 | AK113: 3408.886287 | AL113: 3393.054697 | AM113: 3412.784073 | AN113: 3418.680399 | AO113: 3362.988164 | AP113: 3379.63869 | AQ113: 3358 | AR113: 3281.701948 | AS113: 3304.955739 | AT113: 3296.39254 | AU113: 3281.881007 | AV113: 3220.488557 | AW113: 3204.322584 | AX113: 3188.375966 | AY113: 3169.405328 | AZ113: 3174.436263 | BA113: 3144.87271 | BB113: 3072.729701 | BC113: 3059.636949 | BD113: 3093.561261 | BE113: 3077.041581 | BF113: 3110.818338 | BG113: 3106.540149 | BH113: 3193.552474 | BI113: 3256.843701 | BJ113: 3183.431329 | BK113: 3102 | BL113: 3195 | BM113: 3185 | BN113: 3179 | BO113: 3108 | BP113: 3120 | BQ113: 3125
A114: Kontor og forretningKøbenhavns omegn | B114: 114 | F114: Københavns omegn | G114: Kontor og forretning | V114: 10395.09264 | W114: 10673.44869 | X114: 11587.51966 | Y114: 12697.98972 | Z114: 13759.01774 | AA114: 13662.05836 | AB114: 14075.09419 | AC114: 14153.3652 | AD114: 14127.71365 | AE114: 14334.3647 | AF114: 15094.56047 | AG114: 15174.17498 | AH114: 15310.62329 | AI114: 15154.15676 | AJ114: 15168.87652 | AK114: 15162.55513 | AL114: 14986.58361 | AM114: 15244.92993 | AN114: 16782.06143 | AO114: 16986.36326 | AP114: 17307.22199 | AQ114: 17261 | AR114: 17072.6245 | AS114: 17331.48438 | AT114: 17323.72039 | AU114: 17524.94856 | AV114: 17266.41647 | AW114: 17253.15273 | AX114: 17274.60283 | AY114: 18115.96582 | AZ114: 18546.08499 | BA114: 18550.96137 | BB114: 18474.86739 | BC114: 18493.4751 | BD114: 18451.18836 | BE114: 18195.91917 | BF114: 18280.01673 | BG114: 18430.73292 | BH114: 19791.63138 | BI114: 20361.45872 | BJ114: 20759.00692 | BK114: 23270 | BL114: 23319 | BM114: 23664 | BN114: 24499 | BO114: 24454 | BP114: 24724 | BQ114: 25558
A115: IndustriKøbenhavns omegn | B115: 115 | F115: Københavns omegn | G115: Industri | V115: 2172.064153 | W115: 2150.167645 | X115: 2096.253274 | Y115: 2071.904496 | Z115: 1668.315904 | AA115: 1670.24865 | AB115: 1647.916017 | AC115: 1616.360277 | AD115: 1609.070132 | AE115: 1608.491661 | AF115: 1402.899547 | AG115: 1373.310166 | AH115: 1359.058897 | AI115: 1332.177053 | AJ115: 1317.151081 | AK115: 1297.238038 | AL115: 1251.492321 | AM115: 1081.676863 | AN115: 1070.036326 | AO115: 1049.277121 | AP115: 1085.298793 | AQ115: 1044 | AR115: 1043.917237 | AS115: 1058.26814 | AT115: 998.3363062 | AU115: 993.6330082 | AV115: 2166.287985 | AW115: 2525.285014 | AX115: 2667.025613 | AY115: 2626.982515 | AZ115: 2594.24137 | BA115: 2590.673542 | BB115: 2577.212964 | BC115: 2573.741162 | BD115: 2691.904738 | BE115: 2697.722828 | BF115: 2654.288072 | BG115: 2670.484702 | BH115: 2628.950095 | BI115: 2583.038967 | BJ115: 2589.395446 | BK115: 3935 | BL115: 4056 | BM115: 4169 | BN115: 4166 | BO115: 4137 | BP115: 4170 | BQ115: 4131
A116: Socialt og kultureltKøbenhavns omegn | B116: 116 | F116: Københavns omegn | G116: Socialt og kulturelt | V116: 1883.296511 | W116: 1844.87141 | X116: 1969.388666 | Y116: 3625.528259 | Z116: 3662.845834 | AA116: 3604.621357 | AB116: 3551.563537 | AC116: 3513.9352 | AD116: 3610.703571 | AE116: 3658.457401 | AF116: 3621.288487 | AG116: 3610.680962 | AH116: 3564.38299 | AI116: 3555.781677 | AJ116: 3536.45262 | AK116: 3471.093465 | AL116: 3462.153377 | AM116: 3413.926199 | AN116: 3300.567002 | AO116: 3236.954348 | AP116: 3214.323854 | AQ116: 3170 | AR116: 3034.015931 | AS116: 3003.071739 | AT116: 2854.746198 | AU116: 2852.018517 | AV116: 2781.884207 | AW116: 2793.108572 | AX116: 3288.842515 | AY116: 3047.077839 | AZ116: 2984.420719 | BA116: 2962.144437 | BB116: 3010.866984 | BC116: 3015.712251 | BD116: 4495.429872 | BE116: 4402.760036 | BF116: 4355.719969 | BG116: 4418.617538 | BH116: 4364.34146 | BI116: 4618.133704 | BJ116: 4598.216986 | BK116: 4686 | BL116: 4661 | BM116: 4843 | BN116: 4703 | BO116: 4879 | BP116: 4551 | BQ116: 4249
A117: EjerboligKøbenhavns omegn | B117: 117 | F117: Københavns omegn | G117: Ejerbolig | V117: 132417.8959 | W117: 136428.9307 | X117: 138825.2151 | Y117: 142182.0417 | Z117: 145969.6282 | AA117: 147216.1976 | AB117: 145948.6409 | AC117: 145400.3033 | AD117: 144348.7057 | AE117: 143324.7967 | AF117: 143164.5559 | AG117: 144109.1669 | AH117: 144580.8155 | AI117: 144561.0633 | AJ117: 144852.0231 | AK117: 145122.7698 | AL117: 144740.2939 | AM117: 145253.7235 | AN117: 146260.1015 | AO117: 147340.2512 | AP117: 149472.2466 | AQ117: 151302 | AR117: 153433.4299 | AS117: 156045.4475 | AT117: 158228.8494 | AU117: 160713.248 | AV117: 163413.2469 | AW117: 167810.1844 | AX117: 173206.2485 | AY117: 178560.821 | AZ117: 183979.548 | BA117: 187183.0571 | BB117: 191721.5378 | BC117: 195250.6569 | BD117: 201234.3872 | BE117: 206689.1848 | BF117: 210712.4069 | BG117: 214696.9427 | BH117: 220197.2907 | BI117: 221983.5581 | BJ117: 221484.1125 | BK117: 217219 | BL117: 217048 | BM117: 218101 | BN117: 219591 | BO117: 221727 | BP117: 222884 | BQ117: 225611
A118: BoligudlejningKøbenhavns omegn | B118: 118 | F118: Københavns omegn | G118: Boligudlejning | V118: 8421.112973 | W118: 10386.82606 | X118: 11598.69861 | Y118: 12355.31314 | Z118: 13070.73939 | AA118: 14043.93381 | AB118: 13991.92369 | AC118: 14218.05776 | AD118: 14612.45806 | AE118: 15009.83834 | AF118: 14341.56594 | AG118: 14174.04807 | AH118: 14262.32287 | AI118: 15526.12193 | AJ118: 15385.04431 | AK118: 15313.41489 | AL118: 14838.53626 | AM118: 15306.54558 | AN118: 15183.68393 | AO118: 15199.41453 | AP118: 15498.62535 | AQ118: 16019 | AR118: 16079.29062 | AS118: 16041.80617 | AT118: 16194.31389 | AU118: 16558.63396 | AV118: 17168.74578 | AW118: 17306.58486 | AX118: 17904.59228 | AY118: 18597.29552 | AZ118: 19080.3165 | BA118: 19275.69103 | BB118: 19596.00272 | BC118: 19949.63675 | BD118: 20085.98299 | BE118: 20559.00868 | BF118: 20778.74514 | BG118: 21045.82726 | BH118: 21838.21676 | BI118: 22237.33102 | BJ118: 22867.27145 | BK118: 25932 | BL118: 26117 | BM118: 26149 | BN118: 26938 | BO118: 27286 | BP118: 28629 | BQ118: 30533
A119: Støttet boligbyggeriKøbenhavns omegn | B119: 119 | F119: Københavns omegn | G119: Støttet boligbyggeri | V119: 16359.59249 | W119: 16345.20064 | X119: 16154.81984 | Y119: 15809.49957 | Z119: 16315.33579 | AA119: 15923.52303 | AB119: 15967.0134 | AC119: 15790.77834 | AD119: 15768.28882 | AE119: 15480.89571 | AF119: 16009.22123 | AG119: 15791.69576 | AH119: 16088.71745 | AI119: 15913.81034 | AJ119: 16250.09242 | AK119: 16068.567 | AL119: 16235.11391 | AM119: 16308.65259 | AN119: 16694.50876 | AO119: 16616.26091 | AP119: 16525.69781 | AQ119: 16455 | AR119: 16519.80759 | AS119: 16451.45323 | AT119: 16532.45855 | AU119: 16411.73147 | AV119: 16316.63879 | AW119: 16186.56867 | AX119: 16076.34035 | AY119: 16255.74374 | AZ119: 16248.32704 | BA119: 16243.65465 | BB119: 16263.59225 | BC119: 16022.44403 | BD119: 20159.15075 | BE119: 19926.42992 | BF119: 19880.83818 | BG119: 19916.7379 | BH119: 20134.78849 | BI119: 20266.01964 | BJ119: 20205.31579 | BK119: 20513 | BL119: 20088 | BM119: 19959 | BN119: 20073 | BO119: 20321 | BP119: 20226 | BQ119: 20500
A120: I altKøbenhavns omegn | B120: 120 | F120: Københavns omegn | G120: I alt | V120: 174575.3076 | W120: 181006.5773 | X120: 185441.075 | Y120: 191985.1889 | Z120: 197702.4959 | AA120: 199391.792 | AB120: 198439.454 | AC120: 197938.8843 | AD120: 197316.49 | AE120: 196668.0601 | AF120: 196925.3824 | AG120: 197557.7165 | AH120: 198516.0216 | AI120: 199380.7874 | AJ120: 199867.8794 | AK120: 199844.5246 | AL120: 198907.2281 | AM120: 200022.2387 | AN120: 202709.6393 | AO120: 203791.5096 | AP120: 206483.053 | AQ120: 208609 | AR120: 210464.7877 | AS120: 213236.4869 | AT120: 215428.8173 | AU120: 218336.0945 | AV120: 222333.7087 | AW120: 227079.2069 | AX120: 233606.028 | AY120: 240373.2917 | AZ120: 246607.3749 | BA120: 249951.0548 | BB120: 254716.8098 | BC120: 258365.3032 | BD120: 270211.6052 | BE120: 275548.067 | BF120: 279772.8333 | BG120: 284285.8831 | BH120: 292148.7713 | BI120: 295306.3839 | BJ120: 295686.7505 | BK120: 298656 | BL120: 298484 | BM120: 300071 | BN120: 303148 | BO120: 305911 | BP120: 308305 | BQ120: 313707 | BR120: 318438.8876 | BS120: 325647.1702 | BT120: 331755.4328 | BU120: 335811.145 | BV120: 343767.4308 | BW120: 350226.881 | BX120: 359184.1734
A121: LandbrugPolen | B121: 121 | F121: Polen | G121: Landbrug | V121: 0 | W121: 0 | X121: 0 | Y121: 0 | Z121: 0 | AA121: 0 | AB121: 0 | AC121: 0 | AD121: 0 | AE121: 0 | AF121: 0 | AG121: 0 | AH121: 0 | AI121: 0 | AR121: 0 | AS121: 0 | AU121: 0 | AV121: 0 | AZ121: 0 | BA121: 0 | BB121: 0 | BC121: 0 | BD121: 0 | BE121: 0 | BF121: 0 | BG121: 0 | BH121: 0 | BI121: 0 | BJ121: 0 | BK121: 0 | BL121: 0 | BM121: 0 | BN121: 0 | BO121: 0 | BP121: 0 | BQ121: 0
A122: Kontor og forretningPolen | B122: 122 | F122: Polen | G122: Kontor og forretning | V122: 0 | W122: 0 | X122: 0 | Y122: 0 | Z122: 0 | AA122: 0 | AB122: 0 | AC122: 0 | AD122: 0 | AE122: 0 | AF122: 0 | AG122: 0 | AH122: 0 | AI122: 0 | AR122: 0 | AS122: 0 | AU122: 0 | AV122: 0 | AZ122: 0 | BA122: 0 | BB122: 0 | BC122: 0 | BD122: 0 | BE122: 0 | BF122: 0 | BG122: 0 | BH122: 0 | BI122: 0 | BJ122: 0 | BK122: 0 | BL122: 0 | BM122: 0 | BN122: 0 | BO122: 0 | BP122: 0 | BQ122: 0
A123: IndustriPolen | B123: 123 | F123: Polen | G123: Industri | V123: 0 | W123: 0 | X123: 0 | Y123: 0 | Z123: 0 | AA123: 0 | AB123: 0 | AC123: 0 | AD123: 0 | AE123: 0 | AF123: 0 | AG123: 0 | AH123: 0 | AI123: 0 | AR123: 0 | AS123: 0 | AU123: 0 | AV123: 0 | AZ123: 0 | BA123: 0 | BB123: 0 | BC123: 0 | BD123: 0 | BE123: 0 | BF123: 0 | BG123: 0 | BH123: 0 | BI123: 0 | BJ123: 0 | BK123: 0 | BL123: 0 | BM123: 0 | BN123: 0 | BO123: 0 | BP123: 0 | BQ123: 0
A124: Socialt og kultureltPolen | B124: 124 | F124: Polen | G124: Socialt og kulturelt | V124: 0 | W124: 0 | X124: 0 | Y124: 0 | Z124: 0 | AA124: 0 | AB124: 0 | AC124: 0 | AD124: 0 | AE124: 0 | AF124: 0 | AG124: 0 | AH124: 0 | AI124: 0 | AR124: 0 | AS124: 0 | AU124: 0 | AV124: 0 | AZ124: 0 | BA124: 0 | BB124: 0 | BC124: 0 | BD124: 0 | BE124: 0 | BF124: 0 | BG124: 0 | BH124: 0 | BI124: 0 | BJ124: 0 | BK124: 0 | BL124: 0 | BM124: 0 | BN124: 0 | BO124: 0 | BP124: 0 | BQ124: 0
A125: EjerboligPolen | B125: 125 | F125: Polen | G125: Ejerbolig | V125: 1878.342317 | W125: 1591.845497 | X125: 1536.345957 | Y125: 1240.190215 | Z125: 1188.950021 | AA125: 1099.249822 | AB125: 1071.933462 | AC125: 1050.776829 | AD125: 1013.630449 | AE125: 964.5379837 | AF125: 985.5804479 | AG125: 936.5050388 | AH125: 901.5166691 | AI125: 880.6246045 | AJ125: 853.606998 | AK125: 805.3802473 | AL125: 804.8733056 | AM125: 771.7177076 | AN125: 778.1471593 | AO125: 730.753 | AP125: 698.426 | AQ125: 699 | AR125: 674.598 | AS125: 0 | AU125: 0 | AV125: 0 | AZ125: 0 | BA125: 0 | BB125: 0 | BC125: 0 | BD125: 0 | BE125: 0 | BF125: 0 | BG125: 0 | BH125: 0 | BI125: 0 | BJ125: 0 | BK125: 0 | BL125: 0 | BM125: 0 | BN125: 0 | BO125: 0 | BP125: 0 | BQ125: 0
A126: BoligudlejningPolen | B126: 126 | F126: Polen | G126: Boligudlejning | V126: 0 | W126: 0 | X126: 0 | Y126: 0 | Z126: 0 | AA126: 0 | AB126: 0 | AC126: 0 | AD126: 0 | AE126: 0 | AF126: 0 | AG126: 0 | AH126: 0 | AI126: 0 | AR126: 0 | AS126: 0 | AU126: 0 | AV126: 0 | AZ126: 0 | BA126: 0 | BB126: 0 | BC126: 0 | BD126: 0 | BE126: 0 | BF126: 0 | BG126: 0 | BH126: 0 | BI126: 0 | BJ126: 0 | BK126: 0 | BL126: 0 | BM126: 0 | BN126: 0 | BO126: 0 | BP126: 0 | BQ126: 0
A127: Støttet boligbyggeriPolen | B127: 127 | F127: Polen | G127: Støttet boligbyggeri | V127: 0 | W127: 0 | X127: 0 | Y127: 0 | Z127: 0 | AA127: 0 | AB127: 0 | AC127: 0 | AD127: 0 | AE127: 0 | AF127: 0 | AG127: 0 | AH127: 0 | AI127: 0 | AR127: 0 | AS127: 0 | AU127: 0 | AV127: 0 | AZ127: 0 | BA127: 0 | BB127: 0 | BC127: 0 | BD127: 0 | BE127: 0 | BF127: 0 | BG127: 0 | BH127: 0 | BI127: 0 | BJ127: 0 | BK127: 0 | BL127: 0 | BM127: 0 | BN127: 0 | BO127: 0 | BP127: 0 | BQ127: 0
A128: I altPolen | B128: 128 | F128: Polen | G128: I alt | V128: 1878.342317 | W128: 1591.845497 | X128: 1536.345957 | Y128: 1240.190215 | Z128: 1188.950021 | AA128: 1099.249822 | AB128: 1071.933462 | AC128: 1050.776829 | AD128: 1013.630449 | AE128: 964.5379837 | AF128: 985.5804479 | AG128: 936.5050388 | AH128: 901.5166691 | AI128: 880.6246045 | AJ128: 853.606998 | AK128: 805.3802473 | AL128: 804.8733056 | AM128: 771.7177076 | AN128: 778.1471593 | AO128: 730.753 | AP128: 698.426 | AQ128: 699 | AR128: 674.598 | AS128: 0 | AU128: 0 | AV128: 0 | AZ128: 0 | BA128: 0 | BB128: 0 | BC128: 0 | BD128: 0 | BE128: 0 | BF128: 0 | BG128: 0 | BH128: 0 | BI128: 0 | BJ128: 0 | BK128: 0 | BL128: 0 | BM128: 0 | BN128: 0 | BO128: 0 | BP128: 0 | BQ128: 0 | BR128: 0 | BS128: 0 | BT128: 0 | BU128: 0 | BV128: 0 | BW128: 0 | BX128: 0
A129: LandbrugØvrig Sjælland | B129: 129 | F129: Øvrig Sjælland | G129: Landbrug | V129: 11935.38968 | W129: 12983.97849 | X129: 13188.92152 | Y129: 13121.09621 | Z129: 13184.45517 | AA129: 13106.27655 | AB129: 13071.75912 | AC129: 12982.81014 | AD129: 12936.22974 | AE129: 13200.90448 | AF129: 13046.64304 | AG129: 12918.97654 | AH129: 12930.44121 | AI129: 12753.30479 | AJ129: 12849.91504 | AK129: 12834.74618 | AL129: 12697.1388 | AM129: 12739.28653 | AN129: 12632.755 | AO129: 12484.82675 | AP129: 12515.94866 | AQ129: 12038 | AR129: 11760.39913 | AS129: 11652.64792 | AT129: 11687.59686 | AU129: 11466.10982 | AV129: 11440.40438 | AW129: 11354.97573 | AX129: 11383.60126 | AY129: 11432.79004 | AZ129: 11934.25551 | BA129: 11904.05204 | BB129: 11859.1628 | BC129: 11792.85959 | BD129: 11866.55928 | BE129: 11969.31722 | BF129: 12015.80083 | BG129: 12064.01748 | BH129: 12106.56684 | BI129: 12398.62072 | BJ129: 11940.39161 | BK129: 11958 | BL129: 12222 | BM129: 12203 | BN129: 12250 | BO129: 12334 | BP129: 12330 | BQ129: 12393
A130: Kontor og forretningØvrig Sjælland | B130: 130 | F130: Øvrig Sjælland | G130: Kontor og forretning | V130: 3870.524341 | W130: 3417.706668 | X130: 3871.002069 | Y130: 4217.421485 | Z130: 4271.636328 | AA130: 4422.364 | AB130: 5588.026235 | AC130: 6546.515396 | AD130: 6488.190182 | AE130: 6369.882754 | AF130: 6335.205056 | AG130: 6212.405896 | AH130: 6214.795873 | AI130: 6130.722132 | AJ130: 6077.772261 | AK130: 6040.138564 | AL130: 6012.243135 | AM130: 6037.504136 | AN130: 5948.99912 | AO130: 5963.443821 | AP130: 5990.119778 | AQ130: 6463 | AR130: 6406.254379 | AS130: 6391.77257 | AT130: 6224.73646 | AU130: 6058.871726 | AV130: 5981.31262 | AW130: 6007.053364 | AX130: 6369.352672 | AY130: 6302.684873 | AZ130: 6638.626179 | BA130: 7281.2592 | BB130: 7643.470777 | BC130: 7518.866797 | BD130: 8180.918718 | BE130: 8072.381379 | BF130: 7954.407149 | BG130: 7874.995982 | BH130: 7802.981967 | BI130: 8656.94814 | BJ130: 8621.955805 | BK130: 9292 | BL130: 9352 | BM130: 9347 | BN130: 9185 | BO130: 9161 | BP130: 9433 | BQ130: 9513
A131: IndustriØvrig Sjælland | B131: 131 | F131: Øvrig Sjælland | G131: Industri | V131: 2114.989223 | W131: 2069.179551 | X131: 2074.652537 | Y131: 2103.312814 | Z131: 1987.505627 | AA131: 2566.472248 | AB131: 2536.598961 | AC131: 2494.04568 | AD131: 2432.944558 | AE131: 2421.799081 | AF131: 2409.961459 | AG131: 2384.249934 | AH131: 2368.805937 | AI131: 2347.809972 | AJ131: 2184.033045 | AK131: 2173.136999 | AL131: 2151.795641 | AM131: 2130.391438 | AN131: 2076.350398 | AO131: 2058.081907 | AP131: 2040.664124 | AQ131: 1974 | AR131: 2039.553193 | AS131: 2183.878201 | AT131: 2159.048087 | AU131: 2164.09961 | AV131: 2125.94039 | AW131: 2119.87809 | AX131: 2112.168752 | AY131: 1929.98198 | AZ131: 2044.996781 | BA131: 2025.779118 | BB131: 1997.290022 | BC131: 1959.560001 | BD131: 1933.323387 | BE131: 1904.363307 | BF131: 1628.824675 | BG131: 2035.040873 | BH131: 2010.521791 | BI131: 1974.100343 | BJ131: 2067.757824 | BK131: 2109 | BL131: 2084 | BM131: 2059 | BN131: 2030 | BO131: 2050 | BP131: 2035 | BQ131: 2014
A132: Socialt og kultureltØvrig Sjælland | B132: 132 | F132: Øvrig Sjælland | G132: Socialt og kulturelt | V132: 1194.075547 | W132: 1166.540125 | X132: 1412.794197 | Y132: 1512.998021 | Z132: 1531.551761 | AA132: 1484.359832 | AB132: 1476.120358 | AC132: 1463.180623 | AD132: 1427.102587 | AE132: 1404.497063 | AF132: 1396.548923 | AG132: 1383.201137 | AH132: 1389.819015 | AI132: 1354.854371 | AJ132: 1332.290164 | AK132: 1322.610779 | AL132: 1269.18337 | AM132: 1253.898996 | AN132: 1242.349418 | AO132: 1218.727827 | AP132: 1140.478748 | AQ132: 1121 | AR132: 1042.582959 | AS132: 1084.922976 | AT132: 1114.201744 | AU132: 1088.673742 | AV132: 966.7365908 | AW132: 943.6390147 | AX132: 916.8795583 | AY132: 974.6852237 | AZ132: 955.2796885 | BA132: 949.3871495 | BB132: 932.9321992 | BC132: 908.7901399 | BD132: 1412.362341 | BE132: 1392.970993 | BF132: 1356.867266 | BG132: 1401.476949 | BH132: 1377.525245 | BI132: 1316.234954 | BJ132: 1299.655142 | BK132: 1332 | BL132: 1318 | BM132: 1298 | BN132: 1285 | BO132: 1220 | BP132: 1113 | BQ132: 1103
A133: EjerboligØvrig Sjælland | B133: 133 | F133: Øvrig Sjælland | G133: Ejerbolig | V133: 63547.15912 | W133: 66461.3445 | X133: 68174.50601 | Y133: 68932.12755 | Z133: 69516.71197 | AA133: 68841.76468 | AB133: 68341.16134 | AC133: 67960.21158 | AD133: 67432.66411 | AE133: 66717.01676 | AF133: 66238.15191 | AG133: 66024.16132 | AH133: 65783.90868 | AI133: 65388.45307 | AJ133: 65053.49511 | AK133: 64961.18498 | AL133: 64503.05079 | AM133: 64188.05079 | AN133: 63769.13074 | AO133: 64101.58313 | AP133: 64443.49373 | AQ133: 64389 | AR133: 64550.37768 | AS133: 64911.57662 | AT133: 65212.221 | AU133: 65496.7709 | AV133: 65821.50302 | AW133: 66522.14343 | AX133: 67580.91807 | AY133: 68441.64076 | AZ133: 69371.79248 | BA133: 70112.85462 | BB133: 71011.87691 | BC133: 71722.64144 | BD133: 72987.76057 | BE133: 74229.52426 | BF133: 75292.61204 | BG133: 76070.26003 | BH133: 77219.90023 | BI133: 77785.33822 | BJ133: 77686.74717 | BK133: 76140 | BL133: 75942 | BM133: 75921 | BN133: 75912 | BO133: 75886 | BP133: 75822 | BQ133: 76089
A134: BoligudlejningØvrig Sjælland | B134: 134 | F134: Øvrig Sjælland | G134: Boligudlejning | V134: 4356.247048 | W134: 5617.791571 | X134: 6283.972048 | Y134: 6468.505687 | Z134: 6578.391725 | AA134: 6743.148007 | AB134: 6774.804579 | AC134: 6732.23632 | AD134: 6762.861742 | AE134: 6827.070374 | AF134: 6854.938616 | AG134: 6984.689674 | AH134: 6966.572118 | AI134: 7026.443411 | AJ134: 6994.827267 | AK134: 7056.537503 | AL134: 7028.718155 | AM134: 6936.727088 | AN134: 6966.546402 | AO134: 6941.681139 | AP134: 6946.588279 | AQ134: 7039 | AR134: 7018.300851 | AS134: 6994.887593 | AT134: 6879.312877 | AU134: 6803.807374 | AV134: 6768.102257 | AW134: 6646.600023 | AX134: 6599.514937 | AY134: 6680.098675 | AZ134: 6619.893471 | BA134: 6666.821198 | BB134: 6630.332271 | BC134: 6664.142245 | BD134: 6689.585653 | BE134: 6765.481651 | BF134: 6742.534029 | BG134: 7541.784818 | BH134: 7539.840031 | BI134: 7606.274773 | BJ134: 7618.281566 | BK134: 8000 | BL134: 8259 | BM134: 8257 | BN134: 8304 | BO134: 8481 | BP134: 8826 | BQ134: 8613
A135: Støttet boligbyggeriØvrig Sjælland | B135: 135 | F135: Øvrig Sjælland | G135: Støttet boligbyggeri | V135: 5303.729431 | W135: 5312.948583 | X135: 4955.703348 | Y135: 4918.7534 | Z135: 4843.255741 | AA135: 4736.475239 | AB135: 4722.27947 | AC135: 4611.25535 | AD135: 4600.905919 | AE135: 4622.318948 | AF135: 4650.966033 | AG135: 4679.983813 | AH135: 4649.379488 | AI135: 4734.882185 | AJ135: 4759.422327 | AK135: 4868.158556 | AL135: 4943.963896 | AM135: 5090.208248 | AN135: 5262.58422 | AO135: 5192.0073 | AP135: 5160.784283 | AQ135: 5153 | AR135: 5164.082807 | AS135: 5182.25937 | AT135: 5141.15186 | AU135: 5139.736672 | AV135: 5084.893054 | AW135: 5072.673257 | AX135: 4987.469549 | AY135: 5039.272017 | AZ135: 4973.859632 | BA135: 5085.168966 | BB135: 5051.345691 | BC135: 4997.360036 | BD135: 5588.118172 | BE135: 5525.212436 | BF135: 5506.466461 | BG135: 5400.906902 | BH135: 5741.144565 | BI135: 5689.147177 | BJ135: 5641.276026 | BK135: 5740 | BL135: 5926 | BM135: 5849 | BN135: 5931 | BO135: 5956 | BP135: 6023 | BQ135: 5951
A136: I altØvrig Sjælland | B136: 136 | F136: Øvrig Sjælland | G136: I alt | V136: 92322.11439 | W136: 97029.48949 | X136: 99961.55173 | Y136: 101274.2152 | Z136: 101913.5083 | AA136: 101900.8606 | AB136: 102510.7501 | AC136: 102790.2551 | AD136: 102080.8988 | AE136: 101563.4895 | AF136: 100932.415 | AG136: 100587.6683 | AH136: 100303.7223 | AI136: 99736.46993 | AJ136: 99251.75521 | AK136: 99256.51355 | AL136: 98606.09379 | AM136: 98376.06722 | AN136: 97898.71529 | AO136: 97960.35187 | AP136: 98238.0776 | AQ136: 98177 | AR136: 97981.551 | AS136: 98401.94524 | AT136: 98418.26889 | AU136: 98218.06985 | AV136: 98188.89231 | AW136: 98666.96291 | AX136: 99949.90479 | AY136: 100801.1536 | AZ136: 102538.7037 | BA136: 104025.3223 | BB136: 105126.4107 | BC136: 105564.2202 | BD136: 108658.6281 | BE136: 109859.2512 | BF136: 110497.5124 | BG136: 112388.483 | BH136: 113798.4807 | BI136: 115426.6643 | BJ136: 114876.0651 | BK136: 114571 | BL136: 115102 | BM136: 114933 | BN136: 114897 | BO136: 115088 | BP136: 115582 | BQ136: 115676 | BR136: 116214.1187 | BS136: 116966.3985 | BT136: 118093.8286 | BU136: 119507.8081 | BV136: 120488.9914 | BW136: 121113.3318 | BX136: 122873.1729
